Workbook

Sheet Table S1
A1: Table S1. Details of primers used for gene expression analysis using RT-qPCR
A2: Gene name | B2: Transcript ID | C2: Primer_forward | D2: Primer_reverse | E2: Product size (bp)
A3: HvMTA | B3: HORVU.MOREX.r3.6HG0603200.1 | C3: CTGGATGGCTCTCTCTTGGC | D3: GGTGACAAGAATCACCGTCTG | E3: 195
A4: HvMTC | B4: HORVU.MOREX.r3.4HG0399270.1 | C4: ACTGGCTGAAGGTGAAGTCG | D4: TACTTGGCTGCCTTGCAGAA | E4: 152
A5: HvECT8 | B5: HORVU.MOREX.r3.4HG0401530.1 | C5: AACCATGAGCGAGTGGGATG | D5: GTTGGGACTGGGGAACTAGC | E5: 141
A6: HvECT11 | B6: HORVU.MOREX.r3.5HG0517800.1 | C6: TGCCATAGTCAGTGCTGCTC | D6: GCTGGTCTGCTACTTGGGTT | E6: 111
A7: HvALKBH1 | B7: HORVU.MOREX.r3.1HG0063430.1 | C7: GTCCACGACGGACCAGATAA | D7: TAACCATGTGCCCCTTCACG | E7: 166
A8: HvALKBH9 | B8: HORVU.MOREX.r3.5HG0524840.1 | C8: AAGGCCGGAAGATCAGGTTG | D8: CCCTAAGCACATCATCCGCA | E8: 124
A9: Ref D | B9: AK356259 | C9: TGTCTGCGGGTAGAAGAAGTGGA | D9: GCTGAGTTACTCCCCTCACTCACA | E9: 156

Sheet Table S2
A1: Table S2. List of identified RNA m6A genes in barley with detailed information and localization.
A2: class | B2: Gene name | C2: Locus name | D2: ID transcript | E2: Coordinates 5’->3’ | F2: strand | G2: CDS (bp) | H2: Protein (aa) | I2: MW (kDa) | J2: pI | K2: Localization*
A4: mRNA m6A writer | B4: HvMTA | C4: HORVU.MOREX.r3.6HG0603200 | D4: HORVU.MOREX.r3.6HG0603200.1 | E4: 432710309-432715380 | F4: + | G4: 2406 | H4: 701 | I4: 77.65 | J4: 7.1707 | K4: nucl, E.R., cyto, plas, mito, vacu
B6: HvMTB | C6: HORVU.MOREX.r3.4HG0408030 | D6: HORVU.MOREX.r3.4HG0408030.1 | E6: 581124067-581129791 | F6: - | G6: 2934 | H6: 807 | I6: 89.87 | J6: 6.4583 | K6: nucl
B8: HvMTC | C8: HORVU.MOREX.r3.4HG0399270 | D8: HORVU.MOREX.r3.4HG0399270.1 | E8: 547353336-547356381 | F8: - | G8: 1239 | H8: 412 | I8: 46.93 | J8: 7.3786 | K8: nucl cyto, chlo
B10: HvFIP37 | C10: HORVU.MOREX.r3.7HG0677190 | D10: HORVU.MOREX.r3.7HG0677190.1 | E10: 156263203-156269468 | F10: - | G10: 1568 | H10: 352 | I10: 39.44 | J10: 4.6106 | K10: nucl_plas, plas, chlo, nucl
B11: HvVIR | C11: HORVU.MOREX.r3.7HG0712870 | D11: HORVU.MOREX.r3.7HG0712870.1 | E11: 483488102-483507842 | F11: - | G11: 6875 | H11: 2219 | I11: 244.2 | J11: 5.2441 | K11: plas, nucl, chlo, E.R, cyto
B13: HAKAI | C13: HORVU.MOREX.r3.1HG0045980 | D13: HORVU.MOREX.r3.1HG0045980.1 | E13: 301807892-301811100 | F13: - | G13: 1714 | H13: 467 | I13: 50.33 | J13: 7.4897 | K13: nucl, cyto_nucl, cyto
A15: mRNA m6A reader | B15: HvECT1 | C15: HORVU.MOREX.r3.1HG0008650 | D15: HORVU.MOREX.r3.1HG0008650.1 | E15: 20592129-20598014 | F15: - | G15: 2815 | H15: 642 | I15: 70.6 | J15: 5.307 | K15: nucl
B17: HvECT2 | C17: HORVU.MOREX.r3.1HG0024800 | D17: HORVU.MOREX.r3.1HG0024800.1 | E17: 99686966-99692241 | F17: - | G17: 2557 | H17: 703 | I17: 78.17 | J17: 8.8414 | K17: nucl
B18: HvECT3 | C18: HORVU.MOREX.r3.2HG0096780 | D18: HORVU.MOREX.r3.2HG0096780.1 | E18: 2878672-2883401 | F18: - | G18: 2157 | H18: 718 | I18: 81.27 | J18: 6.9285 | K18: nucl
B19: HvECT4 | C19: HORVU.MOREX.r3.2HG0117810 | D19: HORVU.MOREX.r3.2HG0117810.1 | E19: 59835367-59844557 | F19: - | G19: 2723 | H19: 709 | I19: 80.14 | J19: 7.1786 | K19: nucl
B20: HvECT5 | C20: HORVU.MOREX.r3.3HG0263400 | D20: HORVU.MOREX.r3.3HG0263400.1 | E20: 277534425-277539362 | F20: - | G20: 2438 | H20: 624 | I20: 69.39 | J20: 7.0537 | K20: nucl
B21: HvECT6 | C21: HORVU.MOREX.r3.3HG0280160 | D21: HORVU.MOREX.r3.3HG0280160.1 | E21: 431339032-431345030 | F21: + | G21: 2839 | H21: 670 | I21: 73.19 | J21: 6.3115 | K21: nucl
B22: HvECT7 | C22: HORVU.MOREX.r3.4HG0380920 | D22: HORVU.MOREX.r3.4HG0380920.1 | E22: 416038809-416045281 | F22: - | G22: 2799 | H22: 713 | I22: 76.97 | J22: 6.2045 | K22: nucl, chlo
B23: HvECT8 | C23: HORVU.MOREX.r3.4HG0401530 | D23: HORVU.MOREX.r3.4HG0401530.1 | E23: 556146137-556150747 | F23: - | G23: 2985 | H23: 758 | I23: 80.97 | J23: 8.28 | K23: nucl: chlo: mito,cytopero
B25: HvECT9 | C25: HORVU.MOREX.r3.5HG0510340 | D25: HORVU.MOREX.r3.5HG0510340.2 | E25: 526652001-526656599 | F25: + | G25: 2584 | H25: 663 | I25: 71.85 | J25: 8.5448 | K25: nucl
B28: HvECT10 | C28: HORVU.MOREX.r3.5HG0517790 | D28: HORVU.MOREX.r3.5HG0517790.1 | E28: 544694257-544698740 | F28: - | G28: 2549 | H28: 641 | I28: 69.51 | J28: 8.2913 | K28: nucl, cyto,mito, pero
B30: HvECT11 | C30: HORVU.MOREX.r3.5HG0517800 | D30: HORVU.MOREX.r3.5HG0517800.1 | E30: 544701265-544705316 | F30: - | G30: 2382 | H30: 611 | I30: 66.45 | J30: 6.3224 | K30: nucl, mito, cyto, plas, pero
B32: HvECT12 | C32: HORVU.MOREX.r3.6HG0566340 | D32: HORVU.MOREX.r3.6HG0566340.1 | E32: 101319943-101324259 | F32: + | G32: 1276 | H32: 337 | I32: 36.13 | J32: 6.2697 | K32: chlo, nucl, plas, cyto
B33: HvECT13 | C33: HORVU.MOREX.r3.7HG0697420 | D33: HORVU.MOREX.r3.7HG0697420.2 | E33: 355723932-355728222 | F33: + | G33: 2298 | H33: 555 | I33: 61.43 | J33: 6.2023 | K33: nucl
B35: HvCPSF30 | C35: HORVU.MOREX.r3.7HG0735360 | D35: HORVU.MOREX.r3.7HG0735360.1 | E35: 592288311-592293265 | F35: - | G35: 2371 | H35: 648 | I35: 71 | J35: 6.6524 | K35: nucl, chlo, cyto, plas
A37: mRNA m6A eraser | B37: HvALKBH1 | C37: HORVU.MOREX.r3.1HG0063430 | D37: HORVU.MOREX.r3.1HG0063430.1 | E37: 418768921-418776882 | F37: + | G37: 2265 | H37: 548 | I37: 59.76 | J37: 6.5947 | K37: nucl, chlo, cyto, plas
B39: HvALKBH2 | C39: HORVU.MOREX.r3.2HG0123570 | D39: HORVU.MOREX.r3.2HG0123570.1 | E39: 90198060-90200994 | F39: + | G39: 1450 | H39: 291 | I39: 30.93 | J39: 6.6599 | K39: nucl, cyto_nucl, nucl_plas, mito
B41: HvALKBH3 | C41: HORVU.MOREX.r3.2HG0193100 | D41: HORVU.MOREX.r3.2HG0193100.1 | E41: 606734689-606736994 | F41: + | G41: 1047 | H41: 348 | I41: 37.87 | J41: 8.3019 | K41: cyto, chlo
B42: HvALKBH4 | C42: HORVU.MOREX.r3.2HG0216050 | D42: HORVU.MOREX.r3.2HG0216050.1 | E42: 659474299-659475586 | F42: + | G42: 1175 | H42: 343 | I42: 37.32 | J42: 9.5392 | K42: E.R, plas, chlo, vacu, nucl
B43: HvALKBH5 | C43: HORVU.MOREX.r3.3HG0223990 | D43: HORVU.MOREX.r3.3HG0223990.1 | E43: 10958016-10961244 | F43: - | G43: 1439 | H43: 370 | I43: 40.52 | J43: 6.8334 | K43: nucl, cyto, mito
B45: HvALKBH6 | C45: HORVU.MOREX.r3.3HG0234740 | D45: HORVU.MOREX.r3.3HG0234740.1 | E45: 37184410-37186670 | F45: - | G45: 858 | H45: 285 | I45: 31.61 | J45: 7.3458 | K45: E.R., chlo, plas, cyto, mito, extr, vacu
B46: HvALKBH7 | C46: HORVU.MOREX.r3.4HG0393260 | D46: HORVU.MOREX.r3.4HG0393260.1 | E46: 511599296-511605611 | F46: - | G46: 2401 | H46: 637 | I46: 68.07 | J46: 8.8789 | K46: nucl, cyto, plas
B48: HvALKBH8 | C48: HORVU.MOREX.r3.5HG0476800 | D48: HORVU.MOREX.r3.5HG0476800.1 | E48: 409582868-409583350 | F48: - | G48: 483 | H48: 160 | I48: 16.65 | J48: 11.102 | K48: chlo
B49: HvALKBH9 | C49: HORVU.MOREX.r3.5HG0524840 | D49: HORVU.MOREX.r3.5HG0524840.1 | E49: 560114624-560118070 | F49: + | G49: 1758 | H49: 522 | I49: 56.59 | J49: 9.6111 | K49: nucl, mito, chlo
B50: HvALKBH10 | C50: HORVU.MOREX.r3.6HG0619790 | D50: HORVU.MOREX.r3.6HG0619790.1 | E50: 525112514-525113829 | F50: + | G50: 807 | H50: 268 | I50: 29.5 | J50: 4.5615 | K50: cyto, chlo, nucl
B52: HvALKBH11 | C52: HORVU.MOREX.r3.7HG0647650 | D52: HORVU.MOREX.r3.7HG0647650.1 | E52: 24764763-24770028 | F52: + | G52: 2144 | H52: 608 | I52: 66.82 | J52: 6.1271 | K52: nucl, cyto
A55: *Localization prediction by pSORT https://www.genscript.com/wolf-psort.html
A56: Abbreviations: CDS - coding sequence; MW- molecular weight; pI - isoelectric point; bp - base pair; aa - amino acid; kDa - kilodalton; chlo – chloroplast, cyto – cytosol, E.R. - endoplasmic reticulum, mito – mitochondria, nucl – nucleus, pero – peroxisome, plas - plasma membrane, vacu -vacuolar membrane

Sheet Table S3
A1: Table S3. Cis-acting regulatory elements were identified in the 2 kb upstream region of the barley genes.
B2: Hormone response | P2: Stress response | AH2: Light response | BA2: Growth and development | BQ2: Other
B3: ABRE | C3: ABRE3a | D3: ABRE4 | E3: AuxRR-core | F3: CGTCA-motif | G3: ERE | H3: GARE-motif | I3: P-box | J3: TATC-box | K3: TCA | L3: TCA-element | M3: TGACG-motif | N3: TGA-element | O3: AT~ABRE | P3: ARE | Q3: as-1 | R3: DRE core | S3: DRE1 | T3: GC-motif | U3: LTR | V3: MBS | W3: MYB | X3: MYB recognition site | Y3: MYB-like sequence | Z3: MYC | AA3: O2-site | AB3: STRE | AC3: TC-rich repeats | AD3: W box | AE3: WRE3 | AF3: WUN-motif | AG3: MBSI | AH3: A-box | AI3: ACE | AJ3: AE-box | AK3: ATC-motif | AL3: Box 4 | AM3: C-box | AN3: chs-CMA2a | AO3: chs-Unit 1 m1 | AP3: GATA-motif | AQ3: G-Box | AR3: G-box | AS3: GT1-motif | AT3: GTGGC-motif | AU3: I-box | AV3: MRE | AW3: Sp1 | AX3: TCCC-motif | AY3: TCT-motif | AZ3: GA-motif | BA3: AAGAA-motif | BB3: AC-I | BC3: box S | BD3: CAAT-box | BE3: CAT-box | BF3: CCAAT-box | BG3: E2Fb | BH3: GCN4_motif | BI3: HD-Zip 1 | BJ3: motif I | BK3: MSA-like | BL3: Myb | BM3: Myb-binding site | BN3: Myc | BO3: TATA-box | BP3: Unnamed__1 | BQ3: 3-AF1 binding site | BR3: AC-II | BS3: AT~TATA-box | BT3: CCGTCC motif | BU3: CCGTCC-box | BV3: circadian | BW3: OCT | BX3: TATA | BY3: dOCT | BZ3: CTAG-motif
A4: HvALKBH1 | B4: 7 | C4: 1 | D4: 1 | E4: 0 | F4: 2 | G4: 0 | H4: 0 | I4: 0 | J4: 1 | K4: 0 | L4: 2 | M4: 2 | N4: 1 | O4: 0 | P4: 2 | Q4: 2 | R4: 0 | S4: 0 | T4: 3 | U4: 0 | V4: 1 | W4: 6 | X4: 0 | Y4: 1 | Z4: 4 | AA4: 2 | AB4: 4 | AC4: 0 | AD4: 1 | AE4: 3 | AF4: 0 | AG4: 0 | AH4: 2 | AI4: 0 | AJ4: 0 | AK4: 0 | AL4: 0 | AM4: 0 | AN4: 0 | AO4: 0 | AP4: 2 | AQ4: 7 | AR4: 0 | AS4: 0 | AT4: 0 | AU4: 1 | AV4: 0 | AW4: 1 | AX4: 0 | AY4: 0 | AZ4: 0 | BA4: 2 | BB4: 0 | BC4: 1 | BD4: 22 | BE4: 1 | BF4: 0 | BG4: 0 | BH4: 0 | BI4: 0 | BJ4: 0 | BK4: 0 | BL4: 0 | BM4: 1 | BN4: 0 | BO4: 16 | BP4: 6 | BQ4: 0 | BR4: 0 | BS4: 0 | BT4: 2 | BU4: 2 | BV4: 0 | BW4: 0 | BX4: 0 | BY4: 0 | BZ4: 0
A5: HvALKBH10 | B5: 8 | C5: 0 | D5: 0 | E5: 0 | F5: 3 | G5: 0 | H5: 0 | I5: 0 | J5: 0 | K5: 1 | L5: 1 | M5: 3 | N5: 0 | O5: 0 | P5: 2 | Q5: 3 | R5: 1 | S5: 1 | T5: 0 | U5: 1 | V5: 0 | W5: 5 | X5: 0 | Y5: 1 | Z5: 4 | AA5: 0 | AB5: 2 | AC5: 0 | AD5: 1 | AE5: 1 | AF5: 0 | AG5: 0 | AH5: 1 | AI5: 0 | AJ5: 1 | AK5: 0 | AL5: 0 | AM5: 0 | AN5: 0 | AO5: 0 | AP5: 1 | AQ5: 11 | AR5: 0 | AS5: 0 | AT5: 0 | AU5: 0 | AV5: 1 | AW5: 1 | AX5: 0 | AY5: 2 | AZ5: 0 | BA5: 1 | BB5: 0 | BC5: 1 | BD5: 24 | BE5: 0 | BF5: 0 | BG5: 0 | BH5: 0 | BI5: 0 | BJ5: 0 | BK5: 1 | BL5: 0 | BM5: 0 | BN5: 0 | BO5: 16 | BP5: 3 | BQ5: 0 | BR5: 0 | BS5: 0 | BT5: 1 | BU5: 1 | BV5: 0 | BW5: 0 | BX5: 1 | BY5: 0 | BZ5: 0
A6: HvALKBH11 | B6: 10 | C6: 2 | D6: 2 | E6: 0 | F6: 4 | G6: 0 | H6: 0 | I6: 1 | J6: 0 | K6: 0 | L6: 0 | M6: 4 | N6: 1 | O6: 0 | P6: 1 | Q6: 4 | R6: 0 | S6: 0 | T6: 0 | U6: 0 | V6: 0 | W6: 3 | X6: 1 | Y6: 0 | Z6: 3 | AA6: 2 | AB6: 4 | AC6: 0 | AD6: 0 | AE6: 2 | AF6: 0 | AG6: 0 | AH6: 2 | AI6: 1 | AJ6: 0 | AK6: 0 | AL6: 1 | AM6: 0 | AN6: 0 | AO6: 0 | AP6: 1 | AQ6: 9 | AR6: 0 | AS6: 1 | AT6: 0 | AU6: 0 | AV6: 0 | AW6: 1 | AX6: 0 | AY6: 0 | AZ6: 0 | BA6: 2 | BB6: 0 | BC6: 0 | BD6: 21 | BE6: 0 | BF6: 1 | BG6: 0 | BH6: 0 | BI6: 0 | BJ6: 0 | BK6: 0 | BL6: 0 | BM6: 2 | BN6: 0 | BO6: 15 | BP6: 5 | BQ6: 0 | BR6: 0 | BS6: 1 | BT6: 2 | BU6: 2 | BV6: 1 | BW6: 0 | BX6: 0 | BY6: 0 | BZ6: 0
A7: HvALKBH2 | B7: 8 | C7: 2 | D7: 2 | E7: 0 | F7: 1 | G7: 0 | H7: 0 | I7: 0 | J7: 2 | K7: 0 | L7: 0 | M7: 1 | N7: 2 | O7: 0 | P7: 1 | Q7: 1 | R7: 3 | S7: 0 | T7: 1 | U7: 1 | V7: 0 | W7: 2 | X7: 1 | Y7: 1 | Z7: 2 | AA7: 0 | AB7: 7 | AC7: 0 | AD7: 2 | AE7: 0 | AF7: 0 | AG7: 0 | AH7: 0 | AI7: 0 | AJ7: 0 | AK7: 0 | AL7: 1 | AM7: 0 | AN7: 0 | AO7: 0 | AP7: 1 | AQ7: 8 | AR7: 0 | AS7: 1 | AT7: 0 | AU7: 0 | AV7: 0 | AW7: 4 | AX7: 0 | AY7: 0 | AZ7: 0 | BA7: 0 | BB7: 0 | BC7: 1 | BD7: 29 | BE7: 2 | BF7: 1 | BG7: 0 | BH7: 0 | BI7: 0 | BJ7: 0 | BK7: 0 | BL7: 0 | BM7: 0 | BN7: 0 | BO7: 8 | BP7: 6 | BQ7: 0 | BR7: 0 | BS7: 0 | BT7: 0 | BU7: 0 | BV7: 0 | BW7: 0 | BX7: 0 | BY7: 0 | BZ7: 2
A8: HvALKBH3 | B8: 0 | C8: 0 | D8: 0 | E8: 0 | F8: 2 | G8: 1 | H8: 0 | I8: 1 | J8: 1 | K8: 0 | L8: 0 | M8: 2 | N8: 0 | O8: 0 | P8: 2 | Q8: 2 | R8: 0 | S8: 0 | T8: 0 | U8: 0 | V8: 1 | W8: 11 | X8: 1 | Y8: 2 | Z8: 4 | AA8: 0 | AB8: 3 | AC8: 0 | AD8: 0 | AE8: 2 | AF8: 0 | AG8: 0 | AH8: 0 | AI8: 0 | AJ8: 0 | AK8: 0 | AL8: 0 | AM8: 0 | AN8: 0 | AO8: 0 | AP8: 1 | AQ8: 2 | AR8: 0 | AS8: 0 | AT8: 0 | AU8: 0 | AV8: 0 | AW8: 2 | AX8: 0 | AY8: 0 | AZ8: 0 | BA8: 1 | BB8: 0 | BC8: 1 | BD8: 28 | BE8: 0 | BF8: 1 | BG8: 0 | BH8: 0 | BI8: 0 | BJ8: 0 | BK8: 0 | BL8: 0 | BM8: 2 | BN8: 0 | BO8: 18 | BP8: 3 | BQ8: 0 | BR8: 0 | BS8: 1 | BT8: 0 | BU8: 0 | BV8: 1 | BW8: 0 | BX8: 0 | BY8: 0 | BZ8: 1
A9: HvALKBH4 | B9: 4 | C9: 0 | D9: 0 | E9: 0 | F9: 0 | G9: 1 | H9: 0 | I9: 0 | J9: 0 | K9: 0 | L9: 0 | M9: 0 | N9: 0 | O9: 0 | P9: 0 | Q9: 0 | R9: 2 | S9: 0 | T9: 0 | U9: 0 | V9: 3 | W9: 6 | X9: 0 | Y9: 0 | Z9: 1 | AA9: 0 | AB9: 3 | AC9: 0 | AD9: 0 | AE9: 1 | AF9: 2 | AG9: 0 | AH9: 3 | AI9: 0 | AJ9: 0 | AK9: 0 | AL9: 0 | AM9: 0 | AN9: 0 | AO9: 0 | AP9: 1 | AQ9: 3 | AR9: 0 | AS9: 0 | AT9: 0 | AU9: 0 | AV9: 0 | AW9: 0 | AX9: 2 | AY9: 0 | AZ9: 0 | BA9: 0 | BB9: 0 | BC9: 0 | BD9: 19 | BE9: 0 | BF9: 0 | BG9: 0 | BH9: 0 | BI9: 0 | BJ9: 0 | BK9: 0 | BL9: 0 | BM9: 1 | BN9: 0 | BO9: 15 | BP9: 3 | BQ9: 0 | BR9: 0 | BS9: 2 | BT9: 3 | BU9: 3 | BV9: 0 | BW9: 0 | BX9: 0 | BY9: 0 | BZ9: 0
A10: HvALKBH5 | B10: 4 | C10: 1 | D10: 1 | E10: 0 | F10: 4 | G10: 2 | H10: 0 | I10: 0 | J10: 0 | K10: 2 | L10: 0 | M10: 4 | N10: 1 | O10: 0 | P10: 1 | Q10: 4 | R10: 0 | S10: 0 | T10: 1 | U10: 2 | V10: 1 | W10: 7 | X10: 5 | Y10: 0 | Z10: 1 | AA10: 0 | AB10: 3 | AC10: 0 | AD10: 0 | AE10: 0 | AF10: 0 | AG10: 0 | AH10: 2 | AI10: 0 | AJ10: 1 | AK10: 0 | AL10: 1 | AM10: 0 | AN10: 1 | AO10: 0 | AP10: 0 | AQ10: 4 | AR10: 0 | AS10: 0 | AT10: 1 | AU10: 1 | AV10: 0 | AW10: 0 | AX10: 0 | AY10: 1 | AZ10: 0 | BA10: 3 | BB10: 0 | BC10: 0 | BD10: 24 | BE10: 0 | BF10: 5 | BG10: 0 | BH10: 1 | BI10: 0 | BJ10: 0 | BK10: 0 | BL10: 0 | BM10: 1 | BN10: 0 | BO10: 14 | BP10: 3 | BQ10: 0 | BR10: 0 | BS10: 0 | BT10: 2 | BU10: 2 | BV10: 0 | BW10: 0 | BX10: 0 | BY10: 0 | BZ10: 0
A11: HvALKBH6 | B11: 4 | C11: 1 | D11: 1 | E11: 0 | F11: 3 | G11: 2 | H11: 0 | I11: 0 | J11: 1 | K11: 0 | L11: 1 | M11: 3 | N11: 1 | O11: 0 | P11: 2 | Q11: 3 | R11: 3 | S11: 0 | T11: 0 | U11: 1 | V11: 2 | W11: 5 | X11: 0 | Y11: 1 | Z11: 4 | AA11: 0 | AB11: 4 | AC11: 0 | AD11: 4 | AE11: 0 | AF11: 0 | AG11: 0 | AH11: 0 | AI11: 1 | AJ11: 0 | AK11: 0 | AL11: 1 | AM11: 0 | AN11: 1 | AO11: 0 | AP11: 0 | AQ11: 6 | AR11: 0 | AS11: 1 | AT11: 0 | AU11: 0 | AV11: 0 | AW11: 1 | AX11: 1 | AY11: 1 | AZ11: 0 | BA11: 0 | BB11: 1 | BC11: 0 | BD11: 28 | BE11: 1 | BF11: 0 | BG11: 0 | BH11: 0 | BI11: 0 | BJ11: 0 | BK11: 0 | BL11: 0 | BM11: 0 | BN11: 0 | BO11: 40 | BP11: 2 | BQ11: 0 | BR11: 0 | BS11: 2 | BT11: 0 | BU11: 0 | BV11: 0 | BW11: 0 | BX11: 1 | BY11: 0 | BZ11: 0
A12: HvALKBH7 | B12: 8 | C12: 1 | D12: 1 | E12: 1 | F12: 4 | G12: 0 | H12: 1 | I12: 0 | J12: 0 | K12: 0 | L12: 0 | M12: 4 | N12: 2 | O12: 0 | P12: 1 | Q12: 4 | R12: 5 | S12: 1 | T12: 2 | U12: 1 | V12: 0 | W12: 2 | X12: 0 | Y12: 0 | Z12: 0 | AA12: 0 | AB12: 6 | AC12: 0 | AD12: 2 | AE12: 4 | AF12: 0 | AG12: 0 | AH12: 7 | AI12: 0 | AJ12: 0 | AK12: 0 | AL12: 1 | AM12: 0 | AN12: 0 | AO12: 0 | AP12: 1 | AQ12: 6 | AR12: 0 | AS12: 0 | AT12: 0 | AU12: 0 | AV12: 0 | AW12: 2 | AX12: 1 | AY12: 0 | AZ12: 0 | BA12: 0 | BB12: 0 | BC12: 0 | BD12: 7 | BE12: 0 | BF12: 0 | BG12: 0 | BH12: 0 | BI12: 0 | BJ12: 0 | BK12: 0 | BL12: 0 | BM12: 1 | BN12: 0 | BO12: 6 | BP12: 8 | BQ12: 0 | BR12: 0 | BS12: 0 | BT12: 7 | BU12: 7 | BV12: 0 | BW12: 0 | BX12: 0 | BY12: 0 | BZ12: 0
A13: HvALKBH8 | B13: 2 | C13: 1 | D13: 1 | E13: 0 | F13: 2 | G13: 0 | H13: 1 | I13: 0 | J13: 0 | K13: 0 | L13: 0 | M13: 2 | N13: 0 | O13: 0 | P13: 0 | Q13: 2 | R13: 0 | S13: 0 | T13: 1 | U13: 0 | V13: 2 | W13: 6 | X13: 0 | Y13: 1 | Z13: 5 | AA13: 0 | AB13: 4 | AC13: 0 | AD13: 0 | AE13: 6 | AF13: 0 | AG13: 0 | AH13: 0 | AI13: 0 | AJ13: 1 | AK13: 0 | AL13: 1 | AM13: 0 | AN13: 0 | AO13: 0 | AP13: 1 | AQ13: 2 | AR13: 0 | AS13: 2 | AT13: 0 | AU13: 0 | AV13: 0 | AW13: 1 | AX13: 1 | AY13: 0 | AZ13: 0 | BA13: 1 | BB13: 0 | BC13: 0 | BD13: 17 | BE13: 1 | BF13: 0 | BG13: 0 | BH13: 0 | BI13: 0 | BJ13: 0 | BK13: 0 | BL13: 0 | BM13: 2 | BN13: 0 | BO13: 8 | BP13: 9 | BQ13: 0 | BR13: 0 | BS13: 0 | BT13: 0 | BU13: 0 | BV13: 0 | BW13: 0 | BX13: 0 | BY13: 0 | BZ13: 0
A14: HvALKBH9 | B14: 2 | C14: 1 | D14: 1 | E14: 0 | F14: 3 | G14: 0 | H14: 0 | I14: 0 | J14: 0 | K14: 0 | L14: 0 | M14: 3 | N14: 1 | O14: 0 | P14: 4 | Q14: 3 | R14: 0 | S14: 0 | T14: 0 | U14: 0 | V14: 2 | W14: 6 | X14: 0 | Y14: 0 | Z14: 2 | AA14: 1 | AB14: 3 | AC14: 0 | AD14: 0 | AE14: 0 | AF14: 0 | AG14: 0 | AH14: 1 | AI14: 0 | AJ14: 2 | AK14: 0 | AL14: 1 | AM14: 0 | AN14: 0 | AO14: 0 | AP14: 1 | AQ14: 2 | AR14: 0 | AS14: 0 | AT14: 0 | AU14: 0 | AV14: 0 | AW14: 1 | AX14: 1 | AY14: 0 | AZ14: 0 | BA14: 2 | BB14: 0 | BC14: 0 | BD14: 27 | BE14: 0 | BF14: 0 | BG14: 0 | BH14: 1 | BI14: 0 | BJ14: 0 | BK14: 0 | BL14: 0 | BM14: 1 | BN14: 0 | BO14: 7 | BP14: 1 | BQ14: 0 | BR14: 0 | BS14: 0 | BT14: 1 | BU14: 1 | BV14: 2 | BW14: 0 | BX14: 0 | BY14: 0 | BZ14: 0
A15: HvCPSF30 | B15: 1 | C15: 0 | D15: 0 | E15: 0 | F15: 3 | G15: 0 | H15: 0 | I15: 0 | J15: 0 | K15: 0 | L15: 1 | M15: 3 | N15: 1 | O15: 0 | P15: 3 | Q15: 3 | R15: 1 | S15: 0 | T15: 1 | U15: 1 | V15: 0 | W15: 3 | X15: 2 | Y15: 0 | Z15: 5 | AA15: 1 | AB15: 3 | AC15: 0 | AD15: 1 | AE15: 1 | AF15: 0 | AG15: 0 | AH15: 3 | AI15: 0 | AJ15: 0 | AK15: 0 | AL15: 1 | AM15: 0 | AN15: 1 | AO15: 0 | AP15: 2 | AQ15: 4 | AR15: 0 | AS15: 0 | AT15: 0 | AU15: 0 | AV15: 2 | AW15: 2 | AX15: 0 | AY15: 1 | AZ15: 0 | BA15: 0 | BB15: 0 | BC15: 0 | BD15: 38 | BE15: 0 | BF15: 2 | BG15: 0 | BH15: 0 | BI15: 0 | BJ15: 0 | BK15: 0 | BL15: 0 | BM15: 1 | BN15: 0 | BO15: 27 | BP15: 2 | BQ15: 0 | BR15: 0 | BS15: 1 | BT15: 3 | BU15: 3 | BV15: 1 | BW15: 0 | BX15: 1 | BY15: 0 | BZ15: 0
A16: HvECT1 | B16: 3 | C16: 0 | D16: 0 | E16: 0 | F16: 2 | G16: 0 | H16: 0 | I16: 2 | J16: 1 | K16: 0 | L16: 0 | M16: 2 | N16: 0 | O16: 0 | P16: 1 | Q16: 2 | R16: 0 | S16: 0 | T16: 0 | U16: 2 | V16: 0 | W16: 2 | X16: 1 | Y16: 1 | Z16: 6 | AA16: 0 | AB16: 0 | AC16: 0 | AD16: 0 | AE16: 2 | AF16: 0 | AG16: 0 | AH16: 0 | AI16: 1 | AJ16: 0 | AK16: 0 | AL16: 3 | AM16: 0 | AN16: 0 | AO16: 0 | AP16: 1 | AQ16: 4 | AR16: 0 | AS16: 1 | AT16: 0 | AU16: 0 | AV16: 0 | AW16: 0 | AX16: 0 | AY16: 0 | AZ16: 0 | BA16: 1 | BB16: 0 | BC16: 0 | BD16: 37 | BE16: 1 | BF16: 1 | BG16: 0 | BH16: 0 | BI16: 0 | BJ16: 0 | BK16: 0 | BL16: 0 | BM16: 1 | BN16: 0 | BO16: 45 | BP16: 1 | BQ16: 0 | BR16: 0 | BS16: 5 | BT16: 0 | BU16: 0 | BV16: 0 | BW16: 0 | BX16: 0 | BY16: 0 | BZ16: 0
A17: HvECT10 | B17: 11 | C17: 6 | D17: 6 | E17: 0 | F17: 1 | G17: 0 | H17: 1 | I17: 1 | J17: 0 | K17: 0 | L17: 0 | M17: 1 | N17: 1 | O17: 1 | P17: 2 | Q17: 1 | R17: 0 | S17: 0 | T17: 0 | U17: 1 | V17: 0 | W17: 3 | X17: 0 | Y17: 0 | Z17: 8 | AA17: 0 | AB17: 5 | AC17: 1 | AD17: 0 | AE17: 1 | AF17: 1 | AG17: 0 | AH17: 1 | AI17: 0 | AJ17: 1 | AK17: 0 | AL17: 0 | AM17: 0 | AN17: 0 | AO17: 0 | AP17: 0 | AQ17: 12 | AR17: 0 | AS17: 0 | AT17: 0 | AU17: 1 | AV17: 0 | AW17: 0 | AX17: 1 | AY17: 2 | AZ17: 0 | BA17: 5 | BB17: 0 | BC17: 0 | BD17: 22 | BE17: 0 | BF17: 0 | BG17: 0 | BH17: 0 | BI17: 0 | BJ17: 0 | BK17: 0 | BL17: 0 | BM17: 3 | BN17: 0 | BO17: 37 | BP17: 4 | BQ17: 0 | BR17: 0 | BS17: 3 | BT17: 1 | BU17: 1 | BV17: 0 | BW17: 0 | BX17: 1 | BY17: 0 | BZ17: 1
A18: HvECT11 | B18: 2 | C18: 1 | D18: 1 | E18: 0 | F18: 2 | G18: 1 | H18: 0 | I18: 0 | J18: 0 | K18: 0 | L18: 1 | M18: 2 | N18: 0 | O18: 0 | P18: 2 | Q18: 2 | R18: 0 | S18: 0 | T18: 0 | U18: 1 | V18: 1 | W18: 6 | X18: 0 | Y18: 0 | Z18: 5 | AA18: 1 | AB18: 5 | AC18: 0 | AD18: 0 | AE18: 1 | AF18: 1 | AG18: 0 | AH18: 0 | AI18: 0 | AJ18: 0 | AK18: 0 | AL18: 0 | AM18: 0 | AN18: 0 | AO18: 0 | AP18: 1 | AQ18: 3 | AR18: 0 | AS18: 0 | AT18: 0 | AU18: 0 | AV18: 0 | AW18: 1 | AX18: 0 | AY18: 1 | AZ18: 0 | BA18: 2 | BB18: 0 | BC18: 0 | BD18: 21 | BE18: 1 | BF18: 0 | BG18: 0 | BH18: 0 | BI18: 0 | BJ18: 0 | BK18: 0 | BL18: 0 | BM18: 1 | BN18: 0 | BO18: 31 | BP18: 3 | BQ18: 0 | BR18: 0 | BS18: 3 | BT18: 0 | BU18: 0 | BV18: 0 | BW18: 0 | BX18: 1 | BY18: 0 | BZ18: 1
A19: HvECT12 | B19: 3 | C19: 2 | D19: 2 | E19: 0 | F19: 5 | G19: 0 | H19: 0 | I19: 1 | J19: 0 | K19: 0 | L19: 0 | M19: 5 | N19: 1 | O19: 0 | P19: 4 | Q19: 5 | R19: 2 | S19: 0 | T19: 0 | U19: 1 | V19: 1 | W19: 3 | X19: 0 | Y19: 0 | Z19: 3 | AA19: 0 | AB19: 2 | AC19: 1 | AD19: 1 | AE19: 3 | AF19: 1 | AG19: 0 | AH19: 1 | AI19: 1 | AJ19: 0 | AK19: 0 | AL19: 0 | AM19: 0 | AN19: 0 | AO19: 0 | AP19: 0 | AQ19: 4 | AR19: 0 | AS19: 0 | AT19: 0 | AU19: 1 | AV19: 0 | AW19: 1 | AX19: 1 | AY19: 1 | AZ19: 0 | BA19: 1 | BB19: 0 | BC19: 0 | BD19: 23 | BE19: 2 | BF19: 0 | BG19: 0 | BH19: 0 | BI19: 0 | BJ19: 0 | BK19: 0 | BL19: 0 | BM19: 1 | BN19: 0 | BO19: 28 | BP19: 3 | BQ19: 0 | BR19: 0 | BS19: 4 | BT19: 1 | BU19: 1 | BV19: 0 | BW19: 0 | BX19: 0 | BY19: 0 | BZ19: 0
A20: HvECT13 | B20: 4 | C20: 0 | D20: 0 | E20: 0 | F20: 1 | G20: 0 | H20: 0 | I20: 0 | J20: 0 | K20: 0 | L20: 0 | M20: 1 | N20: 1 | O20: 0 | P20: 2 | Q20: 1 | R20: 0 | S20: 2 | T20: 1 | U20: 1 | V20: 0 | W20: 3 | X20: 1 | Y20: 1 | Z20: 8 | AA20: 0 | AB20: 5 | AC20: 0 | AD20: 0 | AE20: 0 | AF20: 0 | AG20: 0 | AH20: 3 | AI20: 0 | AJ20: 1 | AK20: 0 | AL20: 1 | AM20: 0 | AN20: 0 | AO20: 0 | AP20: 1 | AQ20: 6 | AR20: 0 | AS20: 1 | AT20: 0 | AU20: 0 | AV20: 0 | AW20: 0 | AX20: 0 | AY20: 1 | AZ20: 0 | BA20: 1 | BB20: 0 | BC20: 1 | BD20: 23 | BE20: 5 | BF20: 1 | BG20: 0 | BH20: 0 | BI20: 0 | BJ20: 0 | BK20: 1 | BL20: 0 | BM20: 0 | BN20: 0 | BO20: 8 | BP20: 5 | BQ20: 0 | BR20: 0 | BS20: 0 | BT20: 2 | BU20: 2 | BV20: 0 | BW20: 0 | BX20: 0 | BY20: 0 | BZ20: 0
A21: HvECT2 | B21: 8 | C21: 0 | D21: 0 | E21: 0 | F21: 1 | G21: 0 | H21: 0 | I21: 2 | J21: 0 | K21: 0 | L21: 2 | M21: 1 | N21: 0 | O21: 0 | P21: 2 | Q21: 1 | R21: 0 | S21: 0 | T21: 0 | U21: 1 | V21: 0 | W21: 5 | X21: 0 | Y21: 0 | Z21: 7 | AA21: 2 | AB21: 2 | AC21: 1 | AD21: 3 | AE21: 0 | AF21: 0 | AG21: 0 | AH21: 1 | AI21: 1 | AJ21: 1 | AK21: 0 | AL21: 0 | AM21: 0 | AN21: 0 | AO21: 0 | AP21: 1 | AQ21: 7 | AR21: 0 | AS21: 0 | AT21: 0 | AU21: 1 | AV21: 0 | AW21: 1 | AX21: 1 | AY21: 1 | AZ21: 0 | BA21: 0 | BB21: 0 | BC21: 0 | BD21: 30 | BE21: 0 | BF21: 0 | BG21: 0 | BH21: 0 | BI21: 0 | BJ21: 0 | BK21: 0 | BL21: 0 | BM21: 0 | BN21: 0 | BO21: 16 | BP21: 4 | BQ21: 0 | BR21: 0 | BS21: 0 | BT21: 1 | BU21: 1 | BV21: 0 | BW21: 0 | BX21: 0 | BY21: 0 | BZ21: 0
A22: HvECT3 | B22: 1 | C22: 0 | D22: 0 | E22: 0 | F22: 3 | G22: 0 | H22: 0 | I22: 0 | J22: 0 | K22: 0 | L22: 0 | M22: 3 | N22: 0 | O22: 0 | P22: 1 | Q22: 3 | R22: 0 | S22: 0 | T22: 2 | U22: 1 | V22: 1 | W22: 2 | X22: 1 | Y22: 0 | Z22: 2 | AA22: 0 | AB22: 4 | AC22: 0 | AD22: 1 | AE22: 1 | AF22: 0 | AG22: 0 | AH22: 2 | AI22: 0 | AJ22: 0 | AK22: 0 | AL22: 0 | AM22: 0 | AN22: 0 | AO22: 0 | AP22: 1 | AQ22: 1 | AR22: 0 | AS22: 2 | AT22: 0 | AU22: 1 | AV22: 0 | AW22: 2 | AX22: 1 | AY22: 1 | AZ22: 0 | BA22: 1 | BB22: 1 | BC22: 0 | BD22: 42 | BE22: 0 | BF22: 1 | BG22: 0 | BH22: 1 | BI22: 1 | BJ22: 0 | BK22: 0 | BL22: 0 | BM22: 1 | BN22: 0 | BO22: 22 | BP22: 3 | BQ22: 0 | BR22: 0 | BS22: 1 | BT22: 2 | BU22: 2 | BV22: 1 | BW22: 0 | BX22: 0 | BY22: 1 | BZ22: 0
A23: HvECT4 | B23: 7 | C23: 0 | D23: 0 | E23: 0 | F23: 3 | G23: 1 | H23: 0 | I23: 0 | J23: 0 | K23: 1 | L23: 1 | M23: 3 | N23: 1 | O23: 0 | P23: 0 | Q23: 3 | R23: 1 | S23: 0 | T23: 1 | U23: 0 | V23: 1 | W23: 3 | X23: 0 | Y23: 0 | Z23: 3 | AA23: 0 | AB23: 5 | AC23: 0 | AD23: 1 | AE23: 1 | AF23: 0 | AG23: 0 | AH23: 1 | AI23: 0 | AJ23: 1 | AK23: 0 | AL23: 0 | AM23: 0 | AN23: 0 | AO23: 0 | AP23: 0 | AQ23: 7 | AR23: 0 | AS23: 0 | AT23: 0 | AU23: 0 | AV23: 0 | AW23: 0 | AX23: 0 | AY23: 0 | AZ23: 0 | BA23: 3 | BB23: 0 | BC23: 0 | BD23: 24 | BE23: 1 | BF23: 0 | BG23: 0 | BH23: 0 | BI23: 0 | BJ23: 0 | BK23: 0 | BL23: 0 | BM23: 1 | BN23: 0 | BO23: 21 | BP23: 0 | BQ23: 0 | BR23: 0 | BS23: 0 | BT23: 1 | BU23: 1 | BV23: 0 | BW23: 0 | BX23: 1 | BY23: 0 | BZ23: 0
A24: HvECT5 | B24: 0 | C24: 0 | D24: 0 | E24: 0 | F24: 1 | G24: 2 | H24: 0 | I24: 0 | J24: 0 | K24: 1 | L24: 0 | M24: 1 | N24: 1 | O24: 0 | P24: 1 | Q24: 1 | R24: 2 | S24: 0 | T24: 0 | U24: 0 | V24: 1 | W24: 7 | X24: 0 | Y24: 3 | Z24: 2 | AA24: 4 | AB24: 5 | AC24: 0 | AD24: 0 | AE24: 0 | AF24: 0 | AG24: 0 | AH24: 0 | AI24: 0 | AJ24: 1 | AK24: 0 | AL24: 0 | AM24: 0 | AN24: 0 | AO24: 0 | AP24: 0 | AQ24: 1 | AR24: 0 | AS24: 1 | AT24: 1 | AU24: 0 | AV24: 0 | AW24: 1 | AX24: 0 | AY24: 1 | AZ24: 0 | BA24: 1 | BB24: 0 | BC24: 0 | BD24: 27 | BE24: 1 | BF24: 0 | BG24: 0 | BH24: 0 | BI24: 0 | BJ24: 0 | BK24: 0 | BL24: 0 | BM24: 0 | BN24: 0 | BO24: 26 | BP24: 3 | BQ24: 0 | BR24: 0 | BS24: 3 | BT24: 0 | BU24: 0 | BV24: 0 | BW24: 0 | BX24: 0 | BY24: 0 | BZ24: 1
A25: HvECT6 | B25: 8 | C25: 0 | D25: 0 | E25: 0 | F25: 4 | G25: 1 | H25: 1 | I25: 0 | J25: 1 | K25: 1 | L25: 0 | M25: 4 | N25: 1 | O25: 0 | P25: 1 | Q25: 4 | R25: 0 | S25: 0 | T25: 2 | U25: 1 | V25: 1 | W25: 11 | X25: 0 | Y25: 1 | Z25: 0 | AA25: 0 | AB25: 4 | AC25: 1 | AD25: 0 | AE25: 1 | AF25: 0 | AG25: 0 | AH25: 1 | AI25: 0 | AJ25: 0 | AK25: 0 | AL25: 0 | AM25: 0 | AN25: 0 | AO25: 0 | AP25: 0 | AQ25: 8 | AR25: 0 | AS25: 0 | AT25: 0 | AU25: 2 | AV25: 0 | AW25: 2 | AX25: 1 | AY25: 0 | AZ25: 0 | BA25: 1 | BB25: 0 | BC25: 0 | BD25: 21 | BE25: 1 | BF25: 0 | BG25: 0 | BH25: 0 | BI25: 0 | BJ25: 0 | BK25: 0 | BL25: 0 | BM25: 2 | BN25: 0 | BO25: 26 | BP25: 3 | BQ25: 0 | BR25: 0 | BS25: 1 | BT25: 1 | BU25: 1 | BV25: 0 | BW25: 0 | BX25: 0 | BY25: 0 | BZ25: 0
A26: HvECT7 | B26: 2 | C26: 0 | D26: 0 | E26: 0 | F26: 4 | G26: 3 | H26: 0 | I26: 0 | J26: 0 | K26: 0 | L26: 1 | M26: 4 | N26: 1 | O26: 0 | P26: 3 | Q26: 4 | R26: 0 | S26: 0 | T26: 0 | U26: 0 | V26: 1 | W26: 4 | X26: 1 | Y26: 2 | Z26: 6 | AA26: 1 | AB26: 3 | AC26: 1 | AD26: 1 | AE26: 4 | AF26: 0 | AG26: 1 | AH26: 1 | AI26: 0 | AJ26: 0 | AK26: 0 | AL26: 6 | AM26: 0 | AN26: 0 | AO26: 0 | AP26: 1 | AQ26: 2 | AR26: 0 | AS26: 2 | AT26: 0 | AU26: 0 | AV26: 0 | AW26: 0 | AX26: 1 | AY26: 0 | AZ26: 0 | BA26: 3 | BB26: 0 | BC26: 0 | BD26: 42 | BE26: 0 | BF26: 1 | BG26: 0 | BH26: 0 | BI26: 0 | BJ26: 0 | BK26: 0 | BL26: 0 | BM26: 0 | BN26: 0 | BO26: 19 | BP26: 1 | BQ26: 0 | BR26: 0 | BS26: 0 | BT26: 1 | BU26: 1 | BV26: 0 | BW26: 0 | BX26: 0 | BY26: 0 | BZ26: 0
A27: HvECT8 | B27: 4 | C27: 1 | D27: 1 | E27: 0 | F27: 5 | G27: 0 | H27: 2 | I27: 0 | J27: 0 | K27: 0 | L27: 0 | M27: 5 | N27: 2 | O27: 1 | P27: 1 | Q27: 5 | R27: 1 | S27: 0 | T27: 3 | U27: 0 | V27: 3 | W27: 12 | X27: 2 | Y27: 0 | Z27: 2 | AA27: 0 | AB27: 10 | AC27: 0 | AD27: 0 | AE27: 1 | AF27: 0 | AG27: 0 | AH27: 2 | AI27: 1 | AJ27: 0 | AK27: 0 | AL27: 0 | AM27: 0 | AN27: 0 | AO27: 0 | AP27: 1 | AQ27: 3 | AR27: 0 | AS27: 1 | AT27: 0 | AU27: 1 | AV27: 0 | AW27: 4 | AX27: 0 | AY27: 1 | AZ27: 0 | BA27: 1 | BB27: 1 | BC27: 1 | BD27: 18 | BE27: 1 | BF27: 2 | BG27: 0 | BH27: 0 | BI27: 0 | BJ27: 0 | BK27: 0 | BL27: 0 | BM27: 5 | BN27: 0 | BO27: 9 | BP27: 8 | BQ27: 0 | BR27: 1 | BS27: 1 | BT27: 2 | BU27: 2 | BV27: 1 | BW27: 0 | BX27: 0 | BY27: 0 | BZ27: 0
A28: HvECT9 | B28: 3 | C28: 2 | D28: 2 | E28: 0 | F28: 0 | G28: 2 | H28: 2 | I28: 0 | J28: 0 | K28: 2 | L28: 0 | M28: 0 | N28: 3 | O28: 0 | P28: 1 | Q28: 0 | R28: 1 | S28: 0 | T28: 0 | U28: 4 | V28: 2 | W28: 7 | X28: 0 | Y28: 0 | Z28: 2 | AA28: 0 | AB28: 8 | AC28: 0 | AD28: 0 | AE28: 1 | AF28: 0 | AG28: 0 | AH28: 3 | AI28: 0 | AJ28: 2 | AK28: 0 | AL28: 2 | AM28: 0 | AN28: 0 | AO28: 0 | AP28: 0 | AQ28: 3 | AR28: 0 | AS28: 0 | AT28: 0 | AU28: 0 | AV28: 0 | AW28: 0 | AX28: 0 | AY28: 0 | AZ28: 0 | BA28: 1 | BB28: 0 | BC28: 1 | BD28: 23 | BE28: 0 | BF28: 0 | BG28: 0 | BH28: 2 | BI28: 0 | BJ28: 0 | BK28: 1 | BL28: 0 | BM28: 3 | BN28: 0 | BO28: 26 | BP28: 2 | BQ28: 0 | BR28: 0 | BS28: 2 | BT28: 3 | BU28: 3 | BV28: 2 | BW28: 0 | BX28: 0 | BY28: 0 | BZ28: 0
A29: HvFIP37 | B29: 3 | C29: 0 | D29: 0 | E29: 0 | F29: 6 | G29: 0 | H29: 0 | I29: 0 | J29: 0 | K29: 0 | L29: 0 | M29: 6 | N29: 2 | O29: 0 | P29: 3 | Q29: 6 | R29: 1 | S29: 1 | T29: 0 | U29: 0 | V29: 0 | W29: 3 | X29: 1 | Y29: 1 | Z29: 1 | AA29: 0 | AB29: 3 | AC29: 0 | AD29: 0 | AE29: 3 | AF29: 0 | AG29: 0 | AH29: 1 | AI29: 0 | AJ29: 0 | AK29: 0 | AL29: 0 | AM29: 0 | AN29: 0 | AO29: 0 | AP29: 1 | AQ29: 4 | AR29: 0 | AS29: 0 | AT29: 0 | AU29: 0 | AV29: 0 | AW29: 1 | AX29: 0 | AY29: 0 | AZ29: 0 | BA29: 0 | BB29: 0 | BC29: 0 | BD29: 18 | BE29: 1 | BF29: 1 | BG29: 0 | BH29: 0 | BI29: 0 | BJ29: 0 | BK29: 0 | BL29: 0 | BM29: 0 | BN29: 0 | BO29: 7 | BP29: 8 | BQ29: 0 | BR29: 0 | BS29: 2 | BT29: 1 | BU29: 1 | BV29: 1 | BW29: 0 | BX29: 0 | BY29: 0 | BZ29: 0
A30: HvHAKAI | B30: 4 | C30: 1 | D30: 1 | E30: 1 | F30: 3 | G30: 0 | H30: 1 | I30: 1 | J30: 0 | K30: 0 | L30: 0 | M30: 3 | N30: 1 | O30: 0 | P30: 0 | Q30: 3 | R30: 2 | S30: 0 | T30: 2 | U30: 1 | V30: 0 | W30: 2 | X30: 2 | Y30: 0 | Z30: 1 | AA30: 1 | AB30: 8 | AC30: 1 | AD30: 0 | AE30: 2 | AF30: 1 | AG30: 0 | AH30: 4 | AI30: 1 | AJ30: 0 | AK30: 0 | AL30: 1 | AM30: 0 | AN30: 0 | AO30: 0 | AP30: 2 | AQ30: 4 | AR30: 0 | AS30: 0 | AT30: 0 | AU30: 1 | AV30: 0 | AW30: 2 | AX30: 0 | AY30: 1 | AZ30: 0 | BA30: 1 | BB30: 0 | BC30: 0 | BD30: 12 | BE30: 0 | BF30: 2 | BG30: 0 | BH30: 0 | BI30: 0 | BJ30: 0 | BK30: 0 | BL30: 0 | BM30: 1 | BN30: 0 | BO30: 14 | BP30: 5 | BQ30: 0 | BR30: 1 | BS30: 2 | BT30: 4 | BU30: 4 | BV30: 0 | BW30: 0 | BX30: 1 | BY30: 0 | BZ30: 1
A31: HvMTA | B31: 12 | C31: 2 | D31: 2 | E31: 0 | F31: 5 | G31: 0 | H31: 0 | I31: 0 | J31: 0 | K31: 0 | L31: 0 | M31: 5 | N31: 5 | O31: 0 | P31: 4 | Q31: 5 | R31: 1 | S31: 0 | T31: 1 | U31: 3 | V31: 0 | W31: 3 | X31: 1 | Y31: 1 | Z31: 2 | AA31: 1 | AB31: 2 | AC31: 0 | AD31: 2 | AE31: 2 | AF31: 0 | AG31: 0 | AH31: 1 | AI31: 0 | AJ31: 0 | AK31: 0 | AL31: 0 | AM31: 0 | AN31: 0 | AO31: 1 | AP31: 0 | AQ31: 11 | AR31: 0 | AS31: 2 | AT31: 0 | AU31: 0 | AV31: 2 | AW31: 2 | AX31: 0 | AY31: 1 | AZ31: 1 | BA31: 0 | BB31: 0 | BC31: 1 | BD31: 10 | BE31: 3 | BF31: 1 | BG31: 0 | BH31: 1 | BI31: 0 | BJ31: 0 | BK31: 0 | BL31: 0 | BM31: 2 | BN31: 0 | BO31: 12 | BP31: 6 | BQ31: 0 | BR31: 0 | BS31: 0 | BT31: 1 | BU31: 1 | BV31: 0 | BW31: 0 | BX31: 0 | BY31: 0 | BZ31: 1
A32: HvMTB | B32: 1 | C32: 1 | D32: 1 | E32: 0 | F32: 5 | G32: 0 | H32: 0 | I32: 0 | J32: 0 | K32: 1 | L32: 0 | M32: 5 | N32: 1 | O32: 0 | P32: 3 | Q32: 5 | R32: 1 | S32: 0 | T32: 1 | U32: 0 | V32: 1 | W32: 2 | X32: 1 | Y32: 0 | Z32: 2 | AA32: 0 | AB32: 3 | AC32: 0 | AD32: 0 | AE32: 1 | AF32: 0 | AG32: 0 | AH32: 1 | AI32: 1 | AJ32: 0 | AK32: 0 | AL32: 2 | AM32: 0 | AN32: 0 | AO32: 0 | AP32: 1 | AQ32: 2 | AR32: 0 | AS32: 0 | AT32: 0 | AU32: 0 | AV32: 0 | AW32: 0 | AX32: 0 | AY32: 1 | AZ32: 0 | BA32: 1 | BB32: 0 | BC32: 0 | BD32: 27 | BE32: 1 | BF32: 1 | BG32: 1 | BH32: 0 | BI32: 0 | BJ32: 0 | BK32: 0 | BL32: 0 | BM32: 1 | BN32: 0 | BO32: 8 | BP32: 3 | BQ32: 0 | BR32: 0 | BS32: 0 | BT32: 1 | BU32: 1 | BV32: 1 | BW32: 0 | BX32: 0 | BY32: 0 | BZ32: 1
A33: HvMTC | B33: 5 | C33: 0 | D33: 0 | E33: 0 | F33: 1 | G33: 5 | H33: 0 | I33: 0 | J33: 0 | K33: 0 | L33: 0 | M33: 1 | N33: 1 | O33: 0 | P33: 2 | Q33: 1 | R33: 1 | S33: 0 | T33: 0 | U33: 0 | V33: 0 | W33: 0 | X33: 2 | Y33: 0 | Z33: 1 | AA33: 1 | AB33: 2 | AC33: 0 | AD33: 1 | AE33: 0 | AF33: 1 | AG33: 0 | AH33: 0 | AI33: 0 | AJ33: 0 | AK33: 0 | AL33: 7 | AM33: 0 | AN33: 0 | AO33: 0 | AP33: 0 | AQ33: 7 | AR33: 0 | AS33: 1 | AT33: 0 | AU33: 1 | AV33: 1 | AW33: 1 | AX33: 1 | AY33: 1 | AZ33: 3 | BA33: 0 | BB33: 0 | BC33: 0 | BD33: 32 | BE33: 0 | BF33: 2 | BG33: 0 | BH33: 0 | BI33: 0 | BJ33: 0 | BK33: 0 | BL33: 0 | BM33: 0 | BN33: 0 | BO33: 71 | BP33: 2 | BQ33: 1 | BR33: 0 | BS33: 1 | BT33: 0 | BU33: 0 | BV33: 2 | BW33: 0 | BX33: 2 | BY33: 0 | BZ33: 1
A34: HvVIR | B34: 3 | C34: 0 | D34: 0 | E34: 0 | F34: 1 | G34: 0 | H34: 0 | I34: 1 | J34: 0 | K34: 2 | L34: 0 | M34: 1 | N34: 0 | O34: 0 | P34: 1 | Q34: 1 | R34: 1 | S34: 0 | T34: 0 | U34: 1 | V34: 0 | W34: 9 | X34: 0 | Y34: 4 | Z34: 6 | AA34: 1 | AB34: 4 | AC34: 0 | AD34: 1 | AE34: 0 | AF34: 0 | AG34: 0 | AH34: 0 | AI34: 0 | AJ34: 0 | AK34: 0 | AL34: 0 | AM34: 0 | AN34: 0 | AO34: 1 | AP34: 0 | AQ34: 3 | AR34: 0 | AS34: 2 | AT34: 0 | AU34: 0 | AV34: 0 | AW34: 0 | AX34: 0 | AY34: 0 | AZ34: 0 | BA34: 0 | BB34: 1 | BC34: 0 | BD34: 29 | BE34: 1 | BF34: 0 | BG34: 0 | BH34: 0 | BI34: 0 | BJ34: 0 | BK34: 0 | BL34: 0 | BM34: 3 | BN34: 0 | BO34: 7 | BP34: 1 | BQ34: 0 | BR34: 0 | BS34: 0 | BT34: 0 | BU34: 0 | BV34: 0 | BW34: 0 | BX34: 0 | BY34: 0 | BZ34: 0

Sheet Table S4
A1: Table S4. MiRNA targeting sites detected in the coding sequences of barley genes.
A2: miRNA_Acc. | B2: Target_Acc. | C2: Expectation | D2: UPE$ | E2: miRNA_start | F2: miRNA_end | G2: Target_start | H2: Target_end | I2: miRNA_aligned_fragment | J2: alignment | K2: Target_aligned_fragment | L2: Inhibition
A3: hvu-miR6190 | B3: HvMTB_CDS | C3: 3 | D3: 24.952 | E3: 1 | F3: 21 | G3: 960 | H3: 980 | I3: CGAGGAAAGGAAGAAGCCAUG | J3: :::::.:::::: ::::::: | K3: CAUGGUUUCUUCAUUUCCUCA | L3: Cleavage
A4: hvu-miR6192 | B4: HvMTB_CDS | C4: 3.5 | D4: 16.847 | E4: 1 | F4: 22 | G4: 1143 | H4: 1164 | I4: UAGGAGAGGGGGGAAGGGAUCU | J4: ::: :::::::::.::: | K4: UUCUCCAGGCCCCCCUCUUCUA | L4: Cleavage
A5: hvu-miR6206 | B5: HvECT12_CDS | C5: 3.5 | D5: 22.834 | E5: 1 | F5: 22 | G5: 427 | H5: 448 | I5: GGCACACGGGCUGCAGGCAUAG | J5: : : :: :::: ::::::::: | K5: AUCUUCCAGCAGACCGUGUGCC | L5: Translation
A6: hvu-miR6185 | B6: HvALKBH7_CDS | C6: 4 | D6: 15.704 | E6: 1 | F6: 21 | G6: 1513 | H6: 1533 | I6: UCUGGCAGCGACGGGAACAUA | J6: :: :::.::.::::::. : | K6: CCUGCUCCUGUUGCUGCCGCA | L6: Cleavage
A7: hvu-miR6187 | B7: HvMTB_CDS | C7: 4 | D7: 21.283 | E7: 1 | F7: 21 | G7: 1302 | H7: 1322 | I7: UGAACAGGUUCGGCGACCUCA | J7: :: ::.:.::::::::: | K7: UAUGGGAGCUGGACCUGUUCA | L7: Cleavage
A8: hvu-miR6202 | B8: HvECT1_CDS | C8: 4 | D8: 15.956 | E8: 1 | F8: 20 | G8: 1542 | H8: 1561 | I8: UGAAGAUUUUAAGCAUUGAA | J8: .::::: :::::::::: | K8: GGAGAUGCUGAAAAUCUUCA | L8: Translation
A9: hvu-miR6202 | B9: HvECT2_CDS | C9: 4 | D9: 13.568 | E9: 1 | F9: 20 | G9: 1407 | H9: 1426 | I9: UGAAGAUUUUAAGCAUUGAA | J9: : : ::::: ::.::::::: | K9: UACUAUGCUCAAGAUCUUCA | L9: Translation
A10: hvu-miR156a | B10: HvECT6 | C10: 4.5 | D10: 15.275 | E10: 1 | F10: 21 | G10: 1272 | H10: 1291 | I10: UGACAGAAGAGAGUGAGCACA | J10: : : ::: .:::.::::::.: | K10: UUUCCUC-UUCUUUUCUGUUA | L10: Cleavage
A11: hvu-miR156b | B11: HvECT6 | C11: 4.5 | D11: 15.275 | E11: 1 | F11: 21 | G11: 1272 | H11: 1291 | I11: UGACAGAAGAGAGUGAGCACA | J11: : : ::: .:::.::::::.: | K11: UUUCCUC-UUCUUUUCUGUUA | L11: Cleavage
A12: hvu-miR444b | B12: HvECT12_CDS | C12: 4.5 | D12: 17.571 | E12: 1 | F12: 21 | G12: 752 | H12: 772 | I12: UGCAGUUGCUGUCUCAAGCUU | J12: :. :: :::::: .:::::.: | K12: AGCCUAGAGACAAUAACUGUA | L12: Cleavage
A13: hvu-miR5048a | B13: HvMTA_CDS | C13: 4.5 | D13: 18.651 | E13: 1 | F13: 22 | G13: 1256 | H13: 1277 | I13: UAUUUGCAGGUUUUAGGUCUAA | J13: ::::.::.:::::.:: | K13: GCCACACUAAGACUUGCAAGUA | L13: Cleavage
A14: hvu-miR5048b | B14: HvMTA_CDS | C14: 4.5 | D14: 18.651 | E14: 1 | F14: 22 | G14: 1256 | H14: 1277 | I14: UAUUUGCAGGUUUUAGGUCUAA | J14: ::::.::.:::::.:: | K14: GCCACACUAAGACUUGCAAGUA | L14: Cleavage
A15: hvu-miR5052 | B15: HAKAI_CDS | C15: 4.5 | D15: 17.836 | E15: 1 | F15: 21 | G15: 331 | H15: 351 | I15: ACCGGCUGGACGGUAGGCAUA | J15: ::::.: :.::..:::: :: | K15: CAUGCUUUCUGUUUAGCCUGU | L15: Cleavage
A16: hvu-miR6178 | B16: HvECT1_CDS | C16: 4.5 | D16: 24.498 | E16: 1 | F16: 22 | G16: 1312 | H16: 1333 | I16: CACGGAACUGGGCGGUUGCACU | J16: : ::: : .:: ::::::.::: | K16: AAUGCUAGUGCACAGUUCUGUG | L16: Translation
A17: hvu-miR6202 | B17: HvECT9_2_CDS | C17: 4.5 | D17: 16.058 | E17: 1 | F17: 20 | G17: 1709 | H17: 1729 | I17: UGAAGAUUUUAAGCA-UUGAA | J17: ::::: :::: ::.::.:::: | K17: UUCAAAUGCUCAAGAUUUUCA | L17: Translation
A18: hvu-miR6202 | B18: HvECT9_1_CDS | C18: 4.5 | D18: 16.058 | E18: 1 | F18: 20 | G18: 1709 | H18: 1729 | I18: UGAAGAUUUUAAGCA-UUGAA | J18: ::::: :::: ::.::.:::: | K18: UUCAAAUGCUCAAGAUUUUCA | L18: Translation
A19: hvu-miR5051 | B19: HvCPSF30_CDS | C19: 4.75 | D19: 12.395 | E19: 1 | F19: 21 | G19: 685 | H19: 707 | I19: UUUGG--CACCUUGAAACUGGGA | J19: :::: ::::::::: ::::: | K19: GACCAGGUUCAAGGUGUUCCAAA | L19: Cleavage
A20: hvu-miR156a | B20: HvVIR_CDS | C20: 5 | D20: 17.762 | E20: 1 | F20: 21 | G20: 1852 | H20: 1872 | I20: UGACAGAAGAGAGUGAGCACA | J20: ::: . . .:::::::::: | K20: CAUGCCUUUGUUCUUCUGUCA | L20: Cleavage
A21: hvu-miR156b | B21: HvVIR_CDS | C21: 5 | D21: 17.762 | E21: 1 | F21: 21 | G21: 1852 | H21: 1872 | I21: UGACAGAAGAGAGUGAGCACA | J21: ::: . . .:::::::::: | K21: CAUGCCUUUGUUCUUCUGUCA | L21: Cleavage
A22: hvu-miR168-5p | B22: HvVIR_CDS | C22: 5 | D22: 24.154 | E22: 1 | F22: 21 | G22: 2240 | H22: 2260 | I22: UCGCUUGGUGCAGAUCGGGAC | J22: : ..::::::::: :.::: | K22: CUGUUGAUCUGCACAAGGCGU | L22: Cleavage
A23: hvu-miR5048a | B23: HvFIP37_CDS | C23: 5 | D23: 16.397 | E23: 1 | F23: 22 | G23: 484 | H23: 505 | I23: UAUUUGCAGGUUUUAGGUCUAA | J23: .:: .:.::..:::::. :: | K23: GCGGAAUUGAAGUCUGCAGUUA | L23: Cleavage
A24: hvu-miR5048b | B24: HvFIP37_CDS | C24: 5 | D24: 16.397 | E24: 1 | F24: 22 | G24: 484 | H24: 505 | I24: UAUUUGCAGGUUUUAGGUCUAA | J24: .:: .:.::..:::::. :: | K24: GCGGAAUUGAAGUCUGCAGUUA | L24: Cleavage
A25: hvu-miR5049c | B25: HvECT5_CDS | C25: 5 | D25: 16.07 | E25: 1 | F25: 23 | G25: 721 | H25: 743 | I25: AGACAAUUAUUUUGGGACGGAGG | J25: :. ::. .::::..::::.: | K25: AAACUAUCUGGAAAUGGUUGUUU | L25: Cleavage
A26: hvu-miR5049f | B26: HvVIR_CDS | C26: 5 | D26: 9.178 | E26: 1 | F26: 21 | G26: 1575 | H26: 1595 | I26: AAUUAAUAUGGAUCGGAGGGA | J26: : :::::.:::.:: .:: | K26: UGACACCGAUUCAUGUUUGUU | L26: Cleavage
A27: hvu-miR6178 | B27: HvECT6 | C27: 5 | D27: 20.614 | E27: 1 | F27: 22 | G27: 1291 | H27: 1312 | I27: CACGGAACUGGGCGGUUGCACU | J27: : ::: : .: .::::::.::: | K27: AAUGCUAGUGGUCAGUUCUGUG | L27: Cleavage
A28: hvu-miR6185 | B28: HvALKBH5_CDS | C28: 5 | D28: 17.4 | E28: 1 | F28: 21 | G28: 415 | H28: 435 | I28: UCUGGCAGCGACGGGAACAUA | J28: :: : :.:::.:::::.: : | K28: GAUUUGCUCGUUGCUGCUAAA | L28: Cleavage
A29: hvu-miR6192 | B29: HvVIR_CDS | C29: 5 | D29: 11.396 | E29: 1 | F29: 22 | G29: 1714 | H29: 1735 | I29: UAGGAGAGGGGGGAAGGGAUCU | J29: :::: :::.::.::: :.: | K29: GAAUCCAUUCUCCUCUCCCUUC | L29: Cleavage
A30: hvu-miR6192 | B30: HvALKBH1_CDS | C30: 5 | D30: 13.524 | E30: 1 | F30: 22 | G30: 1044 | H30: 1065 | I30: UAGGAGAGGGGGGAAGGGAUCU | J30: : ::: :..:: :::::::. | K30: CAACCCCAUUUCCACUCUCCUG | L30: Cleavage
A31: hvu-miR6196 | B31: HvMTA_CDS | C31: 5 | D31: 23.702 | E31: 1 | F31: 21 | G31: 123 | H31: 143 | I31: AGGACGAGGAGAUGGAGAGGA | J31: .: ::::: : :::::::: | K31: CUCCCUCCAGCACCUCGUCCC | L31: Translation
A32: hvu-miR6197 | B32: HvVIR_CDS | C32: 5 | D32: 22.426 | E32: 1 | F32: 21 | G32: 2157 | H32: 2177 | I32: UCUGUUCCUAAAUGUAAGACG | J32: :::: :::: :: :.:.:: | K32: GAUCUUCCAUUCAGCAGCGGA | L32: Translation
A33: hvu-miR6199 | B33: HvMTB_CDS | C33: 5 | D33: 18.301 | E33: 1 | F33: 23 | G33: 1503 | H33: 1525 | I33: CCACAGAAUUCUCACAGUGAUGG | J33: ::.::: : :::: :.::::: | K33: UGAUUACUCUCAGAACUUUGUGG | L33: Cleavage
A34: hvu-miR6202 | B34: HvECT10_CDS | C34: 5 | D34: 23.173 | E34: 1 | F34: 20 | G34: 1541 | H34: 1561 | I34: UGAAGAUUUUAAGCA-UUGAA | J34: ::::. :::: ::.::.:::: | K34: UUCAGGUGCUAAAGAUUUUCA | L34: Translation
A35: hvu-miR6202 | B35: HvECT3_CDS | C35: 5 | D35: 24.618 | E35: 1 | F35: 20 | G35: 1935 | H35: 1954 | I35: UGAAGAUUUUAAGCAUUGAA | J35: :.::.: :::::.:::: | K35: GGAAGUGUUGAAAAUUUUCA | L35: Translation
A36: hvu-miR6202 | B36: HvECT5_CDS | C36: 5 | D36: 20.218 | E36: 1 | F36: 20 | G36: 1395 | H36: 1414 | I36: UGAAGAUUUUAAGCAUUGAA | J36: :: .:::: ::.::::: : | K36: AUCUGUGCUCAAGAUCUUGA | L36: Translation
A37: hvu-miR6203 | B37: HvECT2_CDS | C37: 5 | D37: 19.052 | E37: 1 | F37: 22 | G37: 1442 | H37: 1463 | I37: AGACGAUUAAGAAGACCUGCAA | J37: :: : :::: :::.::.::.: | K37: AUGGAUGUCUGCUUGAUUGUUU | L37: Cleavage
A38: hvu-miR6206 | B38: HvALKBH11_CDS | C38: 5 | D38: 20.237 | E38: 1 | F38: 22 | G38: 863 | H38: 884 | I38: GGCACACGGGCUGCAGGCAUAG | J38: .: :::: :.: ..::::::: | K38: UUCUGCCAACGGAUUGUGUGCC | L38: Translation
A39: hvu-miR6210 | B39: HvVIR_CDS | C39: 5 | D39: 22.541 | E39: 1 | F39: 22 | G39: 1155 | H39: 1176 | I39: ACUCCUUGGUUAUCAACUUCGA | J39: ..: ::.:..::: ::::: | K39: CUUGGGAUGGUGGCCACGGAGU | L39: Cleavage

Sheet Table S5
A1: Table S5. Genomic coordinates of m⁶A regulatory genes in barley.
A2: Chromosome | B2: Gene_ID | C2: Gene_name | D2: start | E2: end
A3: 6H | B3: HORVU.MOREX.r3.6HG0603200.1 | C3: HvMTA | D3: 432710309 | E3: 432715380
A4: 7H | B4: HORVU.MOREX.r3.7HG0677190.1 | C4: HvFIP37 | D4: 156263203 | E4: 156269468
A5: 4H | B5: HORVU.MOREX.r3.4HG0399270.1 | C5: HvMTC | D5: 547353336 | E5: 547356381
A6: 4H | B6: HORVU.MOREX.r3.4HG0408030.1 | C6: HvMTB | D6: 581124067 | E6: 581129791
A7: 1H | B7: HORVU.MOREX.r3.1HG0045980.1 | C7: HAKAI | D7: 301807892 | E7: 301811100
A8: 7H | B8: HORVU.MOREX.r3.7HG0712870.1 | C8: HvVIR | D8: 483488102 | E8: 483507842
A9: 5H | B9: HORVU.MOREX.r3.5HG0510340.2 | C9: HvECT9 | D9: 526652001 | E9: 526656599
A10: 5H | B10: HORVU.MOREX.r3.5HG0517790.1 | C10: HvECT10 | D10: 544694257 | E10: 544698740
A11: 4H | B11: HORVU.MOREX.r3.4HG0401530.1 | C11: HvECT8 | D11: 556146137 | E11: 556150747
A12: 1H | B12: HORVU.MOREX.r3.1HG0008650.1 | C12: HvECT1 | D12: 20592129 | E12: 20598014
A13: 7H | B13: HORVU.MOREX.r3.7HG0697420.2 | C13: HvECT13 | D13: 355723932 | E13: 355728222
A14: 4H | B14: HORVU.MOREX.r3.4HG0380920.1 | C14: HvECT7 | D14: 416038809 | E14: 416045281
A15: 5H | B15: HORVU.MOREX.r3.5HG0517800.1 | C15: HvECT11 | D15: 544701265 | E15: 544705316
A16: 2H | B16: HORVU.MOREX.r3.2HG0117810.1 | C16: HvECT4 | D16: 59835367 | E16: 59844557
A17: 3H | B17: HORVU.MOREX.r3.3HG0280160.1 | C17: HvECT6 | D17: 431339032 | E17: 431345030
A18: 2H | B18: HORVU.MOREX.r3.2HG0096780.1 | C18: HvECT3 | D18: 2878672 | E18: 2883401
A19: 3H | B19: HORVU.MOREX.r3.3HG0263400.1 | C19: HvECT5 | D19: 277534425 | E19: 277539362
A20: 1H | B20: HORVU.MOREX.r3.1HG0024800.1 | C20: HvECT2 | D20: 99686966 | E20: 99692241
A21: 7H | B21: HORVU.MOREX.r3.7HG0735360.1 | C21: HvCPSF30 | D21: 592288311 | E21: 592293265
A22: 6H | B22: HORVU.MOREX.r3.6HG0566340.1 | C22: HvECT12 | D22: 101319943 | E22: 101324259
A23: 7H | B23: HORVU.MOREX.r3.7HG0647650.1 | C23: HvALKBH11 | D23: 24764763 | E23: 24770028
A24: 1H | B24: HORVU.MOREX.r3.1HG0063430.1 | C24: HvALKBH1 | D24: 418768921 | E24: 418776882
A25: 6H | B25: HORVU.MOREX.r3.6HG0619790.1 | C25: HvALKBH10 | D25: 525112514 | E25: 525113829
A26: 2H | B26: HORVU.MOREX.r3.2HG0123570.1 | C26: HvALKBH2 | D26: 90198060 | E26: 90200994
A27: 5H | B27: HORVU.MOREX.r3.5HG0524840.1 | C27: HvALKBH9 | D27: 560114624 | E27: 560118070
A28: 2H | B28: HORVU.MOREX.r3.2HG0193100.1 | C28: HvALKBH3 | D28: 606734689 | E28: 606736994
A29: 2H | B29: HORVU.MOREX.r3.2HG0216050.1 | C29: HvALKBH4 | D29: 659474299 | E29: 659475586
A30: 3H | B30: HORVU.MOREX.r3.3HG0223990.1 | C30: HvALKBH5 | D30: 10958016 | E30: 10961244
A31: 4H | B31: HORVU.MOREX.r3.4HG0393260.1 | C31: HvALKBH7 | D31: 511599296 | E31: 511605611
A32: 3H | B32: HORVU.MOREX.r3.3HG0234740.1 | C32: HvALKBH6 | D32: 37184410 | E32: 37186670
A33: 5H | B33: HORVU.MOREX.r3.5HG0476800.1 | C33: HvALKBH8 | D33: 409582868 | E33: 409583350

Sheet Table S6
A1: Table S6. Expression profiles of barley m⁶A regulatory genes across anatomical tissues (Genevestigator).
C2: maturation zone | D2: elongation zone | E2: root tip | F2: seminal root | G2: roots | H2: shoot apex | I2: leaf | J2: shoot | K2: internode | L2: rachis | M2: seedling | N2: blade (lamina) | O2: microspore culture | P2: microspore | Q2: lodicule | R2: palea | S2: lemma | T2: spike | U2: spikelet | V2: embryo | W2: caryopsis | X2: endosperm transfer cell | Y2: aleurone layer | Z2: scutellum
A3: writers | B3: HvMTA | C3: 3.7001662 | D3: 3.4501948 | E3: 4.368369 | F3: 4.3006616 | G3: 3.9534514 | H3: 5.217357 | I3: 3.138399 | J3: 2.6400135 | K3: 3.6635957 | L3: 4.6758256 | M3: 4.081493 | N3: 3.7377546 | O3: 5.043544 | P3: 4.1335773 | Q3: 4.57826 | R3: 4.0875726 | S3: 4.065101 | T3: 4.7867117 | U3: 3.8041644 | V3: 2.5640519 | W3: 1.7279731 | X3: 1.5222577 | Y3: 0.75514007 | Z3: 0.7373574
B4: HvMTB | C4: 3.739711 | D4: 3.6387777 | E4: 4.343296 | F4: 4.1346087 | G4: 3.934031 | H4: 5.0137067 | I4: 3.338368 | J4: 2.47915 | K4: 3.6864598 | L4: 4.3669972 | M4: 4.2714715 | N4: 3.9818206 | O4: 5.6692333 | P4: 5.509838 | Q4: 4.165775 | R4: 3.815964 | S4: 4.0710816 | T4: 4.7079673 | U4: 3.8884475 | V4: 2.9187145 | W4: 1.940451 | X4: 1.7009737 | Y4: 1.5448848 | Z4: 1.6524218
B5: HvMTC | C5: 2.3517926 | D5: 1.9381984 | E5: 2.277007 | F5: 2.6528623 | G5: 1.9391408 | H5: 3.3566363 | I5: 1.1671269 | J5: 0.93907315 | K5: 2.0284595 | L5: 2.829689 | M5: 2.3866951 | N5: 1.1947069 | O5: 3.4161727 | P5: 2.7960334 | Q5: 2.0638974 | R5: 2.3120024 | S5: 2.2577453 | T5: 2.7511837 | U5: 1.4439924 | V5: 2.01957 | W5: 0.6442842 | X5: 0.33516932 | Y5: 0.10909808 | Z5: 0.20325117
B6: HvFIP37 | C6: 4.4929914 | D6: 4.37459 | E6: 5.1770267 | F6: 4.795035 | G6: 4.386027 | H6: 5.587795 | I6: 3.5534086 | J6: 2.8070486 | K6: 3.9489458 | L6: 5.191329 | M6: 4.47998 | N6: 4.294359 | O6: 5.8081336 | P6: 5.230957 | Q6: 5.405327 | R6: 4.1986537 | S6: 4.509404 | T6: 4.87436 | U6: 4.5289264 | V6: 4.086563 | W6: 2.2421212 | X6: 1.0755955 | Y6: 2.4253767 | Z6: 2.2418504
B7: HAKAI | C7: 3.6341698 | D7: 3.5868363 | E7: 4.275974 | F7: 4.1123805 | G7: 3.700257 | H7: 4.574453 | I7: 2.9987323 | J7: 2.642666 | K7: 3.4968247 | L7: 4.2281504 | M7: 3.3319132 | N7: 3.8093393 | O7: 5.179986 | P7: 4.8084965 | Q7: 4.3046165 | R7: 3.7123 | S7: 3.6856258 | T7: 4.2922506 | U7: 3.7846496 | V7: 2.8930387 | W7: 1.438047 | X7: 2.383796 | Y7: 0.8721414 | Z7: 1.0935372
B8: HvVIR | C8: 3.6135266 | D8: 3.662107 | E8: 4.0805902 | F8: 4.4414287 | G8: 3.6420388 | H8: 4.34174 | I8: 3.1419494 | J8: 2.6547208 | K8: 3.4783378 | L8: 4.612498 | M8: 3.6770687 | N8: 4.409134 | O8: 5.5608134 | P8: 5.0745883 | Q8: 4.643047 | R8: 4.362512 | S8: 4.532187 | T8: 4.4760685 | U8: 3.133551 | V8: 2.081218 | W8: 1.8145231 | X8: 3.6281197 | Y8: 1.4027753 | Z8: 1.1986262
A9: readers | B9: HvECT1 | C9: 5.266924 | D9: 5.024722 | E9: 6.1593957 | F9: 5.593042 | G9: 5.0791636 | H9: 5.2518516 | I9: 4.822621 | J9: 3.9533527 | K9: 5.636491 | L9: 5.6732063 | M9: 4.9159794 | N9: 5.484024 | O9: 4.750934 | P9: 5.0157447 | Q9: 6.0257497 | R9: 5.5063725 | S9: 5.1223874 | T9: 5.170032 | U9: 4.9047775 | V9: 2.9920835 | W9: 2.0527427 | X9: 2.630508 | Y9: 1.6277692 | Z9: 1.5457382
B10: HvECT2 | C10: 0.58253175 | D10: 0.41114134 | E10: 0.06522931 | F10: 0.45071772 | G10: 0.49018815 | H10: 3.5406368 | I10: 0.9069249 | J10: 0.18890266 | K10: 2.3434272 | L10: 3.9391258 | M10: 0.069145165 | N10: 1.6183978 | O10: 5.8143606 | P10: 4.04838 | Q10: 2.594896 | R10: 3.5706027 | S10: 3.4629393 | T10: 3.6959953 | U10: 3.3993208 | V10: 0.038446188 | W10: 0.97872585 | X10: 2.9310827 | Y10: 0.016975148 | Z10: 0.008086818
B11: HvECT3 | C11: 2.2470143 | D11: 1.9496293 | E11: 1.7497997 | F11: 2.25437 | G11: 2.008107 | H11: 1.4108042 | I11: 1.430675 | J11: 1.1484971 | K11: 1.8220003 | L11: 2.0885122 | M11: 1.8548506 | N11: 2.5033302 | O11: 4.5189133 | P11: 4.5394526 | Q11: 3.246212 | R11: 2.2582846 | S11: 2.005366 | T11: 2.008928 | U11: 2.3867056 | V11: 0.5683287 | W11: 0.8452189 | X11: 1.1509241 | Y11: 0.32347146 | Z11: 0.18858911
B12: HvECT4 | C12: 2.8260078 | D12: 2.1889336 | E12: 2.0785923 | F12: 2.5034842 | G12: 2.4371529 | H12: 3.3225794 | I12: 2.8306162 | J12: 2.373124 | K12: 2.9925654 | L12: 3.513334 | M12: 2.501216 | N12: 3.4215016 | O12: 4.8215656 | P12: 4.4728956 | Q12: 3.8947632 | R12: 3.3754842 | S12: 3.2652886 | T12: 3.6215296 | U12: 3.640493 | V12: 1.6669288 | W12: 1.3156369 | X12: 1.7769333 | Y12: 0.55285877 | Z12: 0.5476226
B13: HvECT5 | C13: 4.1028557 | D13: 4.3156605 | E13: 5.422352 | F13: 4.840997 | G13: 4.4478855 | H13: 5.1179214 | I13: 3.577184 | J13: 2.7496223 | K13: 3.3742034 | L13: 4.4492474 | M13: 4.420624 | N13: 4.897545 | O13: 6.452216 | P13: 5.7819834 | Q13: 4.8653684 | R13: 4.329246 | S13: 4.1735945 | T13: 4.5639315 | U13: 4.6238403 | V13: 3.707991 | W13: 2.3653083 | X13: 2.979075 | Y13: 2.7562623 | Z13: 2.518098
B14: HvECT6 | C14: 5.3422036 | D14: 5.5822544 | E14: 4.478497 | F14: 4.299519 | G14: 3.871801 | H14: 4.0990543 | I14: 3.5323377 | J14: 3.3162882 | K14: 3.8166902 | L14: 4.5315437 | M14: 4.0495753 | N14: 4.6929283 | O14: 4.1652575 | P14: 3.9586277 | Q14: 4.9223375 | R14: 3.501527 | S14: 3.7167618 | T14: 3.5478992 | U14: 3.9552708 | V14: 2.153176 | W14: 1.4058802 | X14: 1.3019016 | Y14: 1.6033322 | Z14: 1.6113237
B15: HvECT7 | C15: 4.53576 | D15: 4.4472556 | E15: 3.4119139 | F15: 4.5764246 | G15: 4.07659 | H15: 3.6770341 | I15: 3.28434 | J15: 2.914192 | K15: 4.3017936 | L15: 4.753816 | M15: 3.57852 | N15: 3.779922 | O15: 4.77431 | P15: 5.3250074 | Q15: 4.5819597 | R15: 4.667176 | S15: 4.3605614 | T15: 4.168986 | U15: 4.25394 | V15: 1.8400604 | W15: 2.0612247 | X15: 2.632567 | Y15: 1.0623516 | Z15: 0.75104904
B16: HvECT8 | C16: 7.1297483 | D16: 6.5056105 | E16: 7.1882076 | F16: 7.7173324 | G16: 7.398921 | H16: 8.118125 | I16: 6.777788 | J16: 5.3180943 | K16: 6.586847 | L16: 7.6021676 | M16: 7.218883 | N16: 7.033274 | O16: 7.9940042 | P16: 5.9942336 | Q16: 7.4583945 | R16: 7.9260097 | S16: 8.38132 | T16: 7.535139 | U16: 6.5990705 | V16: 6.1625233 | W16: 4.425514 | X16: 2.7806733 | Y16: 4.4095845 | Z16: 4.3542476
B17: HvECT9 | C17: 4.3914976 | D17: 4.2841167 | E17: 5.6711845 | F17: 5.2974005 | G17: 4.802875 | H17: 5.612797 | I17: 5.6792145 | J17: 4.826227 | K17: 3.9766726 | L17: 4.5726056 | M17: 4.649895 | N17: 6.7086487 | O17: 6.7653403 | P17: 6.2544155 | Q17: 3.1073577 | R17: 4.418779 | S17: 5.365358 | T17: 5.369883 | U17: 4.785787 | V17: 4.801195 | W17: 2.8050609 | X17: 1.3979944 | Y17: 3.3120427 | Z17: 2.841034
B18: HvECT10 | C18: 3.1219902 | D18: 3.5331666 | E18: 5.072299 | F18: 4.8481555 | G18: 4.078814 | H18: 6.614843 | I18: 3.1890407 | J18: 2.4535432 | K18: 2.4119098 | L18: 5.2080026 | M18: 4.3699183 | N18: 4.887627 | O18: 6.2715707 | P18: 3.8490987 | Q18: 4.681251 | R18: 4.4457054 | S18: 4.2237 | T18: 5.8048763 | U18: 5.577804 | V18: 3.3841825 | W18: 2.3917527 | X18: 1.2255508 | Y18: 1.4274244 | Z18: 1.8139118
B19: HvECT11 | C19: 4.8566995 | D19: 5.365196 | E19: 7.2814713 | F19: 6.881176 | G19: 6.100899 | H19: 8.042544 | I19: 4.3413806 | J19: 3.6102226 | K19: 4.1574254 | L19: 7.043964 | M19: 6.672092 | N19: 5.693196 | O19: 7.707814 | P19: 7.6156383 | Q19: 6.2640147 | R19: 6.4337926 | S19: 6.125271 | T19: 7.30035 | U19: 6.7826824 | V19: 5.056375 | W19: 2.9340985 | X19: 3.6827538 | Y19: 1.8848131 | Z19: 2.417196
B20: HvECT12 | C20: 0.67723554 | D20: 0.49355727 | E20: 0.8294295 | F20: 1.2917423 | G20: 0.82172143 | H20: 1.4027923 | I20: 0.62178653 | J20: 0.48845136 | K20: 0.7159505 | L20: 1.3975602 | M20: 0.5968134 | N20: 0.8404719 | O20: 3.0451896 | P20: 2.0194273 | Q20: 1.1225561 | R20: 0.9779851 | S20: 1.462396 | T20: 1.7412794 | U20: 1.1023362 | V20: 0.9794265 | W20: 0.63527846 | X20: 2.6572225 | Y20: 0.20043696 | Z20: 0.34826568
B21: HvECT13 | C21: 5.713423 | D21: 5.6188273 | E21: 4.8743696 | F21: 5.04615 | G21: 5.131465 | H21: 4.3224254 | I21: 4.852553 | J21: 4.3061976 | K21: 5.2964783 | L21: 5.2915006 | M21: 5.1717577 | N21: 5.4711027 | O21: 4.8452864 | P21: 4.6378455 | Q21: 5.1556926 | R21: 4.849862 | S21: 5.294398 | T21: 4.5252876 | U21: 4.2579284 | V21: 2.4830472 | W21: 1.8807247 | X21: 2.2580206 | Y21: 1.8100768 | Z21: 1.3834147
B22: HvCPSF30 | C22: 3.2308667 | D22: 3.1169426 | E22: 3.9106967 | F22: 3.7207704 | G22: 3.3957162 | H22: 4.329826 | I22: 2.7810962 | J22: 2.3751287 | K22: 3.535693 | L22: 4.0090547 | M22: 3.6695223 | N22: 3.1692262 | O22: 4.7596726 | P22: 4.442361 | Q22: 4.0796933 | R22: 3.5652168 | S22: 3.4267108 | T22: 4.101633 | U22: 4.010769 | V22: 2.9951205 | W22: 1.8861586 | X22: 1.1142937 | Y22: 1.2567511 | Z22: 1.2394934
A23: erasers | B23: HvALKBH1 | C23: 6.004234 | D23: 6.9782305 | E23: 6.127525 | F23: 5.512451 | G23: 5.515807 | H23: 0.7123549 | I23: 5.3608394 | J23: 5.1366625 | K23: 4.9410467 | L23: 5.93963 | M23: 5.82955 | N23: 6.367947 | O23: 5.599376 | P23: 5.506894 | Q23: 3.2814634 | R23: 5.459928 | S23: 5.860487 | T23: 3.1634297 | U23: 4.228313 | V23: 2.077752 | W23: 1.6160895 | X23: 2.0424895 | Y23: 2.7110777 | Z23: 2.6056125
B24: HvALKBH2 | C24: 6.807853 | D24: 6.850208 | E24: 5.993181 | F24: 6.0390706 | G24: 6.060536 | H24: 6.2436004 | I24: 3.448683 | J24: 3.7556775 | K24: 7.034791 | L24: 7.21397 | M24: 5.926473 | N24: 3.1255832 | O24: 6.8413053 | P24: 6.64553 | Q24: 6.2429733 | R24: 5.991512 | S24: 5.334142 | T24: 5.80737 | U24: 5.3050284 | V24: 2.2932234 | W24: 1.7637336 | X24: 2.4429207 | Y24: 0.068850935 | Z24: 1.1164745
B25: HvALKBH3 | C25: 1.7431697 | D25: 1.584954 | E25: 2.2050924 | F25: 2.031649 | G25: 1.680474 | H25: 1.56215 | I25: 1.3936886 | J25: 0.5213601 | K25: 0.54848844 | L25: 1.5019599 | M25: 0.9142373 | N25: 1.7899305 | O25: 3.2150826 | P25: 3.124167 | Q25: 1.6637048 | R25: 0.7089443 | S25: 0.91058254 | T25: 1.5442141 | U25: 1.2646858 | V25: 1.0866342 | W25: 0.41789696 | X25: 0.31080243 | Y25: 0.2958712 | Z25: 0.23825324
B26: HvALKBH4 | C26: 2.1040435 | D26: 1.7129531 | E26: 3.0172853 | F26: 2.0044184 | G26: 1.8310726 | H26: 0.20995088 | I26: 2.1985312 | J26: 1.4802185 | K26: 2.040526 | L26: 0.44579458 | M26: 1.8986989 | N26: 1.3312685 | O26: 1.2741059 | P26: 2.7092035 | Q26: 0.67118675 | R26: 0.2125063 | S26: 0.14521007 | T26: 0.66095823 | U26: 1.1303935 | V26: 0.736727 | W26: 0.66000205 | X26: 0.23501922 | Y26: 0.48007277 | Z26: 0.33770862
B27: HvALKBH5 | C27: 2.9496446 | D27: 2.6376123 | E27: 4.1357226 | F27: 3.7944272 | G27: 3.310539 | H27: 3.4742393 | I27: 2.3185377 | J27: 1.809609 | K27: 2.9910347 | L27: 3.5581825 | M27: 3.613005 | N27: 2.8002107 | O27: 4.341959 | P27: 4.592781 | Q27: 3.6501591 | R27: 2.8482306 | S27: 2.8663957 | T27: 3.4627385 | U27: 3.3877368 | V27: 3.2964673 | W27: 1.472822 | X27: 1.02287 | Y27: 1.1794568 | Z27: 1.1110784
B28: HvALKBH6 | C28: 2.7770512 | D28: 2.3886952 | E28: 2.3197618 | F28: 2.560368 | G28: 2.9330208 | H28: 2.3992486 | I28: 2.7634614 | J28: 2.2441225 | K28: 3.5358868 | L28: 3.7814434 | M28: 3.269598 | N28: 3.363645 | O28: 4.3721 | P28: 4.11331 | Q28: 3.875953 | R28: 2.498309 | S28: 2.7648916 | T28: 3.8395638 | U28: 2.9663968 | V28: 1.4940568 | W28: 1.2477366 | X28: 1.1830599 | Y28: 0.4114481 | Z28: 0.5664822
B29: HvALKBH7 | C29: 4.8531675 | D29: 5.027151 | E29: 5.7072134 | F29: 5.6435533 | G29: 5.304733 | H29: 6.3182893 | I29: 3.7596314 | J29: 3.339782 | K29: 5.1574206 | L29: 6.597696 | M29: 5.2680116 | N29: 4.815655 | O29: 6.712303 | P29: 7.148267 | Q29: 6.39449 | R29: 6.8850055 | S29: 6.628198 | T29: 5.433013 | U29: 4.8533654 | V29: 2.981178 | W29: 1.9827087 | X29: 1.4104947 | Y29: 1.3386846 | Z29: 1.2827809
B30: HvALKBH8 | C30: 0.014892354 | D30: 0 | E30: 0 | F30: 0 | G30: 0 | H30: 0 | I30: 0.034649286 | J30: 0 | K30: 0 | L30: 0 | M30: 0 | N30: 0 | O30: 0 | P30: 0.2703321 | Q30: 0 | R30: 0 | S30: 0 | T30: 0 | U30: 0.04576375 | V30: 0.004984391 | W30: 0.0023011884 | X30: 0 | Y30: 0.0042146835 | Z30: 0
B31: HvALKBH9 | C31: 2.8674433 | D31: 2.408617 | E31: 1.1768342 | F31: 3.054839 | G31: 3.2382815 | H31: 4.216157 | I31: 2.9862287 | J31: 2.6285136 | K31: 4.112024 | L31: 4.6218247 | M31: 3.1192515 | N31: 3.2752578 | O31: 5.9589486 | P31: 3.4020765 | Q31: 4.629215 | R31: 4.146757 | S31: 4.675158 | T31: 4.148047 | U31: 2.4849544 | V31: 2.8351405 | W31: 1.3577523 | X31: 1.8449265 | Y31: 1.2277199 | Z31: 1.219406
B32: HvALKBH10 | C32: 2.3085754 | D32: 1.864252 | E32: 3.0697117 | F32: 3.13801 | G32: 2.7273386 | H32: 3.7718747 | I32: 2.2856576 | J32: 1.7354602 | K32: 2.3800092 | L32: 3.1449814 | M32: 2.1270604 | N32: 2.5038912 | O32: 4.361646 | P32: 4.333875 | Q32: 3.154075 | R32: 2.3234117 | S32: 2.2637856 | T32: 3.2371225 | U32: 2.950879 | V32: 1.8863256 | W32: 1.0192573 | X32: 0.6313694 | Y32: 0.21222281 | Z32: 0.32240227
B33: HvALKBH11 | C33: 4.616772 | D33: 4.401177 | E33: 3.8091779 | F33: 4.300549 | G33: 4.288169 | H33: 4.4762025 | I33: 3.739105 | J33: 3.2118597 | K33: 4.8080244 | L33: 5.3644996 | M33: 4.1317477 | N33: 4.082347 | O33: 4.7124715 | P33: 3.9649944 | Q33: 5.258736 | R33: 5.214069 | S33: 5.355528 | T33: 4.405476 | U33: 3.7600935 | V33: 2.1527689 | W33: 1.3411057 | X33: 1.3082904 | Y33: 0.6353867 | Z33: 0.68178225

Sheet Table S7
A1: Table S7. Expression profiles of barley m⁶A regulatory genes under stress conditions (Genevestigator).
C2: Cold (-2°C; 4h)_leaf | D2: Cold (-8°C;18h)_leaf | E2: Cold (3/1°C; 5d)_leaf | F2: Drought_leaf | G2: Drought _spike | H2: Drought_scarlett; leaf | I2: Drought_scarlett; spike | J2: Heat_root | K2: Heat_shoot | L2: Heat; drought_leaf | M2: Heat; drought_spike | N2: Heat; drought_scarlett; leaf | O2: Heat; drought_scarlett; spike | P2: Osmotic; 26°C_microspore | Q2: Salt (2h)_leaf | R2: Salt (6h)_seminal root | S2: Salt (12h)_leaf | T2: Salt (24h)_leaf | U2: Salt (24h)_seminal root | V2: Simulated drought (6h)_seminal root | W2: Simulated drought (24h)_seminal root | X2: Wounding (2h)_leaf blade | Y2: Wounding (24h)_leaf blade
A3: writers | B3: HvMTA | C3: 0.08898902 | D3: -0.34916854 | E3: 0.759305 | F3: 0.032348156 | G3: -0.19401121 | H3: 0.20513701 | I3: -0.017737389 | J3: -0.11854935 | K3: 0.13520098 | L3: 0.17151237 | M3: 0.29873943 | N3: -0.62442064 | O3: 0.5157566 | P3: -0.08260012 | Q3: 0.75398207 | R3: 0.008569241 | S3: 0.9028094 | T3: 0.136652 | U3: 0.32672453 | V3: 0.1316433 | W3: 0.5481038 | X3: -0.28970265 | Y3: -0.045876026
B4: HvMTB | C4: 0.071763515 | D4: -0.09543514 | E4: 1.2248626 | F4: 0.24700975 | G4: -0.1058774 | H4: 0.3133278 | I4: 0.42391443 | J4: -0.5161288 | K4: -0.3133073 | L4: 0.5945535 | M4: 0.5903487 | N4: -0.34779143 | O4: 1.1408143 | P4: 0.5617757 | Q4: 1.5441606 | R4: -0.14434147 | S4: 1.7160046 | T4: 0.15060544 | U4: 0.3668139 | V4: 0.07513523 | W4: 0.38454175 | X4: -0.16425824 | Y4: 0.06099224
B5: HvMTC | C5: 0.46395922 | D5: 1.1074728 | E5: 0.97383785 | F5: 0.29857713 | G5: -0.19764781 | H5: 0.46651947 | I5: -0.07696152 | J5: 0.4715426 | K5: 0.20849234 | L5: 0.14093858 | M5: 0.64679337 | N5: 0.08608925 | O5: 0.5167346 | P5: 0.9704373 | Q5: 0.39311635 | R5: 0.116322756 | S5: 0.6683688 | T5: 0.049996316 | U5: 0.46577692 | V5: 0.2356534 | W5: 0.5497172 | X5: -0.012121797 | Y5: 0.24628556
B6: HvFIP37 | C6: 0.44788527 | D6: -0.08657169 | E6: 0.9354851 | F6: 0.018766403 | G6: 0.096459866 | H6: 0.25975037 | I6: 0.042875767 | J6: -0.45605278 | K6: -0.12475109 | L6: 0.18479586 | M6: 0.6275816 | N6: -0.7407696 | O6: 1.033328 | P6: -0.12489653 | Q6: 1.1976058 | R6: -0.046430588 | S6: 1.7463009 | T6: 0.2412231 | U6: 0.15550947 | V6: -0.03441477 | W6: 0.09058857 | X6: 0.061270714 | Y6: -0.0027470589
B7: HAKAI | C7: 0.4879601 | D7: -0.20085621 | E7: 1.0472679 | F7: -0.07675815 | G7: -0.10185385 | H7: 0.1334796 | I7: 0.012482643 | J7: -0.21240425 | K7: 0.06033635 | L7: 0.45169568 | M7: 0.30805826 | N7: -0.8031857 | O7: 0.4354353 | P7: -0.5229025 | Q7: 0.37866235 | R7: -0.089930534 | S7: 0.55728245 | T7: 0.10374522 | U7: -0.0045347214 | V7: -0.11729097 | W7: -0.1063993 | X7: 0.31492233 | Y7: 0.003910303
B8: HvVIR | C8: -0.47909212 | D8: -0.0116961 | E8: 0.5835042 | F8: 0.29714036 | G8: -0.1969738 | H8: 0.2404542 | I8: 0.51833916 | J8: -0.4520483 | K8: -0.058939934 | L8: 0.8130176 | M8: 0.11144018 | N8: -0.6253841 | O8: 0.65425205 | P8: 0.020853996 | Q8: 0.5993056 | R8: -0.20348167 | S8: 0.90403366 | T8: 0.033207893 | U8: 0.4848144 | V8: 0.17042065 | W8: 0.43871474 | X8: -0.4389398 | Y8: 0.035452366
A9: readers | B9: HvECT1 | C9: 0.9835863 | D9: 0.04986143 | E9: 1.0628958 | F9: -0.3929844 | G9: -0.3673458 | H9: -0.049277306 | I9: -0.13579178 | J9: -1.5742555 | K9: -1.5004036 | L9: 0.5027838 | M9: -0.16627121 | N9: -0.7434306 | O9: -0.07436037 | P9: -0.19787836 | Q9: 1.8060584 | R9: 0.12625742 | S9: 1.9858017 | T9: 0.0138242245 | U9: 0.29710293 | V9: -0.004477501 | W9: 0.251472 | X9: 1.4225945 | Y9: 0.122787
B10: HvECT2 | C10: 0.8326993 | D10: 0.50427175 | E10: 1.277562 | F10: 0.18292546 | G10: 0.2276628 | H10: 0.3331194 | I10: 0.40423536 | J10: -0.43506518 | K10: -0.0993413 | L10: 0.26626682 | M10: 0.49985385 | N10: -0.85965633 | O10: 0.5195713 | P10: -0.13311148 | Q10: 0.20923668 | R10: -0.07723699 | S10: 0.29493493 | T10: 0.021378815 | U10: 0.026923358 | V10: -0.108577654 | W10: -0.03402566 | X10: 0.1902796 | Y10: 0.6008389
B11: HvECT3 | C11: -0.7425866 | D11: -0.49023563 | E11: -0.16190517 | F11: 0.3692236 | G11: 0.21446013 | H11: 0.24016237 | I11: 0.7325816 | J11: -0.29720736 | K11: 0.09474337 | L11: -0.048462868 | M11: -0.53839374 | N11: -1.3195355 | O11: -0.8102641 | P11: 0.014778137 | Q11: 1.2185786 | R11: 0.12501049 | S11: 1.4001448 | T11: 0.5032706 | U11: 0.5350549 | V11: 0.5584476 | W11: 0.61875534 | X11: -1.0188398 | Y11: 0.14869905
B12: HvECT4 | C12: -0.58888245 | D12: -0.4498539 | E12: 0.32089043 | F12: 0.14078999 | G12: 0.032269716 | H12: 0.14173603 | I12: 0.2428472 | J12: -0.46119463 | K12: -0.21603286 | L12: -0.1837008 | M12: -0.05251527 | N12: -0.96801305 | O12: 0.16471863 | P12: 0.23332787 | Q12: 1.2118475 | R12: -0.022139788 | S12: 0.7318275 | T12: 0.4209702 | U12: 0.39890027 | V12: 0.12431073 | W12: 0.21121144 | X12: -0.5327041 | Y12: 0.0413208
B13: HvECT5 | C13: 0.93153644 | D13: -0.1675024 | E13: 1.6231434 | F13: -0.09816074 | G13: -0.23730183 | H13: 0.30069733 | I13: 0.1592555 | J13: -1.1237621 | K13: -0.37928486 | L13: 0.29357862 | M13: 0.1658454 | N13: -1.2262809 | O13: 0.21767187 | P13: -0.1325512 | Q13: 0.16019964 | R13: -0.3701501 | S13: 0.5588286 | T13: 0.29455876 | U13: 0.29465103 | V13: -0.23042393 | W13: 0.22498035 | X13: 1.5475502 | Y13: 0.25783682
B14: HvECT6 | C14: 0.95609 | D14: 0.70024633 | E14: -0.0686059 | F14: -0.113455296 | G14: 0.59171677 | H14: -0.23340464 | I14: 0.3711939 | J14: -1.4075036 | K14: -0.5323162 | L14: 0.13167906 | M14: -0.16024256 | N14: -1.2608619 | O14: 0.16739893 | P14: -1.6959591 | Q14: 0.27999687 | R14: 0.08526802 | S14: 0.20379663 | T14: -0.038038492 | U14: 0.6551361 | V14: -0.19536161 | W14: -0.0022964478 | X14: 0.95325994 | Y14: 0.018956184
B15: HvECT7 | C15: 0.87881994 | D15: 0.23201323 | E15: 0.9314642 | F15: -0.26767135 | G15: -0.24800396 | H15: 0.087677 | I15: 0.305645 | J15: -0.101828575 | K15: -0.06336117 | L15: -0.54158115 | M15: -0.63572454 | N15: -0.98758507 | O15: -0.5326278 | P15: 2.0108776 | Q15: 1.1140405 | R15: 0.058396816 | S15: 1.4436501 | T15: 0.45612967 | U15: 0.24103642 | V15: 0.9104829 | W15: 0.36764812 | X15: -0.29826593 | Y15: -0.026414633
B16: HvECT8 | C16: 0.5199013 | D16: 0.111019135 | E16: 1.4100075 | F16: -0.1411519 | G16: -0.8688164 | H16: 0.15714025 | I16: -0.17321205 | J16: 0.12864399 | K16: 0.0150437355 | L16: 0.7429733 | M16: 0.69962215 | N16: -0.19497919 | O16: 1.109108 | P16: -1.6838264 | Q16: 3.1471415 | R16: 0.06566906 | S16: 3.241949 | T16: 0.43558455 | U16: 0.57590055 | V16: 0.24690008 | W16: 0.7565923 | X16: 1.7860847 | Y16: -0.015992641
B17: HvECT9 | C17: -0.21386528 | D17: 0.019405365 | E17: 0.3754053 | F17: -0.31074762 | G17: 0.016935349 | H17: -0.09169388 | I17: 0.050489902 | J17: -0.5180459 | K17: -0.44558477 | L17: 0.52167845 | M17: 0.66263103 | N17: -0.89716816 | O17: 0.7074971 | P17: -0.21694756 | Q17: 1.3294168 | R17: -0.2560339 | S17: 1.509037 | T17: 0.37362814 | U17: -0.025212288 | V17: -0.2910347 | W17: 0.15483809 | X17: -0.48376465 | Y17: -0.14381695
B18: HvECT10 | C18: 0.3954544 | D18: 0.48886108 | E18: 1.7616329 | F18: 0.34565187 | G18: -0.17929935 | H18: 0.7780299 | I18: -0.021139622 | J18: -0.67459583 | K18: -0.44222283 | L18: 0.37039447 | M18: 1.0912642 | N18: -0.9256816 | O18: 1.2868881 | P18: 1.1240652 | Q18: -0.51413655 | R18: -0.24193239 | S18: 0.2872715 | T18: 0.61813736 | U18: 0.0681777 | V18: 0.10682154 | W18: 0.0025610924 | X18: 0.12852526 | Y18: -0.23622084
B19: HvECT11 | C19: 0.2630849 | D19: 0.14179754 | E19: 1.6531949 | F19: 0.5603528 | G19: -0.16362286 | H19: 0.9487834 | I19: -0.036231995 | J19: -0.8941722 | K19: -0.5246141 | L19: 0.74225664 | M19: 0.83594227 | N19: -0.7737055 | O19: 0.9658189 | P19: -0.46678925 | Q19: 0.56348085 | R19: -0.057058334 | S19: 0.9422388 | T19: 0.589386 | U19: 0.35967636 | V19: -0.03132963 | W19: 0.20906639 | X19: 0.9288378 | Y19: 0.15616274
B20: HvECT12 | C20: 0.3078323 | D20: -0.031502783 | E20: 0.231558 | F20: 0.17325047 | G20: 0.021782994 | H20: 0.17588928 | I20: 0.9356233 | J20: -0.010785341 | K20: 0.032864004 | L20: 0.54497766 | M20: -0.10053289 | N20: -0.092481166 | O20: 0.6440288 | P20: 0.13542676 | Q20: 1.281954 | R20: 0.053536773 | S20: 1.4632742 | T20: 0.09042975 | U20: 0.13446623 | V20: 0.07692343 | W20: 0.13131297 | X20: 0.32630533 | Y20: -0.027642488
B21: HvECT13 | C21: 0.2053771 | D21: -0.090075016 | E21: 0.79328156 | F21: -0.2554655 | G21: -0.14488697 | H21: -0.08023882 | I21: 0.053998947 | J21: -0.880476 | K21: -0.5797672 | L21: 0.22602081 | M21: 0.0073833466 | N21: -0.63273525 | O21: 0.26119804 | P21: -1.3508675 | Q21: 1.1454077 | R21: -0.14891148 | S21: 1.2249727 | T21: 0.20467639 | U21: 0.36304665 | V21: -0.04122162 | W21: -0.27176666 | X21: 0.14996672 | Y21: 0.16441536
B22: HvCPSF30 | C22: 0.36831784 | D22: 0.24933052 | E22: 1.3098934 | F22: 0.036361694 | G22: -0.12626123 | H22: 0.37380815 | I22: 0.21491528 | J22: -0.37276363 | K22: -0.13933969 | L22: -0.044149637 | M22: 0.4146204 | N22: -0.64139915 | O22: 0.6051831 | P22: -0.7672868 | Q22: 0.82691693 | R22: 0.08296013 | S22: 0.8013346 | T22: 0.17970753 | U22: 0.13239884 | V22: 0.07643032 | W22: 0.16972756 | X22: 0.24250221 | Y22: 0.032383442
A23: erasers | B23: HvALKBH1 | C23: 0.6606426 | D23: 0.39277935 | E23: 0.5489092 | F23: -0.2919011 | G23: 0.3232112 | H23: 0.1763277 | I23: 0.5186534 | J23: -1.7040112 | K23: -0.060252666 | L23: 0.089672565 | M23: -0.92664003 | N23: -0.6160073 | O23: -0.87784433 | P23: 0.18992043 | Q23: -0.44857597 | R23: -0.18898869 | S23: -1.0664461 | T23: 0.31193018 | U23: -0.2762046 | V23: -0.61385345 | W23: -1.4778519 | X23: 1.4233756 | Y23: 0.009924412
B24: HvALKBH2 | C24: -0.35386467 | D24: -0.49728346 | E24: -0.1636858 | F24: -0.47100973 | G24: -1.3742466 | H24: 0.4022045 | I24: -0.9843478 | J24: 1.2821031 | K24: 0.28671336 | L24: 0.4018116 | M24: -0.08436298 | N24: -0.1893568 | O24: -0.13168001 | P24: -0.5324421 | Q24: 0.037394047 | R24: -0.29191017 | S24: 0.034430027 | T24: 0.10920644 | U24: -0.41468716 | V24: -0.42952347 | W24: -1.9430046 | X24: 0.262846 | Y24: 0.05575776
B25: HvALKBH3 | C25: 0.3462429 | D25: 0.12688589 | E25: 0.46124095 | F25: -0.018922567 | G25: -0.2145462 | H25: -0.12764895 | I25: 0.11650312 | J25: -0.41744506 | K25: -0.1600984 | L25: 0.01103878 | M25: 0.3239298 | N25: -0.6507871 | O25: 0.233904 | P25: -0.31493306 | Q25: 0.4019655 | R25: 0.38675117 | S25: 0.665105 | T25: 0.23017263 | U25: 0.3183874 | V25: 0.15178323 | W25: 0.580009 | X25: 0.042364597 | Y25: -0.14243531
B26: HvALKBH4 | C26: 1.2131295 | D26: 0.7864578 | E26: 1.1963413 | F26: 0.015528768 | G26: -0.107847154 | H26: 0.61989987 | I26: -0.10066013 | J26: -1.422857 | K26: -0.3974719 | L26: 0.13242495 | M26: -0.038155913 | N26: -0.17487806 | O26: -0.13615932 | P26: -1.9269683 | Q26: 0.019676924 | R26: 0.59607077 | S26: -0.2629199 | T26: -0.11461258 | U26: -0.12832904 | V26: 0.032928705 | W26: -0.83670306 | X26: 0.68009007 | Y26: 0.081159234
B27: HvALKBH5 | C27: -0.56608534 | D27: -0.10508597 | E27: 0.4318565 | F27: 0.23000097 | G27: -0.52458024 | H27: 0.46870852 | I27: -0.30157137 | J27: -0.3418932 | K27: -0.06729388 | L27: 0.11558628 | M27: 0.45797563 | N27: -0.8088157 | O27: 0.4917512 | P27: 0.19612741 | Q27: 1.6155092 | R27: 0.035146236 | S27: 1.9292535 | T27: 0.15728235 | U27: 0.33403134 | V27: 0.05854225 | W27: 0.35246968 | X27: 0.85154986 | Y27: 0.09024954
B28: HvALKBH6 | C28: -0.11818218 | D28: -0.12653399 | E28: 0.6102457 | F28: -0.10532832 | G28: 0.2343862 | H28: 0.035977602 | I28: 0.32068872 | J28: -1.0314864 | K28: -0.46346188 | L28: -0.2677138 | M28: 0.42684293 | N28: -1.129837 | O28: 0.8655882 | P28: 0.40542388 | Q28: 0.98733306 | R28: 0.03899145 | S28: 1.271297 | T28: 0.32262087 | U28: 0.21490145 | V28: 0.040198565 | W28: -0.25373495 | X28: -0.2936983 | Y28: 0.23284793
B29: HvALKBH7 | C29: 0.43016076 | D29: 0.35139513 | E29: 1.0578322 | F29: -0.107430935 | G29: -0.98434687 | H29: 0.23498535 | I29: -0.7928262 | J29: -0.5513029 | K29: -0.17299032 | L29: 0.7013831 | M29: 0.0036568642 | N29: -1.146214 | O29: -0.25989294 | P29: -0.2259593 | Q29: 0.34902644 | R29: -0.09508896 | S29: 0.5983169 | T29: 0.09036565 | U29: 0.07630634 | V29: -0.17057896 | W29: -0.17198658 | X29: 1.8211169 | Y29: 0.3425641
B30: HvALKBH8 | C30: 1.2819036 | D30: 0.46894205 | E30: 0.84868217 | F30: 0 | G30: 0 | H30: 0 | I30: 0 | J30: 0 | K30: 0 | L30: 0 | M30: 0 | N30: 0 | O30: 0 | P30: -0.38158765 | Q30: 0 | R30: 0 | S30: 0 | T30: 0 | U30: 0 | V30: 0 | W30: 0 | X30: 0 | Y30: 0
B31: HvALKBH9 | C31: -0.166255 | D31: -0.27845192 | E31: 0.9857671 | F31: -0.22212124 | G31: 0.012032509 | H31: 0.4252131 | I31: 0.42836094 | J31: 0.80170345 | K31: 0.24894142 | L31: 0.8706093 | M31: 0.91102123 | N31: 0.19923854 | O31: 1.4802289 | P31: 2.1737163 | Q31: 3.154849 | R31: 0.36267948 | S31: 3.2683954 | T31: 0.3945024 | U31: 0.7936461 | V31: 0.81802464 | W31: 0.7457435 | X31: 0.3132267 | Y31: 0.5747986
B32: HvALKBH10 | C32: -0.6889376 | D32: -0.8479072 | E32: 0.0038722157 | F32: -0.31564426 | G32: -0.6090033 | H32: 0.24188113 | I32: -0.53095055 | J32: -0.32180834 | K32: 0.048459888 | L32: -0.4350388 | M32: 0.56032586 | N32: -1.0604897 | O32: 0.52835464 | P32: 0.53830194 | Q32: 0.40941823 | R32: 0.2399602 | S32: 0.5564203 | T32: 0.1281296 | U32: 0.20486903 | V32: 0.038469076 | W32: 0.31997347 | X32: 0.8281894 | Y32: -0.10949516
B33: HvALKBH11 | C33: 0.64992714 | D33: 0.4936738 | E33: 1.5360091 | F33: -0.1966343 | G33: -0.20757246 | H33: 0.16301727 | I33: -0.2053976 | J33: 0.107972145 | K33: -0.03280878 | L33: 0.23202562 | M33: 0.0038275719 | N33: -0.66497326 | O33: 0.09675026 | P33: -0.06312752 | Q33: 1.9013019 | R33: 0.163522 | S33: 1.8574276 | T33: 0.25711203 | U33: 0.19500613 | V33: 0.08977342 | W33: 0.13176131 | X33: 0.44847488 | Y33: 0.020183563

Sheet Table S8
A1: Table S8. Expression profiles of barley m⁶A regulatory genes during dark-induced leaf senescence (DILS) in day 4 (D4), day 7 (D7), day 10 (D10), control contitions (L4, L7, L10), and developmental leaf senescence (DLS).
C2: D4 | D2: L4 | E2: D7 | F2: L7 | G2: D10 | H2: L10 | I2: DLS
A3: writers | B3: HvMTA | C3: 1.274207117 | D3: 0.4485390296 | E3: 1.277074431 | F3: 0.5652856857 | G3: 1.359111852 | H3: 0.6764481143 | I3: -1.058219882
B4: HvMTB | C4: 1.370499284 | D4: 0.3788419964 | E4: 1.390628875 | G4: 1.337999358 | H4: 0.5479997985 | I4: -0.6041825466
B5: HvMTC | C5: 1.070289969 | D5: -1.043730478 | E5: 1.416334988 | G5: 1.24336834 | I5: -2.33324252
B6: HvFIP37 | C6: 1.700276294 | D6: 0.850935349 | E6: 1.634902665 | F6: 0.9078168585 | G6: 1.584858923 | H6: 1.05173727 | I6: -0.9828522727
B7: HvVIR | C7: 0.6173493977 | D7: 0.4751607904 | E7: 0.7340842467 | G7: 0.6081637186 | H7: 0.5031089176
B8: HAKAI | C8: 0.8765484325 | D8: 0.6346398711 | E8: 0.7596121787 | F8: 0.4934875939 | G8: 0.601760992 | H8: 0.639973405 | I8: -0.4299873142
A9: readers | B9: HvECT1 | D9: 0.4350683753 | F9: 0.3078483168
B10: HvECT2 | C10: 1.504641952 | E10: 1.586742915 | G10: 1.714352332 | I10: 1.087953687
B11: HvECT3 | D11: 0.6412022553 | G11: -0.6738342337 | H11: 0.8834352566 | I11: 1.885378629
B12: HvECT4 | F12: -0.526067068 | G12: 0.3384581469
B13: HvECT5 | C13: 1.32112558 | D13: 0.7360208006 | E13: 1.293589579 | F13: 1.165896873 | G13: 1.25893947 | H13: 1.264603745
B14: HvECT6 | C14: -1.165197759 | D14: 0.7088088773 | E14: -1.118872619 | G14: -1.202047041 | I14: 0.7119413179
B15: HvECT7 | F15: -0.3926067827
B16: HvECT8 | C16: 2.423380475 | D16: 0.3429261431 | E16: 2.853153086 | F16: 0.3152403382 | G16: 2.885094687 | H16: 0.4100050353 | I16: -1.957739872
B17: HvECT9 | C17: 0.2528008251 | D17: 0.2057701145 | E17: 0.4927132631 | F17: -0.4335070672 | G17: 0.6458721489 | I17: -1.251143302
B18: HvECT10 | C18: 2.460215447 | D18: 1.084479903 | E18: 3.12232932 | F18: 1.560406914 | G18: 3.198038477 | H18: 2.250001905 | I18: -0.7129870966
B19: HvECT11 | C19: 3.213929618 | D19: 1.01092745 | E19: 3.27180565 | F19: 1.757810432 | G19: 3.190335841 | H19: 2.359731873 | I19: -1.173943691
B20: HvECT12 | C20: 2.367632821 | E20: 3.170694743 | G20: 3.524183477 | I20: -2.220011109
B21: HvECT13 | C21: -0.4211509145 | D21: -0.2935535519 | E21: -0.4666402563 | F21: -0.3181027949 | G21: -0.4328776354 | H21: -0.2332331603 | I21: 0.4477366107
B22: HvCPSF30 | C22: 0.3828502174 | E22: 0.3782582286 | G22: 0.4512425355 | H22: 0.359297757 | I22: -0.4001933342
A23: erasers | B23: HvALKBH1 | C23: -2.903753117 | D23: 0.8870864134 | E23: -3.124397731 | G23: -3.447651055 | I23: 4.179251419
B24: HvALKBH2 | C24: -0.7584424012 | E24: -1.067318034 | F24: 0.4131192252 | G24: -0.8386362146 | H24: 0.3909818834
B25: HvALKBH3
B26: HvALKBH4 | E26: -0.8200127027 | G26: -0.7052588354
B27: HvALKBH5 | C27: 2.009342388 | E27: 1.92181275 | G27: 1.882577123 | H27: 0.850524189 | I27: -0.3883654633
B28: HvALKBH6 | I28: -0.5729955528
B29: HvALKBH7 | D29: 0.6199278551 | E29: 0.5175365156 | F29: 1.827027582 | G29: 0.4731074984 | H29: 1.03194739
B30: HvALKBH8
B31: HvALKBH9 | C31: 1.607930839 | D31: -0.4647875182 | E31: 1.926734527 | G31: 1.779189472 | H31: -0.4982944236 | I31: -2.751223385
B32: HvALKBH10 | C32: -0.8517172892 | E32: -0.8418972773 | G32: -1.212751558
B33: HvALKBH11 | C33: 0.2454159003 | D33: -0.5275857044 | E33: 0.5024010913 | F33: -0.3665478104 | G33: 0.7659016419 | H33: -0.5150192265 | I33: -1.396896366

Sheet Table S9
A1: Table S9. Full list of differentially methylated m⁶A peaks identified by MeRIP-seq in barley leaves. Table contains all differentially methylated m⁶A peaks detected by MeRIP-seq in barley leaves (conditions 4D, 7D, 4L, 7L vs. 0D). Columns report genomic coordinates, feature annotation, gene/transcript IDs, distance to TSS, normalized concentrations, fold change relative to 0D, p-value, FDR, and corresponding RNA-seq expression change (DEG).
A3: condition | B3: seqnames | C3: peak_start | D3: peak_end | E3: width | F3: strand | G3: V4 | H3: annotation | I3: geneChr | J3: geneStart | K3: geneEnd | L3: geneLength | M3: geneStrand | N3: geneId | O3: transcriptId | P3: distanceToTSS | Q3: flank_txIds | R3: flank_geneIds | S3: flank_gene_distances | T3: Conc | U3: Conc_4D | V3: Conc_0D | W3: Fold | X3: p.value | Y3: FDR | Z3: DEG
A4: 4D | B4: NC_058524.1 | C4: 4578601 | D4: 4579329 | E4: 729 | F4: * | G4: 730 | H4: 3' UTR | I4: 8 | J4: 4578423 | K4: 4580973 | L4: 2551 | M4: 2 | N4: LOC123410596 | O4: XM_045103539.1 | P4: 1644 | Q4: XM_045103328.1;XM_045103538.1;XM_045103539.1 | R4: LOC123410390;LOC123410594;LOC123410596 | S4: -3505;2351;0 | T4: 9.78613910715893 | U4: 0 | V4: 10.78613911 | W4: -10.3811439895699 | X4: 1.26034529506767e-19 | Y4: 2.29946532658488e-17 | Z4: =VLOOKUP(N4,[1]D4_vs_D0!$A:$G,3,FALSE) -> -9.777684678
A5: 4D | B5: NC_058518.1 | C5: 362790219 | D5: 362790618 | E5: 400 | F5: * | G5: 401 | H5: Promoter | I5: 2 | J5: 362789228 | K5: 362790638 | L5: 1411 | M5: 1 | N5: LOC123411091 | O5: XM_045104018.1 | P5: 991 | Q5: XM_045104006.1;XM_045104018.1 | R5: LOC123411084;LOC123411091 | S5: 8787;0 | T5: 8.46617268672703 | U5: 0 | V5: 9.46617268672703 | W5: -9.08335161614686 | X5: 1.12766766741298e-16 | Y5: 1.08444040682882e-14 | Z5: =VLOOKUP(N5,[1]D4_vs_D0!$A:$G,3,FALSE) -> -10.36857503
A6: 4D | B6: NC_058523.1 | C6: 490787625 | D6: 490788024 | E6: 400 | F6: * | G6: 401 | H6: Promoter | I6: 7 | J6: 490787071 | K6: 490788107 | L6: 1037 | M6: 1 | N6: LOC123402356 | O6: XM_045096274.1 | P6: 554 | Q6: XM_045096268.1;XM_045096269.1;XM_045096270.1;XM_045096271.1;XM_045096272.1;XM_045096274.1 | R6: LOC123402353;LOC123402355;LOC123402355;LOC123402355;LOC123402355;LOC123402356 | S6: -4602;0;0;0;0;0 | T6: 8.23740691234683 | U6: 0 | V6: 9.23740691234683 | W6: -8.71024327845273 | X6: 2.61405706916133e-14 | Y6: 1.59972371247615e-12 | Z6: =VLOOKUP(N6,[1]D4_vs_D0!$A:$G,3,FALSE) -> -10.11746763
A7: 4D | B7: NC_058523.1 | C7: 510995707 | D7: 510996106 | E7: 400 | F7: * | G7: 401 | H7: 3' UTR | I7: 7 | J7: 510995677 | K7: 510997116 | L7: 1440 | M7: 2 | N7: LOC123403997 | O7: XM_045097896.1 | P7: 1010 | Q7: XM_045097896.1 | R7: LOC123403997 | S7: 0 | T7: 10.0744471825106 | U7: 1.84976960536507 | V7: 11.0720337614774 | W7: -8.20447976801232 | X7: 2.05341248588659e-24 | Y7: 8.29373303049594e-22 | Z7: =VLOOKUP(N7,[1]D4_vs_D0!$A:$G,3,FALSE) -> -8.87689754
A8: 4D | B8: NC_058521.1 | C8: 26993950 | D8: 26994349 | E8: 400 | F8: * | G8: 401 | H8: Promoter | I8: 5 | J8: 26993793 | K8: 26995018 | L8: 1226 | M8: 1 | N8: LOC123447670 | O8: XM_045124296.1 | P8: 157 | Q8: XM_045124295.1;XM_045124296.1;XM_045124298.1 | R8: LOC123447669;LOC123447670;LOC123447671 | S8: 5128;0;0 | T8: 8.46411864289569 | U8: 0 | V8: 9.46411864289569 | W8: -7.90679982458056 | X8: 1.32500559368429e-08 | Y8: 2.77290030719733e-07 | Z8: =VLOOKUP(N8,[1]D4_vs_D0!$A:$G,3,FALSE) -> -6.25935022
A9: 4D | B9: NW_025422697.1 | C9: 33539 | D9: 33938 | E9: 400 | F9: * | G9: 401 | H9: 3' UTR | I9: 202 | J9: 33492 | K9: 35347 | L9: 1856 | M9: 2 | N9: LOC123422854 | O9: XM_045107749.1 | P9: 1409 | Q9: XM_045107748.1;XM_045107749.1 | R9: LOC123422853;LOC123422854 | S9: -1501;0 | T9: 10.5051403829947 | U9: 1.81735726995003 | V9: 11.5033900339673 | W9: -7.54226063275255 | X9: 3.13363482356755e-09 | Y9: 7.67075821356929e-08 | Z9: =VLOOKUP(N9,[1]D4_vs_D0!$A:$G,3,FALSE) -> 
A10: 4D | B10: NW_025422716.1 | C10: 21133 | D10: 21532 | E10: 400 | F10: * | G10: 401 | H10: 3' UTR | I10: 218 | J10: 21135 | K10: 22990 | L10: 1856 | M10: 2 | N10: LOC123423147 | O10: XM_045107791.1 | P10: 1458 | Q10: XM_045107790.1;XM_045107791.1;XM_045107792.1 | R10: LOC123423146;LOC123423147;LOC123423150 | S10: -1550;0;-4213 | T10: 10.1858959211096 | U10: 2.64727123102461 | V10: 11.1820110466758 | W10: -7.5130247842796 | X10: 4.40541799462513e-18 | Y10: 5.73983331622287e-16 | Z10: =VLOOKUP(N10,[1]D4_vs_D0!$A:$G,3,FALSE) -> 
A11: 4D | B11: NC_058523.1 | C11: 539026698 | D11: 539027097 | E11: 400 | F11: * | G11: 401 | H11: Promoter | I11: 7 | J11: 539026703 | K11: 539028765 | L11: 2063 | M11: 1 | N11: LOC123402786 | O11: XM_045096750.1 | P11: 0 | Q11: XM_045096749.1;XM_045096750.1 | R11: LOC123402785;LOC123402786 | S11: -1352;0 | T11: 7.885549342868 | U11: 0 | V11: 8.88254437703306 | W11: -7.44134007165276 | X11: 4.89498926122026e-17 | Y11: 5.0744978230559e-15 | Z11: =VLOOKUP(N11,[1]D4_vs_D0!$A:$G,3,FALSE) -> -6.540283927
A12: 4D | B12: NC_058519.1 | C12: 18590869 | D12: 18591601 | E12: 733 | F12: * | G12: 734 | H12: Promoter | I12: 3 | J12: 18589996 | K12: 18591511 | L12: 1516 | M12: 1 | N12: LOC123424520 | O12: XM_045108148.1 | P12: 873 | Q12: XM_045108148.1 | R12: LOC123424520 | S12: 0 | T12: 7.74602022025715 | U12: 0 | V12: 8.74270976323499 | W12: -7.31033505905673 | X12: 1.36872217321632e-16 | Y12: 1.22850419058238e-14 | Z12: =VLOOKUP(N12,[1]D4_vs_D0!$A:$G,3,FALSE) -> -9.556961597
A13: 4D | B13: NC_058518.1 | C13: 483012417 | D13: 483012816 | E13: 400 | F13: * | G13: 401 | H13: Exon (XM_045124463.1/LOC123447787, exon 8 of 10) | I13: 2 | J13: 483012059 | K13: 483015426 | L13: 3368 | M13: 2 | N13: LOC123447787 | O13: XM_045124463.1 | P13: 2610 | Q13: XM_045124463.1;XM_045124471.1 | R13: LOC123447787;LOC123447787 | S13: 0;0 | T13: 6.59636922514663 | U13: 0 | V13: 7.59636922514663 | W13: -7.28048218940222 | X13: 1.08733859404128e-11 | Y13: 4.06475373086168e-10 | Z13: =VLOOKUP(N13,[1]D4_vs_D0!$A:$G,3,FALSE) -> -9.248018905
A14: 4D | B14: NC_058520.1 | C14: 211931817 | D14: 211932216 | E14: 400 | F14: * | G14: 401 | H14: Exon (XM_045119956.1/LOC123443540, exon 4 of 5) | I14: 4 | J14: 211930287 | K14: 211932584 | L14: 2298 | M14: 1 | N14: LOC123443540 | O14: XM_045119956.1 | P14: 1530 | Q14: XM_045119956.1 | R14: LOC123443540 | S14: 0 | T14: 6.90942461152239 | U14: 0 | V14: 7.90942461152239 | W14: -7.27801935572442 | X14: 6.26697250276743e-10 | Y14: 1.643655970044e-08 | Z14: =VLOOKUP(N14,[1]D4_vs_D0!$A:$G,3,FALSE) -> -8.365217015
A15: 4D | B15: NC_058522.1 | C15: 497340921 | D15: 497341320 | E15: 400 | F15: * | G15: 401 | H15: Promoter | I15: 6 | J15: 497337986 | K15: 497341462 | L15: 3477 | M15: 2 | N15: LOC123400030 | O15: XM_045094424.1 | P15: 142 | Q15: XM_045094422.1;XM_045094423.1;XM_045094424.1 | R15: LOC123400028;LOC123400029;LOC123400030 | S15: 1815;6084;0 | T15: 6.70600608274878 | U15: 0 | V15: 7.70600608274878 | W15: -7.27297462293925 | X15: 6.69668533306795e-11 | Y15: 2.16383296482091e-09 | Z15: =VLOOKUP(N15,[1]D4_vs_D0!$A:$G,3,FALSE) -> -6.649370898
A16: 4D | B16: NC_058519.1 | C16: 541911393 | D16: 541911792 | E16: 400 | F16: * | G16: 401 | H16: Promoter | I16: 3 | J16: 541909563 | K16: 541912779 | L16: 3217 | M16: 2 | N16: LOC123427111 | O16: XM_045111068.1 | P16: 987 | Q16: XM_045111068.1 | R16: LOC123427111 | S16: 0 | T16: 6.73915951420048 | U16: 0 | V16: 7.73915951420048 | W16: -7.23029646600559 | X16: 2.23459602164506e-10 | Y16: 6.26773148015584e-09 | Z16: =VLOOKUP(N16,[1]D4_vs_D0!$A:$G,3,FALSE) -> -8.638125731
A17: 4D | B17: NC_058521.1 | C17: 26340641 | D17: 26341040 | E17: 400 | F17: * | G17: 401 | H17: 3' UTR | I17: 5 | J17: 26339335 | K17: 26341260 | L17: 1926 | M17: 1 | N17: LOC123447658 | O17: XM_045124277.1 | P17: 1306 | Q17: XM_045124277.1 | R17: LOC123447658 | S17: 0 | T17: 6.63943957941708 | U17: 0 | V17: 7.63943957941708 | W17: -7.22771088732974 | X17: 6.6759255821868e-11 | Y17: 2.16383296482091e-09 | Z17: =VLOOKUP(N17,[1]D4_vs_D0!$A:$G,3,FALSE) -> -6.232892484
A18: 4D | B18: NC_058520.1 | C18: 390240119 | D18: 390240518 | E18: 400 | F18: * | G18: 401 | H18: 3' UTR | I18: 4 | J18: 390239952 | K18: 390244172 | L18: 4221 | M18: 2 | N18: LOC123443950 | O18: XM_045120524.1 | P18: 3654 | Q18: XM_045120524.1;XM_045120526.1 | R18: LOC123443950;LOC123443950 | S18: 0;0 | T18: 6.45045990608645 | U18: 0 | V18: 7.45045990608645 | W18: -7.08565262471946 | X18: 8.80928449374315e-11 | Y18: 2.75819380389369e-09 | Z18: =VLOOKUP(N18,[1]D4_vs_D0!$A:$G,3,FALSE) -> -8.974376688
A19: 4D | B19: NC_058522.1 | C19: 7135650 | D19: 7136049 | E19: 400 | F19: * | G19: 401 | H19: Exon (XM_045093981.1/LOC123399579, exon 7 of 7) | I19: 6 | J19: 7132726 | K19: 7136375 | L19: 3650 | M19: 1 | N19: LOC123399579 | O19: XM_045093981.1 | P19: 2924 | Q19: XM_045093981.1 | R19: LOC123399579 | S19: 0 | T19: 6.27903156963956 | U19: 0 | V19: 7.27903156963956 | W19: -6.9456565265779 | X19: 1.43449493246597e-10 | Y19: 4.2917963201704e-09 | Z19: =VLOOKUP(N19,[1]D4_vs_D0!$A:$G,3,FALSE) -> -10.76754519
A20: 4D | B20: NC_058519.1 | C20: 133952890 | D20: 133953289 | E20: 400 | F20: * | G20: 401 | H20: 3' UTR | I20: 3 | J20: 133949853 | K20: 133953446 | L20: 3594 | M20: 1 | N20: LOC123425532 | O20: XM_045109221.1 | P20: 3037 | Q20: XM_045109221.1 | R20: LOC123425532 | S20: 0 | T20: 8.07768935861634 | U20: 2.6587843323267 | V20: 9.06072873117274 | W20: -6.92558247584897 | X20: 2.65227232680499e-19 | Y20: 4.12020304921744e-17 | Z20: =VLOOKUP(N20,[1]D4_vs_D0!$A:$G,3,FALSE) -> -8.744394838
A21: 4D | B21: NC_058519.1 | C21: 607131636 | D21: 607132035 | E21: 400 | F21: * | G21: 401 | H21: 3' UTR | I21: 3 | J21: 607131454 | K21: 607134057 | L21: 2604 | M21: 2 | N21: LOC123427722 | O21: XM_045111839.1 | P21: 2022 | Q21: XM_045111839.1;XM_045111840.1 | R21: LOC123427722;LOC123427723 | S21: 0;5562 | T21: 6.39101119171688 | U21: 0 | V21: 7.39101119171688 | W21: -6.89408094932287 | X21: 1.48056498557328e-09 | Y21: 3.73750123545654e-08 | Z21: =VLOOKUP(N21,[1]D4_vs_D0!$A:$G,3,FALSE) -> -9.745222661
A22: 4D | B22: NC_058519.1 | C22: 541910131 | D22: 541910530 | E22: 400 | F22: * | G22: 401 | H22: Exon (XM_045111068.1/LOC123427111, exon 7 of 11) | I22: 3 | J22: 541909563 | K22: 541912779 | L22: 3217 | M22: 2 | N22: LOC123427111 | O22: XM_045111068.1 | P22: 2249 | Q22: XM_045111068.1 | R22: LOC123427111 | S22: 0 | T22: 6.27757690305834 | U22: 0 | V22: 7.27757690305834 | W22: -6.89244325585038 | X22: 4.03317381241024e-10 | Y22: 1.10816251893367e-08 | Z22: =VLOOKUP(N22,[1]D4_vs_D0!$A:$G,3,FALSE) -> -8.638125731
A23: 4D | B23: NC_058523.1 | C23: 557417250 | D23: 557417649 | E23: 400 | F23: * | G23: 401 | H23: Exon (XM_045095492.1/LOC123401651, exon 4 of 6) | I23: 7 | J23: 557416214 | K23: 557418096 | L23: 1883 | M23: 1 | N23: LOC123401651 | O23: XM_045095492.1 | P23: 1036 | Q23: XM_045095492.1 | R23: LOC123401651 | S23: 0 | T23: 8.35300544951034 | U23: 2.74134447217853 | V23: 9.33817698238697 | W23: -6.834105898219 | X23: 4.89986172565437e-17 | Y23: 5.0744978230559e-15 | Z23: =VLOOKUP(N23,[1]D4_vs_D0!$A:$G,3,FALSE) -> -4.159072558
A24: 4D | B24: NC_058521.1 | C24: 51816778 | D24: 51817528 | E24: 751 | F24: * | G24: 752 | H24: 3' UTR | I24: 5 | J24: 51816820 | K24: 51818560 | L24: 1741 | M24: 2 | N24: LOC123447837 | O24: XM_045124530.1 | P24: 1032 | Q24: XM_045124530.1;XM_045124531.1 | R24: LOC123447837;LOC123447838 | S24: 0;5732 | T24: 8.20764601125982 | U24: 3.38704088746739 | V24: 9.1818905926237 | W24: -6.80920312783989 | X24: 1.92661979721618e-16 | Y24: 1.62117028353253e-14 | Z24: =VLOOKUP(N24,[1]D4_vs_D0!$A:$G,3,FALSE) -> -9.243700737
A25: 4D | B25: NC_058524.1 | C25: 441476950 | D25: 441477349 | E25: 400 | F25: * | G25: 401 | H25: Promoter | I25: 8 | J25: 441476508 | K25: 441477260 | L25: 753 | M25: 1 | N25: LOC123407397 | O25: XM_045100522.1 | P25: 442 | Q25: XM_045100522.1 | R25: LOC123407397 | S25: 0 | T25: 6.15024071535981 | U25: 0 | V25: 7.15024071535981 | W25: -6.80370123696432 | X25: 4.33708644238233e-10 | Y25: 1.18361433383664e-08 | Z25: =VLOOKUP(N25,[1]D4_vs_D0!$A:$G,3,FALSE) -> -6.255850775
A26: 4D | B26: NW_025422594.1 | C26: 35926 | D26: 36325 | E26: 400 | F26: * | G26: 401 | H26: Promoter | I26: 110 | J26: 35800 | K26: 37655 | L26: 1856 | M26: 1 | N26: LOC123420899 | O26: XM_045107463.1 | P26: 126 | Q26: XM_045107461.1;XM_045107463.1;XM_045107465.1 | R26: LOC123420898;LOC123420899;LOC123420901 | S26: -216;0;-2887 | T26: 6.62447802016612 | U26: 0 | V26: 7.62447802016612 | W26: -6.79519643053265 | X26: 3.69107936489989e-08 | Y26: 6.96648110038815e-07 | Z26: =VLOOKUP(N26,[1]D4_vs_D0!$A:$G,3,FALSE) -> 
A27: 4D | B27: NC_058519.1 | C27: 628905557 | D27: 628905956 | E27: 400 | F27: * | G27: 401 | H27: Exon (XM_045112228.1/LOC123428063, exon 11 of 14) | I27: 3 | J27: 628907720 | K27: 628908553 | L27: 834 | M27: 2 | N27: LOC123428066 | O27: XM_045112231.1 | P27: 2597 | Q27: XM_045112227.1;XM_045112228.1;XM_045112231.1 | R27: LOC123428062;LOC123428063;LOC123428066 | S27: 6533;0;2597 | T27: 8.30297189585443 | U27: 1.61934211223228 | V27: 9.29593745053964 | W27: -6.74403184341106 | X27: 2.24266609430003e-19 | Y27: 3.62325134195114e-17 | Z27: =VLOOKUP(N27,[1]D4_vs_D0!$A:$G,3,FALSE) -> -3.177821415
A28: 4D | B28: NC_058521.1 | C28: 26992290 | D28: 26992689 | E28: 400 | F28: * | G28: 401 | H28: Promoter | I28: 5 | J28: 26991992 | K28: 26993459 | L28: 1468 | M28: 1 | N28: LOC123447671 | O28: XM_045124298.1 | P28: 298 | Q28: XM_045124295.1;XM_045124296.1;XM_045124298.1 | R28: LOC123447669;LOC123447670;LOC123447671 | S28: 3468;0;0 | T28: 6.55986176686169 | U28: 0 | V28: 7.55578780403974 | W28: -6.58703525062211 | X28: 1.87486012486665e-11 | Y28: 6.52806900373829e-10 | Z28: =VLOOKUP(N28,[1]D4_vs_D0!$A:$G,3,FALSE) -> -8.821587597
A29: 4D | B29: NC_058520.1 | C29: 459324250 | D29: 459324649 | E29: 400 | F29: * | G29: 401 | H29: Exon (XM_045120916.1/LOC123444252, exon 3 of 15) | I29: 4 | J29: 459322388 | K29: 459328507 | L29: 6120 | M29: 1 | N29: LOC123444252 | O29: XM_045120916.1 | P29: 1862 | Q29: XM_045120916.1 | R29: LOC123444252 | S29: 0 | T29: 5.94433925199769 | U29: 0 | V29: 6.94433925199769 | W29: -6.55239190250027 | X29: 3.5738938170728e-09 | Y29: 8.64368690248925e-08 | Z29: =VLOOKUP(N29,[1]D4_vs_D0!$A:$G,3,FALSE) -> -6.827523636
A30: 4D | B30: NC_058524.1 | C30: 622059591 | D30: 622059990 | E30: 400 | F30: * | G30: 401 | H30: Promoter | I30: 8 | J30: 622058591 | K30: 622060721 | L30: 2131 | M30: 2 | N30: LOC123412129 | O30: XM_045105076.1 | P30: 731 | Q30: XM_045105076.1 | R30: LOC123412129 | S30: 0 | T30: 5.92746055604612 | U30: 0 | V30: 6.92746055604612 | W30: -6.51705591661613 | X30: 5.48544724218093e-09 | Y30: 1.27331732248096e-07 | Z30: =VLOOKUP(N30,[1]D4_vs_D0!$A:$G,3,FALSE) -> -9.935547626
A31: 4D | B31: NC_058524.1 | C31: 248788694 | D31: 248789093 | E31: 400 | F31: * | G31: 401 | H31: Exon (XM_045103574.1/LOC123410630, exon 3 of 4) | I31: 8 | J31: 248786843 | K31: 248789390 | L31: 2548 | M31: 1 | N31: LOC123410630 | O31: XM_045103574.1 | P31: 1851 | Q31: XM_045103572.1;XM_045103571.1;XM_045103574.1 | R31: LOC123410629;LOC123410629;LOC123410630 | S31: 8872;8873;0 | T31: 7.61751448801145 | U31: 1.08970742185078 | V31: 8.60967553328006 | W31: -6.49816043916814 | X31: 9.51132627175325e-16 | Y31: 7.38773977146373e-14 | Z31: =VLOOKUP(N31,[1]D4_vs_D0!$A:$G,3,FALSE) -> -7.22479739
A32: 4D | B32: NC_058522.1 | C32: 300935367 | D32: 300935766 | E32: 400 | F32: * | G32: 401 | H32: 3' UTR | I32: 6 | J32: 300932477 | K32: 300934991 | L32: 2515 | M32: 1 | N32: LOC123400143 | O32: XM_045094561.1 | P32: 2890 | Q32: XM_045094560.1;XM_045094561.1 | R32: LOC123400142;LOC123400143 | S32: 0;2890 | T32: 5.91483077770857 | U32: 0 | V32: 6.91483077770857 | W32: -6.49731747251678 | X32: 6.46170920046e-09 | Y32: 1.44993574781433e-07 | Z32: =VLOOKUP(N32,[1]D4_vs_D0!$A:$G,3,FALSE) -> 2.073133263
A33: 4D | B33: NC_058523.1 | C33: 475286227 | D33: 475286626 | E33: 400 | F33: * | G33: 401 | H33: 3' UTR | I33: 7 | J33: 475285119 | K33: 475286875 | L33: 1757 | M33: 1 | N33: LOC123405501 | O33: XM_045099165.1 | P33: 1108 | Q33: XM_045099163.1;XM_045099164.1;XM_045099165.1 | R33: LOC123405501;LOC123405501;LOC123405501 | S33: 0;0;0 | T33: 5.93166347103744 | U33: 0 | V33: 6.93166347103744 | W33: -6.4661994046307 | X33: 1.23686722812016e-08 | Y33: 2.60193059082152e-07 | Z33: =VLOOKUP(N33,[1]D4_vs_D0!$A:$G,3,FALSE) -> -6.624496404
A34: 4D | B34: NC_058518.1 | C34: 502781886 | D34: 502782285 | E34: 400 | F34: * | G34: 401 | H34: Promoter | I34: 2 | J34: 502782011 | K34: 502783028 | L34: 1018 | M34: 1 | N34: LOC123450698 | O34: XM_045127826.1 | P34: 0 | Q34: XM_045127826.1 | R34: LOC123450698 | S34: 0 | T34: 5.79682474358817 | U34: 0 | V34: 6.79682474358817 | W34: -6.42097814058469 | X34: 6.4139726100907e-09 | Y34: 1.44726454593052e-07 | Z34: =VLOOKUP(N34,[1]D4_vs_D0!$A:$G,3,FALSE) -> -6.50351873
A35: 4D | B35: NC_058519.1 | C35: 222820310 | D35: 222820709 | E35: 400 | F35: * | G35: 401 | H35: Exon (XM_045109694.1/LOC123425929, exon 4 of 6) | I35: 3 | J35: 222818032 | K35: 222821561 | L35: 3530 | M35: 1 | N35: LOC123425929 | O35: XM_045109694.1 | P35: 2278 | Q35: XM_045109694.1 | R35: LOC123425929 | S35: 0 | T35: 5.73981227473403 | U35: 0 | V35: 6.73981227473403 | W35: -6.41609110436549 | X35: 3.75357215902378e-09 | Y35: 9.02421306565301e-08 | Z35: =VLOOKUP(N35,[1]D4_vs_D0!$A:$G,3,FALSE) -> -8.202322675
A36: 4D | B36: NC_058524.1 | C36: 143850932 | D36: 143851331 | E36: 400 | F36: * | G36: 401 | H36: Promoter | I36: 8 | J36: 143850403 | K36: 143851775 | L36: 1373 | M36: 1 | N36: LOC123410658 | O36: XM_045103597.1 | P36: 529 | Q36: XM_045103597.1 | R36: LOC123410658 | S36: 0 | T36: 9.75221469388945 | U36: 4.10923989930339 | V36: 10.737706218465 | W36: -6.40999148402622 | X36: 9.20431199000492e-16 | Y36: 7.28945414267252e-14 | Z36: =VLOOKUP(N36,[1]D4_vs_D0!$A:$G,3,FALSE) -> -8.706559642
A37: 4D | B37: NC_058522.1 | C37: 8387226 | D37: 8387625 | E37: 400 | F37: * | G37: 401 | H37: Exon (XM_045092238.1/LOC123397703, exon 4 of 6) | I37: 6 | J37: 8385400 | K37: 8388274 | L37: 2875 | M37: 1 | N37: LOC123397703 | O37: XM_045092238.1 | P37: 1826 | Q37: XM_045092238.1 | R37: LOC123397703 | S37: 0 | T37: 6.11398380196409 | U37: 0 | V37: 7.11398380196409 | W37: -6.39894100688821 | X37: 1.17424703776081e-07 | Y37: 1.95982801054376e-06 | Z37: =VLOOKUP(N37,[1]D4_vs_D0!$A:$G,3,FALSE) -> -6.246249295
A38: 4D | B38: NC_058519.1 | C38: 18894989 | D38: 18895388 | E38: 400 | F38: * | G38: 401 | H38: Promoter | I38: 3 | J38: 18894437 | K38: 18895364 | L38: 928 | M38: 1 | N38: LOC123424523 | O38: XM_045108152.1 | P38: 552 | Q38: XM_045108152.1 | R38: LOC123424523 | S38: 0 | T38: 7.55768831712303 | U38: 3.31173416407306 | V38: 8.51916079776391 | W38: -6.38402743734555 | X38: 1.01322852531123e-12 | Y38: 4.3536489507788e-11 | Z38: =VLOOKUP(N38,[1]D4_vs_D0!$A:$G,3,FALSE) -> -7.303074756
A39: 4D | B39: NC_058523.1 | C39: 490790361 | D39: 490790857 | E39: 497 | F39: * | G39: 498 | H39: Promoter | I39: 7 | J39: 490790559 | K39: 490793275 | L39: 2717 | M39: 1 | N39: LOC123402355 | O39: XM_045096272.1 | P39: 0 | Q39: XM_045096269.1;XM_045096270.1;XM_045096271.1;XM_045096272.1;XM_045096274.1 | R39: LOC123402355;LOC123402355;LOC123402355;LOC123402355;LOC123402356 | S39: 0;0;0;0;0 | T39: 5.98359343759805 | U39: 0 | V39: 6.98359343759805 | W39: -6.3793569326811 | X39: 6.12023798731564e-08 | Y39: 1.07946031575406e-06 | Z39: =VLOOKUP(N39,[1]D4_vs_D0!$A:$G,3,FALSE) -> -10.471487
A40: 4D | B40: NC_058520.1 | C40: 545837954 | D40: 545838353 | E40: 400 | F40: * | G40: 401 | H40: Exon (XM_045121743.1/LOC123444873, exon 6 of 8) | I40: 4 | J40: 545836428 | K40: 545839374 | L40: 2947 | M40: 1 | N40: LOC123444873 | O40: XM_045121743.1 | P40: 1526 | Q40: XM_045121742.1;XM_045121743.1 | R40: LOC123444872;LOC123444873 | S40: 9748;0 | T40: 7.43619621811853 | U40: 3.31753969072604 | V40: 8.39406231061696 | W40: -6.34241990153981 | X40: 2.71718946934656e-13 | Y40: 1.35490472428281e-11 | Z40: =VLOOKUP(N40,[1]D4_vs_D0!$A:$G,3,FALSE) -> -9.671382979
A41: 4D | B41: NC_058519.1 | C41: 607132494 | D41: 607132893 | E41: 400 | F41: * | G41: 401 | H41: Exon (XM_045111839.1/LOC123427722, exon 7 of 11) | I41: 3 | J41: 607131454 | K41: 607134057 | L41: 2604 | M41: 2 | N41: LOC123427722 | O41: XM_045111839.1 | P41: 1164 | Q41: XM_045111839.1;XM_045111840.1;XM_045111841.1 | R41: LOC123427722;LOC123427723;LOC123427724 | S41: 0;4704;-4979 | T41: 8.81826253612098 | U41: 2.54913904048808 | V41: 9.80887909988897 | W41: -6.29222164647772 | X41: 3.03974712048575e-13 | Y41: 1.49726080727341e-11 | Z41: =VLOOKUP(N41,[1]D4_vs_D0!$A:$G,3,FALSE) -> -9.745222661
A42: 4D | B42: NC_058518.1 | C42: 483013382 | D42: 483013781 | E42: 400 | F42: * | G42: 401 | H42: Exon (XM_045124463.1/LOC123447787, exon 5 of 10) | I42: 2 | J42: 483012059 | K42: 483015426 | L42: 3368 | M42: 2 | N42: LOC123447787 | O42: XM_045124463.1 | P42: 1645 | Q42: XM_045124463.1;XM_045124471.1 | R42: LOC123447787;LOC123447787 | S42: 0;0 | T42: 6.94147347379491 | U42: 0.674669922571934 | V42: 7.93207488697192 | W42: -6.16550449159268 | X42: 8.88886546492435e-14 | Y42: 4.72396415958282e-12 | Z42: =VLOOKUP(N42,[1]D4_vs_D0!$A:$G,3,FALSE) -> -9.248018905
A43: 4D | B43: NC_058518.1 | C43: 483017062 | D43: 483017461 | E43: 400 | F43: * | G43: 401 | H43: Promoter | I43: 2 | J43: 483012059 | K43: 483017815 | L43: 5757 | M43: 2 | N43: LOC123447787 | O43: XM_045124471.1 | P43: 354 | Q43: XM_045124463.1;XM_045124471.1;XM_045124484.1 | R43: LOC123447787;LOC123447787;LOC123447801 | S43: 0;0;12437 | T43: 5.41095553126916 | U43: 0 | V43: 6.41095553126916 | W43: -6.14874170698854 | X43: 9.46639711156961e-09 | Y43: 2.07797706161031e-07 | Z43: =VLOOKUP(N43,[1]D4_vs_D0!$A:$G,3,FALSE) -> -9.248018905
A44: 4D | B44: NC_058522.1 | C44: 553621769 | D44: 553622168 | E44: 400 | F44: * | G44: 401 | H44: 3' UTR | I44: 6 | J44: 553621747 | K44: 553623767 | L44: 2021 | M44: 2 | N44: LOC123452850 | O44: XM_045129571.1 | P44: 1599 | Q44: XM_045129571.1 | R44: LOC123452850 | S44: 0 | T44: 8.11336148518131 | U44: 2.95439854704907 | V44: 9.09302861159953 | W44: -6.14571393801588 | X44: 2.99864890026628e-14 | Y44: 1.80769297136948e-12 | Z44: =VLOOKUP(N44,[1]D4_vs_D0!$A:$G,3,FALSE) -> -8.440981897
A45: 4D | B45: NC_058519.1 | C45: 171776493 | D45: 171776892 | E45: 400 | F45: * | G45: 401 | H45: Promoter | I45: 3 | J45: 171775765 | K45: 171777107 | L45: 1343 | M45: 1 | N45: LOC123425713 | O45: XM_045109424.1 | P45: 728 | Q45: XM_045109423.1;XM_045109424.1 | R45: LOC123425712;LOC123425713 | S45: 0;0 | T45: 6.1666128612321 | U45: 0 | V45: 7.16166345024263 | W45: -6.1164049310909 | X45: 2.29053209531312e-09 | Y45: 5.64113361766445e-08 | Z45: =VLOOKUP(N45,[1]D4_vs_D0!$A:$G,3,FALSE) -> -7.546100802
A46: 4D | B46: NC_058522.1 | C46: 553866132 | D46: 553866531 | E46: 400 | F46: * | G46: 401 | H46: Promoter | I46: 6 | J46: 553865199 | K46: 553867766 | L46: 2568 | M46: 1 | N46: LOC123452858 | O46: XM_045129580.1 | P46: 933 | Q46: XM_045129580.1;XM_045129581.1;XR_006632665.1;XM_045129584.1 | R46: LOC123452858;LOC123452859;LOC123452859;LOC123452859 | S46: 0;6353;6354;6356 | T46: 7.22230572943532 | U46: 1.00589912164234 | V46: 8.21257189503472 | W46: -6.05270531542504 | X46: 2.82214953701742e-12 | Y46: 1.15137999798115e-10 | Z46: =VLOOKUP(N46,[1]D4_vs_D0!$A:$G,3,FALSE) -> -4.83011393
A47: 4D | B47: NC_058519.1 | C47: 461859753 | D47: 461860152 | E47: 400 | F47: * | G47: 401 | H47: Promoter | I47: 3 | J47: 461859504 | K47: 461860662 | L47: 1159 | M47: 1 | N47: LOC123430254 | O47: XM_045114129.1 | P47: 249 | Q47: XM_045114129.1 | R47: LOC123430254 | S47: 0 | T47: 5.33210294520759 | U47: 0 | V47: 6.33210294520759 | W47: -6.0519077127928 | X47: 1.92067342535019e-08 | Y47: 3.87620342991209e-07 | Z47: =VLOOKUP(N47,[1]D4_vs_D0!$A:$G,3,FALSE) -> -6.338021019
A48: 4D | B48: NC_058520.1 | C48: 564415209 | D48: 564415608 | E48: 400 | F48: * | G48: 401 | H48: Promoter | I48: 4 | J48: 564414420 | K48: 564415554 | L48: 1135 | M48: 1 | N48: LOC123445128 | O48: XM_045122067.1 | P48: 789 | Q48: XM_045122064.1;XM_045122065.1;XM_045122067.1 | R48: LOC123445126;LOC123445127;LOC123445128 | S48: 4503;0;0 | T48: 5.43968140797854 | U48: 0 | V48: 6.43968140797854 | W48: -6.02084679982968 | X48: 8.88227830567586e-08 | Y48: 1.50106786931484e-06 | Z48: =VLOOKUP(N48,[1]D4_vs_D0!$A:$G,3,FALSE) -> -5.493932104
A49: 4D | B49: NC_058519.1 | C49: 141941164 | D49: 141941563 | E49: 400 | F49: * | G49: 401 | H49: Promoter | I49: 3 | J49: 141940827 | K49: 141942327 | L49: 1501 | M49: 2 | N49: LOC123425578 | O49: XM_045109268.1 | P49: 764 | Q49: XM_045109268.1 | R49: LOC123425578 | S49: 0 | T49: 9.77501313141274 | U49: 4.12846281862573 | V49: 10.7605407494316 | W49: -6.01700277276041 | X49: 1.45662608711213e-23 | Y49: 4.52562520449685e-21 | Z49: =VLOOKUP(N49,[1]D4_vs_D0!$A:$G,3,FALSE) -> -5.884245232
A50: 4D | B50: NC_058519.1 | C50: 217262715 | D50: 217263500 | E50: 786 | F50: * | G50: 787 | H50: Promoter | I50: 3 | J50: 217261942 | K50: 217263430 | L50: 1489 | M50: 1 | N50: LOC123425909 | O50: XM_045109675.1 | P50: 773 | Q50: XM_045109673.1;XM_045109674.1;XM_045109675.1 | R50: LOC123425908;LOC123425908;LOC123425909 | S50: 42923;42312;0 | T50: 5.39241975883059 | U50: 0 | V50: 6.39241975883059 | W50: -5.95336328048767 | X50: 1.48562211348048e-07 | Y50: 2.43919825867791e-06 | Z50: =VLOOKUP(N50,[1]D4_vs_D0!$A:$G,3,FALSE) -> -7.405904742
A51: 4D | B51: NW_025422697.1 | C51: 33945 | D51: 34344 | E51: 400 | F51: * | G51: 401 | H51: Exon (XM_045107749.1/LOC123422854, exon 1 of 1) | I51: 202 | J51: 33492 | K51: 35347 | L51: 1856 | M51: 2 | N51: LOC123422854 | O51: XM_045107749.1 | P51: 1003 | Q51: XM_045107748.1;XM_045107749.1 | R51: LOC123422853;LOC123422854 | S51: -1095;0 | T51: 7.35063535656035 | U51: 1.34498288928357 | V51: 8.33936446318855 | W51: -5.94990339832168 | X51: 8.6836226493019e-13 | Y51: 3.90962776057575e-11 | Z51: =VLOOKUP(N51,[1]D4_vs_D0!$A:$G,3,FALSE) -> 
A52: 4D | B52: NC_058519.1 | C52: 45011715 | D52: 45012114 | E52: 400 | F52: * | G52: 401 | H52: Promoter | I52: 3 | J52: 45011398 | K52: 45012298 | L52: 901 | M52: 1 | N52: LOC123424775 | O52: XM_045108465.1 | P52: 317 | Q52: XM_045108463.1;XM_045108464.1;XM_045108465.1;unassigned_transcript_190;unassigned_transcript_191 | R52: LOC123424774;LOC123424774;LOC123424775;TRNAG-CCC;TRNAG-CCC_1 | S52: 3591;3591;0;-1075;661 | T52: 10.1802996396577 | U52: 4.7575110780056 | V52: 11.1633848748136 | W52: -5.94930501580174 | X52: 1.36635721312298e-19 | Y52: 2.29946532658488e-17 | Z52: =VLOOKUP(N52,[1]D4_vs_D0!$A:$G,3,FALSE) -> -6.215392752
A53: 4D | B53: NW_025422636.1 | C53: 10766 | D53: 11165 | E53: 400 | F53: * | G53: 401 | H53: Promoter | I53: 145 | J53: 10132 | K53: 11987 | L53: 1856 | M53: 2 | N53: LOC123421670 | O53: XM_045107576.1 | P53: 822 | Q53: XM_045107575.1;XM_045107576.1;XM_045107579.1 | R53: LOC123421669;LOC123421670;LOC123421674 | S53: -914;0;-3577 | T53: 8.84657686699891 | U53: 2.9375051369109 | V53: 9.83452234959502 | W53: -5.93751365936121 | X53: 1.3614007182686e-11 | Y53: 4.78147608790162e-10 | Z53: =VLOOKUP(N53,[1]D4_vs_D0!$A:$G,3,FALSE) -> 
A54: 4D | B54: NC_058522.1 | C54: 584086530 | D54: 584086929 | E54: 400 | F54: * | G54: 401 | H54: 3' UTR | I54: 6 | J54: 584086008 | K54: 584089219 | L54: 3212 | M54: 2 | N54: LOC123395217 | O54: XM_045090168.1 | P54: 2290 | Q54: XM_045090168.1 | R54: LOC123395217 | S54: 0 | T54: 7.60463898743001 | U54: 1.80087387590287 | V54: 8.59166755045424 | W54: -5.91733225718629 | X54: 7.06091644712606e-17 | Y54: 7.12976038248554e-15 | Z54: =VLOOKUP(N54,[1]D4_vs_D0!$A:$G,3,FALSE) -> -7.412679152
A55: 4D | B55: NC_058519.1 | C55: 59226266 | D55: 59226665 | E55: 400 | F55: * | G55: 401 | H55: Exon (XM_045108637.1/LOC123424955, exon 4 of 4) | I55: 3 | J55: 59227368 | K55: 59230155 | L55: 2788 | M55: 2 | N55: LOC123424956 | O55: XM_045108638.1 | P55: 3490 | Q55: XM_045108637.1;XM_045108638.1 | R55: LOC123424955;LOC123424956 | S55: 0;3490 | T55: 9.3376274778781 | U55: 2.79014713999187 | V55: 10.3298949783373 | W55: -5.90759709157294 | X55: 6.04068761943475e-07 | Y55: 8.96997694665329e-06 | Z55: =VLOOKUP(N55,[1]D4_vs_D0!$A:$G,3,FALSE) -> 
A56: 4D | B56: NC_058518.1 | C56: 463903867 | D56: 463904266 | E56: 400 | F56: * | G56: 401 | H56: Exon (XM_045106703.1/LOC123415151, exon 8 of 11) | I56: 2 | J56: 463901140 | K56: 463904628 | L56: 3489 | M56: 1 | N56: LOC123415151 | O56: XM_045106703.1 | P56: 2727 | Q56: XM_045106703.1;XM_045122644.1 | R56: LOC123415151;LOC123445628 | S56: 0;6986 | T56: 6.05602968147865 | U56: 0 | V56: 7.05024948902228 | W56: -5.89334421811263 | X56: 3.11390148412758e-08 | Y56: 6.04665773768813e-07 | Z56: =VLOOKUP(N56,[1]D4_vs_D0!$A:$G,3,FALSE) -> -5.610967897
A57: 4D | B57: NC_058523.1 | C57: 455941560 | D57: 455941959 | E57: 400 | F57: * | G57: 401 | H57: 3' UTR | I57: 7 | J57: 455939882 | K57: 455942213 | L57: 2332 | M57: 1 | N57: LOC123404301 | O57: XM_045098226.1 | P57: 1678 | Q57: XM_045098226.1;XM_045098227.1;XM_045098228.1 | R57: LOC123404301;LOC123404302;LOC123404303 | S57: 0;2380;7613 | T57: 7.64960297906643 | U57: 1.84976960536507 | V57: 8.63659598311578 | W57: -5.8367969301026 | X57: 5.39163292177009e-13 | Y57: 2.47463697398061e-11 | Z57: =VLOOKUP(N57,[1]D4_vs_D0!$A:$G,3,FALSE) -> -8.120029642
A58: 4D | B58: NW_025422629.1 | C58: 26878 | D58: 27277 | E58: 400 | F58: * | G58: 401 | H58: Promoter | I58: 138 | J58: 26296 | K58: 28151 | L58: 1856 | M58: 2 | N58: LOC123421546 | O58: XM_045107561.1 | P58: 874 | Q58: XM_045107560.1;XM_045107561.1 | R58: LOC123421545;LOC123421546 | S58: -966;0 | T58: 8.50339665709176 | U58: 2.95994956530748 | V58: 9.48784634383047 | W58: -5.83187594455609 | X58: 3.60507993044224e-21 | Y58: 7.66364096792431e-19 | Z58: =VLOOKUP(N58,[1]D4_vs_D0!$A:$G,3,FALSE) -> 
A59: 4D | B59: NC_058519.1 | C59: 59223265 | D59: 59223664 | E59: 400 | F59: * | G59: 401 | H59: Exon (XM_045108637.1/LOC123424955, exon 1 of 4) | I59: 3 | J59: 59221756 | K59: 59227218 | L59: 5463 | M59: 1 | N59: LOC123424955 | O59: XM_045108637.1 | P59: 1509 | Q59: XM_045108637.1;XM_045108638.1 | R59: LOC123424955;LOC123424956 | S59: 0;6491 | T59: 5.55479006999256 | U59: 0 | V59: 6.55479006999256 | W59: -5.81776369258742 | X59: 1.66858134019378e-06 | Y59: 2.1394920739818e-05 | Z59: =VLOOKUP(N59,[1]D4_vs_D0!$A:$G,3,FALSE) -> -9.07917357
A60: 4D | B60: NC_058524.1 | C60: 468564338 | D60: 468564737 | E60: 400 | F60: * | G60: 401 | H60: 3' UTR | I60: 8 | J60: 468564232 | K60: 468567119 | L60: 2888 | M60: 2 | N60: LOC123412214 | O60: XM_045105157.1 | P60: 2382 | Q60: XM_045105157.1 | R60: LOC123412214 | S60: 0 | T60: 6.46360264847125 | U60: 0 | V60: 7.45553681231767 | W60: -5.81664846576417 | X60: 9.58525966520542e-09 | Y60: 2.09269533987917e-07 | Z60: =VLOOKUP(N60,[1]D4_vs_D0!$A:$G,3,FALSE) -> -8.167516641
A61: 4D | B61: NC_058520.1 | C61: 459322817 | D61: 459323216 | E61: 400 | F61: * | G61: 401 | H61: Promoter | I61: 4 | J61: 459322388 | K61: 459328507 | L61: 6120 | M61: 1 | N61: LOC123444252 | O61: XM_045120916.1 | P61: 429 | Q61: XM_045120916.1 | R61: LOC123444252 | S61: 0 | T61: 5.15508233407968 | U61: 0 | V61: 6.15508233407968 | W61: -5.79541018042682 | X61: 1.72832382078734e-07 | Y61: 2.81479835167745e-06 | Z61: =VLOOKUP(N61,[1]D4_vs_D0!$A:$G,3,FALSE) -> -6.827523636
A62: 4D | B62: NC_058522.1 | C62: 7134301 | D62: 7134700 | E62: 400 | F62: * | G62: 401 | H62: Exon (XM_045093981.1/LOC123399579, exon 4 of 7) | I62: 6 | J62: 7132726 | K62: 7136375 | L62: 3650 | M62: 1 | N62: LOC123399579 | O62: XM_045093981.1 | P62: 1575 | Q62: XM_045093981.1 | R62: LOC123399579 | S62: 0 | T62: 5.96377504203688 | U62: 2.23841252661173 | V62: 6.90817952563273 | W62: -5.75180226578835 | X62: 4.18931915167404e-08 | Y62: 7.79753919521265e-07 | Z62: =VLOOKUP(N62,[1]D4_vs_D0!$A:$G,3,FALSE) -> -10.76754519
A63: 4D | B63: NW_025422716.1 | C63: 22311 | D63: 22710 | E63: 400 | F63: * | G63: 401 | H63: Promoter | I63: 218 | J63: 21135 | K63: 22990 | L63: 1856 | M63: 2 | N63: LOC123423147 | O63: XM_045107791.1 | P63: 280 | Q63: XM_045107790.1;XM_045107791.1;XM_045107792.1 | R63: LOC123423146;LOC123423147;LOC123423150 | S63: -372;0;-3035 | T63: 5.68034428870762 | U63: 0 | V63: 6.68034428870762 | W63: -5.74876258052638 | X63: 4.78312602672899e-06 | Y63: 5.27842787485202e-05 | Z63: =VLOOKUP(N63,[1]D4_vs_D0!$A:$G,3,FALSE) -> 
A64: 4D | B64: NC_058521.1 | C64: 45261870 | D64: 45262269 | E64: 400 | F64: * | G64: 401 | H64: Promoter | I64: 5 | J64: 45261762 | K64: 45263083 | L64: 1322 | M64: 1 | N64: LOC123447804 | O64: XM_045124485.1 | P64: 108 | Q64: XM_045124482.1;XM_045124483.1;XM_045124485.1 | R64: LOC123447803;LOC123447803;LOC123447804 | S64: 8045;8045;0 | T64: 5.11479042806614 | U64: 0 | V64: 6.11479042806614 | W64: -5.70822818809169 | X64: 3.83948787190773e-07 | Y64: 6.01073314520749e-06 | Z64: =VLOOKUP(N64,[1]D4_vs_D0!$A:$G,3,FALSE) -> -6.996274338
A65: 4D | B65: NC_058519.1 | C65: 628903830 | D65: 628904229 | E65: 400 | F65: * | G65: 401 | H65: Promoter | I65: 3 | J65: 628902904 | K65: 628906887 | L65: 3984 | M65: 1 | N65: LOC123428063 | O65: XM_045112228.1 | P65: 926 | Q65: XM_045112227.1;XM_045112228.1;XM_045112231.1 | R65: LOC123428062;LOC123428063;LOC123428066 | S65: 4806;0;4324 | T65: 7.98325282113688 | U65: 2.52926447126935 | V65: 8.96670201249927 | W65: -5.70582870417572 | X65: 2.06142433866079e-18 | Y65: 2.9736046085182e-16 | Z65: =VLOOKUP(N65,[1]D4_vs_D0!$A:$G,3,FALSE) -> -8.921948867
A66: 4D | B66: NW_025422743.1 | C66: 28310 | D66: 28709 | E66: 400 | F66: * | G66: 401 | H66: Promoter | I66: 242 | J66: 28099 | K66: 29954 | L66: 1856 | M66: 1 | N66: LOC123423591 | O66: XM_045107868.1 | P66: 211 | Q66: XM_045107863.1;XM_045107867.1;XM_045107868.1 | R66: LOC123423585;LOC123423590;LOC123423591 | S66: -4597;-301;0 | T66: 6.43610365672382 | U66: 0 | V66: 7.43166422945226 | W66: -5.69438733300783 | X66: 3.35204252022909e-06 | Y66: 3.91297680323853e-05 | Z66: =VLOOKUP(N66,[1]D4_vs_D0!$A:$G,3,FALSE) -> 
A67: 4D | B67: NC_058524.1 | C67: 468566494 | D67: 468566893 | E67: 400 | F67: * | G67: 401 | H67: Promoter | I67: 8 | J67: 468564232 | K67: 468567119 | L67: 2888 | M67: 2 | N67: LOC123412214 | O67: XM_045105157.1 | P67: 226 | Q67: XM_045105157.1 | R67: LOC123412214 | S67: 0 | T67: 5.18811452621967 | U67: 0 | V67: 6.18811452621967 | W67: -5.69351356334367 | X67: 7.49074286377392e-07 | Y67: 1.08053965809939e-05 | Z67: =VLOOKUP(N67,[1]D4_vs_D0!$A:$G,3,FALSE) -> -8.167516641
A68: 4D | B68: NC_058519.1 | C68: 59224692 | D68: 59225374 | E68: 683 | F68: * | G68: 684 | H68: Exon (XM_045108637.1/LOC123424955, exon 3 of 4) | I68: 3 | J68: 59221756 | K68: 59227218 | L68: 5463 | M68: 1 | N68: LOC123424955 | O68: XM_045108637.1 | P68: 2936 | Q68: XM_045108637.1;XM_045108638.1 | R68: LOC123424955;LOC123424956 | S68: 0;4781 | T68: 5.39257399677748 | U68: 0 | V68: 6.39257399677748 | W68: -5.68599140731189 | X68: 2.45931458847957e-06 | Y68: 3.03766716295687e-05 | Z68: =VLOOKUP(N68,[1]D4_vs_D0!$A:$G,3,FALSE) -> -9.07917357
A69: 4D | B69: NC_058524.1 | C69: 441451729 | D69: 441452128 | E69: 400 | F69: * | G69: 401 | H69: Promoter | I69: 8 | J69: 441451143 | K69: 441452161 | L69: 1019 | M69: 1 | N69: LOC123407396 | O69: XM_045100521.1 | P69: 586 | Q69: XM_045100521.1 | R69: LOC123407396 | S69: 0 | T69: 6.06120315433375 | U69: 0 | V69: 7.05053288712483 | W69: -5.67033750519698 | X69: 1.94356827341107e-10 | Y69: 5.60719446879095e-09 | Z69: =VLOOKUP(N69,[1]D4_vs_D0!$A:$G,3,FALSE) -> -8.391235677
A70: 4D | B70: NC_058519.1 | C70: 18465795 | D70: 18466194 | E70: 400 | F70: * | G70: 401 | H70: Promoter | I70: 3 | J70: 18464914 | K70: 18466425 | L70: 1512 | M70: 1 | N70: LOC123424519 | O70: XM_045108147.1 | P70: 881 | Q70: XM_045108147.1 | R70: LOC123424519 | S70: 0 | T70: 5.11712921255154 | U70: 0 | V70: 6.11712921255154 | W70: -5.64475095708593 | X70: 8.12317951675145e-07 | Y70: 1.15611053749742e-05 | Z70: =VLOOKUP(N70,[1]D4_vs_D0!$A:$G,3,FALSE) -> -10.14616254
A71: 4D | B71: NC_058521.1 | C71: 423384714 | D71: 423385354 | E71: 641 | F71: * | G71: 642 | H71: 3' UTR | I71: 5 | J71: 423384633 | K71: 423418472 | L71: 33840 | M71: 2 | N71: LOC123448808 | O71: XM_045125826.1 | P71: 33118 | Q71: XM_045125826.1;XM_045125827.1 | R71: LOC123448808;LOC123448808 | S71: 0;0 | T71: 5.05554287129529 | U71: 0 | V71: 6.05554287129529 | W71: -5.59562453448555 | X71: 9.54146696567931e-07 | Y71: 1.33812448174926e-05 | Z71: =VLOOKUP(N71,[1]D4_vs_D0!$A:$G,3,FALSE) -> -7.67876199
A72: 4D | B72: NC_058521.1 | C72: 42479390 | D72: 42479789 | E72: 400 | F72: * | G72: 401 | H72: Exon (XM_045124466.1/LOC123447792, exon 8 of 9) | I72: 5 | J72: 42475190 | K72: 42480092 | L72: 4903 | M72: 1 | N72: LOC123447792 | O72: XM_045124466.1 | P72: 4200 | Q72: XM_045124466.1 | R72: LOC123447792 | S72: 0 | T72: 5.17082788795134 | U72: 0 | V72: 6.17082788795134 | W72: -5.57974555707302 | X72: 2.16724797023517e-06 | Y72: 2.72695157376319e-05 | Z72: =VLOOKUP(N72,[1]D4_vs_D0!$A:$G,3,FALSE) -> -6.553742752
A73: 4D | B73: NC_058522.1 | C73: 43392110 | D73: 43392509 | E73: 400 | F73: * | G73: 401 | H73: Exon (XR_006632656.1/LOC123452809, exon 4 of 7) | I73: 6 | J73: 43388405 | K73: 43395019 | L73: 6615 | M73: 2 | N73: LOC123452809 | O73: XR_006632656.1 | P73: 2510 | Q73: XR_006632656.1;XR_006632657.1;XR_006632658.1;XR_006632659.1;XR_006632660.1;XR_006632661.1;XM_045129530.1 | R73: LOC123452809;LOC123452809;LOC123452809;LOC123452809;LOC123452809;LOC123452809;LOC123452809 | S73: 0;0;0;0;0;0;0 | T73: 7.19196560491686 | U73: 2.85978021829809 | V73: 8.15570177981606 | W73: -5.53797589775001 | X73: 2.03252606863368e-13 | Y73: 1.03916111281157e-11 | Z73: =VLOOKUP(N73,[1]D4_vs_D0!$A:$G,3,FALSE) -> -4.687490733
A74: 4D | B74: NC_058520.1 | C74: 211930148 | D74: 211930827 | E74: 680 | F74: * | G74: 681 | H74: Promoter | I74: 4 | J74: 211930287 | K74: 211932584 | L74: 2298 | M74: 1 | N74: LOC123443540 | O74: XM_045119956.1 | P74: 0 | Q74: XM_045119956.1 | R74: LOC123443540 | S74: 0 | T74: 4.9053479392591 | U74: 0 | V74: 5.9053479392591 | W74: -5.53166233085902 | X74: 6.99577580889192e-07 | Y74: 1.02006998166478e-05 | Z74: =VLOOKUP(N74,[1]D4_vs_D0!$A:$G,3,FALSE) -> -8.365217015
A75: 4D | B75: NW_025422651.1 | C75: 31004 | D75: 31403 | E75: 400 | F75: * | G75: 401 | H75: Promoter | I75: 158 | J75: 30709 | K75: 32564 | L75: 1856 | M75: 1 | N75: LOC123421966 | O75: XM_045107631.1 | P75: 295 | Q75: XM_045107630.1;XM_045107631.1;XM_045107633.1 | R75: LOC123421965;LOC123421966;LOC123421969 | S75: -385;0;0 | T75: 6.58892173171129 | U75: 0 | V75: 7.58892173171129 | W75: -5.48343750533244 | X75: 8.9722281332801e-05 | Y75: 0.000664932650097584 | Z75: =VLOOKUP(N75,[1]D4_vs_D0!$A:$G,3,FALSE) -> 
A76: 4D | B76: NC_058523.1 | C76: 541472498 | D76: 541472897 | E76: 400 | F76: * | G76: 401 | H76: 3' UTR | I76: 7 | J76: 541472274 | K76: 541474366 | L76: 2093 | M76: 2 | N76: LOC123405813 | O76: XM_045099358.1 | P76: 1469 | Q76: XM_045099358.1 | R76: LOC123405813 | S76: 0 | T76: 6.45612806341913 | U76: 1.00589912164234 | V76: 7.43953382074579 | W76: -5.46517909170648 | X76: 2.12868164318418e-13 | Y76: 1.07471814460261e-11 | Z76: =VLOOKUP(N76,[1]D4_vs_D0!$A:$G,3,FALSE) -> -4.350021456
A77: 4D | B77: NC_058524.1 | C77: 443383629 | D77: 443384028 | E77: 400 | F77: * | G77: 401 | H77: 3' UTR | I77: 8 | J77: 443383670 | K77: 443394029 | L77: 10360 | M77: 2 | N77: LOC123407472 | O77: XM_045100604.1 | P77: 10001 | Q77: XM_045100604.1;XR_006612620.1;XM_045100605.1;XM_045100606.1 | R77: LOC123407472;LOC123407472;LOC123407472;LOC123407472 | S77: 0;0;10003;10003 | T77: 5.07795898815226 | U77: 0 | V77: 6.07795898815226 | W77: -5.40864791316586 | X77: 6.14981766718865e-06 | Y77: 6.60614722281249e-05 | Z77: =VLOOKUP(N77,[1]D4_vs_D0!$A:$G,3,FALSE) -> -6.418872131
A78: 4D | B78: NC_058524.1 | C78: 625260506 | D78: 625260905 | E78: 400 | F78: * | G78: 401 | H78: Exon (XM_045101604.1/LOC123408513, exon 5 of 7) | I78: 8 | J78: 625257792 | K78: 625261520 | L78: 3729 | M78: 1 | N78: LOC123408513 | O78: XM_045101608.1 | P78: 2714 | Q78: XM_045101603.1;XM_045101604.1;XM_045101605.1;XM_045101609.1;XM_045101606.1;XM_045101607.1;XM_045101608.1 | R78: LOC123408512;LOC123408513;LOC123408513;LOC123408513;LOC123408513;LOC123408513;LOC123408513 | S78: 3704;0;0;0;0;0;0 | T78: 8.06563566563753 | U78: 2.98205016144234 | V78: 9.04420406514346 | W78: -5.40834651304789 | X78: 1.34331943647617e-20 | Y78: 2.58365104948917e-18 | Z78: =VLOOKUP(N78,[1]D4_vs_D0!$A:$G,3,FALSE) -> -7.391346039
A79: 4D | B79: NC_058519.1 | C79: 222821214 | D79: 222821613 | E79: 400 | F79: * | G79: 401 | H79: 3' UTR | I79: 3 | J79: 222818032 | K79: 222821561 | L79: 3530 | M79: 1 | N79: LOC123425929 | O79: XM_045109694.1 | P79: 3182 | Q79: XM_045109694.1 | R79: LOC123425929 | S79: 0 | T79: 4.86786173645831 | U79: 0 | V79: 5.86786173645831 | W79: -5.39656149671273 | X79: 2.38550430248784e-06 | Y79: 2.98298819744532e-05 | Z79: =VLOOKUP(N79,[1]D4_vs_D0!$A:$G,3,FALSE) -> -8.202322675
A80: 4D | B80: NC_058520.1 | C80: 607295776 | D80: 607296175 | E80: 400 | F80: * | G80: 401 | H80: 3' UTR | I80: 4 | J80: 607293761 | K80: 607298104 | L80: 4344 | M80: 1 | N80: LOC123445613 | O80: XM_045122622.1 | P80: 2015 | Q80: XM_045122622.1 | R80: LOC123445613 | S80: 0 | T80: 4.7199767271376 | U80: 0 | V80: 5.7199767271376 | W80: -5.351541004276 | X80: 1.54023442278275e-06 | Y80: 2.0132708199416e-05 | Z80: =VLOOKUP(N80,[1]D4_vs_D0!$A:$G,3,FALSE) -> -3.194667212
A81: 4D | B81: NC_058520.1 | C81: 536195322 | D81: 536195721 | E81: 400 | F81: * | G81: 401 | H81: 3' UTR | I81: 4 | J81: 536195417 | K81: 536198322 | L81: 2906 | M81: 2 | N81: LOC123444787 | O81: XM_045121630.1 | P81: 2601 | Q81: XM_045121629.1;XM_045121630.1;unassigned_transcript_400;unassigned_transcript_401 | R81: LOC123444786;LOC123444787;TRNAQ-UUG_1;TRNAQ-UUG_2 | S81: 25550;0;-3430;-3570 | T81: 4.86226830145107 | U81: 0 | V81: 5.86226830145107 | W81: -5.35066457237973 | X81: 3.6360152735652e-06 | Y81: 4.19596162569424e-05 | Z81: =VLOOKUP(N81,[1]D4_vs_D0!$A:$G,3,FALSE) -> -9.621005944
A82: 4D | B82: NC_058522.1 | C82: 294903085 | D82: 294903484 | E82: 400 | F82: * | G82: 401 | H82: Exon (XM_045094396.1/LOC123400001, exon 5 of 5) | I82: 6 | J82: 294902779 | K82: 294904713 | L82: 1935 | M82: 2 | N82: LOC123400001 | O82: XM_045094396.1 | P82: 1229 | Q82: XM_045094386.1;XM_045094388.1;XM_045094387.1;XM_045094389.1;XM_045094390.1;XM_045094395.1;XM_045094391.1;XM_045094393.1;XM_045094394.1;XM_045094396.1 | R82: LOC123399999;LOC123399999;LOC123399999;LOC123399999;LOC123399999;LOC123399999;LOC123399999;LOC123399999;LOC123399999;LOC123400001 | S82: 6610;6610;6610;6609;6608;6608;6597;6329;6176;0 | T82: 7.06056818234332 | U82: 1.56180755211588 | V82: 8.04452594213654 | W82: -5.34545363169786 | X82: 4.29464482740132e-09 | Y82: 1.02639470164935e-07 | Z82: =VLOOKUP(N82,[1]D4_vs_D0!$A:$G,3,FALSE) -> -3.71618942
A83: 4D | B83: NC_058522.1 | C83: 450281034 | D83: 450281433 | E83: 400 | F83: * | G83: 401 | H83: Promoter | I83: 6 | J83: 450280806 | K83: 450282072 | L83: 1267 | M83: 2 | N83: LOC123398322 | O83: XM_045092805.1 | P83: 639 | Q83: XM_045092803.1;XM_045092804.1;XM_045092805.1 | R83: LOC123398321;LOC123398321;LOC123398322 | S83: 3711;2815;0 | T83: 6.08564347438618 | U83: 0.561807552115882 | V83: 7.06987916885661 | W83: -5.33422870914155 | X83: 1.83454906796992e-10 | Y83: 5.36937948226849e-09 | Z83: =VLOOKUP(N83,[1]D4_vs_D0!$A:$G,3,FALSE) -> -9.671907405
A84: 4D | B84: NW_025422716.1 | C84: 21662 | D84: 22061 | E84: 400 | F84: * | G84: 401 | H84: Promoter | I84: 218 | J84: 21135 | K84: 22990 | L84: 1856 | M84: 2 | N84: LOC123423147 | O84: XM_045107791.1 | P84: 929 | Q84: XM_045107790.1;XM_045107791.1;XM_045107792.1 | R84: LOC123423146;LOC123423147;LOC123423150 | S84: -1021;0;-3684 | T84: 8.00349519919919 | U84: 2.80913911400701 | V84: 8.98365847951747 | W84: -5.21514793136914 | X84: 3.51119315648706e-09 | Y84: 8.54319828858508e-08 | Z84: =VLOOKUP(N84,[1]D4_vs_D0!$A:$G,3,FALSE) -> 
A85: 4D | B85: NC_058519.1 | C85: 503985481 | D85: 503985880 | E85: 400 | F85: * | G85: 401 | H85: Exon (XM_045110769.1/LOC123426870, exon 2 of 5) | I85: 3 | J85: 503982666 | K85: 503988752 | L85: 6087 | M85: 1 | N85: LOC123426870 | O85: XM_045110769.1 | P85: 2815 | Q85: XM_045110769.1 | R85: LOC123426870 | S85: 0 | T85: 4.60442611315819 | U85: 0 | V85: 5.60442611315819 | W85: -5.20876776340321 | X85: 3.39299572973354e-06 | Y85: 3.94936880472443e-05 | Z85: =VLOOKUP(N85,[1]D4_vs_D0!$A:$G,3,FALSE) -> -9.178591148
A86: 4D | B86: NC_058518.1 | C86: 501999112 | D86: 501999511 | E86: 400 | F86: * | G86: 401 | H86: 3' UTR | I86: 2 | J86: 501995623 | K86: 501999665 | L86: 4043 | M86: 1 | N86: LOC123450602 | O86: XM_045127770.1 | P86: 3489 | Q86: XM_045107234.1;XM_045127770.1 | R86: LOC123419911;LOC123450602 | S86: -4825;0 | T86: 5.53130910993728 | U86: 0 | V86: 6.52298608198219 | W86: -5.20359676750599 | X86: 3.30051538014129e-06 | Y86: 3.89788936268733e-05 | Z86: =VLOOKUP(N86,[1]D4_vs_D0!$A:$G,3,FALSE) -> -5.275416547
A87: 4D | B87: NW_025422675.1 | C87: 8309 | D87: 9171 | E87: 863 | F87: * | G87: 864 | H87: Promoter | I87: 182 | J87: 7527 | K87: 9140 | L87: 1614 | M87: 1 | N87: LOC123422470 | O87: XM_045107686.1 | P87: 782 | Q87: XM_045107685.1;XM_045107686.1 | R87: LOC123422469;LOC123422470 | S87: -872;0 | T87: 9.94883414693255 | U87: 5.29597715795533 | V87: 10.919870907613 | W87: -5.20317791568803 | X87: 2.79152218382331e-17 | Y87: 3.2214166001321e-15 | Z87: =VLOOKUP(N87,[1]D4_vs_D0!$A:$G,3,FALSE) -> 
A88: 4D | B88: NC_058522.1 | C88: 502377365 | D88: 502377764 | E88: 400 | F88: * | G88: 401 | H88: Promoter | I88: 6 | J88: 502373877 | K88: 502377774 | L88: 3898 | M88: 2 | N88: LOC123400115 | O88: XM_045094526.1 | P88: 10 | Q88: XM_045094526.1 | R88: LOC123400115 | S88: 0 | T88: 4.65108299110395 | U88: 0 | V88: 5.65108299110395 | W88: -5.18148452942638 | X88: 5.80806728654851e-06 | Y88: 6.27240207763889e-05 | Z88: =VLOOKUP(N88,[1]D4_vs_D0!$A:$G,3,FALSE) -> -5.186973247
A89: 4D | B89: NC_058523.1 | C89: 490792086 | D89: 490792485 | E89: 400 | F89: * | G89: 401 | H89: Exon (XM_045096269.1/LOC123402355, exon 5 of 5) | I89: 7 | J89: 490790559 | K89: 490793275 | L89: 2717 | M89: 1 | N89: LOC123402355 | O89: XM_045096272.1 | P89: 1527 | Q89: XM_045096269.1;XM_045096270.1;XM_045096271.1;XM_045096272.1;XM_045096274.1 | R89: LOC123402355;LOC123402355;LOC123402355;LOC123402355;LOC123402356 | S89: 0;0;0;0;0 | T89: 4.67701971303673 | U89: 0 | V89: 5.67701971303673 | W89: -5.17514663244889 | X89: 6.96423501480458e-06 | Y89: 7.42177974269016e-05 | Z89: =VLOOKUP(N89,[1]D4_vs_D0!$A:$G,3,FALSE) -> -10.471487
A90: 4D | B90: NW_025422542.1 | C90: 24618 | D90: 25017 | E90: 400 | F90: * | G90: 401 | H90: 3' UTR | I90: 60 | J90: 24620 | K90: 26475 | L90: 1856 | M90: 2 | N90: LOC123419585 | O90: XM_045107191.1 | P90: 1458 | Q90: XM_045107190.1;XM_045107191.1;XM_045107192.1 | R90: LOC123419584;LOC123419585;LOC123419586 | S90: -1550;0;-4213 | T90: 9.25929169737885 | U90: 4.88889072936087 | V90: 10.2239875500846 | W90: -5.16957892361506 | X90: 3.59907342737955e-26 | Y90: 1.61518417479844e-23 | Z90: =VLOOKUP(N90,[1]D4_vs_D0!$A:$G,3,FALSE) -> 
A91: 4D | B91: NC_058522.1 | C91: 538635075 | D91: 538635474 | E91: 400 | F91: * | G91: 401 | H91: Exon (XM_045129171.1/LOC123452515, exon 4 of 11) | I91: 6 | J91: 538633743 | K91: 538637126 | L91: 3384 | M91: 2 | N91: LOC123452515 | O91: XM_045129171.1 | P91: 1652 | Q91: XM_045091836.1;XM_045129168.1;XM_045129171.1 | R91: LOC123397188;LOC123452512;LOC123452515 | S91: -1741;-4240;0 | T91: 7.23833038997985 | U91: 3.05713859172139 | V91: 8.19800902461956 | W91: -5.16802371336494 | X91: 9.10612597578961e-12 | Y91: 3.46977762417116e-10 | Z91: =VLOOKUP(N91,[1]D4_vs_D0!$A:$G,3,FALSE) -> -6.521739841
A92: 4D | B92: NC_058524.1 | C92: 20552832 | D92: 20553231 | E92: 400 | F92: * | G92: 401 | H92: 3' UTR | I92: 8 | J92: 20552559 | K92: 20556086 | L92: 3528 | M92: 2 | N92: LOC123411953 | O92: XM_045104915.1 | P92: 2855 | Q92: XM_045104915.1 | R92: LOC123411953 | S92: 0 | T92: 4.79525296556777 | U92: 0 | V92: 5.79525296556777 | W92: -5.1562874116557 | X92: 1.3917810704042e-05 | Y92: 0.000135455511888254 | Z92: =VLOOKUP(N92,[1]D4_vs_D0!$A:$G,3,FALSE) -> -6.334051024
A93: 4D | B93: NW_025422580.1 | C93: 40126 | D93: 40525 | E93: 400 | F93: * | G93: 401 | H93: Promoter | I93: 96 | J93: 39562 | K93: 41417 | L93: 1856 | M93: 2 | N93: LOC123420587 | O93: XM_045107390.1 | P93: 892 | Q93: XM_045107389.1;XM_045107390.1 | R93: LOC123420585;LOC123420587 | S93: -984;0 | T93: 7.99086558758461 | U93: 2.19802402601045 | V93: 8.97779511501492 | W93: -5.14571516859722 | X93: 9.35930430453674e-06 | Y93: 9.6188880626015e-05 | Z93: =VLOOKUP(N93,[1]D4_vs_D0!$A:$G,3,FALSE) -> 
A94: 4D | B94: NC_058523.1 | C94: 507345699 | D94: 507346098 | E94: 400 | F94: * | G94: 401 | H94: Promoter | I94: 7 | J94: 507345653 | K94: 507346913 | L94: 1261 | M94: 2 | N94: LOC123402021 | O94: XM_045095874.1 | P94: 815 | Q94: XM_045095874.1 | R94: LOC123402021 | S94: 0 | T94: 4.491700756261 | U94: 0 | V94: 5.491700756261 | W94: -5.11526828191436 | X94: 4.47446934893125e-06 | Y94: 5.00619991698984e-05 | Z94: =VLOOKUP(N94,[1]D4_vs_D0!$A:$G,3,FALSE) -> -9.088490188
A95: 4D | B95: NC_058522.1 | C95: 489815438 | D95: 489815837 | E95: 400 | F95: * | G95: 401 | H95: Exon (XM_045094200.1/LOC123399821, exon 13 of 14) | I95: 6 | J95: 489815152 | K95: 489819918 | L95: 4767 | M95: 2 | N95: LOC123399821 | O95: XM_045094200.1 | P95: 4081 | Q95: XM_045094195.1;XM_045094196.1;XM_045094197.1;XM_045094200.1;XM_045094199.1 | R95: LOC123399820;LOC123399820;LOC123399820;LOC123399821;LOC123399821 | S95: 6164;6164;6163;0;0 | T95: 5.74463873514933 | U95: 0 | V95: 6.73133829499509 | W95: -5.10002138952873 | X95: 5.27490177856333e-07 | Y95: 7.97952370172933e-06 | Z95: =VLOOKUP(N95,[1]D4_vs_D0!$A:$G,3,FALSE) -> 
A96: 4D | B96: NC_058524.1 | C96: 303373411 | D96: 303373810 | E96: 400 | F96: * | G96: 401 | H96: Promoter | I96: 8 | J96: 303372786 | K96: 303374127 | L96: 1342 | M96: 1 | N96: LOC123409139 | O96: XM_045102119.1 | P96: 625 | Q96: XM_045102116.1;XM_045102118.1;XM_045102111.1;XM_045102113.1;XM_045102114.1;XM_045102115.1;XM_045102117.1;XM_045102119.1 | R96: LOC123409138;LOC123409138;LOC123409138;LOC123409138;LOC123409138;LOC123409138;LOC123409138;LOC123409139 | S96: 20914;20912;20909;20909;20909;20909;20907;0 | T96: 5.589493918429 | U96: 0.0897074218507782 | V96: 6.57346314501518 | W96: -5.0867253546882 | X96: 7.29978432576198e-08 | Y96: 1.25999268768174e-06 | Z96: =VLOOKUP(N96,[1]D4_vs_D0!$A:$G,3,FALSE) -> -5.670593517
A97: 4D | B97: NC_058521.1 | C97: 108681018 | D97: 108681417 | E97: 400 | F97: * | G97: 401 | H97: Exon (XM_045124814.1/LOC123448046, exon 12 of 15) | I97: 5 | J97: 108676024 | K97: 108681988 | L97: 5965 | M97: 1 | N97: LOC123448046 | O97: XM_045124814.1 | P97: 4994 | Q97: XM_045124814.1;XM_045124815.1 | R97: LOC123448046;LOC123448047 | S97: 0;16724 | T97: 6.8248317087534 | U97: 1.56180755211588 | V97: 7.80592311098918 | W97: -5.081338892785 | X97: 4.46169486754939e-08 | Y97: 8.11747097749188e-07 | Z97: =VLOOKUP(N97,[1]D4_vs_D0!$A:$G,3,FALSE) -> -6.003424705
A98: 4D | B98: NC_058523.1 | C98: 33771181 | D98: 33771580 | E98: 400 | F98: * | G98: 401 | H98: Exon (XM_045097087.1/LOC123403124, exon 5 of 7) | I98: 7 | J98: 33769532 | K98: 33771990 | L98: 2459 | M98: 1 | N98: LOC123403124 | O98: XM_045097087.1 | P98: 1649 | Q98: XM_045095390.1;XM_045097087.1 | R98: LOC123401563;LOC123403124 | S98: -2581;0 | T98: 5.05747265221657 | U98: 0 | V98: 6.04590064225884 | W98: -5.02579942124962 | X98: 8.56280960876384e-07 | Y98: 1.20927230803486e-05 | Z98: =VLOOKUP(N98,[1]D4_vs_D0!$A:$G,3,FALSE) -> -5.191951028
A99: 4D | B99: NC_058523.1 | C99: 299949128 | D99: 299949527 | E99: 400 | F99: * | G99: 401 | H99: Exon (XM_045094957.1/LOC123401218, exon 12 of 14) | I99: 7 | J99: 299918517 | K99: 299955630 | L99: 37114 | M99: 1 | N99: LOC123401218 | O99: XM_045094956.1 | P99: 30611 | Q99: XM_045094957.1;XM_045094956.1 | R99: LOC123401218;LOC123401218 | S99: 0;0 | T99: 5.69349500789945 | U99: 2.23841252661173 | V99: 6.62617338287347 | W99: -5.0168019709567 | X99: 1.55762246807421e-05 | Y99: 0.00014872901060406 | Z99: =VLOOKUP(N99,[1]D4_vs_D0!$A:$G,3,FALSE) -> -6.988015653
A100: 4D | B100: NC_058520.1 | C100: 6967165 | D100: 6967564 | E100: 400 | F100: * | G100: 401 | H100: 3' UTR | I100: 4 | J100: 6965679 | K100: 6967678 | L100: 2000 | M100: 1 | N100: LOC123442434 | O100: XM_045118484.1 | P100: 1486 | Q100: XM_045118484.1 | R100: LOC123442434 | S100: 0 | T100: 5.03993986975055 | U100: 0 | V100: 6.02911057716136 | W100: -5.01471189299605 | X100: 9.38585183369799e-07 | Y100: 1.3208869531814e-05 | Z100: =VLOOKUP(N100,[1]D4_vs_D0!$A:$G,3,FALSE) -> -7.306305522
A101: 4D | B101: NC_058520.1 | C101: 384669642 | D101: 384670041 | E101: 400 | F101: * | G101: 401 | H101: 3' UTR | I101: 4 | J101: 384665881 | K101: 384670240 | L101: 4360 | M101: 1 | N101: LOC123443927 | O101: XM_045120490.1 | P101: 3761 | Q101: XM_045120490.1 | R101: LOC123443927 | S101: 0 | T101: 4.82914992234053 | U101: 0 | V101: 5.82914992234053 | W101: -4.972387664866 | X101: 5.24518286923151e-05 | Y101: 0.000416214019819766 | Z101: =VLOOKUP(N101,[1]D4_vs_D0!$A:$G,3,FALSE) -> -8.240027939
A102: 4D | B102: NC_058521.1 | C102: 483209276 | D102: 483209675 | E102: 400 | F102: * | G102: 401 | H102: 3' UTR | I102: 5 | J102: 483208040 | K102: 483209749 | L102: 1710 | M102: 1 | N102: LOC123449056 | O102: XM_045126136.1 | P102: 1236 | Q102: XM_045126136.1;XR_006632422.1 | R102: LOC123449056;LOC123451583 | S102: 0;-2585 | T102: 4.50140579992382 | U102: 0 | V102: 5.50140579992382 | W102: -4.93411041559765 | X102: 2.313745192779e-05 | Y102: 0.000207671485191875 | Z102: =VLOOKUP(N102,[1]D4_vs_D0!$A:$G,3,FALSE) -> -7.908506428
A103: 4D | B103: NC_058523.1 | C103: 294686288 | D103: 294686687 | E103: 400 | F103: * | G103: 401 | H103: Exon (XM_045099110.1/LOC123405421, exon 2 of 21) | I103: 7 | J103: 294683851 | K103: 294712619 | L103: 28769 | M103: 1 | N103: LOC123405421 | O103: XM_045099110.1 | P103: 2437 | Q103: XM_045099110.1 | R103: LOC123405421 | S103: 0 | T103: 6.04565603187806 | U103: 2.51168404652791 | V103: 6.98199709751283 | W103: -4.93274504032033 | X103: 1.38726128914015e-07 | Y103: 2.29637227329388e-06 | Z103: =VLOOKUP(N103,[1]D4_vs_D0!$A:$G,3,FALSE) -> -6.14378695
A104: 4D | B104: NC_058522.1 | C104: 198057696 | D104: 198058095 | E104: 400 | F104: * | G104: 401 | H104: Promoter | I104: 6 | J104: 198057453 | K104: 198058364 | L104: 912 | M104: 2 | N104: LOC123398470 | O104: XM_045092938.1 | P104: 269 | Q104: XM_045092938.1 | R104: LOC123398470 | S104: 0 | T104: 10.1851889313399 | U104: 4.95345299310047 | V104: 11.1658629883716 | W104: -4.92750788219764 | X104: 1.94798058598113e-05 | Y104: 0.000177604821371959 | Z104: =VLOOKUP(N104,[1]D4_vs_D0!$A:$G,3,FALSE) -> -6.335815881
A105: 4D | B105: NC_058521.1 | C105: 7869419 | D105: 7869818 | E105: 400 | F105: * | G105: 401 | H105: 3' UTR | I105: 5 | J105: 7865520 | K105: 7871258 | L105: 5739 | M105: 1 | N105: LOC123447067 | O105: XR_006631469.1 | P105: 3899 | Q105: XM_045123631.1;XM_045123632.1;XR_006631468.1;XR_006631469.1 | R105: LOC123447067;LOC123447067;LOC123447067;LOC123447067 | S105: 0;0;0;0 | T105: 9.22273144899616 | U105: 4.71828449771078 | V105: 10.1905949214838 | W105: -4.92191804329955 | X105: 4.18602570394981e-15 | Y105: 2.96620312600935e-13 | Z105: =VLOOKUP(N105,[1]D4_vs_D0!$A:$G,3,FALSE) -> -5.787034183
A106: 4D | B106: NC_058523.1 | C106: 10862681 | D106: 10863080 | E106: 400 | F106: * | G106: 401 | H106: 3' UTR | I106: 7 | J106: 10862581 | K106: 10864805 | L106: 2225 | M106: 2 | N106: LOC123401890 | O106: XM_045095749.1 | P106: 1725 | Q106: XM_045095749.1;XM_045098652.1;XR_006611945.1 | R106: LOC123401890;LOC123404705;LOC123405131 | S106: 0;6730;-4300 | T106: 4.35907525275592 | U106: 0 | V106: 5.35907525275592 | W106: -4.89115553293891 | X106: 1.76969233803774e-05 | Y106: 0.000163516600986033 | Z106: =VLOOKUP(N106,[1]D4_vs_D0!$A:$G,3,FALSE) -> -9.869600608
A107: 4D | B107: NC_058523.1 | C107: 332344864 | D107: 332345263 | E107: 400 | F107: * | G107: 401 | H107: Promoter | I107: 7 | J107: 332342317 | K107: 332345427 | L107: 3111 | M107: 2 | N107: LOC123401229 | O107: XM_045094969.1 | P107: 164 | Q107: XM_045094966.1;XM_045094968.1;XM_045094967.1;XM_045094969.1 | R107: LOC123401227;LOC123401228;LOC123401228;LOC123401229 | S107: 12148;-4662;-3312;0 | T107: 4.46812160323311 | U107: 0 | V107: 5.46812160323311 | W107: -4.8809083164628 | X107: 3.01984503248555e-05 | Y107: 0.000259513916727854 | Z107: =VLOOKUP(N107,[1]D4_vs_D0!$A:$G,3,FALSE) -> -2.295431701
A108: 4D | B108: NC_058522.1 | C108: 450797678 | D108: 450798077 | E108: 400 | F108: * | G108: 401 | H108: Exon (XM_045092817.1/LOC123398338, exon 5 of 6) | I108: 6 | J108: 450795835 | K108: 450798422 | L108: 2588 | M108: 1 | N108: LOC123398338 | O108: XM_045092817.1 | P108: 1843 | Q108: XM_045092816.1;XM_045092817.1 | R108: LOC123398337;LOC123398338 | S108: 3159;0 | T108: 4.5805376557336 | U108: 0 | V108: 5.5805376557336 | W108: -4.87522884747633 | X108: 4.6272014942477e-05 | Y108: 0.000373039258188951 | Z108: =VLOOKUP(N108,[1]D4_vs_D0!$A:$G,3,FALSE) -> -4.822580242
A109: 4D | B109: NC_058522.1 | C109: 479997370 | D109: 479997769 | E109: 400 | F109: * | G109: 401 | H109: Exon (XM_045090885.1/LOC123395851, exon 5 of 6) | I109: 6 | J109: 479997241 | K109: 479999252 | L109: 2012 | M109: 2 | N109: LOC123395851 | O109: XM_045090885.1 | P109: 1483 | Q109: XM_045090885.1 | R109: LOC123395851 | S109: 0 | T109: 7.26557795935045 | U109: 2.64727123102461 | V109: 8.23590545576755 | W109: -4.85038561197642 | X109: 1.27270968976061e-12 | Y109: 5.411025723098e-11 | Z109: =VLOOKUP(N109,[1]D4_vs_D0!$A:$G,3,FALSE) -> -4.52077033
A110: 4D | B110: NC_058519.1 | C110: 393261677 | D110: 393262076 | E110: 400 | F110: * | G110: 401 | H110: Exon (XM_045110230.1/LOC123426397, exon 4 of 8) | I110: 3 | J110: 393260431 | K110: 393263677 | L110: 3247 | M110: 2 | N110: LOC123426397 | O110: XM_045110230.1 | P110: 1601 | Q110: XM_045110230.1 | R110: LOC123426397 | S110: 0 | T110: 4.9613951696901 | U110: 0 | V110: 5.94902284537713 | W110: -4.84425770950992 | X110: 3.99152780263622e-06 | Y110: 4.541346702774e-05 | Z110: =VLOOKUP(N110,[1]D4_vs_D0!$A:$G,3,FALSE) -> -4.223351179
A111: 4D | B111: NC_058524.1 | C111: 218879 | D111: 219278 | E111: 400 | F111: * | G111: 401 | H111: Promoter | I111: 8 | J111: 218995 | K111: 219694 | L111: 700 | M111: 1 | N111: LOC123411665 | O111: XM_045104631.1 | P111: 0 | Q111: XM_045104631.1 | R111: LOC123411665 | S111: 0 | T111: 4.44903977141959 | U111: 0 | V111: 5.44903977141959 | W111: -4.82233756955195 | X111: 4.27744683148546e-05 | Y111: 0.000348318704684874 | Z111: =VLOOKUP(N111,[1]D4_vs_D0!$A:$G,3,FALSE) -> -8.488860555
A112: 4D | B112: NC_058524.1 | C112: 624004155 | D112: 624004554 | E112: 400 | F112: * | G112: 401 | H112: Promoter | I112: 8 | J112: 624005542 | K112: 624010705 | L112: 5164 | M112: 1 | N112: LOC123409605 | O112: XM_045102462.1 | P112: -988 | Q112: XM_045102038.1;XM_045102462.1 | R112: LOC123409041;LOC123409605 | S112: 0;-988 | T112: 6.45836447417325 | U112: 1.67466992257193 | V112: 7.43193546493854 | W112: -4.82057635210375 | X112: 4.79722403752453e-09 | Y112: 1.12651092369544e-07 | Z112: =VLOOKUP(N112,[1]D4_vs_D0!$A:$G,3,FALSE) -> 
A113: 4D | B113: NC_058521.1 | C113: 155637452 | D113: 155637851 | E113: 400 | F113: * | G113: 401 | H113: Promoter | I113: 5 | J113: 155637347 | K113: 155639868 | L113: 2522 | M113: 1 | N113: LOC123448239 | O113: XM_045125069.1 | P113: 105 | Q113: XM_045125068.1;XM_045125069.1 | R113: LOC123448238;LOC123448239 | S113: 5092;0 | T113: 10.1012558069567 | U113: 6.19557266984979 | V113: 11.0523045519458 | W113: -4.81738268919093 | X113: 3.52578630575919e-12 | Y113: 1.42406508889614e-10 | Z113: =VLOOKUP(N113,[1]D4_vs_D0!$A:$G,3,FALSE) -> -7.875411121
A114: 4D | B114: NC_058520.1 | C114: 497600473 | D114: 497601082 | E114: 610 | F114: * | G114: 611 | H114: Promoter | I114: 4 | J114: 497600636 | K114: 497601795 | L114: 1160 | M114: 2 | N114: LOC123440282 | O114: XM_045116860.1 | P114: 713 | Q114: XM_045116860.1 | R114: LOC123440282 | S114: 0 | T114: 6.16370446274744 | U114: 2.64960832790091 | V114: 7.09914238151163 | W114: -4.80809184502669 | X114: 3.60026139729615e-08 | Y114: 6.82697454632823e-07 | Z114: =VLOOKUP(N114,[1]D4_vs_D0!$A:$G,3,FALSE) -> -4.541417606
A115: 4D | B115: NC_058520.1 | C115: 478834995 | D115: 478835394 | E115: 400 | F115: * | G115: 401 | H115: Exon (XM_045121064.1/LOC123444369, exon 12 of 12) | I115: 4 | J115: 478834786 | K115: 478839022 | L115: 4237 | M115: 2 | N115: LOC123444369 | O115: XM_045121064.1 | P115: 3628 | Q115: XM_045121064.1 | R115: LOC123444369 | S115: 0 | T115: 4.9837415676901 | U115: 0 | V115: 5.97156021109885 | W115: -4.78971795426006 | X115: 8.45355704266965e-06 | Y115: 8.75485048598531e-05 | Z115: =VLOOKUP(N115,[1]D4_vs_D0!$A:$G,3,FALSE) -> -3.90282734
A116: 4D | B116: NC_058524.1 | C116: 67292194 | D116: 67292593 | E116: 400 | F116: * | G116: 401 | H116: 3' UTR | I116: 8 | J116: 67292088 | K116: 67294852 | L116: 2765 | M116: 2 | N116: LOC123411199 | O116: XM_045104141.1 | P116: 2259 | Q116: XM_045104139.1;XM_045104141.1;XM_045104140.1 | R116: LOC123411197;LOC123411199;LOC123411199 | S116: -4910;0;0 | T116: 4.35418010654629 | U116: 0 | V116: 5.35418010654629 | W116: -4.7754195268944 | X116: 4.2121706728924e-05 | Y116: 0.000344403746522449 | Z116: =VLOOKUP(N116,[1]D4_vs_D0!$A:$G,3,FALSE) -> -7.17113027
A117: 4D | B117: NC_058518.1 | C117: 512134421 | D117: 512134820 | E117: 400 | F117: * | G117: 401 | H117: Promoter | I117: 2 | J117: 512133611 | K117: 512135330 | L117: 1720 | M117: 1 | N117: LOC123421354 | O117: XM_045107530.1 | P117: 810 | Q117: XM_045107530.1 | R117: LOC123421354 | S117: 0 | T117: 4.55625601996489 | U117: 0 | V117: 5.55625601996489 | W117: -4.77456377800579 | X117: 7.94117645447758e-05 | Y117: 0.000596178656127043 | Z117: =VLOOKUP(N117,[1]D4_vs_D0!$A:$G,3,FALSE) -> -8.464970072
A118: 4D | B118: NW_025422761.1 | C118: 4471 | D118: 5393 | E118: 923 | F118: * | G118: 924 | H118: Promoter | I118: 259 | J118: 3761 | K118: 5374 | L118: 1614 | M118: 1 | N118: LOC123423860 | O118: XM_045107907.1 | P118: 710 | Q118: XM_045107906.1;XM_045107907.1 | R118: LOC123423859;LOC123423860 | S118: -800;0 | T118: 9.51119331784112 | U118: 5.41756060231047 | V118: 10.4683111505516 | W118: -4.75752445544135 | X118: 3.44084532168597e-18 | Y118: 4.63252475142988e-16 | Z118: =VLOOKUP(N118,[1]D4_vs_D0!$A:$G,3,FALSE) -> 
A119: 4D | B119: NC_058521.1 | C119: 563864115 | D119: 563864514 | E119: 400 | F119: * | G119: 401 | H119: 3' UTR | I119: 5 | J119: 563865599 | K119: 563868448 | L119: 2850 | M119: 1 | N119: LOC123450764 | O119: XM_045127864.1 | P119: -1085 | Q119: XM_045126803.1;XM_045126804.1;XM_045127864.1 | R119: LOC123449548;LOC123449549;LOC123450764 | S119: 0;6765;-1085 | T119: 8.29705058895848 | U119: 3.9375051369109 | V119: 9.26147648013915 | W119: -4.74973189231084 | X119: 5.94295122087876e-22 | Y119: 1.60023866540862e-19 | Z119: =VLOOKUP(N119,[1]D4_vs_D0!$A:$G,3,FALSE) -> 
A120: 4D | B120: NC_058524.1 | C120: 219347 | D120: 219746 | E120: 400 | F120: * | G120: 401 | H120: Promoter | I120: 8 | J120: 218995 | K120: 219694 | L120: 700 | M120: 1 | N120: LOC123411665 | O120: XM_045104631.1 | P120: 352 | Q120: XM_045104631.1 | R120: LOC123411665 | S120: 0 | T120: 7.9171052967644 | U120: 2.41163551673814 | V120: 8.90113790005929 | W120: -4.74923425105661 | X120: 6.78079657426889e-05 | Y120: 0.000517724713865256 | Z120: =VLOOKUP(N120,[1]D4_vs_D0!$A:$G,3,FALSE) -> -8.488860555
A121: 4D | B121: NC_058524.1 | C121: 181796063 | D121: 181796462 | E121: 400 | F121: * | G121: 401 | H121: 3' UTR | I121: 8 | J121: 181789576 | K121: 181796647 | L121: 7072 | M121: 1 | N121: LOC123408797 | O121: XM_045101839.1 | P121: 6487 | Q121: XM_045101839.1 | R121: LOC123408797 | S121: 0 | T121: 7.54164960997988 | U121: 3.07119697128361 | V121: 8.50873804976112 | W121: -4.74052535892424 | X121: 1.08640982169107e-14 | Y121: 6.85626448407852e-13 | Z121: =VLOOKUP(N121,[1]D4_vs_D0!$A:$G,3,FALSE) -> -5.514715642
A122: 4D | B122: NW_025422641.1 | C122: 5297 | D122: 5696 | E122: 400 | F122: * | G122: 401 | H122: 3' UTR | I122: 149 | J122: 5224 | K122: 7079 | L122: 1856 | M122: 2 | N122: LOC123421771 | O122: XM_045107603.1 | P122: 1383 | Q122: XM_045107602.1;XM_045107603.1;XM_045107607.1 | R122: LOC123421770;LOC123421771;LOC123421775 | S122: -1475;0;-4138 | T122: 9.07515491306471 | U122: 3.12683492061552 | V122: 10.0634252348506 | W122: -4.73306225589128 | X122: 0.000329795580505843 | Y122: 0.00203676506064694 | Z122: =VLOOKUP(N122,[1]D4_vs_D0!$A:$G,3,FALSE) -> 
A123: 4D | B123: NC_058520.1 | C123: 564414583 | D123: 564414982 | E123: 400 | F123: * | G123: 401 | H123: Promoter | I123: 4 | J123: 564414420 | K123: 564415554 | L123: 1135 | M123: 1 | N123: LOC123445128 | O123: XM_045122067.1 | P123: 163 | Q123: XM_045122064.1;XM_045122065.1;XM_045122067.1 | R123: LOC123445126;LOC123445127;LOC123445128 | S123: 5129;0;0 | T123: 4.51464885859657 | U123: 0 | V123: 5.51464885859657 | W123: -4.73148442936174 | X123: 9.0729177182785e-05 | Y123: 0.000668713771243191 | Z123: =VLOOKUP(N123,[1]D4_vs_D0!$A:$G,3,FALSE) -> -5.493932104
A124: 4D | B124: NC_058522.1 | C124: 18985001 | D124: 18985400 | E124: 400 | F124: * | G124: 401 | H124: Exon (XM_045091072.1/LOC123396043, exon 6 of 11) | I124: 6 | J124: 18983922 | K124: 18987559 | L124: 3638 | M124: 2 | N124: LOC123396043 | O124: XM_045091072.1 | P124: 2159 | Q124: XM_045091072.1 | R124: LOC123396043 | S124: 0 | T124: 5.83464363876366 | U124: 0.561807552115882 | V124: 6.81586404195869 | W124: -4.71287192584558 | X124: 4.58387897418461e-06 | Y124: 5.08634263097023e-05 | Z124: =VLOOKUP(N124,[1]D4_vs_D0!$A:$G,3,FALSE) -> -7.040158659
A125: 4D | B125: NC_058519.1 | C125: 47033892 | D125: 47034291 | E125: 400 | F125: * | G125: 401 | H125: Promoter | I125: 3 | J125: 47033357 | K125: 47034841 | L125: 1485 | M125: 2 | N125: LOC123424793 | O125: XM_045108486.1 | P125: 550 | Q125: XM_045108485.1;XM_045108486.1 | R125: LOC123424792;LOC123424793 | S125: 8053;0 | T125: 11.9681520788575 | U125: 8.13605028170191 | V125: 12.9165931076646 | W125: -4.70121082629184 | X125: 3.56022223198118e-49 | Y125: 7.189868797486e-46 | Z125: =VLOOKUP(N125,[1]D4_vs_D0!$A:$G,3,FALSE) -> -5.788340433
A126: 4D | B126: NC_058524.1 | C126: 34319164 | D126: 34319563 | E126: 400 | F126: * | G126: 401 | H126: 3' UTR | I126: 8 | J126: 34318058 | K126: 34319657 | L126: 1600 | M126: 1 | N126: LOC123408649 | O126: XM_045101707.1 | P126: 1106 | Q126: XM_045100627.1;XM_045101706.1;XM_045101707.1 | R126: LOC123407486;LOC123408649;LOC123408649 | S126: -3435;0;0 | T126: 6.16262771967503 | U126: 1.36754431830058 | V126: 7.13640842356573 | W126: -4.69973700383031 | X126: 8.35478292610802e-08 | Y126: 1.41785580834245e-06 | Z126: =VLOOKUP(N126,[1]D4_vs_D0!$A:$G,3,FALSE) -> -4.94930731
A127: 4D | B127: NC_058519.1 | C127: 342958639 | D127: 342959038 | E127: 400 | F127: * | G127: 401 | H127: Exon (XM_045110012.1/LOC123426225, exon 4 of 7) | I127: 3 | J127: 342957923 | K127: 342969064 | L127: 11142 | M127: 2 | N127: LOC123426225 | O127: XM_045110012.1 | P127: 10026 | Q127: XM_045110012.1 | R127: LOC123426225 | S127: 0 | T127: 8.331847997947 | U127: 5.05757865986461 | V127: 9.25529491300023 | W127: -4.69609078431479 | X127: 1.34940072624699e-19 | Y127: 2.29946532658488e-17 | Z127: =VLOOKUP(N127,[1]D4_vs_D0!$A:$G,3,FALSE) -> -6.337331002
A128: 4D | B128: NC_058522.1 | C128: 321368262 | D128: 321368661 | E128: 400 | F128: * | G128: 401 | H128: 3' UTR | I128: 6 | J128: 321367964 | K128: 321371085 | L128: 3122 | M128: 2 | N128: LOC123395280 | O128: XM_045090256.1 | P128: 2424 | Q128: XM_045090255.1;XM_045090254.1;XM_045090256.1;XM_045090257.1;XM_045090261.1;XM_045090259.1;XM_045090260.1 | R128: LOC123395279;LOC123395279;LOC123395280;LOC123395280;LOC123395281;LOC123395281;LOC123395281 | S128: -3628;-2769;0;0;2691;2691;2691 | T128: 4.29635346840995 | U128: 0 | V128: 5.29635346840995 | W128: -4.68827676684025 | X128: 6.21459140986855e-05 | Y128: 0.000479937566050843 | Z128: =VLOOKUP(N128,[1]D4_vs_D0!$A:$G,3,FALSE) -> -7.607860477
A129: 4D | B129: NW_025422688.1 | C129: 37919 | D129: 38318 | E129: 400 | F129: * | G129: 401 | H129: Exon (XM_045107727.1/LOC123422718, exon 1 of 1) | I129: 195 | J129: 37788 | K129: 39643 | L129: 1856 | M129: 2 | N129: LOC123422718 | O129: XM_045107727.1 | P129: 1325 | Q129: XM_045107726.1;XM_045107727.1 | R129: LOC123422717;LOC123422718 | S129: -1417;0 | T129: 7.60821906214488 | U129: 1.06230873030345 | V129: 8.60047812053953 | W129: -4.67931116690413 | X129: 0.000377194753919975 | Y129: 0.00228409237043895 | Z129: =VLOOKUP(N129,[1]D4_vs_D0!$A:$G,3,FALSE) -> 
A130: 4D | B130: NW_025422676.1 | C130: 9980 | D130: 10379 | E130: 400 | F130: * | G130: 401 | H130: Promoter | I130: 183 | J130: 9902 | K130: 11515 | L130: 1614 | M130: 1 | N130: LOC123422483 | O130: XM_045107691.1 | P130: 78 | Q130: XM_045107690.1;XM_045107691.1 | R130: LOC123422482;LOC123422483 | S130: -168;0 | T130: 6.47986555471545 | U130: 1.41163551673814 | V130: 7.4582028962805 | W130: -4.66838069670854 | X130: 7.05381857865391e-06 | Y130: 7.4974666418903e-05 | Z130: =VLOOKUP(N130,[1]D4_vs_D0!$A:$G,3,FALSE) -> 
A131: 4D | B131: NC_058524.1 | C131: 262778024 | D131: 262778423 | E131: 400 | F131: * | G131: 401 | H131: 3' UTR | I131: 8 | J131: 262773438 | K131: 262778423 | L131: 4986 | M131: 1 | N131: LOC123411341 | O131: XM_045104272.1 | P131: 4586 | Q131: XM_045104272.1 | R131: LOC123411341 | S131: 0 | T131: 5.44953308596639 | U131: 0.600417726247584 | V131: 6.42428608021957 | W131: -4.65115635091601 | X131: 6.83821017141089e-08 | Y131: 1.19049702079002e-06 | Z131: =VLOOKUP(N131,[1]D4_vs_D0!$A:$G,3,FALSE) -> -5.526439338
A132: 4D | B132: NC_058518.1 | C132: 495603665 | D132: 495604064 | E132: 400 | F132: * | G132: 401 | H132: 3' UTR | I132: 2 | J132: 495598141 | K132: 495604081 | L132: 5941 | M132: 1 | N132: LOC123449694 | O132: XM_045127005.1 | P132: 5524 | Q132: XM_045127005.1 | R132: LOC123449694 | S132: 0 | T132: 6.81982357971699 | U132: 2.33356847120478 | V132: 7.78727462224219 | W132: -4.64610564793 | X132: 1.16683673678529e-10 | Y132: 3.57034362111802e-09 | Z132: =VLOOKUP(N132,[1]D4_vs_D0!$A:$G,3,FALSE) -> -4.182233302
A133: 4D | B133: NC_058522.1 | C133: 499790448 | D133: 499790847 | E133: 400 | F133: * | G133: 401 | H133: Promoter | I133: 6 | J133: 499790040 | K133: 499796206 | L133: 6167 | M133: 1 | N133: LOC123400074 | O133: XM_045094473.1 | P133: 408 | Q133: XM_045094472.1;XM_045094470.1;XM_045094473.1 | R133: LOC123400074;LOC123400074;LOC123400074 | S133: 0;0;0 | T133: 6.10347641997982 | U133: 1.06230873030345 | V133: 7.08140041986857 | W133: -4.63653110673311 | X133: 4.92663161680818e-06 | Y133: 5.4219795913592e-05 | Z133: =VLOOKUP(N133,[1]D4_vs_D0!$A:$G,3,FALSE) -> -7.603644744
A134: 4D | B134: NW_025422651.1 | C134: 32215 | D134: 32614 | E134: 400 | F134: * | G134: 401 | H134: 3' UTR | I134: 158 | J134: 30709 | K134: 32564 | L134: 1856 | M134: 1 | N134: LOC123421966 | O134: XM_045107631.1 | P134: 1506 | Q134: XM_045107630.1;XM_045107631.1;XM_045107633.1 | R134: LOC123421965;LOC123421966;LOC123421969 | S134: -1596;0;0 | T134: 9.42475189423965 | U134: 5.25723438134978 | V134: 10.384041065288 | W134: -4.61656400157267 | X134: 4.47935848287065e-10 | Y134: 1.21423683975265e-08 | Z134: =VLOOKUP(N134,[1]D4_vs_D0!$A:$G,3,FALSE) -> 
A135: 4D | B135: NC_058519.1 | C135: 222819762 | D135: 222820161 | E135: 400 | F135: * | G135: 401 | H135: Exon (XM_045109694.1/LOC123425929, exon 3 of 6) | I135: 3 | J135: 222818032 | K135: 222821561 | L135: 3530 | M135: 1 | N135: LOC123425929 | O135: XM_045109694.1 | P135: 1730 | Q135: XM_045109694.1 | R135: LOC123425929 | S135: 0 | T135: 4.13026144058732 | U135: 0 | V135: 5.13026144058732 | W135: -4.58181295739285 | X135: 7.16317212400888e-05 | Y135: 0.000543835567835937 | Z135: =VLOOKUP(N135,[1]D4_vs_D0!$A:$G,3,FALSE) -> -8.202322675
A136: 4D | B136: NC_058522.1 | C136: 494754707 | D136: 494755252 | E136: 546 | F136: * | G136: 547 | H136: 3' UTR | I136: 6 | J136: 494754851 | K136: 494759721 | L136: 4871 | M136: 2 | N136: LOC123397016 | O136: XM_045091735.1 | P136: 4469 | Q136: XM_045091735.1 | R136: LOC123397016 | S136: 0 | T136: 4.00785061556824 | U136: 0 | V136: 5.00785061556824 | W136: -4.57255621880797 | X136: 4.85864601450708e-05 | Y136: 0.000389366493107026 | Z136: =VLOOKUP(N136,[1]D4_vs_D0!$A:$G,3,FALSE) -> -3.149257686
A137: 4D | B137: NW_025422682.1 | C137: 38406 | D137: 39263 | E137: 858 | F137: * | G137: 859 | H137: 3' UTR | I137: 189 | J137: 37405 | K137: 39260 | L137: 1856 | M137: 1 | N137: LOC123422611 | O137: XM_045107709.1 | P137: 1001 | Q137: XM_045107708.1;XM_045107709.1;XM_045107711.1 | R137: LOC123422610;LOC123422611;LOC123422613 | S137: -1091;0;-3762 | T137: 8.60074249326585 | U137: 4.64151412603057 | V137: 9.55360421181284 | W137: -4.55863482520412 | X137: 1.90895033221529e-09 | Y137: 4.73021496430526e-08 | Z137: =VLOOKUP(N137,[1]D4_vs_D0!$A:$G,3,FALSE) -> 
A138: 4D | B138: NC_058519.1 | C138: 510550865 | D138: 510551264 | E138: 400 | F138: * | G138: 401 | H138: Promoter | I138: 3 | J138: 510550032 | K138: 510551988 | L138: 1957 | M138: 1 | N138: LOC123426905 | O138: XM_045110813.1 | P138: 833 | Q138: XM_045110813.1;XM_045110815.1 | R138: LOC123426905;LOC123426907 | S138: 0;4840 | T138: 3.93022329393641 | U138: 0 | V138: 4.93022329393641 | W138: -4.51759890286614 | X138: 5.32241369944121e-05 | Y138: 0.000421514292785158 | Z138: =VLOOKUP(N138,[1]D4_vs_D0!$A:$G,3,FALSE) -> -9.712047022
A139: 4D | B139: NW_025422594.1 | C139: 36777 | D139: 37618 | E139: 842 | F139: * | G139: 843 | H139: Promoter | I139: 110 | J139: 35800 | K139: 37655 | L139: 1856 | M139: 1 | N139: LOC123420899 | O139: XM_045107463.1 | P139: 977 | Q139: XM_045107461.1;XM_045107463.1;XM_045107465.1 | R139: LOC123420898;LOC123420899;LOC123420901 | S139: -1067;0;-3738 | T139: 9.13660212389181 | U139: 5.35168295609491 | V139: 10.083297012161 | W139: -4.51205928810456 | X139: 1.01240945695013e-10 | Y139: 3.12146702032181e-09 | Z139: =VLOOKUP(N139,[1]D4_vs_D0!$A:$G,3,FALSE) -> 
A140: 4D | B140: NC_058522.1 | C140: 196210189 | D140: 196210588 | E140: 400 | F140: * | G140: 401 | H140: 3' UTR | I140: 6 | J140: 196209035 | K140: 196210689 | L140: 1655 | M140: 1 | N140: LOC123397733 | O140: XM_045092268.1 | P140: 1154 | Q140: XM_045092268.1 | R140: LOC123397733 | S140: 0 | T140: 4.06174041292676 | U140: 0 | V140: 5.06174041292676 | W140: -4.50777976569691 | X140: 9.34297399648612e-05 | Y140: 0.000683628115431294 | Z140: =VLOOKUP(N140,[1]D4_vs_D0!$A:$G,3,FALSE) -> -10.01718751
A141: 4D | B141: NC_058523.1 | C141: 396967267 | D141: 396967666 | E141: 400 | F141: * | G141: 401 | H141: 3' UTR | I141: 7 | J141: 396967781 | K141: 396971575 | L141: 3795 | M141: 2 | N141: LOC123402255 | O141: XM_045096149.1 | P141: 3909 | Q141: XM_045096149.1;XM_045096150.1;XM_045096151.1 | R141: LOC123402255;LOC123402255;LOC123402257 | S141: 3909;3909;0 | T141: 6.00491879823243 | U141: 2.75851812506593 | V141: 6.92683141437316 | W141: -4.50584797241567 | X141: 1.21404429012566e-08 | Y141: 2.56729051718196e-07 | Z141: =VLOOKUP(N141,[1]D4_vs_D0!$A:$G,3,FALSE) -> 
A142: 4D | B142: NC_058523.1 | C142: 300794303 | D142: 300794702 | E142: 400 | F142: * | G142: 401 | H142: Exon (XM_045099898.1/LOC123406395, exon 5 of 13) | I142: 7 | J142: 300761169 | K142: 300796676 | L142: 35508 | M142: 2 | N142: LOC123406395 | O142: XM_045099898.1 | P142: 1974 | Q142: XM_045099898.1;XM_045099899.1;XM_045099900.1;XR_006612110.1 | R142: LOC123406395;LOC123406395;LOC123406395;LOC123406396 | S142: 0;0;0;6808 | T142: 7.46570997079359 | U142: 3.92697896461148 | V142: 8.40226536048509 | W142: -4.49468414551764 | X142: 6.306602984841e-09 | Y142: 1.43103199189735e-07 | Z142: =VLOOKUP(N142,[1]D4_vs_D0!$A:$G,3,FALSE) -> -5.412004704
A143: 4D | B143: NC_058521.1 | C143: 51818175 | D143: 51818574 | E143: 400 | F143: * | G143: 401 | H143: Promoter | I143: 5 | J143: 51816820 | K143: 51818560 | L143: 1741 | M143: 2 | N143: LOC123447837 | O143: XM_045124530.1 | P143: 0 | Q143: XM_045124530.1;XM_045124531.1 | R143: LOC123447837;LOC123447838 | S143: 0;4686 | T143: 5.76237326088826 | U143: 1.08970742185078 | V143: 6.7338089182239 | W143: -4.47396552653509 | X143: 1.30928338418394e-06 | Y143: 1.75687561087008e-05 | Z143: =VLOOKUP(N143,[1]D4_vs_D0!$A:$G,3,FALSE) -> -9.243700737
A144: 4D | B144: NC_058519.1 | C144: 538658647 | D144: 538659046 | E144: 400 | F144: * | G144: 401 | H144: Promoter | I144: 3 | J144: 538656709 | K144: 538659383 | L144: 2675 | M144: 2 | N144: LOC123427089 | O144: XM_045111043.1 | P144: 337 | Q144: XM_045111041.1;XM_045111042.1;XM_045111043.1 | R144: LOC123427088;LOC123427088;LOC123427089 | S144: 4931;4930;0 | T144: 8.24661375859285 | U144: 4.18220188688838 | V144: 9.20284074041836 | W144: -4.44926452148735 | X144: 1.25550942623603e-16 | Y144: 1.17304733085423e-14 | Z144: =VLOOKUP(N144,[1]D4_vs_D0!$A:$G,3,FALSE) -> -6.174187815
A145: 4D | B145: NW_025422676.1 | C145: 11125 | D145: 11524 | E145: 400 | F145: * | G145: 401 | H145: 3' UTR | I145: 183 | J145: 9902 | K145: 11515 | L145: 1614 | M145: 1 | N145: LOC123422483 | O145: XM_045107691.1 | P145: 1223 | Q145: XM_045107690.1;XM_045107691.1 | R145: LOC123422482;LOC123422483 | S145: -1313;0 | T145: 8.85303236673377 | U145: 4.95724295542587 | V145: 9.80373843904847 | W145: -4.44831853139468 | X145: 5.46692107672545e-14 | Y145: 3.02478003135536e-12 | Z145: =VLOOKUP(N145,[1]D4_vs_D0!$A:$G,3,FALSE) -> 
A146: 4D | B146: NC_058523.1 | C146: 551212007 | D146: 551212576 | E146: 570 | F146: * | G146: 571 | H146: Exon (XM_045096021.1/LOC123402138, exon 6 of 9) | I146: 7 | J146: 551210682 | K146: 551213641 | L146: 2960 | M146: 1 | N146: LOC123402138 | O146: XM_045096020.1 | P146: 1325 | Q146: XM_045096018.1;XM_045096021.1;XM_045096020.1;XM_045096022.1 | R146: LOC123402137;LOC123402138;LOC123402138;LOC123402139 | S146: -2353;0;0;3468 | T146: 7.29722510294313 | U146: 3.47447298017012 | V146: 8.24532480596352 | W146: -4.44162953730602 | X146: 2.10208480395906e-08 | Y146: 4.20312897187656e-07 | Z146: =VLOOKUP(N146,[1]D4_vs_D0!$A:$G,3,FALSE) -> -6.052940813
A147: 4D | B147: NC_058522.1 | C147: 401847454 | D147: 401847853 | E147: 400 | F147: * | G147: 401 | H147: 3' UTR | I147: 6 | J147: 401844134 | K147: 401847966 | L147: 3833 | M147: 1 | N147: LOC123453162 | O147: XM_045129932.1 | P147: 3320 | Q147: XM_045129933.1;XM_045129932.1;XM_045129934.1 | R147: LOC123453162;LOC123453162;LOC123453163 | S147: 3334;0;6924 | T147: 4.19600959858098 | U147: 0 | V147: 5.19600959858098 | W147: -4.43758556613937 | X147: 0.000203653233953273 | Y147: 0.00132670227731818 | Z147: =VLOOKUP(N147,[1]D4_vs_D0!$A:$G,3,FALSE) -> -6.65771456
A148: 4D | B148: NW_025422542.1 | C148: 25245 | D148: 25644 | E148: 400 | F148: * | G148: 401 | H148: Promoter | I148: 60 | J148: 24620 | K148: 26475 | L148: 1856 | M148: 2 | N148: LOC123419585 | O148: XM_045107191.1 | P148: 831 | Q148: XM_045107190.1;XM_045107191.1;XM_045107192.1 | R148: LOC123419584;LOC123419585;LOC123419586 | S148: -923;0;-3586 | T148: 7.78708862431838 | U148: 4.00308497862113 | V148: 8.73374904157282 | W148: -4.43356284999188 | X148: 5.74213799354847e-07 | Y148: 8.58981309479344e-06 | Z148: =VLOOKUP(N148,[1]D4_vs_D0!$A:$G,3,FALSE) -> 
A149: 4D | B149: NC_058521.1 | C149: 155639273 | D149: 155639672 | E149: 400 | F149: * | G149: 401 | H149: Exon (XM_045125069.1/LOC123448239, exon 5 of 6) | I149: 5 | J149: 155637347 | K149: 155639868 | L149: 2522 | M149: 1 | N149: LOC123448239 | O149: XM_045125069.1 | P149: 1926 | Q149: XM_045125068.1;XM_045125069.1 | R149: LOC123448238;LOC123448239 | S149: 6913;0 | T149: 8.56207498100076 | U149: 4.83409612060614 | V149: 9.50658215878564 | W149: -4.43029885369862 | X149: 5.35544380110367e-13 | Y149: 2.47463697398061e-11 | Z149: =VLOOKUP(N149,[1]D4_vs_D0!$A:$G,3,FALSE) -> -7.875411121
A150: 4D | B150: NC_058519.1 | C150: 468895547 | D150: 468895946 | E150: 400 | F150: * | G150: 401 | H150: 3' UTR | I150: 3 | J150: 468891904 | K150: 468896083 | L150: 4180 | M150: 1 | N150: LOC123426692 | O150: XM_045110560.1 | P150: 3643 | Q150: XM_045110560.1 | R150: LOC123426692 | S150: 0 | T150: 7.20435241859299 | U150: 2.98416360713947 | V150: 8.16512112387955 | W150: -4.42972542699234 | X150: 1.97849951271593e-10 | Y150: 5.6674890296877e-09 | Z150: =VLOOKUP(N150,[1]D4_vs_D0!$A:$G,3,FALSE) -> -5.941408496
A151: 4D | B151: NC_058522.1 | C151: 512432938 | D151: 512433337 | E151: 400 | F151: * | G151: 401 | H151: Exon (XM_045128461.1/LOC123451906, exon 12 of 20) | I151: 6 | J151: 512428702 | K151: 512434664 | L151: 5963 | M151: 1 | N151: LOC123451906 | O151: XM_045128461.1 | P151: 4236 | Q151: XM_045128461.1;XM_045128462.1 | R151: LOC123451906;LOC123451907 | S151: 0;5313 | T151: 5.38764535591305 | U151: 0.638021470420119 | V151: 6.36057880996843 | W151: -4.38998173412647 | X151: 4.60941069402982e-06 | Y151: 5.10066021731135e-05 | Z151: =VLOOKUP(N151,[1]D4_vs_D0!$A:$G,3,FALSE) -> -4.48761565
A152: 4D | B152: NC_058519.1 | C152: 141942019 | D152: 141942418 | E152: 400 | F152: * | G152: 401 | H152: Promoter | I152: 3 | J152: 141940827 | K152: 141942327 | L152: 1501 | M152: 2 | N152: LOC123425578 | O152: XM_045109268.1 | P152: 0 | Q152: XM_045109268.1 | R152: LOC123425578 | S152: 0 | T152: 5.62177608620236 | U152: 1.06230873030345 | V152: 6.59085506202583 | W152: -4.37193958747865 | X152: 1.50449124806327e-06 | Y152: 1.97825617035738e-05 | Z152: =VLOOKUP(N152,[1]D4_vs_D0!$A:$G,3,FALSE) -> -5.884245232
A153: 4D | B153: NC_058519.1 | C153: 610885676 | D153: 610886075 | E153: 400 | F153: * | G153: 401 | H153: Exon (XM_045111901.1/LOC123427785, exon 2 of 3) | I153: 3 | J153: 610884514 | K153: 610887814 | L153: 3301 | M153: 2 | N153: LOC123427785 | O153: XM_045111901.1 | P153: 1739 | Q153: XM_045111901.1;XM_045111902.1 | R153: LOC123427785;LOC123427786 | S153: 0;5544 | T153: 4.66593497983138 | U153: 0 | V153: 5.66593497983138 | W153: -4.35910087475972 | X153: 0.000598852951278233 | Y153: 0.00343574867927952 | Z153: =VLOOKUP(N153,[1]D4_vs_D0!$A:$G,3,FALSE) -> -5.182080459
A154: 4D | B154: NW_025422724.1 | C154: 40101 | D154: 40984 | E154: 884 | F154: * | G154: 885 | H154: 3' UTR | I154: 225 | J154: 39078 | K154: 40933 | L154: 1856 | M154: 1 | N154: LOC123423272 | O154: XM_045107812.1 | P154: 1023 | Q154: XM_045107811.1;XM_045107812.1;XM_045107814.1 | R154: LOC123423270;LOC123423272;LOC123423274 | S154: -1113;0;-3784 | T154: 9.44304036805165 | U154: 5.8211319805447 | V154: 10.3832249013081 | W154: -4.35434793061723 | X154: 1.196534906417e-11 | Y154: 4.23930218159495e-10 | Z154: =VLOOKUP(N154,[1]D4_vs_D0!$A:$G,3,FALSE) -> 
A155: 4D | B155: NW_025422610.1 | C155: 19389 | D155: 19788 | E155: 400 | F155: * | G155: 401 | H155: 3' UTR | I155: 123 | J155: 19370 | K155: 21225 | L155: 1856 | M155: 2 | N155: LOC123421214 | O155: XM_045107509.1 | P155: 1437 | Q155: XM_045107508.1;XM_045107509.1;XM_045107510.1 | R155: LOC123421213;LOC123421214;LOC123421215 | S155: -1529;0;-4192 | T155: 10.5435312057988 | U155: 6.15011435818603 | V155: 11.5087925924141 | W155: -4.35260071700034 | X155: 3.10373161164559e-05 | Y155: 0.000265592626682977 | Z155: =VLOOKUP(N155,[1]D4_vs_D0!$A:$G,3,FALSE) -> 
A156: 4D | B156: NC_058518.1 | C156: 228505180 | D156: 228505579 | E156: 400 | F156: * | G156: 401 | H156: Promoter | I156: 2 | J156: 228505262 | K156: 228506255 | L156: 994 | M156: 2 | N156: LOC123429294 | O156: XM_045113353.1 | P156: 676 | Q156: XM_045113353.1 | R156: LOC123429294 | S156: 0 | T156: 4.73102193918422 | U156: 0 | V156: 5.71759478051489 | W156: -4.34628912646631 | X156: 0.000109585964544532 | Y156: 0.000787575997856521 | Z156: =VLOOKUP(N156,[1]D4_vs_D0!$A:$G,3,FALSE) -> -9.493428584
A157: 4D | B157: NW_025422590.1 | C157: 5724 | D157: 6577 | E157: 854 | F157: * | G157: 855 | H157: Promoter | I157: 106 | J157: 4976 | K157: 6589 | L157: 1614 | M157: 1 | N157: LOC123420794 | O157: XM_045107432.1 | P157: 748 | Q157: XM_045107431.1;XM_045107432.1 | R157: LOC123420793;LOC123420794 | S157: 0;0 | T157: 9.02124083265958 | U157: 5.41925389208182 | V157: 9.96057594326456 | W157: -4.33094627666909 | X157: 4.69162332749598e-14 | Y157: 2.66893896052905e-12 | Z157: =VLOOKUP(N157,[1]D4_vs_D0!$A:$G,3,FALSE) -> 
A158: 4D | B158: NC_058521.1 | C158: 155638190 | D158: 155638589 | E158: 400 | F158: * | G158: 401 | H158: Promoter | I158: 5 | J158: 155637347 | K158: 155639868 | L158: 2522 | M158: 1 | N158: LOC123448239 | O158: XM_045125069.1 | P158: 843 | Q158: XM_045125068.1;XM_045125069.1 | R158: LOC123448238;LOC123448239 | S158: 5830;0 | T158: 9.77637449034644 | U158: 6.10279125507785 | V158: 10.7187062337071 | W158: -4.32215181816966 | X158: 6.76560106754609e-14 | Y158: 3.64350169490916e-12 | Z158: =VLOOKUP(N158,[1]D4_vs_D0!$A:$G,3,FALSE) -> -7.875411121
A159: 4D | B159: NC_058520.1 | C159: 425218274 | D159: 425218673 | E159: 400 | F159: * | G159: 401 | H159: 3' UTR | I159: 4 | J159: 425216603 | K159: 425217526 | L159: 924 | M159: 1 | N159: LOC123444082 | O159: XM_045120694.1 | P159: 1671 | Q159: XM_045120692.1;XM_045120693.1;XM_045120694.1 | R159: LOC123444080;LOC123444081;LOC123444082 | S159: 7856;0;1671 | T159: 4.86977876336959 | U159: 0.0343796115111217 | V159: 5.84428843765736 | W159: -4.32022939857926 | X159: 7.19034619747233e-06 | Y159: 7.62252186130991e-05 | Z159: =VLOOKUP(N159,[1]D4_vs_D0!$A:$G,3,FALSE) -> 
A160: 4D | B160: NC_058519.1 | C160: 510551640 | D160: 510552039 | E160: 400 | F160: * | G160: 401 | H160: 3' UTR | I160: 3 | J160: 510550032 | K160: 510551988 | L160: 1957 | M160: 1 | N160: LOC123426905 | O160: XM_045110813.1 | P160: 1608 | Q160: XM_045110813.1;XM_045110814.1;XM_045110815.1 | R160: LOC123426905;LOC123426906;LOC123426907 | S160: 0;9453;4065 | T160: 3.76261258768282 | U160: 0 | V160: 4.76261258768282 | W160: -4.31770246889978 | X160: 0.000117896978636562 | Y160: 0.00084131783871568 | Z160: =VLOOKUP(N160,[1]D4_vs_D0!$A:$G,3,FALSE) -> -9.712047022
A161: 4D | B161: NC_058522.1 | C161: 95710834 | D161: 95711233 | E161: 400 | F161: * | G161: 401 | H161: Exon (XM_045093066.1/LOC123398612, exon 5 of 5) | I161: 6 | J161: 95708207 | K161: 95711511 | L161: 3305 | M161: 1 | N161: LOC123398612 | O161: XM_045093066.1 | P161: 2627 | Q161: XM_045093066.1;XM_045093067.1;XR_006610220.1 | R161: LOC123398612;LOC123398613;LOC123398613 | S161: 0;11782;11782 | T161: 3.72045587705632 | U161: 0 | V161: 4.72045587705632 | W161: -4.31290412771543 | X161: 0.000102090497922586 | Y161: 0.00073896688370847 | Z161: =VLOOKUP(N161,[1]D4_vs_D0!$A:$G,3,FALSE) -> -4.491373177
A162: 4D | B162: NC_058521.1 | C162: 45020947 | D162: 45021346 | E162: 400 | F162: * | G162: 401 | H162: Exon (XM_045128159.1/LOC123451153, exon 3 of 6) | I162: 5 | J162: 45020215 | K162: 45022382 | L162: 2168 | M162: 2 | N162: LOC123451153 | O162: XM_045128159.1 | P162: 1036 | Q162: XM_045128159.1 | R162: LOC123451153 | S162: 0 | T162: 3.86765650075878 | U162: 0 | V162: 4.86765650075878 | W162: -4.3059143027411 | X162: 0.000179248055945873 | Y162: 0.00119864718206189 | Z162: =VLOOKUP(N162,[1]D4_vs_D0!$A:$G,3,FALSE) -> -7.752390419
A163: 4D | B163: NC_058520.1 | C163: 485544011 | D163: 485544410 | E163: 400 | F163: * | G163: 401 | H163: Promoter | I163: 4 | J163: 485543341 | K163: 485545819 | L163: 2479 | M163: 1 | N163: LOC123444406 | O163: XM_045121107.1 | P163: 670 | Q163: XM_045121107.1 | R163: LOC123444406 | S163: 0 | T163: 4.76636962894466 | U163: 0 | V163: 5.75219765673922 | W163: -4.30549041444705 | X163: 0.000149582400358055 | Y163: 0.00102748863103093 | Z163: =VLOOKUP(N163,[1]D4_vs_D0!$A:$G,3,FALSE) -> -4.362878242
A164: 4D | B164: NW_025422566.1 | C164: 14429 | D164: 14828 | E164: 400 | F164: * | G164: 401 | H164: 3' UTR | I164: 82 | J164: 14391 | K164: 16246 | L164: 1856 | M164: 2 | N164: LOC123420217 | O164: XM_045107300.1 | P164: 1418 | Q164: XM_045107299.1;XM_045107300.1;XM_045107303.1 | R164: LOC123420216;LOC123420217;LOC123420219 | S164: -1510;0;-4173 | T164: 8.92098882331483 | U164: 3.87360975285392 | V164: 9.899008391106 | W164: -4.295277275559 | X164: 0.000349729653387494 | Y164: 0.00214348720793944 | Z164: =VLOOKUP(N164,[1]D4_vs_D0!$A:$G,3,FALSE) -> 
A165: 4D | B165: NC_058524.1 | C165: 611875690 | D165: 611876089 | E165: 400 | F165: * | G165: 401 | H165: 3' UTR | I165: 8 | J165: 611875888 | K165: 611877420 | L165: 1533 | M165: 2 | N165: LOC123412131 | O165: XM_045105078.1 | P165: 1331 | Q165: XM_045105078.1 | R165: LOC123412131 | S165: 0 | T165: 5.98377772391198 | U165: 1.56180755211588 | V165: 6.94972798403828 | W165: -4.26567026184748 | X165: 2.45619237471377e-06 | Y165: 3.03766716295687e-05 | Z165: =VLOOKUP(N165,[1]D4_vs_D0!$A:$G,3,FALSE) -> -5.021547794
A166: 4D | B166: NW_025422610.1 | C166: 19971 | D166: 20370 | E166: 400 | F166: * | G166: 401 | H166: Promoter | I166: 123 | J166: 19370 | K166: 21225 | L166: 1856 | M166: 2 | N166: LOC123421214 | O166: XM_045107509.1 | P166: 855 | Q166: XM_045107508.1;XM_045107509.1;XM_045107510.1 | R166: LOC123421213;LOC123421214;LOC123421215 | S166: -947;0;-3610 | T166: 7.32975699138151 | U166: 3.50532093436702 | V166: 8.27791833870008 | W166: -4.24533353433399 | X166: 2.67298544326422e-06 | Y166: 3.27157218343763e-05 | Z166: =VLOOKUP(N166,[1]D4_vs_D0!$A:$G,3,FALSE) -> 
A167: 4D | B167: NC_058522.1 | C167: 324677451 | D167: 324677850 | E167: 400 | F167: * | G167: 401 | H167: 3' UTR | I167: 6 | J167: 324677826 | K167: 324679891 | L167: 2066 | M167: 2 | N167: LOC123397927 | O167: XM_045092439.1 | P167: 2041 | Q167: XM_045092438.1;XM_045092439.1 | R167: LOC123397925;LOC123397927 | S167: 0;0 | T167: 5.08896764627428 | U167: 0.600417726247584 | V167: 6.05647100842762 | W167: -4.2400674771488 | X167: 1.63877418244064e-06 | Y167: 2.11886818012046e-05 | Z167: =VLOOKUP(N167,[1]D4_vs_D0!$A:$G,3,FALSE) -> 
A168: 4D | B168: NC_058523.1 | C168: 51183522 | D168: 51183921 | E168: 400 | F168: * | G168: 401 | H168: Promoter | I168: 7 | J168: 51182950 | K168: 51184235 | L168: 1286 | M168: 1 | N168: LOC123402816 | O168: XM_045096775.1 | P168: 572 | Q168: XM_045096775.1 | R168: LOC123402816 | S168: 0 | T168: 3.92115579121547 | U168: 0 | V168: 4.92115579121547 | W168: -4.22949308508652 | X168: 0.00031201550372819 | Y168: 0.00194180372813276 | Z168: =VLOOKUP(N168,[1]D4_vs_D0!$A:$G,3,FALSE) -> -4.516763313
A169: 4D | B169: NC_058521.1 | C169: 556140465 | D169: 556140864 | E169: 400 | F169: * | G169: 401 | H169: 3' UTR | I169: 5 | J169: 556140475 | K169: 556142063 | L169: 1589 | M169: 2 | N169: LOC123449489 | O169: XM_045126730.1 | P169: 1199 | Q169: XM_045126729.1;XM_045126730.1;unassigned_transcript_582 | R169: LOC123449488;LOC123449489;TRNAL-CAA_10 | S169: 0;0;-1818 | T169: 3.94209778549287 | U169: 0 | V169: 4.94209778549287 | W169: -4.21346724061357 | X169: 0.000355035833040563 | Y169: 0.00216633478994968 | Z169: =VLOOKUP(N169,[1]D4_vs_D0!$A:$G,3,FALSE) -> -6.170137413
A170: 4D | B170: NC_058523.1 | C170: 34726814 | D170: 34727213 | E170: 400 | F170: * | G170: 401 | H170: Promoter | I170: 7 | J170: 34726629 | K170: 34727233 | L170: 605 | M170: 1 | N170: LOC123402174 | O170: XM_045096054.1 | P170: 185 | Q170: XM_045096054.1 | R170: LOC123402174 | S170: 0 | T170: 7.4784220758965 | U170: 2.43627667003202 | V170: 8.45636114658293 | W170: -4.20113101077477 | X170: 0.000407071360922502 | Y170: 0.00243219116385501 | Z170: =VLOOKUP(N170,[1]D4_vs_D0!$A:$G,3,FALSE) -> -7.384027892
A171: 4D | B171: NC_058519.1 | C171: 18358786 | D171: 18359185 | E171: 400 | F171: * | G171: 401 | H171: Promoter | I171: 3 | J171: 18357812 | K171: 18359323 | L171: 1512 | M171: 1 | N171: LOC123424517 | O171: XM_045108146.1 | P171: 974 | Q171: XM_045108146.1 | R171: LOC123424517 | S171: 0 | T171: 4.00432538737733 | U171: 0 | V171: 5.00432538737733 | W171: -4.19668962017685 | X171: 0.000435627252668049 | Y171: 0.0025799097852291 | Z171: =VLOOKUP(N171,[1]D4_vs_D0!$A:$G,3,FALSE) -> -13.44923819
A172: 4D | B172: NC_058522.1 | C172: 448740044 | D172: 448740443 | E172: 400 | F172: * | G172: 401 | H172: 3' UTR | I172: 6 | J172: 448725047 | K172: 448740428 | L172: 15382 | M172: 1 | N172: LOC123398282 | O172: XM_045092763.1 | P172: 14997 | Q172: XM_045092763.1 | R172: LOC123398282 | S172: 0 | T172: 4.22297576892923 | U172: 0 | V172: 5.20384297357865 | W172: -4.17979703050294 | X172: 3.96133289003877e-05 | Y172: 0.000327194755477844 | Z172: =VLOOKUP(N172,[1]D4_vs_D0!$A:$G,3,FALSE) -> -3.118943483
A173: 4D | B173: NC_058524.1 | C173: 44064515 | D173: 44064914 | E173: 400 | F173: * | G173: 401 | H173: Exon (XM_045099954.1/LOC123406939, exon 3 of 15) | I173: 8 | J173: 44060397 | K173: 44067768 | L173: 7372 | M173: 2 | N173: LOC123406939 | O173: XM_045099954.1 | P173: 2854 | Q173: XM_045099954.1;XM_045104158.1 | R173: LOC123406939;LOC123411218 | S173: 0;-4545 | T173: 3.59176146965259 | U173: 0 | V173: 4.59176146965259 | W173: -4.17692884965182 | X173: 0.000167789996060599 | Y173: 0.00112950632348126 | Z173: =VLOOKUP(N173,[1]D4_vs_D0!$A:$G,3,FALSE) -> -4.423236595
A174: 4D | B174: NW_025422490.1 | C174: 264929 | D174: 265328 | E174: 400 | F174: * | G174: 401 | H174: Exon (XM_045106859.1/LOC123417011, exon 1 of 1) | I174: 14 | J174: 262003 | K174: 267156 | L174: 5154 | M174: 2 | N174: LOC123417011 | O174: XM_045106859.1 | P174: 1828 | Q174: XM_045106859.1;XR_006616558.1 | R174: LOC123417011;LOC123417023 | S174: 0;13087 | T174: 6.40423084270578 | U174: 0.0343796115111217 | V174: 7.39548212501706 | W174: -4.1757964119448 | X174: 0.0011838795690862 | Y174: 0.00606813398418677 | Z174: =VLOOKUP(N174,[1]D4_vs_D0!$A:$G,3,FALSE) -> 
A175: 4D | B175: NC_058524.1 | C175: 139237439 | D175: 139237838 | E175: 400 | F175: * | G175: 401 | H175: Exon (XM_045104145.1/LOC123411202, exon 9 of 13) | I175: 8 | J175: 139233692 | K175: 139238894 | L175: 5203 | M175: 1 | N175: LOC123411202 | O175: XM_045104145.1 | P175: 3747 | Q175: XM_045104145.1;XM_045104147.1;XM_045104146.1 | R175: LOC123411202;LOC123411203;LOC123411203 | S175: 0;8576;8581 | T175: 7.63396705287627 | U175: 4.22763896882232 | V175: 8.56427469905424 | W175: -4.16562203370051 | X175: 2.47348581772662e-08 | Y175: 4.84971321252321e-07 | Z175: =VLOOKUP(N175,[1]D4_vs_D0!$A:$G,3,FALSE) -> -4.975231006
A176: 4D | B176: NC_058524.1 | C176: 222251313 | D176: 222251712 | E176: 400 | F176: * | G176: 401 | H176: 3' UTR | I176: 8 | J176: 222249875 | K176: 222251712 | L176: 1838 | M176: 1 | N176: LOC123411704 | O176: XM_045104667.1 | P176: 1438 | Q176: XM_045104665.1;XM_045104666.1;XM_045104668.1;XM_045104667.1 | R176: LOC123411703;LOC123411703;LOC123411704;LOC123411704 | S176: 3903;3903;0;0 | T176: 4.75990317798915 | U176: 0 | V176: 5.73346239987318 | W176: -4.16322302188659 | X176: 2.35427142178174e-05 | Y176: 0.000210373944083549 | Z176: =VLOOKUP(N176,[1]D4_vs_D0!$A:$G,3,FALSE) -> -5.714490466
A177: 4D | B177: NC_058521.1 | C177: 92656454 | D177: 92657177 | E177: 724 | F177: * | G177: 725 | H177: Promoter | I177: 5 | J177: 92656558 | K177: 92657538 | L177: 981 | M177: 1 | N177: LOC123447988 | O177: XM_045124744.1 | P177: 0 | Q177: XM_045124744.1 | R177: LOC123447988 | S177: 0 | T177: 7.87295427634456 | U177: 4.09407478171408 | V177: 8.81942134067927 | W177: -4.1585883206551 | X177: 8.93498274581025e-15 | Y177: 5.91613037874223e-13 | Z177: =VLOOKUP(N177,[1]D4_vs_D0!$A:$G,3,FALSE) -> -6.103249942
A178: 4D | B178: NW_025422580.1 | C178: 39579 | D178: 39978 | E178: 400 | F178: * | G178: 401 | H178: 3' UTR | I178: 96 | J178: 39562 | K178: 41417 | L178: 1856 | M178: 2 | N178: LOC123420587 | O178: XM_045107390.1 | P178: 1439 | Q178: XM_045107389.1;XM_045107390.1 | R178: LOC123420585;LOC123420587 | S178: -1531;0 | T178: 9.84611854100428 | U178: 4.95598717572998 | V178: 10.821585255427 | W178: -4.14224410285116 | X178: 0.000578252388914897 | Y178: 0.00333761906222395 | Z178: =VLOOKUP(N178,[1]D4_vs_D0!$A:$G,3,FALSE) -> 
A179: 4D | B179: NW_025422688.1 | C179: 38421 | D179: 38820 | E179: 400 | F179: * | G179: 401 | H179: Promoter | I179: 195 | J179: 37788 | K179: 39643 | L179: 1856 | M179: 2 | N179: LOC123422718 | O179: XM_045107727.1 | P179: 823 | Q179: XM_045107726.1;XM_045107727.1 | R179: LOC123422717;LOC123422718 | S179: -915;0 | T179: 8.26230884896288 | U179: 2.97658369110517 | V179: 9.24369736433299 | W179: -4.1394958751336 | X179: 0.0012248615306844 | Y179: 0.00624648449802307 | Z179: =VLOOKUP(N179,[1]D4_vs_D0!$A:$G,3,FALSE) -> 
A180: 4D | B180: NC_058523.1 | C180: 93180353 | D180: 93180752 | E180: 400 | F180: * | G180: 401 | H180: 3' UTR | I180: 7 | J180: 93179000 | K180: 93179196 | L180: 197 | M180: 1 | N180: LOC123406450 | O180: XR_006612153.1 | P180: 1353 | Q180: XM_045095741.1;XR_006612153.1 | R180: LOC123401883;LOC123406450 | S180: 0;1353 | T180: 4.02757015699291 | U180: 0 | V180: 5.02757015699291 | W180: -4.13829092306273 | X180: 0.000588201943796229 | Y180: 0.0033842559130954 | Z180: =VLOOKUP(N180,[1]D4_vs_D0!$A:$G,3,FALSE) -> 
A181: 4D | B181: NC_058519.1 | C181: 36474975 | D181: 36475374 | E181: 400 | F181: * | G181: 401 | H181: Promoter | I181: 3 | J181: 36474370 | K181: 36476257 | L181: 1888 | M181: 2 | N181: LOC123424686 | O181: XM_045108350.1 | P181: 883 | Q181: XM_045108350.1 | R181: LOC123424686 | S181: 0 | T181: 4.59271323778748 | U181: 0 | V181: 5.57792817269027 | W181: -4.13472743061406 | X181: 0.00026399879237307 | Y181: 0.00167392640878309 | Z181: =VLOOKUP(N181,[1]D4_vs_D0!$A:$G,3,FALSE) -> -4.813260372
A182: 4D | B182: NC_058521.1 | C182: 585616746 | D182: 585617145 | E182: 400 | F182: * | G182: 401 | H182: Exon (XM_045127073.1/LOC123449752, exon 7 of 11) | I182: 5 | J182: 585613595 | K182: 585620560 | L182: 6966 | M182: 2 | N182: LOC123449752 | O182: XM_045127073.1 | P182: 3415 | Q182: XM_045127072.1;XM_045127073.1 | R182: LOC123449751;LOC123449752 | S182: 7088;0 | T182: 6.18616863230591 | U182: 2.15975526176824 | V182: 7.14120898757239 | W182: -4.09780630360589 | X182: 1.35070333663679e-07 | Y182: 2.24505793278848e-06 | Z182: =VLOOKUP(N182,[1]D4_vs_D0!$A:$G,3,FALSE) -> -3.481862957
A183: 4D | B183: NC_058519.1 | C183: 154110500 | D183: 154110899 | E183: 400 | F183: * | G183: 401 | H183: Exon (XM_045109330.1/LOC123425633, exon 3 of 12) | I183: 3 | J183: 154107449 | K183: 154112246 | L183: 4798 | M183: 2 | N183: LOC123425633 | O183: XM_045109330.1 | P183: 1347 | Q183: XM_045109330.1 | R183: LOC123425633 | S183: 0 | T183: 6.67237170129737 | U183: 2.68628696345156 | V183: 7.62611688996503 | W183: -4.08657822977122 | X183: 2.19726174131382e-07 | Y183: 3.54989606926661e-06 | Z183: =VLOOKUP(N183,[1]D4_vs_D0!$A:$G,3,FALSE) -> -4.899630761
A184: 4D | B184: NC_058521.1 | C184: 430191068 | D184: 430191467 | E184: 400 | F184: * | G184: 401 | H184: Promoter | I184: 5 | J184: 430190812 | K184: 430191528 | L184: 717 | M184: 2 | N184: LOC123448830 | O184: XM_045125850.1 | P184: 61 | Q184: XM_045125850.1;XM_045127754.1 | R184: LOC123448830;LOC123450583 | S184: 0;84851 | T184: 5.1403038379355 | U184: 0 | V184: 6.12937996349096 | W184: -4.08367989685877 | X184: 0.000873400828877705 | Y184: 0.0047735669118228 | Z184: =VLOOKUP(N184,[1]D4_vs_D0!$A:$G,3,FALSE) -> -4.738620985
A185: 4D | B185: NC_058522.1 | C185: 479998152 | D185: 479998551 | E185: 400 | F185: * | G185: 401 | H185: Promoter | I185: 6 | J185: 479997241 | K185: 479999252 | L185: 2012 | M185: 2 | N185: LOC123395851 | O185: XM_045090885.1 | P185: 701 | Q185: XM_045090885.1 | R185: LOC123395851 | S185: 0 | T185: 4.72383120896775 | U185: 0 | V185: 5.69671466265647 | W185: -4.08125119820886 | X185: 4.53981954983152e-05 | Y185: 0.00036672662323539 | Z185: =VLOOKUP(N185,[1]D4_vs_D0!$A:$G,3,FALSE) -> -4.52077033
A186: 4D | B186: NC_058519.1 | C186: 541909502 | D186: 541909901 | E186: 400 | F186: * | G186: 401 | H186: 3' UTR | I186: 3 | J186: 541909563 | K186: 541912779 | L186: 3217 | M186: 2 | N186: LOC123427111 | O186: XM_045111068.1 | P186: 2878 | Q186: XM_045111068.1 | R186: LOC123427111 | S186: 0 | T186: 3.62819634802514 | U186: 0 | V186: 4.62819634802514 | W186: -4.07587694044927 | X186: 0.000344824421195391 | Y186: 0.00211663501095469 | Z186: =VLOOKUP(N186,[1]D4_vs_D0!$A:$G,3,FALSE) -> -8.638125731
A187: 4D | B187: NC_058522.1 | C187: 540584695 | D187: 540585094 | E187: 400 | F187: * | G187: 401 | H187: 3' UTR | I187: 6 | J187: 540583249 | K187: 540585313 | L187: 2065 | M187: 1 | N187: LOC123398669 | O187: XM_045093119.1 | P187: 1446 | Q187: XM_045093119.1 | R187: LOC123398669 | S187: 0 | T187: 5.71375119962708 | U187: 2.53180059433826 | V187: 6.63199331591794 | W187: -4.06679543393267 | X187: 0.000133857545256562 | Y187: 0.000937002816795935 | Z187: =VLOOKUP(N187,[1]D4_vs_D0!$A:$G,3,FALSE) -> -8.354365487
A188: 4D | B188: NC_058520.1 | C188: 546652996 | D188: 546653395 | E188: 400 | F188: * | G188: 401 | H188: 3' UTR | I188: 4 | J188: 546647486 | K188: 546653668 | L188: 6183 | M188: 1 | N188: LOC123444878 | O188: XM_045121758.1 | P188: 5510 | Q188: XM_045121758.1 | R188: LOC123444878 | S188: 0 | T188: 4.56667916007887 | U188: 0 | V188: 5.536408983753 | W188: -4.06153905140281 | X188: 1.68369619001176e-05 | Y188: 0.000157417798876331 | Z188: =VLOOKUP(N188,[1]D4_vs_D0!$A:$G,3,FALSE) -> -2.740228164
A189: 4D | B189: NC_058520.1 | C189: 338616436 | D189: 338616835 | E189: 400 | F189: * | G189: 401 | H189: 3' UTR | I189: 4 | J189: 338599236 | K189: 338616876 | L189: 17641 | M189: 1 | N189: LOC123443792 | O189: XM_045120323.1 | P189: 17200 | Q189: XM_045120323.1 | R189: LOC123443792 | S189: 0 | T189: 4.25623925341162 | U189: 0 | V189: 5.25623925341162 | W189: -4.04626535448079 | X189: 0.0011075555129745 | Y189: 0.00578020162084157 | Z189: =VLOOKUP(N189,[1]D4_vs_D0!$A:$G,3,FALSE) -> -2.148260588
A190: 4D | B190: NC_058524.1 | C190: 625258627 | D190: 625259026 | E190: 400 | F190: * | G190: 401 | H190: Promoter | I190: 8 | J190: 625257792 | K190: 625261520 | L190: 3729 | M190: 1 | N190: LOC123408513 | O190: XM_045101608.1 | P190: 835 | Q190: XM_045101603.1;XM_045101604.1;XM_045101605.1;XM_045101609.1;XM_045101606.1;XM_045101607.1;XM_045101608.1 | R190: LOC123408512;LOC123408513;LOC123408513;LOC123408513;LOC123408513;LOC123408513;LOC123408513 | S190: 5583;0;0;0;0;0;0 | T190: 5.23762246982972 | U190: 1.08970742185078 | V190: 6.19634666886989 | W190: -4.04213567142439 | X190: 2.896502856792e-06 | Y190: 3.50117266471025e-05 | Z190: =VLOOKUP(N190,[1]D4_vs_D0!$A:$G,3,FALSE) -> -7.391346039
A191: 4D | B191: NC_058518.1 | C191: 452939156 | D191: 452939555 | E191: 400 | F191: * | G191: 401 | H191: Promoter | I191: 2 | J191: 452938907 | K191: 452938980 | L191: 74 | M191: 1 | N191: TRNAI-AAU_1 | O191: unassigned_transcript_71 | P191: 249 | Q191: XM_045121451.1;XM_045121460.1;XM_045121472.1;unassigned_transcript_70;unassigned_transcript_71 | R191: LOC123444654;LOC123444664;LOC123444673;TRNAI-AAU;TRNAI-AAU_1 | S191: 0;-905;6547;3047;249 | T191: 7.13633638638078 | U191: 3.23841252661173 | V191: 8.08711659189993 | W191: -4.04003671939861 | X191: 0.00100546717510853 | Y191: 0.00532251889942772 | Z191: =VLOOKUP(N191,[1]D4_vs_D0!$A:$G,3,FALSE) -> -5.817106929
A192: 4D | B192: NC_058520.1 | C192: 573146744 | D192: 573147143 | E192: 400 | F192: * | G192: 401 | H192: Intron (XM_045122185.1/LOC123445225, intron 13 of 14) | I192: 4 | J192: 573142982 | K192: 573148193 | L192: 5212 | M192: 1 | N192: LOC123445225 | O192: XM_045122185.1 | P192: 3762 | Q192: XM_045122184.1;XM_045122185.1 | R192: LOC123445224;LOC123445225 | S192: 0;0 | T192: 3.68190598292611 | U192: 0 | V192: 4.68190598292611 | W192: -4.03935830030577 | X192: 0.000472694958290352 | Y192: 0.00278717508983173 | Z192: =VLOOKUP(N192,[1]D4_vs_D0!$A:$G,3,FALSE) -> -8.744711669
A193: 4D | B193: NC_058524.1 | C193: 346582830 | D193: 346583229 | E193: 400 | F193: * | G193: 401 | H193: Exon (XM_045100032.1/LOC123407002, exon 5 of 7) | I193: 8 | J193: 346580220 | K193: 346612434 | L193: 32215 | M193: 1 | N193: LOC123407002 | O193: XM_045100029.1 | P193: 2610 | Q193: XM_045100032.1;XR_006612516.1;XM_045100030.1;XM_045100031.1;XM_045100028.1;XM_045100029.1 | R193: LOC123407002;LOC123407002;LOC123407002;LOC123407002;LOC123407002;LOC123407002 | S193: 0;0;0;0;0;0 | T193: 6.13468619115454 | U193: 2.32206302301733 | V193: 7.08241352251604 | W193: -4.03624191514318 | X193: 1.10965175074763e-11 | Y193: 4.06475373086168e-10 | Z193: =VLOOKUP(N193,[1]D4_vs_D0!$A:$G,3,FALSE) -> -5.270197722
A194: 4D | B194: NC_058523.1 | C194: 15849618 | D194: 15850017 | E194: 400 | F194: * | G194: 401 | H194: Exon (XM_045095161.1/LOC123401374, exon 2 of 14) | I194: 7 | J194: 15848492 | K194: 15853443 | L194: 4952 | M194: 1 | N194: LOC123401374 | O194: XM_045095161.1 | P194: 1126 | Q194: XM_045095161.1 | R194: LOC123401374 | S194: 0 | T194: 4.82368365428497 | U194: 0 | V194: 5.81006626943931 | W194: -4.03437204132895 | X194: 0.00067393849208764 | Y194: 0.00378586588253404 | Z194: =VLOOKUP(N194,[1]D4_vs_D0!$A:$G,3,FALSE) -> -4.839480195
A195: 4D | B195: NC_058522.1 | C195: 56663005 | D195: 56663404 | E195: 400 | F195: * | G195: 401 | H195: 3' UTR | I195: 6 | J195: 56665083 | K195: 56665757 | L195: 675 | M195: 1 | N195: LOC123396499 | O195: XR_006609914.1 | P195: -1679 | Q195: XM_045091413.1;XM_045091414.1;XR_006609914.1 | R195: LOC123396496;LOC123396497;LOC123396499 | S195: 0;0;-1679 | T195: 3.93392045907928 | U195: 0 | V195: 4.93392045907928 | W195: -4.01940419217839 | X195: 0.000820267401657149 | Y195: 0.00451986362250099 | Z195: =VLOOKUP(N195,[1]D4_vs_D0!$A:$G,3,FALSE) -> 
A196: 4D | B196: NC_058523.1 | C196: 536818966 | D196: 536819365 | E196: 400 | F196: * | G196: 401 | H196: Exon (XM_045094931.1/LOC123401197, exon 9 of 23) | I196: 7 | J196: 536812065 | K196: 536822366 | L196: 10302 | M196: 2 | N196: LOC123401197 | O196: XM_045094931.1 | P196: 3001 | Q196: XM_045094931.1;XM_045094932.1 | R196: LOC123401197;LOC123401197 | S196: 0;0 | T196: 4.16525308174836 | U196: 0 | V196: 5.16525308174836 | W196: -4.0171335838271 | X196: 0.00110910033576435 | Y196: 0.00578020162084157 | Z196: =VLOOKUP(N196,[1]D4_vs_D0!$A:$G,3,FALSE) -> -3.556727414
A197: 4D | B197: NC_058519.1 | C197: 618248939 | D197: 618249338 | E197: 400 | F197: * | G197: 401 | H197: Exon (XM_045112024.1/LOC123427884, exon 3 of 3) | I197: 3 | J197: 618246790 | K197: 618250000 | L197: 3211 | M197: 1 | N197: LOC123427884 | O197: XM_045112024.1 | P197: 2149 | Q197: XM_045112024.1;XM_045112025.1 | R197: LOC123427884;LOC123427885 | S197: 0;5013 | T197: 3.45046546883067 | U197: 0 | V197: 4.45046546883067 | W197: -4.01229518907137 | X197: 0.000299981290798271 | Y197: 0.00187557961847402 | Z197: =VLOOKUP(N197,[1]D4_vs_D0!$A:$G,3,FALSE) -> -5.426330108
A198: 4D | B198: NC_058519.1 | C198: 619111744 | D198: 619112143 | E198: 400 | F198: * | G198: 401 | H198: Exon (XM_045112038.1/LOC123427900, exon 4 of 16) | I198: 3 | J198: 619107128 | K198: 619114890 | L198: 7763 | M198: 2 | N198: LOC123427900 | O198: XM_045112038.1 | P198: 2747 | Q198: XM_045112038.1 | R198: LOC123427900 | S198: 0 | T198: 3.37817226209803 | U198: 0 | V198: 4.37817226209803 | W198: -4.00758551557037 | X198: 0.000238622954566757 | Y198: 0.0015298382753891 | Z198: =VLOOKUP(N198,[1]D4_vs_D0!$A:$G,3,FALSE) -> -6.046653052
A199: 4D | B199: NC_058522.1 | C199: 501853747 | D199: 501854146 | E199: 400 | F199: * | G199: 401 | H199: Promoter | I199: 6 | J199: 501853626 | K199: 501854944 | L199: 1319 | M199: 1 | N199: LOC123400105 | O199: XM_045094515.1 | P199: 121 | Q199: XM_045094515.1 | R199: LOC123400105 | S199: 0 | T199: 5.24978534399823 | U199: 0.976845051394726 | V199: 6.21198123507403 | W199: -4.00414186193071 | X199: 1.25281843729851e-05 | Y199: 0.000123830919575747 | Z199: =VLOOKUP(N199,[1]D4_vs_D0!$A:$G,3,FALSE) -> -7.861132627
A200: 4D | B200: NC_058519.1 | C200: 358792650 | D200: 358793049 | E200: 400 | F200: * | G200: 401 | H200: Promoter | I200: 3 | J200: 358790418 | K200: 358793259 | L200: 2842 | M200: 2 | N200: LOC123426288 | O200: XM_045110089.1 | P200: 210 | Q200: XM_045110089.1 | R200: LOC123426288 | S200: 0 | T200: 5.66609304597244 | U200: 2.85180086143187 | V200: 6.55971009848518 | W200: -4.00360223888604 | X200: 3.49911061556789e-08 | Y200: 6.66646593220694e-07 | Z200: =VLOOKUP(N200,[1]D4_vs_D0!$A:$G,3,FALSE) -> -3.40448076
A201: 4D | B201: NW_025422581.1 | C201: 15678 | D201: 16077 | E201: 400 | F201: * | G201: 401 | H201: Promoter | I201: 97 | J201: 14424 | K201: 16283 | L201: 1860 | M201: 2 | N201: LOC123420611 | O201: XR_006619149.1 | P201: 206 | Q201: XR_006619149.1;XM_045107398.1;XM_045107400.1 | R201: LOC123420611;LOC123420613;LOC123420614 | S201: 0;-679;-2962 | T201: 5.7905675797207 | U201: 2.7499568525858 | V201: 6.70012533988653 | W201: -3.97616175223375 | X201: 1.69623122597311e-05 | Y201: 0.00015822350858442 | Z201: =VLOOKUP(N201,[1]D4_vs_D0!$A:$G,3,FALSE) -> 
... 3607 more rows

Sheet Table S10
A1: Table S10. Statistics of raw data used to m6A-immunoprecipitaiton sequencing (MeRIP-seq)
A2: Table S10. Statistics of raw data used to m6A-immunoprecipitaiton sequencing (MeRIP-seq)

Sheet Table S11
A1: Table S11. Gene Ontology annotations of m6A peaks
A2: Day | B2: query | C2: seed_ortholog | D2: evalue | E2: score | F2: eggNOG_OGs | G2: max_annot_lvl | H2: COG_category | I2: Description | J2: Preferred_name | K2: GOs | L2: EC | M2: KEGG_ko | N2: KEGG_Pathway | O2: KEGG_Module | P2: KEGG_Reaction | Q2: KEGG_rclass | R2: BRITE | S2: KEGG_TC | T2: CAZy | U2: BiGG_Reaction | V2: PFAMs
A3: 4D | B3: NC_008590.1:101886-102286_0 | C3: 4513.AGP50800 | D3: 3.36E-37 | E3: 129 | F3: COG0184@1|root,KOG2815@2759|Eukaryota,37W6V@33090|Viridiplantae,3GKIP@35493|Streptophyta,3M1HK@4447|Liliopsida,3IIAW@38820|Poales | G3: 35493|Streptophyta | H3: J | I3: 30S ribosomal protein S15 | J3: rps15 | K3: GO:0000312,GO:0000313,GO:0000314,GO:0005575,GO:0005622,GO:0005623,GO:0005737,GO:0005840,GO:0009507,GO:0009532,GO:0009536,GO:0009547,GO:0009570,GO:0015935,GO:0032991,GO:0043226,GO:0043227,GO:0043228,GO:0043229,GO:0043231,GO:0043232,GO:0044391,GO:0044422,GO:0044424,GO:0044434,GO:0044435,GO:0044444,GO:0044446,GO:0044464,GO:1990904 | L3: - | M3: ko:K02956 | N3: ko03010,map03010 | O3: M00178,M00179 | P3: - | Q3: - | R3: br01610,ko00000,ko00001,ko00002,ko03011 | S3: - | T3: - | U3: - | V3: Ribosomal_S15
A4: 4D | B4: NC_008590.1:102587-102987_1 | C4: 981085.XP_010111575.1 | D4: 1.38E-24 | E4: 97.4 | F4: COG0649@1|root,KOG2870@2759|Eukaryota,37KKG@33090|Viridiplantae,3GDNP@35493|Streptophyta,4JSZT@91835|fabids | G4: 35493|Streptophyta | H4: C | I4: NDH shuttles electrons from NAD(P)H plastoquinone, via FMN and iron-sulfur (Fe-S) centers, to quinones in the photosynthetic chain and possibly in a chloroplast respiratory chain. The immediate electron acceptor for the enzyme in this species is believed to be plastoquinone. Couples the redox reaction to proton translocation, and thus conserves the redox energy in a proton gradient | J4: ndhH | K4: GO:0003674,GO:0003824,GO:0003959,GO:0005575,GO:0005622,GO:0005623,GO:0005737,GO:0005739,GO:0005740,GO:0005743,GO:0005746,GO:0005747,GO:0006091,GO:0008150,GO:0008152,GO:0009507,GO:0009532,GO:0009534,GO:0009535,GO:0009536,GO:0009570,GO:0009579,GO:0009987,GO:0015979,GO:0015980,GO:0016020,GO:0016491,GO:0016651,GO:0019866,GO:0030964,GO:0031090,GO:0031966,GO:0031967,GO:0031975,GO:0031976,GO:0031984,GO:0032991,GO:0034357,GO:0042651,GO:0043226,GO:0043227,GO:0043229,GO:0043231,GO:0044237,GO:0044422,GO:0044424,GO:0044425,GO:0044429,GO:0044434,GO:0044435,GO:0044436,GO:0044444,GO:0044446,GO:0044455,GO:0044464,GO:0045271,GO:0045333,GO:0055035,GO:0055114,GO:0070469,GO:0098796,GO:0098798,GO:0098800,GO:0098803,GO:1902494,GO:1990204 | L4: 1.6.5.3 | M4: ko:K05572,ko:K05579 | N4: ko00190,ko01100,map00190,map01100 | O4: M00145 | P4: R11945 | Q4: RC00061 | R4: ko00000,ko00001,ko00002,ko01000 | S4: - | T4: - | U4: - | V4: Complex1_49kDa,Fer4,NADHdh
A5: 4D | B5: NC_008590.1:102587-102987_0 | C5: 4565.Traes_3DS_747E90A65.1 | D5: 1.99E-39 | E5: 140 | F5: COG1007@1|root,KOG4668@2759|Eukaryota,37P90@33090|Viridiplantae,3GBJ3@35493|Streptophyta,3KKW8@4447|Liliopsida,3ID7M@38820|Poales | G5: 35493|Streptophyta | H5: C | I5: NAD(P)H-quinone oxidoreductase subunit 5, chloroplastic | J5: ndhF | K5: GO:0005575,GO:0005622,GO:0005623,GO:0005737,GO:0009507,GO:0009536,GO:0043226,GO:0043227,GO:0043229,GO:0043231,GO:0044424,GO:0044444,GO:0044464 | L5: 1.6.5.3 | M5: ko:K05577 | N5: ko00190,ko01100,map00190,map01100 | O5: M00145 | P5: R11945 | Q5: RC00061 | R5: ko00000,ko00001,ko00002,ko01000 | S5: - | T5: - | U5: - | V5: Proton_antipo_C,Proton_antipo_M,Proton_antipo_N
A6: 4D | B6: NC_008590.1:281-681_0 | C6: 15368.BRADI5G10962.1 | D6: 1.77E-42 | E6: 141 | F6: COG0185@1|root,KOG0899@2759|Eukaryota,389KU@33090|Viridiplantae,3GYS5@35493|Streptophyta,3M9EV@4447|Liliopsida,3IV1P@38820|Poales | G6: 35493|Streptophyta | H6: J | I6: Ribosomal protein S19 | J6: - | K6: - | L6: - | M6: - | N6: - | O6: - | P6: - | Q6: - | R6: - | S6: - | T6: - | U6: - | V6: Ribosomal_S19
A7: 4D | B7: NC_008590.1:54772-55172_0 | C7: 4565.Traes_4AS_0CE0B8F07.1 | D7: 1.40E-52 | E7: 167 | F7: COG1850@1|root,2QTI9@2759|Eukaryota,37HQX@33090|Viridiplantae,3GDC3@35493|Streptophyta,3KWKY@4447|Liliopsida,3ICQI@38820|Poales | G7: 35493|Streptophyta | H7: G | I7: Ribulose bisphosphate carboxylase large chain | J7: rbcL | K7: GO:0005575,GO:0005622,GO:0005623,GO:0005737,GO:0009507,GO:0009536,GO:0043226,GO:0043227,GO:0043229,GO:0043231,GO:0044424,GO:0044444,GO:0044464 | L7: 4.1.1.39 | M7: ko:K01601 | N7: ko00630,ko00710,ko01100,ko01120,ko01200,map00630,map00710,map01100,map01120,map01200 | O7: M00165,M00166,M00532 | P7: R00024,R03140 | Q7: RC00172,RC00859 | R7: ko00000,ko00001,ko00002,ko01000 | S7: - | T7: - | U7: - | V7: RuBisCO_large,RuBisCO_large_N
A8: 4D | B8: NC_008590.1:55347-55747_0 | C8: 15368.BRADI3G27278.1 | D8: 3.66E-94 | E8: 284 | F8: COG1850@1|root,2QTI9@2759|Eukaryota,37HQX@33090|Viridiplantae,3GDC3@35493|Streptophyta,3KWKY@4447|Liliopsida,3IN22@38820|Poales | G8: 35493|Streptophyta | H8: G | I8: Ribulose bisphosphate carboxylase large chain, N-terminal domain | J8: - | K8: GO:0005575,GO:0005622,GO:0005623,GO:0005737,GO:0009507,GO:0009536,GO:0043226,GO:0043227,GO:0043229,GO:0043231,GO:0044424,GO:0044444,GO:0044464 | L8: 4.1.1.39 | M8: ko:K01601 | N8: ko00630,ko00710,ko01100,ko01120,ko01200,map00630,map00710,map01100,map01120,map01200 | O8: M00165,M00166,M00532 | P8: R00024,R03140 | Q8: RC00172,RC00859 | R8: ko00000,ko00001,ko00002,ko01000 | S8: - | T8: - | U8: - | V8: RuBisCO_large,RuBisCO_large_N
A9: 4D | B9: NC_008590.1:56009-56409_0 | C9: 4565.Traes_2BL_DEAAF1219.1 | D9: 5.16E-82 | E9: 255 | F9: COG1850@1|root,2QTI9@2759|Eukaryota,37HQX@33090|Viridiplantae,3GDC3@35493|Streptophyta,3KWKY@4447|Liliopsida,3ICQI@38820|Poales | G9: 35493|Streptophyta | H9: G | I9: Ribulose bisphosphate carboxylase large chain | J9: rbcL | K9: GO:0005575,GO:0005622,GO:0005623,GO:0005737,GO:0009507,GO:0009536,GO:0043226,GO:0043227,GO:0043229,GO:0043231,GO:0044424,GO:0044444,GO:0044464 | L9: 4.1.1.39 | M9: ko:K01601 | N9: ko00630,ko00710,ko01100,ko01120,ko01200,map00630,map00710,map01100,map01120,map01200 | O9: M00165,M00166,M00532 | P9: R00024,R03140 | Q9: RC00172,RC00859 | R9: ko00000,ko00001,ko00002,ko01000 | S9: - | T9: - | U9: - | V9: RuBisCO_large,RuBisCO_large_N
A10: 4D | B10: NC_058518.1:104449150-104449550_0 | C10: 4558.Sb09g004830.1 | D10: 8.56E-18 | E10: 82.4 | F10: COG1960@1|root,KOG0138@2759|Eukaryota,37MUD@33090|Viridiplantae,3GBR0@35493|Streptophyta,3KNXJ@4447|Liliopsida,3IFRI@38820|Poales | G10: 35493|Streptophyta | H10: E | I10: Acyl-CoA dehydrogenase, N-terminal domain | J10: - | K10: - | L10: 1.3.3.6 | M10: ko:K00232 | N10: ko00071,ko00592,ko01040,ko01100,ko01110,ko01212,ko03320,ko04024,ko04146,map00071,map00592,map01040,map01100,map01110,map01212,map03320,map04024,map04146 | O10: M00087,M00113 | P10: R01175,R01279,R03777,R03857,R03990,R04751,R04754,R07888,R07892,R07896,R07934,R07950 | Q10: RC00052,RC00076 | R10: ko00000,ko00001,ko00002,ko01000 | S10: - | T10: - | U10: - | V10: Acyl-CoA_dh_1,Acyl-CoA_dh_M,Acyl-CoA_dh_N
A11: 4D | B11: NC_058518.1:104450035-104450435_0 | C11: 3750.XP_008366896.1 | D11: 1.34E-19 | E11: 87.8 | F11: COG1960@1|root,KOG0138@2759|Eukaryota,37MUD@33090|Viridiplantae,3GBR0@35493|Streptophyta,4JEY3@91835|fabids | G11: 35493|Streptophyta | H11: E | I11: Acyl-coenzyme A oxidase 4 | J11: ACX4 | K11: GO:0000003,GO:0003006,GO:0003674,GO:0003824,GO:0003997,GO:0005575,GO:0005622,GO:0005623,GO:0005737,GO:0005777,GO:0006082,GO:0006629,GO:0006631,GO:0006635,GO:0007275,GO:0008150,GO:0008152,GO:0009056,GO:0009062,GO:0009514,GO:0009790,GO:0009791,GO:0009793,GO:0009987,GO:0010154,GO:0016042,GO:0016054,GO:0016491,GO:0016627,GO:0016634,GO:0019395,GO:0019752,GO:0022414,GO:0030258,GO:0032501,GO:0032502,GO:0032787,GO:0034440,GO:0042579,GO:0043226,GO:0043227,GO:0043229,GO:0043231,GO:0043436,GO:0044237,GO:0044238,GO:0044242,GO:0044248,GO:0044255,GO:0044281,GO:0044282,GO:0044424,GO:0044444,GO:0044464,GO:0046395,GO:0046459,GO:0048316,GO:0048608,GO:0048731,GO:0048856,GO:0055114,GO:0061458,GO:0071704,GO:0072329,GO:1901575 | L11: 1.3.3.6 | M11: ko:K00232 | N11: ko00071,ko00592,ko01040,ko01100,ko01110,ko01212,ko03320,ko04024,ko04146,map00071,map00592,map01040,map01100,map01110,map01212,map03320,map04024,map04146 | O11: M00087,M00113 | P11: R01175,R01279,R03777,R03857,R03990,R04751,R04754,R07888,R07892,R07896,R07934,R07950 | Q11: RC00052,RC00076 | R11: ko00000,ko00001,ko00002,ko01000 | S11: - | T11: - | U11: - | V11: Acyl-CoA_dh_1,Acyl-CoA_dh_M,Acyl-CoA_dh_N
A12: 4D | B12: NC_058518.1:113958758-113959158_0 | C12: 4513.MLOC_67136.1 | D12: 1.88e-59 | E12: 199 | F12: 2CMAX@1|root,2QPU7@2759|Eukaryota,37KPF@33090|Viridiplantae,3GDUU@35493|Streptophyta,3KNVT@4447|Liliopsida,3IBKY@38820|Poales | G12: 35493|Streptophyta | H12: S | I12: UBA-like domain (DUF1421) | J12: - | K12: - | L12: 2.6.1.99 | M12: ko:K16903 | N12: ko00380,ko01100,map00380,map01100 | O12: - | P12: R10180 | Q12: RC00006,RC00008 | R12: ko00000,ko00001,ko01000 | S12: - | T12: - | U12: - | V12: DUF1421
A13: 4D | B13: NC_058518.1:116771880-116772529_0 | C13: 4513.MLOC_5657.1 | D13: 8.09E-51 | E13: 173 | F13: COG2967@1|root,KOG4408@2759|Eukaryota,37RMK@33090|Viridiplantae,3G9TW@35493|Streptophyta,3KQQH@4447|Liliopsida,3I81J@38820|Poales | G13: 35493|Streptophyta | H13: P | I13: ApaG domain | J13: - | K13: - | L13: - | M13: ko:K06195 | N13: - | O13: - | P13: - | Q13: - | R13: ko00000 | S13: - | T13: - | U13: - | V13: DUF525,UVR
A14: 4D | B14: NC_058518.1:128142862-128143262_0 | C14: 4558.Sb08g007970.1 | D14: 1.23e-29 | E14: 116 | F14: COG2801@1|root,KOG0017@2759|Eukaryota,381UA@33090|Viridiplantae,3GRJ2@35493|Streptophyta,3M81Y@4447|Liliopsida,3IS10@38820|Poales | G14: 35493|Streptophyta | H14: L | I14: transposition, RNA-mediated | J14: - | K14: - | L14: - | M14: - | N14: - | O14: - | P14: - | Q14: - | R14: - | S14: - | T14: - | U14: - | V14: -
A15: 4D | B15: NC_058518.1:134417379-134417779_0 | C15: 37682.EMT27161 | D15: 2.06E-55 | E15: 175 | F15: 28INU@1|root,2QQZU@2759|Eukaryota,37I9Q@33090|Viridiplantae,3GG4C@35493|Streptophyta,3KXRC@4447|Liliopsida,3I5M2@38820|Poales | G15: 35493|Streptophyta | H15: - | I15: - | J15: - | K15: - | L15: - | M15: - | N15: - | O15: - | P15: - | Q15: - | R15: - | S15: - | T15: - | U15: - | V15: TPR_16,TPR_19,TPR_6
A16: 4D | B16: NC_058518.1:142395550-142395950_0 | C16: 4565.Traes_3DS_275106BBA.1 | D16: 5.79E-20 | E16: 88.6 | F16: COG5026@1|root,KOG1369@2759|Eukaryota,37HMH@33090|Viridiplantae,3GB88@35493|Streptophyta,3KYTC@4447|Liliopsida,3I9G6@38820|Poales | G16: 35493|Streptophyta | H16: G | I16: Belongs to the hexokinase family | J16: - | K16: GO:0001678,GO:0003674,GO:0003824,GO:0004340,GO:0004396,GO:0005575,GO:0005622,GO:0005623,GO:0005737,GO:0005829,GO:0005975,GO:0006082,GO:0006090,GO:0006091,GO:0006096,GO:0006139,GO:0006163,GO:0006164,GO:0006165,GO:0006725,GO:0006732,GO:0006733,GO:0006753,GO:0006754,GO:0006757,GO:0006793,GO:0006796,GO:0006807,GO:0008150,GO:0008152,GO:0008865,GO:0009056,GO:0009058,GO:0009108,GO:0009117,GO:0009123,GO:0009124,GO:0009126,GO:0009127,GO:0009132,GO:0009135,GO:0009141,GO:0009142,GO:0009144,GO:0009145,GO:0009150,GO:0009152,GO:0009156,GO:0009161,GO:0009165,GO:0009166,GO:0009167,GO:0009168,GO:0009179,GO:0009185,GO:0009199,GO:0009201,GO:0009205,GO:0009206,GO:0009259,GO:0009260,GO:0009987,GO:0016052,GO:0016053,GO:0016301,GO:0016310,GO:0016740,GO:0016772,GO:0016773,GO:0017144,GO:0018130,GO:0019158,GO:0019200,GO:0019359,GO:0019362,GO:0019363,GO:0019438,GO:0019439,GO:0019637,GO:0019693,GO:0019725,GO:0019752,GO:0032787,GO:0033500,GO:0034404,GO:0034641,GO:0034654,GO:0034655,GO:0042592,GO:0042593,GO:0042866,GO:0043436,GO:0044237,GO:0044238,GO:0044248,GO:0044249,GO:0044262,GO:0044270,GO:0044271,GO:0044281,GO:0044283,GO:0044424,GO:0044444,GO:0044464,GO:0046031,GO:0046034,GO:0046390,GO:0046394,GO:0046434,GO:0046483,GO:0046496,GO:0046700,GO:0046835,GO:0046939,GO:0048878,GO:0051156,GO:0051186,GO:0051188,GO:0055082,GO:0055086,GO:0065007,GO:0065008,GO:0071704,GO:0072330,GO:0072521,GO:0072522,GO:0072524,GO:0072525,GO:0090407,GO:1901135,GO:1901137,GO:1901292,GO:1901293,GO:1901360,GO:1901361,GO:1901362,GO:1901564,GO:1901566,GO:1901575,GO:1901576 | L16: 2.7.1.1 | M16: ko:K00844 | N16: ko00010,ko00051,ko00052,ko00500,ko00520,ko00521,ko00524,ko01100,ko01110,ko01120,ko01130,ko01200,ko04066,ko04910,ko04930,ko04973,ko05230,map00010,map00051,map00052,map00500,map00520,map00521,map00524,map01100,map01110,map01120,map01130,map01200,map04066,map04910,map04930,map04973,map05230 | O16: M00001,M00549 | P16: R00299,R00760,R00867,R01326,R01600,R01786,R01961,R03920 | Q16: RC00002,RC00017 | R16: ko00000,ko00001,ko00002,ko01000,ko04131 | S16: - | T16: - | U16: - | V16: Hexokinase_1,Hexokinase_2
A17: 4D | B17: NC_058518.1:158420-158820_0 | C17: 37682.EMT32299 | D17: 5.10E-57 | E17: 191 | F17: 28JET@1|root,2QRTU@2759|Eukaryota,37JJ7@33090|Viridiplantae,3G71D@35493|Streptophyta,3KP2E@4447|Liliopsida,3I9J7@38820|Poales | G17: 35493|Streptophyta | H17: S | I17: protein At4g37920, chloroplastic-like | J17: - | K17: - | L17: - | M17: - | N17: - | O17: - | P17: - | Q17: - | R17: - | S17: - | T17: - | U17: - | V17: -
A18: 4D | B18: NC_058518.1:221699131-221699531_0 | C18: 4538.ORGLA02G0170100.1 | D18: 1.66E-46 | E18: 160 | F18: 2CPDT@1|root,2R1EZ@2759|Eukaryota,38357@33090|Viridiplantae,3GZ6E@35493|Streptophyta,3M6XW@4447|Liliopsida,3IIEI@38820|Poales | G18: 35493|Streptophyta | H18: S | I18: Domain of unknown function (DUF4216) | J18: - | K18: - | L18: - | M18: - | N18: - | O18: - | P18: - | Q18: - | R18: - | S18: - | T18: - | U18: - | V18: DUF4216
A19: 4D | B19: NC_058518.1:231509543-231509943_0 | C19: 4565.Traes_1BL_5EDEAEC1C.1 | D19: 3.21e-31 | E19: 119 | F19: KOG0799@1|root,KOG0799@2759|Eukaryota,37Q7R@33090|Viridiplantae,3GF83@35493|Streptophyta,3KQ8X@4447|Liliopsida,3IA7T@38820|Poales | G19: 35493|Streptophyta | H19: G | I19: Core-2/I-Branching enzyme | J19: - | K19: - | L19: - | M19: ko:K20891 | N19: - | O19: - | P19: - | Q19: - | R19: ko00000,ko01000,ko01003 | S19: - | T19: GT14 | U19: - | V19: Branch
A20: 4D | B20: NC_058518.1:233236087-233236487_0 | C20: 4513.MLOC_52464.2 | D20: 5.88E-32 | E20: 120 | F20: COG5201@1|root,KOG1724@2759|Eukaryota,37TUD@33090|Viridiplantae,3GI73@35493|Streptophyta,3KZCE@4447|Liliopsida,3IHH9@38820|Poales | G20: 35493|Streptophyta | H20: O | I20: Belongs to the SKP1 family | J20: - | K20: GO:0000151,GO:0005575,GO:0005622,GO:0005623,GO:0006464,GO:0006508,GO:0006511,GO:0006807,GO:0008150,GO:0008152,GO:0009056,GO:0009057,GO:0009987,GO:0016567,GO:0019005,GO:0019538,GO:0019941,GO:0030163,GO:0031461,GO:0032446,GO:0032991,GO:0036211,GO:0043170,GO:0043412,GO:0043632,GO:0044237,GO:0044238,GO:0044248,GO:0044257,GO:0044260,GO:0044265,GO:0044267,GO:0044424,GO:0044464,GO:0051603,GO:0070647,GO:0071704,GO:1901564,GO:1901565,GO:1901575,GO:1902494,GO:1990234 | L20: - | M20: ko:K03094 | N20: ko04110,ko04111,ko04114,ko04120,ko04141,ko04310,ko04341,ko04350,ko04710,ko05168,ko05200,map04110,map04111,map04114,map04120,map04141,map04310,map04341,map04350,map04710,map05168,map05200 | O20: M00379,M00380,M00381,M00382,M00387,M00407,M00411 | P20: - | Q20: - | R20: ko00000,ko00001,ko00002,ko03036,ko04121 | S20: - | T20: - | U20: - | V20: Skp1,Skp1_POZ
A21: 4D | B21: NC_058518.1:282855920-282856320_1 | C21: 15368.BRADI3G28907.1 | D21: 6.00E-19 | E21: 84 | F21: KOG3442@1|root,KOG3442@2759|Eukaryota,37V6M@33090|Viridiplantae,3GJ1F@35493|Streptophyta,3M6J1@4447|Liliopsida,3IHPZ@38820|Poales | G21: 35493|Streptophyta | H21: S | I21: Pam16 | J21: - | K21: GO:0002237,GO:0002831,GO:0002832,GO:0005575,GO:0005622,GO:0005623,GO:0005737,GO:0005739,GO:0005740,GO:0005743,GO:0005744,GO:0006605,GO:0006626,GO:0006810,GO:0006839,GO:0006886,GO:0006996,GO:0007005,GO:0008104,GO:0008150,GO:0009605,GO:0009607,GO:0009617,GO:0009892,GO:0009987,GO:0010033,GO:0010817,GO:0015031,GO:0015833,GO:0016020,GO:0016043,GO:0017038,GO:0019222,GO:0019866,GO:0030150,GO:0031090,GO:0031323,GO:0031324,GO:0031347,GO:0031348,GO:0031966,GO:0031967,GO:0031975,GO:0032101,GO:0032102,GO:0032879,GO:0032991,GO:0033036,GO:0033365,GO:0034613,GO:0042221,GO:0042886,GO:0043207,GO:0043226,GO:0043227,GO:0043229,GO:0043231,GO:0043900,GO:0043901,GO:0044422,GO:0044424,GO:0044425,GO:0044429,GO:0044444,GO:0044446,GO:0044455,GO:0044464,GO:0044743,GO:0045184,GO:0046907,GO:0048518,GO:0048519,GO:0048523,GO:0048583,GO:0048585,GO:0050789,GO:0050794,GO:0050896,GO:0051049,GO:0051050,GO:0051179,GO:0051234,GO:0051641,GO:0051649,GO:0051704,GO:0051707,GO:0055085,GO:0065002,GO:0065007,GO:0065008,GO:0070585,GO:0070727,GO:0071702,GO:0071705,GO:0071806,GO:0071840,GO:0072594,GO:0072655,GO:0080134,GO:0098796,GO:0098798,GO:0098800,GO:1900424,GO:1900425,GO:1902007,GO:1902009,GO:1902288,GO:1902289,GO:1990542,GO:2000012,GO:2000377,GO:2000378 | L21: - | M21: ko:K17805 | N21: - | O21: - | P21: - | Q21: - | R21: ko00000,ko03029 | S21: - | T21: - | U21: - | V21: Pam16
A22: 4D | B22: NC_058518.1:282855920-282856320_0 | C22: 4513.MLOC_73604.1 | D22: 3.57E-22 | E22: 91.7 | F22: KOG3442@1|root,KOG3442@2759|Eukaryota,37V6M@33090|Viridiplantae,3GJ1F@35493|Streptophyta,3M6ER@4447|Liliopsida,3IQHZ@38820|Poales | G22: 35493|Streptophyta | H22: S | I22: Pam16 | J22: - | K22: GO:0002237,GO:0002831,GO:0002832,GO:0005575,GO:0005622,GO:0005623,GO:0005737,GO:0005739,GO:0005740,GO:0005743,GO:0005744,GO:0006605,GO:0006626,GO:0006810,GO:0006839,GO:0006886,GO:0006996,GO:0007005,GO:0008104,GO:0008150,GO:0009605,GO:0009607,GO:0009617,GO:0009892,GO:0009987,GO:0010033,GO:0010817,GO:0015031,GO:0015833,GO:0016020,GO:0016043,GO:0017038,GO:0019222,GO:0019866,GO:0030150,GO:0031090,GO:0031323,GO:0031324,GO:0031347,GO:0031348,GO:0031966,GO:0031967,GO:0031975,GO:0032101,GO:0032102,GO:0032879,GO:0032991,GO:0033036,GO:0033365,GO:0034613,GO:0042221,GO:0042886,GO:0043207,GO:0043226,GO:0043227,GO:0043229,GO:0043231,GO:0043900,GO:0043901,GO:0044422,GO:0044424,GO:0044425,GO:0044429,GO:0044444,GO:0044446,GO:0044455,GO:0044464,GO:0044743,GO:0045184,GO:0046907,GO:0048518,GO:0048519,GO:0048523,GO:0048583,GO:0048585,GO:0050789,GO:0050794,GO:0050896,GO:0051049,GO:0051050,GO:0051179,GO:0051234,GO:0051641,GO:0051649,GO:0051704,GO:0051707,GO:0055085,GO:0065002,GO:0065007,GO:0065008,GO:0070585,GO:0070727,GO:0071702,GO:0071705,GO:0071806,GO:0071840,GO:0072594,GO:0072655,GO:0080134,GO:0098796,GO:0098798,GO:0098800,GO:1900424,GO:1900425,GO:1902007,GO:1902009,GO:1902288,GO:1902289,GO:1990542,GO:2000012,GO:2000377,GO:2000378 | L22: - | M22: ko:K17805 | N22: - | O22: - | P22: - | Q22: - | R22: ko00000,ko03029 | S22: - | T22: - | U22: - | V22: Pam16
A23: 4D | B23: NC_058518.1:289677611-289678011_0 | C23: 4572.TRIUR3_23093-P1 | D23: 1.67e-30 | E23: 114 | F23: KOG2240@1|root,KOG2240@2759|Eukaryota,37U4X@33090|Viridiplantae,3G74S@35493|Streptophyta,3KUA9@4447|Liliopsida,3ICEX@38820|Poales | G23: 35493|Streptophyta | H23: K | I23: NAC domain | J23: - | K23: - | L23: - | M23: ko:K01527 | N23: ko04214,map04214 | O23: - | P23: - | Q23: - | R23: ko00000,ko00001 | S23: - | T23: - | U23: - | V23: NAC
A24: 4D | B24: NC_058518.1:302748002-302748402_0 | C24: 4513.MLOC_46137.1 | D24: 1.08e-15 | E24: 75.9 | F24: COG0697@1|root,2QQKE@2759|Eukaryota,37ICY@33090|Viridiplantae,3GAZS@35493|Streptophyta,3KWKA@4447|Liliopsida,3I9Y1@38820|Poales | G24: 35493|Streptophyta | H24: EG | I24: EamA-like transporter family | J24: - | K24: GO:0005575,GO:0005622,GO:0005623,GO:0005737,GO:0009507,GO:0009536,GO:0043226,GO:0043227,GO:0043229,GO:0043231,GO:0044424,GO:0044444,GO:0044464 | L24: - | M24: - | N24: - | O24: - | P24: - | Q24: - | R24: - | S24: - | T24: - | U24: - | V24: EamA
A25: 4D | B25: NC_058518.1:311369757-311370157_0 | C25: 4513.MLOC_53071.1 | D25: 6.80E-42 | E25: 140 | F25: KOG1039@1|root,KOG1039@2759|Eukaryota,37HMB@33090|Viridiplantae,3GCMI@35493|Streptophyta,3KUNT@4447|Liliopsida,3I5UZ@38820|Poales | G25: 35493|Streptophyta | H25: O | I25: Prokaryotic RING finger family 4 | J25: - | K25: GO:0003674,GO:0003824,GO:0004842,GO:0006464,GO:0006807,GO:0008150,GO:0008152,GO:0009987,GO:0016567,GO:0016740,GO:0019538,GO:0019787,GO:0032446,GO:0036211,GO:0043170,GO:0043412,GO:0044237,GO:0044238,GO:0044260,GO:0044267,GO:0051865,GO:0070647,GO:0071704,GO:0140096,GO:1901564 | L25: - | M25: - | N25: - | O25: - | P25: - | Q25: - | R25: - | S25: - | T25: - | U25: - | V25: Prok-RING_4,zf-C3HC4_3
A26: 4D | B26: NC_058518.1:311579788-311580188_0 | C26: 4572.TRIUR3_15370-P1 | D26: 4.69E-34 | E26: 127 | F26: KOG3162@1|root,KOG3162@2759|Eukaryota,37T75@33090|Viridiplantae,3G778@35493|Streptophyta,3KUSN@4447|Liliopsida,3IC6P@38820|Poales | G26: 35493|Streptophyta | H26: J | I26: Belongs to the bacterial ribosomal protein bS18 family | J26: - | K26: - | L26: - | M26: - | N26: - | O26: - | P26: - | Q26: - | R26: - | S26: - | T26: - | U26: - | V26: Ribosomal_S18
A27: 4D | B27: NC_058518.1:32375675-32376352_0 | C27: 15368.BRADI2G37930.1 | D27: 4.03E-50 | E27: 173 | F27: COG5225@1|root,KOG1765@2759|Eukaryota,37MW7@33090|Viridiplantae,3GGA7@35493|Streptophyta,3KUGD@4447|Liliopsida,3I3UD@38820|Poales | G27: 35493|Streptophyta | H27: J | I27: Involved in ribosomal large subunit assembly | J27: - | K27: GO:0000054,GO:0000055,GO:0000447,GO:0000460,GO:0000462,GO:0000466,GO:0000469,GO:0000478,GO:0000479,GO:0005575,GO:0005622,GO:0005623,GO:0005634,GO:0005730,GO:0006139,GO:0006364,GO:0006396,GO:0006403,GO:0006405,GO:0006611,GO:0006725,GO:0006807,GO:0006810,GO:0006811,GO:0006820,GO:0006862,GO:0006886,GO:0006913,GO:0008104,GO:0008150,GO:0008152,GO:0009987,GO:0010467,GO:0015031,GO:0015711,GO:0015748,GO:0015780,GO:0015833,GO:0015865,GO:0015866,GO:0015868,GO:0015931,GO:0016070,GO:0016072,GO:0022613,GO:0030490,GO:0030684,GO:0030687,GO:0031503,GO:0031974,GO:0031981,GO:0032991,GO:0033036,GO:0033750,GO:0034470,GO:0034613,GO:0034641,GO:0034660,GO:0042254,GO:0042273,GO:0042274,GO:0042886,GO:0043170,GO:0043226,GO:0043227,GO:0043228,GO:0043229,GO:0043231,GO:0043232,GO:0043233,GO:0044085,GO:0044237,GO:0044238,GO:0044422,GO:0044424,GO:0044428,GO:0044446,GO:0044464,GO:0045184,GO:0046483,GO:0046907,GO:0050657,GO:0050658,GO:0051168,GO:0051169,GO:0051179,GO:0051234,GO:0051236,GO:0051503,GO:0051640,GO:0051641,GO:0051649,GO:0051656,GO:0055085,GO:0070013,GO:0070727,GO:0071166,GO:0071426,GO:0071428,GO:0071702,GO:0071704,GO:0071705,GO:0071840,GO:0090304,GO:0090305,GO:0090480,GO:0090501,GO:0090502,GO:1901264,GO:1901360,GO:1990904 | L27: - | M27: ko:K14852 | N27: - | O27: - | P27: - | Q27: - | R27: ko00000,ko03009 | S27: - | T27: - | U27: - | V27: RRS1
A28: 4D | B28: NC_058518.1:335856062-335856462_0 | C28: 4513.MLOC_18371.1 | D28: 9.22E-94 | E28: 276 | F28: COG0626@1|root,KOG0053@2759|Eukaryota,37RGY@33090|Viridiplantae,3GB43@35493|Streptophyta,3KV4Q@4447|Liliopsida,3IGFF@38820|Poales | G28: 35493|Streptophyta | H28: E | I28: Cys/Met metabolism PLP-dependent enzyme | J28: MGL | K28: GO:0000096,GO:0000097,GO:0000098,GO:0001101,GO:0003674,GO:0003824,GO:0003962,GO:0004123,GO:0005488,GO:0005575,GO:0005622,GO:0005623,GO:0005737,GO:0005829,GO:0006082,GO:0006520,GO:0006534,GO:0006555,GO:0006790,GO:0006807,GO:0006950,GO:0007154,GO:0008144,GO:0008150,GO:0008152,GO:0008652,GO:0009056,GO:0009058,GO:0009063,GO:0009066,GO:0009067,GO:0009068,GO:0009069,GO:0009070,GO:0009086,GO:0009087,GO:0009092,GO:0009267,GO:0009414,GO:0009415,GO:0009605,GO:0009628,GO:0009970,GO:0009987,GO:0009991,GO:0010035,GO:0016043,GO:0016053,GO:0016054,GO:0016740,GO:0016765,GO:0016829,GO:0016846,GO:0017144,GO:0018826,GO:0019343,GO:0019344,GO:0019346,GO:0019458,GO:0019752,GO:0019842,GO:0022607,GO:0030170,GO:0031667,GO:0031668,GO:0031669,GO:0033554,GO:0036094,GO:0042221,GO:0042594,GO:0042631,GO:0043167,GO:0043168,GO:0043436,GO:0043933,GO:0044085,GO:0044237,GO:0044238,GO:0044248,GO:0044249,GO:0044272,GO:0044273,GO:0044281,GO:0044282,GO:0044283,GO:0044424,GO:0044444,GO:0044464,GO:0046394,GO:0046395,GO:0048037,GO:0050662,GO:0050667,GO:0050896,GO:0051259,GO:0051260,GO:0051262,GO:0051289,GO:0051716,GO:0065003,GO:0070279,GO:0070887,GO:0071214,GO:0071229,GO:0071265,GO:0071266,GO:0071462,GO:0071496,GO:0071704,GO:0071840,GO:0097159,GO:0104004,GO:1901363,GO:1901564,GO:1901565,GO:1901566,GO:1901575,GO:1901576,GO:1901605,GO:1901606,GO:1901607,GO:1901700,GO:1901701 | L28: 4.4.1.11 | M28: ko:K01761 | N28: ko00270,ko00450,map00270,map00450 | O28: - | P28: R00654,R04770 | Q28: RC00196,RC00348,RC01209,RC01210 | R28: ko00000,ko00001,ko01000 | S28: - | T28: - | U28: - | V28: Cys_Met_Meta_PP
A29: 4D | B29: NC_058518.1:350843208-350843840_0 | C29: 4538.ORGLA10G0144600.1 | D29: 4.31e-17 | E29: 83.6 | F29: COG1024@1|root,KOG1684@2759|Eukaryota,37P4M@33090|Viridiplantae,3GP4U@35493|Streptophyta,3MBIP@4447|Liliopsida,3IV3F@38820|Poales | G29: 35493|Streptophyta | H29: I | I29: Belongs to the enoyl-CoA hydratase isomerase family | J29: - | K29: - | L29: 3.1.2.4 | M29: ko:K05605 | N29: ko00280,ko00410,ko00640,ko01100,ko01200,map00280,map00410,map00640,map01100,map01200 | O29: M00013 | P29: R03158,R05064 | Q29: RC00004,RC00014,RC00137 | R29: ko00000,ko00001,ko00002,ko01000 | S29: - | T29: - | U29: - | V29: ECH_2
A30: 4D | B30: NC_058518.1:370114264-370114664_0 | C30: 4513.MLOC_68035.4 | D30: 1.10E-22 | E30: 95.5 | F30: 29U3M@1|root,2RXHS@2759|Eukaryota,37TWS@33090|Viridiplantae,3GHY8@35493|Streptophyta,3KYXP@4447|Liliopsida,3IE2X@38820|Poales | G30: 35493|Streptophyta | H30: - | I30: - | J30: - | K30: - | L30: - | M30: - | N30: - | O30: - | P30: - | Q30: - | R30: - | S30: - | T30: - | U30: - | V30: -
A31: 4D | B31: NC_058518.1:370855326-370855726_0 | C31: 4565.Traes_1DL_FDB539EBE.1 | D31: 1.83E-44 | E31: 155 | F31: COG2124@1|root,KOG0157@2759|Eukaryota,37KP9@33090|Viridiplantae,3GDUD@35493|Streptophyta,3KNN1@4447|Liliopsida,3I3QQ@38820|Poales | G31: 35493|Streptophyta | H31: Q | I31: Belongs to the cytochrome P450 family | J31: 2001-02-01 | K31: GO:0003674,GO:0003824,GO:0004497,GO:0005575,GO:0005622,GO:0005623,GO:0005737,GO:0006629,GO:0006720,GO:0006721,GO:0008150,GO:0008152,GO:0008299,GO:0008610,GO:0009058,GO:0009507,GO:0009526,GO:0009536,GO:0009941,GO:0009974,GO:0009987,GO:0016108,GO:0016109,GO:0016114,GO:0016116,GO:0016117,GO:0016491,GO:0016705,GO:0031967,GO:0031975,GO:0042440,GO:0043226,GO:0043227,GO:0043229,GO:0043231,GO:0044237,GO:0044238,GO:0044249,GO:0044255,GO:0044422,GO:0044424,GO:0044434,GO:0044435,GO:0044444,GO:0044446,GO:0044464,GO:0046148,GO:0055114,GO:0071704,GO:0072374,GO:1901576 | L31: 1.14.99.45 | M31: ko:K09837 | N31: ko00906,ko01100,ko01110,map00906,map01100,map01110 | O31: - | P31: R07531,R07850 | Q31: RC01963 | R31: ko00000,ko00001,ko00199,ko01000 | S31: - | T31: - | U31: - | V31: p450
A32: 4D | B32: NC_058518.1:379407195-379407595_0 | C32: 4641.GSMUA_AchrUn_randomP26170_001 | D32: 1.35E-22 | E32: 91.3 | F32: COG0469@1|root,KOG2323@2759|Eukaryota,37HK2@33090|Viridiplantae,3GEEX@35493|Streptophyta | G32: 35493|Streptophyta | H32: G | I32: Belongs to the pyruvate kinase family | J32: - | K32: GO:0000003,GO:0000287,GO:0003006,GO:0003674,GO:0003824,GO:0004743,GO:0005488,GO:0005575,GO:0005622,GO:0005623,GO:0005737,GO:0005975,GO:0006082,GO:0006090,GO:0006091,GO:0006096,GO:0006139,GO:0006163,GO:0006164,GO:0006165,GO:0006725,GO:0006732,GO:0006733,GO:0006753,GO:0006754,GO:0006757,GO:0006793,GO:0006796,GO:0006807,GO:0007275,GO:0008150,GO:0008152,GO:0009056,GO:0009058,GO:0009108,GO:0009117,GO:0009123,GO:0009124,GO:0009126,GO:0009127,GO:0009132,GO:0009135,GO:0009141,GO:0009142,GO:0009144,GO:0009145,GO:0009150,GO:0009152,GO:0009156,GO:0009161,GO:0009165,GO:0009166,GO:0009167,GO:0009168,GO:0009179,GO:0009185,GO:0009199,GO:0009201,GO:0009205,GO:0009206,GO:0009259,GO:0009260,GO:0009507,GO:0009532,GO:0009536,GO:0009570,GO:0009791,GO:0009987,GO:0010154,GO:0010431,GO:0016052,GO:0016053,GO:0016310,GO:0016740,GO:0016772,GO:0016773,GO:0017144,GO:0018130,GO:0019359,GO:0019362,GO:0019363,GO:0019438,GO:0019439,GO:0019637,GO:0019693,GO:0019752,GO:0021700,GO:0022414,GO:0030955,GO:0031420,GO:0032501,GO:0032502,GO:0032504,GO:0032787,GO:0034404,GO:0034641,GO:0034654,GO:0034655,GO:0042866,GO:0043167,GO:0043169,GO:0043226,GO:0043227,GO:0043229,GO:0043231,GO:0043436,GO:0044237,GO:0044238,GO:0044248,GO:0044249,GO:0044270,GO:0044271,GO:0044281,GO:0044283,GO:0044422,GO:0044424,GO:0044434,GO:0044435,GO:0044444,GO:0044446,GO:0044464,GO:0046031,GO:0046034,GO:0046390,GO:0046394,GO:0046434,GO:0046483,GO:0046496,GO:0046700,GO:0046872,GO:0046939,GO:0048316,GO:0048608,GO:0048609,GO:0048731,GO:0048856,GO:0051186,GO:0051188,GO:0055086,GO:0061458,GO:0071695,GO:0071704,GO:0072330,GO:0072521,GO:0072522,GO:0072524,GO:0072525,GO:0090407,GO:1901135,GO:1901137,GO:1901292,GO:1901293,GO:1901360,GO:1901361,GO:1901362,GO:1901564,GO:1901566,GO:1901575,GO:1901576 | L32: 2.7.1.40 | M32: ko:K00873 | N32: ko00010,ko00230,ko00620,ko01100,ko01110,ko01120,ko01130,ko01200,ko01230,ko04922,ko04930,ko05165,ko05203,ko05230,map00010,map00230,map00620,map01100,map01110,map01120,map01130,map01200,map01230,map04922,map04930,map05165,map05203,map05230 | O32: M00001,M00002,M00049,M00050 | P32: R00200,R00430,R01138,R01858,R02320 | Q32: RC00002,RC00015 | R32: ko00000,ko00001,ko00002,ko01000,ko04131,ko04147 | S32: - | T32: - | U32: - | V32: PK,PK_C
A33: 4D | B33: NC_058518.1:379641148-379641548_0 | C33: 38727.Pavir.J28694.1.p | D33: 3.52E-24 | E33: 100 | F33: 28I6U@1|root,2QQT2@2759|Eukaryota,37KBU@33090|Viridiplantae,3GG02@35493|Streptophyta,3KNMV@4447|Liliopsida,3ICZE@38820|Poales | G33: 35493|Streptophyta | H33: S | I33: Putative S-adenosyl-L-methionine-dependent methyltransferase | J33: - | K33: GO:0003674,GO:0003824,GO:0005575,GO:0005622,GO:0005623,GO:0005737,GO:0005768,GO:0005794,GO:0005802,GO:0008150,GO:0008152,GO:0008168,GO:0008757,GO:0012505,GO:0016740,GO:0016741,GO:0031410,GO:0031982,GO:0031984,GO:0032259,GO:0043226,GO:0043227,GO:0043229,GO:0043231,GO:0044422,GO:0044424,GO:0044431,GO:0044444,GO:0044446,GO:0044464,GO:0097708,GO:0098791 | L33: - | M33: - | N33: - | O33: - | P33: - | Q33: - | R33: - | S33: - | T33: - | U33: - | V33: Methyltransf_29
A34: 4D | B34: NC_058518.1:379641148-379641548_1 | C34: 2711.XP_006494959.1 | D34: 8.60E-16 | E34: 75.1 | F34: 2CMGJ@1|root,2QQA9@2759|Eukaryota,37I2B@33090|Viridiplantae,3GCRD@35493|Streptophyta | G34: 35493|Streptophyta | H34: S | I34: methyltransferase | J34: ERD3 | K34: GO:0003674,GO:0003824,GO:0005575,GO:0005622,GO:0005623,GO:0005737,GO:0005768,GO:0005794,GO:0005802,GO:0008150,GO:0008152,GO:0008168,GO:0008757,GO:0012505,GO:0016740,GO:0016741,GO:0031410,GO:0031982,GO:0031984,GO:0032259,GO:0043226,GO:0043227,GO:0043229,GO:0043231,GO:0044422,GO:0044424,GO:0044431,GO:0044444,GO:0044446,GO:0044464,GO:0097708,GO:0098791 | L34: - | M34: - | N34: - | O34: - | P34: - | Q34: - | R34: - | S34: - | T34: - | U34: - | V34: Methyltransf_29
A35: 4D | B35: NC_058518.1:38265853-38266253_0 | C35: 38727.Pavir.J23786.1.p | D35: 3.60E-26 | E35: 102 | F35: COG1960@1|root,KOG0141@2759|Eukaryota,37N2U@33090|Viridiplantae,3GFCE@35493|Streptophyta,3KSH2@4447|Liliopsida,3IEQ1@38820|Poales | G35: 35493|Streptophyta | H35: EI | I35: Acyl-CoA dehydrogenase, N-terminal domain | J35: IVD | K35: GO:0000166,GO:0003674,GO:0003824,GO:0003853,GO:0003995,GO:0005488,GO:0005524,GO:0005575,GO:0005622,GO:0005623,GO:0005737,GO:0005739,GO:0005759,GO:0006082,GO:0006139,GO:0006163,GO:0006195,GO:0006520,GO:0006551,GO:0006552,GO:0006637,GO:0006725,GO:0006732,GO:0006753,GO:0006790,GO:0006793,GO:0006796,GO:0006807,GO:0008144,GO:0008150,GO:0008152,GO:0008470,GO:0009056,GO:0009058,GO:0009063,GO:0009081,GO:0009083,GO:0009109,GO:0009117,GO:0009150,GO:0009154,GO:0009166,GO:0009259,GO:0009261,GO:0009987,GO:0016054,GO:0016491,GO:0016627,GO:0017076,GO:0018130,GO:0019438,GO:0019439,GO:0019637,GO:0019693,GO:0019752,GO:0030554,GO:0031974,GO:0032553,GO:0032555,GO:0032559,GO:0033865,GO:0033869,GO:0033875,GO:0034031,GO:0034032,GO:0034034,GO:0034404,GO:0034641,GO:0034654,GO:0034655,GO:0035337,GO:0035383,GO:0035639,GO:0036094,GO:0036115,GO:0043167,GO:0043168,GO:0043226,GO:0043227,GO:0043229,GO:0043231,GO:0043233,GO:0043436,GO:0043603,GO:0044237,GO:0044238,GO:0044248,GO:0044249,GO:0044270,GO:0044271,GO:0044273,GO:0044281,GO:0044282,GO:0044283,GO:0044422,GO:0044424,GO:0044429,GO:0044444,GO:0044446,GO:0044464,GO:0046395,GO:0046434,GO:0046483,GO:0046700,GO:0051186,GO:0051187,GO:0055086,GO:0055114,GO:0070013,GO:0071704,GO:0072521,GO:0072523,GO:0097159,GO:0097367,GO:1901135,GO:1901136,GO:1901265,GO:1901292,GO:1901360,GO:1901361,GO:1901362,GO:1901363,GO:1901564,GO:1901565,GO:1901568,GO:1901569,GO:1901575,GO:1901576,GO:1901605,GO:1901606,GO:1902189,GO:1902190,GO:1902192,GO:1902195,GO:1902196,GO:1902198 | L35: 1.3.8.4 | M35: ko:K00253 | N35: ko00280,ko01100,map00280,map01100 | O35: M00036 | P35: R04095 | Q35: RC00246 | R35: ko00000,ko00001,ko00002,ko01000 | S35: - | T35: - | U35: - | V35: Acyl-CoA_dh_1,Acyl-CoA_dh_M,Acyl-CoA_dh_N
A36: 4D | B36: NC_058518.1:389862996-389863396_0 | C36: 4565.Traes_3AL_C49AB49DA.1 | D36: 3.43e-11 | E36: 63.9 | F36: KOG0600@1|root,KOG0600@2759|Eukaryota,37N7D@33090|Viridiplantae,3G71B@35493|Streptophyta,3KM90@4447|Liliopsida,3I6CP@38820|Poales | G36: 35493|Streptophyta | H36: T | I36: Protein kinase domain | J36: - | K36: GO:0003674,GO:0003824,GO:0004672,GO:0004674,GO:0004693,GO:0005575,GO:0005622,GO:0005623,GO:0005634,GO:0005737,GO:0005829,GO:0006464,GO:0006468,GO:0006793,GO:0006796,GO:0006807,GO:0007275,GO:0008150,GO:0008152,GO:0009605,GO:0009607,GO:0009615,GO:0009987,GO:0016301,GO:0016310,GO:0016740,GO:0016772,GO:0016773,GO:0019538,GO:0032501,GO:0032502,GO:0036211,GO:0043170,GO:0043207,GO:0043226,GO:0043227,GO:0043229,GO:0043231,GO:0043412,GO:0044237,GO:0044238,GO:0044260,GO:0044267,GO:0044424,GO:0044444,GO:0044464,GO:0048366,GO:0048367,GO:0048731,GO:0048827,GO:0048856,GO:0050789,GO:0050794,GO:0050896,GO:0051704,GO:0051707,GO:0051726,GO:0065007,GO:0071704,GO:0097472,GO:0099402,GO:0140096,GO:1901564 | L36: 2.7.11.22,2.7.11.23 | M36: ko:K08819 | N36: - | O36: - | P36: - | Q36: - | R36: ko00000,ko01000,ko01001 | S36: - | T36: - | U36: - | V36: Pkinase
A37: 4D | B37: NC_058518.1:394619089-394619489_0 | C37: 4530.OS05T0381500-01 | D37: 6.26E-21 | E37: 90.9 | F37: 28KSY@1|root,2QT92@2759|Eukaryota,37PT3@33090|Viridiplantae,3G9AA@35493|Streptophyta,3KSHN@4447|Liliopsida,3IAB9@38820|Poales | G37: 35493|Streptophyta | H37: - | I37: - | J37: - | K37: - | L37: - | M37: - | N37: - | O37: - | P37: - | Q37: - | R37: - | S37: - | T37: - | U37: - | V37: -
A38: 4D | B38: NC_058518.1:417002155-417002555_0 | C38: 4565.Traes_1AL_5738CCBF8.1 | D38: 1.06e-25 | E38: 100 | F38: COG1080@1|root,2QREJ@2759|Eukaryota,37RGD@33090|Viridiplantae,3G7H6@35493|Streptophyta,3KXSS@4447|Liliopsida,3I3TU@38820|Poales | G38: 35493|Streptophyta | H38: F | I38: Pyruvate phosphate dikinase | J38: - | K38: GO:0005575,GO:0005622,GO:0005623,GO:0005634,GO:0005737,GO:0005829,GO:0009507,GO:0009532,GO:0009536,GO:0009570,GO:0043226,GO:0043227,GO:0043229,GO:0043231,GO:0044422,GO:0044424,GO:0044434,GO:0044435,GO:0044444,GO:0044446,GO:0044464 | L38: 2.7.9.1 | M38: ko:K01006 | N38: ko00620,ko00710,ko00720,ko01100,ko01120,ko01200,map00620,map00710,map00720,map01100,map01120,map01200 | O38: M00169,M00171,M00172,M00173 | P38: R00206 | Q38: RC00002,RC00015 | R38: ko00000,ko00001,ko00002,ko01000 | S38: - | T38: - | U38: - | V38: PEP-utilizers,PEP-utilizers_C,PPDK_N
A39: 4D | B39: NC_058518.1:417002582-417002982_1 | C39: 4565.Traes_1AL_5738CCBF8.1 | D39: 2.97E-11 | E39: 63.5 | F39: COG1080@1|root,2QREJ@2759|Eukaryota,37RGD@33090|Viridiplantae,3G7H6@35493|Streptophyta,3KXSS@4447|Liliopsida,3I3TU@38820|Poales | G39: 35493|Streptophyta | H39: F | I39: Pyruvate phosphate dikinase | J39: - | K39: GO:0005575,GO:0005622,GO:0005623,GO:0005634,GO:0005737,GO:0005829,GO:0009507,GO:0009532,GO:0009536,GO:0009570,GO:0043226,GO:0043227,GO:0043229,GO:0043231,GO:0044422,GO:0044424,GO:0044434,GO:0044435,GO:0044444,GO:0044446,GO:0044464 | L39: 2.7.9.1 | M39: ko:K01006 | N39: ko00620,ko00710,ko00720,ko01100,ko01120,ko01200,map00620,map00710,map00720,map01100,map01120,map01200 | O39: M00169,M00171,M00172,M00173 | P39: R00206 | Q39: RC00002,RC00015 | R39: ko00000,ko00001,ko00002,ko01000 | S39: - | T39: - | U39: - | V39: PEP-utilizers,PEP-utilizers_C,PPDK_N
A40: 4D | B40: NC_058518.1:417002582-417002982_0 | C40: 4565.Traes_1AL_5738CCBF8.1 | D40: 2.46E-13 | E40: 68.9 | F40: COG1080@1|root,2QREJ@2759|Eukaryota,37RGD@33090|Viridiplantae,3G7H6@35493|Streptophyta,3KXSS@4447|Liliopsida,3I3TU@38820|Poales | G40: 35493|Streptophyta | H40: F | I40: Pyruvate phosphate dikinase | J40: - | K40: GO:0005575,GO:0005622,GO:0005623,GO:0005634,GO:0005737,GO:0005829,GO:0009507,GO:0009532,GO:0009536,GO:0009570,GO:0043226,GO:0043227,GO:0043229,GO:0043231,GO:0044422,GO:0044424,GO:0044434,GO:0044435,GO:0044444,GO:0044446,GO:0044464 | L40: 2.7.9.1 | M40: ko:K01006 | N40: ko00620,ko00710,ko00720,ko01100,ko01120,ko01200,map00620,map00710,map00720,map01100,map01120,map01200 | O40: M00169,M00171,M00172,M00173 | P40: R00206 | Q40: RC00002,RC00015 | R40: ko00000,ko00001,ko00002,ko01000 | S40: - | T40: - | U40: - | V40: PEP-utilizers,PEP-utilizers_C,PPDK_N
A41: 4D | B41: NC_058518.1:418908306-418908706_0 | C41: 37682.EMT14468 | D41: 1.16E-43 | E41: 151 | F41: COG1512@1|root,2QQ6F@2759|Eukaryota,37M4H@33090|Viridiplantae,3G9W5@35493|Streptophyta,3KNNU@4447|Liliopsida,3I939@38820|Poales | G41: 35493|Streptophyta | H41: S | I41: TPM domain | J41: - | K41: GO:0003674,GO:0003824,GO:0003993,GO:0005575,GO:0005622,GO:0005623,GO:0005737,GO:0006091,GO:0006793,GO:0006796,GO:0006807,GO:0008150,GO:0008152,GO:0009507,GO:0009534,GO:0009535,GO:0009536,GO:0009579,GO:0009765,GO:0009987,GO:0010206,GO:0015979,GO:0016020,GO:0016311,GO:0016787,GO:0016788,GO:0016791,GO:0019538,GO:0019684,GO:0030091,GO:0031976,GO:0031977,GO:0031984,GO:0034357,GO:0042578,GO:0042651,GO:0043170,GO:0043226,GO:0043227,GO:0043229,GO:0043231,GO:0044237,GO:0044238,GO:0044260,GO:0044267,GO:0044422,GO:0044424,GO:0044434,GO:0044435,GO:0044436,GO:0044444,GO:0044446,GO:0044464,GO:0055035,GO:0071704,GO:1901564 | L41: - | M41: - | N41: - | O41: - | P41: - | Q41: - | R41: - | S41: - | T41: - | U41: - | V41: TPM_phosphatase
A42: 4D | B42: NC_058518.1:420847410-420847810_0 | C42: 3711.Bra034308.1-P | D42: 1.14E-20 | E42: 94.4 | F42: 2CMIQ@1|root,2QQFI@2759|Eukaryota,37J56@33090|Viridiplantae,3GCFK@35493|Streptophyta,3HN0X@3699|Brassicales | G42: 35493|Streptophyta | H42: S | I42: Protein WEAK CHLOROPLAST MOVEMENT UNDER BLUE | J42: - | K42: GO:0005575,GO:0005622,GO:0005623,GO:0005737,GO:0005829,GO:0005886,GO:0006996,GO:0008150,GO:0009657,GO:0009658,GO:0009902,GO:0009903,GO:0009904,GO:0009987,GO:0016020,GO:0016043,GO:0019750,GO:0044424,GO:0044444,GO:0044464,GO:0051179,GO:0051234,GO:0051640,GO:0051641,GO:0051644,GO:0051649,GO:0051656,GO:0051667,GO:0071840,GO:0071944 | L42: - | M42: - | N42: - | O42: - | P42: - | Q42: - | R42: - | S42: - | T42: - | U42: - | V42: WEMBL
A43: 4D | B43: NC_058518.1:420848450-420848850_0 | C43: 4565.Traes_2DS_49D2A275E.1 | D43: 7.64E-37 | E43: 134 | F43: 2CMIQ@1|root,2QQFI@2759|Eukaryota,37J56@33090|Viridiplantae,3GCFK@35493|Streptophyta,3KYNN@4447|Liliopsida,3IGH4@38820|Poales | G43: 35493|Streptophyta | H43: S | I43: Weak chloroplast movement under blue light | J43: - | K43: GO:0005575,GO:0005622,GO:0005623,GO:0005737,GO:0005829,GO:0005886,GO:0006996,GO:0008150,GO:0009657,GO:0009658,GO:0009902,GO:0009903,GO:0009904,GO:0009987,GO:0016020,GO:0016043,GO:0019750,GO:0044424,GO:0044444,GO:0044464,GO:0051179,GO:0051234,GO:0051640,GO:0051641,GO:0051644,GO:0051649,GO:0051656,GO:0051667,GO:0071840,GO:0071944 | L43: - | M43: - | N43: - | O43: - | P43: - | Q43: - | R43: - | S43: - | T43: - | U43: - | V43: WEMBL
A44: 4D | B44: NC_058518.1:422647312-422647712_0 | C44: 4530.OS08T0368000-01 | D44: 4.63E-12 | E44: 67.4 | F44: KOG2635@1|root,KOG2635@2759|Eukaryota,37NHA@33090|Viridiplantae,3GFBK@35493|Streptophyta,3KXE7@4447|Liliopsida,3I6B8@38820|Poales | G44: 35493|Streptophyta | H44: U | I44: The coatomer is a cytosolic protein complex that binds to dilysine motifs and reversibly associates with Golgi non- clathrin-coated vesicles, which further mediate biosynthetic protein transport from the ER, via the Golgi up to the trans Golgi network. Coatomer complex is required for budding from Golgi membranes, and is essential for the retrograde Golgi-to-ER transport of dilysine-tagged proteins | J44: - | K44: GO:0005575,GO:0005622,GO:0005623,GO:0005737,GO:0005798,GO:0005829,GO:0005911,GO:0009506,GO:0016020,GO:0030054,GO:0031410,GO:0031982,GO:0043226,GO:0043227,GO:0043229,GO:0044424,GO:0044444,GO:0044464,GO:0055044,GO:0097708 | L44: - | M44: ko:K20471 | N44: - | O44: - | P44: - | Q44: - | R44: ko00000,ko04131 | S44: - | T44: - | U44: - | V44: Adap_comp_sub,Clat_adaptor_s
A45: 4D | B45: NC_058518.1:429767730-429768130_0 | C45: 37682.EMT19247 | D45: 1.55e-24 | E45: 101 | F45: KOG1632@1|root,KOG1632@2759|Eukaryota,37I3F@33090|Viridiplantae,3GDZ3@35493|Streptophyta,3KXEE@4447|Liliopsida,3I48S@38820|Poales | G45: 35493|Streptophyta | H45: S | I45: Alfin | J45: - | K45: - | L45: - | M45: - | N45: - | O45: - | P45: - | Q45: - | R45: - | S45: - | T45: - | U45: - | V45: Alfin,PHD
A46: 4D | B46: NC_058518.1:437403514-437403914_0 | C46: 15368.BRADI2G24810.1 | D46: 1.38E-19 | E46: 84.3 | F46: 2CJ1X@1|root,2R4JN@2759|Eukaryota,385FV@33090|Viridiplantae,3GTER@35493|Streptophyta,3MA3U@4447|Liliopsida,3IS6Q@38820|Poales | G46: 35493|Streptophyta | H46: - | I46: - | J46: - | K46: - | L46: - | M46: - | N46: - | O46: - | P46: - | Q46: - | R46: - | S46: - | T46: - | U46: - | V46: -
A47: 4D | B47: NC_058518.1:441778205-441778605_0 | C47: 37682.EMT00487 | D47: 2.55e-79 | E47: 244 | F47: 2CNFT@1|root,2QVZQ@2759|Eukaryota,37Q6V@33090|Viridiplantae,3GAH6@35493|Streptophyta,3KQ44@4447|Liliopsida,3I84U@38820|Poales | G47: 35493|Streptophyta | H47: S | I47: Development and cell death domain | J47: - | K47: - | L47: - | M47: - | N47: - | O47: - | P47: - | Q47: - | R47: - | S47: - | T47: - | U47: - | V47: Dev_Cell_Death
A48: 4D | B48: NC_058518.1:443972620-443973404_0 | C48: 4513.MLOC_15633.1 | D48: 9.79E-98 | E48: 305 | F48: COG5118@1|root,KOG2009@2759|Eukaryota,37QZ2@33090|Viridiplantae,3GG5S@35493|Streptophyta,3M0VG@4447|Liliopsida,3IEJY@38820|Poales | G48: 35493|Streptophyta | H48: K | I48: Transcription factor tfiiib component | J48: - | K48: GO:0000126,GO:0001025,GO:0001156,GO:0003674,GO:0003676,GO:0003677,GO:0005488,GO:0005515,GO:0005575,GO:0005622,GO:0005623,GO:0005634,GO:0005667,GO:0006139,GO:0006351,GO:0006352,GO:0006383,GO:0006384,GO:0006725,GO:0006807,GO:0008134,GO:0008150,GO:0008152,GO:0009058,GO:0009059,GO:0009987,GO:0010467,GO:0016043,GO:0016070,GO:0018130,GO:0019438,GO:0022607,GO:0032774,GO:0032991,GO:0034622,GO:0034641,GO:0034645,GO:0034654,GO:0043170,GO:0043226,GO:0043227,GO:0043229,GO:0043231,GO:0043933,GO:0044085,GO:0044237,GO:0044238,GO:0044249,GO:0044260,GO:0044271,GO:0044422,GO:0044424,GO:0044428,GO:0044446,GO:0044464,GO:0044798,GO:0046483,GO:0065003,GO:0065004,GO:0070897,GO:0070898,GO:0071704,GO:0071824,GO:0071840,GO:0090304,GO:0090576,GO:0097159,GO:0097659,GO:1901360,GO:1901362,GO:1901363,GO:1901576 | L48: - | M48: ko:K15198 | N48: - | O48: - | P48: - | Q48: - | R48: ko00000,ko03021 | S48: - | T48: - | U48: - | V48: Myb_DNA-bind_7
A49: 4D | B49: NC_058518.1:449503561-449503961_0 | C49: 4565.Traes_1DL_34A359364.1 | D49: 2.87E-18 | E49: 84 | F49: COG1100@1|root,KOG0070@2759|Eukaryota,37PTM@33090|Viridiplantae,3GFH5@35493|Streptophyta,3KPZT@4447|Liliopsida,3IA85@38820|Poales | G49: 35493|Streptophyta | H49: U | I49: Belongs to the small GTPase superfamily. Arf family | J49: - | K49: GO:0005575,GO:0005622,GO:0005623,GO:0005737,GO:0005794,GO:0006464,GO:0006471,GO:0006807,GO:0006810,GO:0006886,GO:0008104,GO:0008150,GO:0008152,GO:0009987,GO:0012505,GO:0015031,GO:0015833,GO:0016192,GO:0019538,GO:0033036,GO:0034613,GO:0036211,GO:0042886,GO:0043170,GO:0043226,GO:0043227,GO:0043229,GO:0043231,GO:0043412,GO:0044237,GO:0044238,GO:0044260,GO:0044267,GO:0044424,GO:0044444,GO:0044464,GO:0045184,GO:0046907,GO:0051179,GO:0051234,GO:0051641,GO:0051649,GO:0070727,GO:0071702,GO:0071704,GO:0071705,GO:1901564 | L49: - | M49: ko:K07937 | N49: ko04072,ko04144,ko05110,ko05134,map04072,map04144,map05110,map05134 | O49: - | P49: - | Q49: - | R49: ko00000,ko00001,ko04031,ko04131,ko04147 | S49: - | T49: - | U49: - | V49: Arf
A50: 4D | B50: NC_058518.1:452939155-452939555_0 | C50: 4565.Traes_1AL_17C37FFB0.2 | D50: 1.60E-35 | E50: 128 | F50: KOG0594@1|root,KOG0594@2759|Eukaryota,37I1U@33090|Viridiplantae,3G7VD@35493|Streptophyta,3KKZM@4447|Liliopsida,3IA3V@38820|Poales | G50: 35493|Streptophyta | H50: T | I50: Protein kinase domain | J50: - | K50: GO:0003674,GO:0003824,GO:0004672,GO:0005575,GO:0005622,GO:0005623,GO:0005737,GO:0006464,GO:0006468,GO:0006793,GO:0006796,GO:0006807,GO:0008150,GO:0008152,GO:0009507,GO:0009536,GO:0009579,GO:0009987,GO:0010109,GO:0016301,GO:0016310,GO:0016740,GO:0016772,GO:0016773,GO:0019222,GO:0019538,GO:0031323,GO:0036211,GO:0042548,GO:0042549,GO:0043170,GO:0043226,GO:0043227,GO:0043229,GO:0043231,GO:0043412,GO:0043467,GO:0044237,GO:0044238,GO:0044260,GO:0044267,GO:0044424,GO:0044444,GO:0044464,GO:0050789,GO:0050794,GO:0065007,GO:0071704,GO:0140096,GO:1901564 | L50: - | M50: - | N50: - | O50: - | P50: - | Q50: - | R50: - | S50: - | T50: - | U50: - | V50: Pkinase
A51: 4D | B51: NC_058518.1:452939155-452939555_1 | C51: 4565.Traes_1AL_17C37FFB0.2 | D51: 6.85E-18 | E51: 83.2 | F51: KOG0594@1|root,KOG0594@2759|Eukaryota,37I1U@33090|Viridiplantae,3G7VD@35493|Streptophyta,3KKZM@4447|Liliopsida,3IA3V@38820|Poales | G51: 35493|Streptophyta | H51: T | I51: Protein kinase domain | J51: - | K51: GO:0003674,GO:0003824,GO:0004672,GO:0005575,GO:0005622,GO:0005623,GO:0005737,GO:0006464,GO:0006468,GO:0006793,GO:0006796,GO:0006807,GO:0008150,GO:0008152,GO:0009507,GO:0009536,GO:0009579,GO:0009987,GO:0010109,GO:0016301,GO:0016310,GO:0016740,GO:0016772,GO:0016773,GO:0019222,GO:0019538,GO:0031323,GO:0036211,GO:0042548,GO:0042549,GO:0043170,GO:0043226,GO:0043227,GO:0043229,GO:0043231,GO:0043412,GO:0043467,GO:0044237,GO:0044238,GO:0044260,GO:0044267,GO:0044424,GO:0044444,GO:0044464,GO:0050789,GO:0050794,GO:0065007,GO:0071704,GO:0140096,GO:1901564 | L51: - | M51: - | N51: - | O51: - | P51: - | Q51: - | R51: - | S51: - | T51: - | U51: - | V51: Pkinase
A52: 4D | B52: NC_058518.1:455320355-455320755_0 | C52: 981085.XP_010091100.1 | D52: 1.62E-20 | E52: 91.7 | F52: COG0160@1|root,KOG1404@2759|Eukaryota,37HV3@33090|Viridiplantae,3GGGM@35493|Streptophyta,4JFHE@91835|fabids | G52: 35493|Streptophyta | H52: E | I52: Belongs to the class-III pyridoxal-phosphate-dependent aminotransferase family | J52: - | K52: GO:0003674,GO:0003824,GO:0005488,GO:0005515,GO:0005575,GO:0005622,GO:0005623,GO:0005737,GO:0005739,GO:0007154,GO:0008144,GO:0008150,GO:0008453,GO:0008483,GO:0009605,GO:0009987,GO:0009991,GO:0016740,GO:0016769,GO:0019842,GO:0030170,GO:0031667,GO:0031668,GO:0031669,GO:0036094,GO:0042802,GO:0043167,GO:0043168,GO:0043226,GO:0043227,GO:0043229,GO:0043231,GO:0043562,GO:0044424,GO:0044444,GO:0044464,GO:0048037,GO:0050662,GO:0050896,GO:0051716,GO:0070279,GO:0071496,GO:0097159,GO:1901363 | L52: 2.6.1.40,2.6.1.44 | M52: ko:K00827 | N52: ko00250,ko00260,ko00270,ko00280,ko01100,ko01110,map00250,map00260,map00270,map00280,map01100,map01110 | O52: - | P52: R00369,R00372,R02050,R10992 | Q52: RC00006,RC00008,RC00018,RC00160 | R52: ko00000,ko00001,ko01000,ko01007 | S52: - | T52: - | U52: - | V52: Aminotran_3
A53: 4D | B53: NC_058518.1:45904214-45904614_0 | C53: 4565.Traes_1AS_B1DE9E844.1 | D53: 6.66E-24 | E53: 98.6 | F53: KOG1590@1|root,KOG1590@2759|Eukaryota,37US3@33090|Viridiplantae,3GIMZ@35493|Streptophyta,3M0I9@4447|Liliopsida,3II1E@38820|Poales | G53: 35493|Streptophyta | H53: C | I53: Mediates the uptake of pyruvate into mitochondria | J53: - | K53: GO:0003674,GO:0005215,GO:0005342,GO:0005575,GO:0005622,GO:0005623,GO:0005737,GO:0005739,GO:0005740,GO:0005743,GO:0005773,GO:0005774,GO:0005886,GO:0006810,GO:0006811,GO:0006820,GO:0006839,GO:0006848,GO:0006850,GO:0008028,GO:0008150,GO:0008509,GO:0008514,GO:0010119,GO:0015075,GO:0015318,GO:0015711,GO:0015718,GO:0015849,GO:0016020,GO:0016021,GO:0019866,GO:0022857,GO:0031090,GO:0031224,GO:0031300,GO:0031301,GO:0031304,GO:0031305,GO:0031966,GO:0031967,GO:0031975,GO:0032592,GO:0034220,GO:0043226,GO:0043227,GO:0043229,GO:0043231,GO:0044422,GO:0044424,GO:0044425,GO:0044429,GO:0044437,GO:0044444,GO:0044446,GO:0044455,GO:0044464,GO:0046942,GO:0046943,GO:0050789,GO:0050794,GO:0050833,GO:0051179,GO:0051234,GO:0055085,GO:0065007,GO:0071702,GO:0071944,GO:0098573,GO:0098588,GO:0098656,GO:0098805,GO:1901475,GO:1903825,GO:1905039,GO:1990542 | L53: - | M53: ko:K22138 | N53: - | O53: - | P53: - | Q53: - | R53: ko00000,ko02000,ko03029 | S53: 2.A.105.1 | T53: - | U53: - | V53: MPC
A54: 4D | B54: NC_058518.1:464057225-464057625_0 | C54: 29760.VIT_15s0024g00720.t01 | D54: 4.34E-09 | E54: 60.5 | F54: COG0014@1|root,KOG4165@2759|Eukaryota,37QQV@33090|Viridiplantae,3G949@35493|Streptophyta | G54: 35493|Streptophyta | H54: E | I54: P5CS plays a key role in proline biosynthesis, leading to osmoregulation in plants | J54: P5CS | K54: GO:0000003,GO:0001101,GO:0003006,GO:0003674,GO:0003824,GO:0004350,GO:0005575,GO:0005622,GO:0005623,GO:0005737,GO:0005829,GO:0005911,GO:0006082,GO:0006520,GO:0006560,GO:0006561,GO:0006807,GO:0006950,GO:0006970,GO:0006972,GO:0006979,GO:0007275,GO:0008150,GO:0008152,GO:0008652,GO:0009058,GO:0009064,GO:0009084,GO:0009414,GO:0009415,GO:0009506,GO:0009507,GO:0009536,GO:0009555,GO:0009628,GO:0009651,GO:0009790,GO:0009791,GO:0009793,GO:0009987,GO:0010035,GO:0010154,GO:0016020,GO:0016053,GO:0016491,GO:0016620,GO:0016903,GO:0017084,GO:0018130,GO:0019752,GO:0022414,GO:0022622,GO:0030054,GO:0032501,GO:0032502,GO:0042221,GO:0042538,GO:0043226,GO:0043227,GO:0043229,GO:0043231,GO:0043436,GO:0044237,GO:0044238,GO:0044249,GO:0044281,GO:0044283,GO:0044424,GO:0044444,GO:0044464,GO:0046394,GO:0046483,GO:0048229,GO:0048316,GO:0048364,GO:0048608,GO:0048731,GO:0048856,GO:0050896,GO:0055044,GO:0055114,GO:0061458,GO:0071704,GO:0099402,GO:1901360,GO:1901362,GO:1901564,GO:1901566,GO:1901576,GO:1901605,GO:1901607,GO:1901700 | L54: 1.2.1.41,2.7.2.11 | M54: ko:K12657 | N54: ko00330,ko01100,ko01110,ko01230,map00330,map01100,map01110,map01230 | O54: M00015 | P54: R00239,R03313 | Q54: RC00002,RC00043,RC00684 | R54: ko00000,ko00001,ko00002,ko01000 | S54: - | T54: - | U54: - | V54: AA_kinase,Aldedh
A55: 4D | B55: NC_058518.1:464648098-464648498_0 | C55: 4513.MLOC_5765.2 | D55: 8.43e-25 | E55: 99.4 | F55: 2BJ9Y@1|root,2S1FS@2759|Eukaryota,37VMY@33090|Viridiplantae,3GJNC@35493|Streptophyta,3M1I3@4447|Liliopsida,3IIQD@38820|Poales | G55: 35493|Streptophyta | H55: S | I55: expressed protein | J55: - | K55: - | L55: - | M55: - | N55: - | O55: - | P55: - | Q55: - | R55: - | S55: - | T55: - | U55: - | V55: -
A56: 4D | B56: NC_058518.1:46812521-46812921_0 | C56: 4530.OS07T0462000-01 | D56: 1.49e-10 | E56: 62.4 | F56: COG3572@1|root,2QVEN@2759|Eukaryota,37P15@33090|Viridiplantae,3G90F@35493|Streptophyta,3KMKG@4447|Liliopsida,3I3HG@38820|Poales | G56: 35493|Streptophyta | H56: H | I56: Glutamate-cysteine ligase family 2(GCS2) | J56: GSH1 | K56: - | L56: 6.3.2.2 | M56: ko:K01919 | N56: ko00270,ko00480,ko01100,map00270,map00480,map01100 | O56: M00118 | P56: R00894,R10993 | Q56: RC00064,RC00090 | R56: ko00000,ko00001,ko00002,ko01000 | S56: - | T56: - | U56: - | V56: GCS2
A57: 4D | B57: NC_058518.1:471777747-471778147_0 | C57: 3988.XP_002539790.1 | D57: 2.13e-11 | E57: 62.4 | F57: COG0158@1|root,KOG1458@2759|Eukaryota | G57: 2759|Eukaryota | H57: G | I57: fructose 1,6-bisphosphate 1-phosphatase activity | J57: FBP1 | K57: GO:0000166,GO:0001558,GO:0003674,GO:0003824,GO:0005488,GO:0005575,GO:0005622,GO:0005623,GO:0005737,GO:0005829,GO:0005975,GO:0005984,GO:0005985,GO:0005986,GO:0005996,GO:0006000,GO:0006002,GO:0006006,GO:0006094,GO:0006109,GO:0006110,GO:0006111,GO:0006140,GO:0006793,GO:0006796,GO:0006950,GO:0007154,GO:0008144,GO:0008150,GO:0008152,GO:0009058,GO:0009267,GO:0009311,GO:0009312,GO:0009605,GO:0009889,GO:0009890,GO:0009892,GO:0009894,GO:0009895,GO:0009966,GO:0009968,GO:0009987,GO:0009991,GO:0010035,GO:0010038,GO:0010563,GO:0010646,GO:0010648,GO:0010675,GO:0010677,GO:0010906,GO:0016043,GO:0016051,GO:0016208,GO:0016311,GO:0016787,GO:0016788,GO:0016791,GO:0017076,GO:0019203,GO:0019219,GO:0019220,GO:0019222,GO:0019318,GO:0019319,GO:0019637,GO:0022607,GO:0023051,GO:0023057,GO:0030246,GO:0030308,GO:0030388,GO:0030554,GO:0030808,GO:0030809,GO:0030811,GO:0030812,GO:0031323,GO:0031324,GO:0031326,GO:0031327,GO:0031329,GO:0031330,GO:0031667,GO:0031668,GO:0031669,GO:0032026,GO:0032553,GO:0032555,GO:0032559,GO:0033554,GO:0034637,GO:0035690,GO:0036094,GO:0040008,GO:0042132,GO:0042149,GO:0042221,GO:0042325,GO:0042326,GO:0042493,GO:0042578,GO:0042594,GO:0042597,GO:0043167,GO:0043168,GO:0043169,GO:0043255,GO:0043467,GO:0043470,GO:0043933,GO:0044085,GO:0044237,GO:0044238,GO:0044249,GO:0044262,GO:0044281,GO:0044283,GO:0044424,GO:0044444,GO:0044464,GO:0045820,GO:0045912,GO:0045926,GO:0045934,GO:0045936,GO:0045980,GO:0046351,GO:0046364,GO:0046578,GO:0046580,GO:0046872,GO:0048029,GO:0048519,GO:0048523,GO:0048583,GO:0048585,GO:0050308,GO:0050789,GO:0050794,GO:0050896,GO:0051056,GO:0051058,GO:0051128,GO:0051171,GO:0051172,GO:0051174,GO:0051193,GO:0051195,GO:0051196,GO:0051198,GO:0051259,GO:0051260,GO:0051262,GO:0051289,GO:0051716,GO:0062012,GO:0062014,GO:0065003,GO:0065007,GO:0070887,GO:0071241,GO:0071248,GO:0071286,GO:0071496,GO:0071704,GO:0071840,GO:0072593,GO:0080090,GO:0097159,GO:0097367,GO:1900371,GO:1900372,GO:1900542,GO:1900543,GO:1901135,GO:1901265,GO:1901363,GO:1901576,GO:1902531,GO:1902532,GO:1903578,GO:1903579,GO:2001169,GO:2001170 | L57: 3.1.3.11 | M57: ko:K03841 | N57: ko00010,ko00030,ko00051,ko00680,ko00710,ko01100,ko01110,ko01120,ko01130,ko01200,ko04152,ko04910,map00010,map00030,map00051,map00680,map00710,map01100,map01110,map01120,map01130,map01200,map04152,map04910 | O57: M00003,M00165,M00167,M00344 | P57: R00762,R04780 | Q57: RC00017 | R57: ko00000,ko00001,ko00002,ko01000,ko04147 | S57: - | T57: - | U57: iMM904.YLR377C,iND750.YLR377C | V57: FBPase
A58: 4D | B58: NC_058518.1:47246429-47246829_0 | C58: 4565.Traes_1AS_94B6230FB1.1 | D58: 2.23E-35 | E58: 126 | F58: 2CY2E@1|root,2S1GC@2759|Eukaryota,37VIA@33090|Viridiplantae,3GJBC@35493|Streptophyta,3KZXT@4447|Liliopsida,3IH3E@38820|Poales | G58: 35493|Streptophyta | H58: K | I58: Basic region leucine zipper | J58: - | K58: - | L58: - | M58: - | N58: - | O58: - | P58: - | Q58: - | R58: - | S58: - | T58: - | U58: - | V58: bZIP_1,bZIP_2
A59: 4D | B59: NC_058518.1:474553771-474554171_0 | C59: 4530.OS05T0506200-01 | D59: 7.93E-38 | E59: 142 | F59: COG5164@1|root,KOG1999@2759|Eukaryota,37NDQ@33090|Viridiplantae,3GC3V@35493|Streptophyta,3KUU1@4447|Liliopsida,3I35F@38820|Poales | G59: 35493|Streptophyta | H59: K | I59: Early transcription elongation factor of RNA pol II, NGN section | J59: - | K59: GO:0003674,GO:0003676,GO:0003677,GO:0003682,GO:0003723,GO:0003729,GO:0005488,GO:0005575,GO:0005622,GO:0005623,GO:0005634,GO:0005654,GO:0006139,GO:0006259,GO:0006304,GO:0006305,GO:0006306,GO:0006325,GO:0006342,GO:0006351,GO:0006354,GO:0006355,GO:0006357,GO:0006366,GO:0006368,GO:0006396,GO:0006397,GO:0006725,GO:0006807,GO:0006996,GO:0008023,GO:0008150,GO:0008152,GO:0009058,GO:0009059,GO:0009889,GO:0009890,GO:0009892,GO:0009987,GO:0010033,GO:0010467,GO:0010468,GO:0010556,GO:0010558,GO:0010605,GO:0010608,GO:0010629,GO:0014070,GO:0016043,GO:0016070,GO:0016071,GO:0016246,GO:0016441,GO:0016458,GO:0018130,GO:0019219,GO:0019222,GO:0019438,GO:0030422,GO:0031047,GO:0031050,GO:0031323,GO:0031324,GO:0031326,GO:0031327,GO:0031974,GO:0031981,GO:0032044,GO:0032259,GO:0032774,GO:0032991,GO:0034641,GO:0034645,GO:0034654,GO:0035194,GO:0040029,GO:0042221,GO:0043170,GO:0043226,GO:0043227,GO:0043229,GO:0043231,GO:0043233,GO:0043331,GO:0043412,GO:0043414,GO:0044237,GO:0044238,GO:0044249,GO:0044260,GO:0044271,GO:0044422,GO:0044424,GO:0044428,GO:0044446,GO:0044451,GO:0044464,GO:0044728,GO:0045814,GO:0045892,GO:0045934,GO:0046483,GO:0048519,GO:0048523,GO:0050789,GO:0050794,GO:0050896,GO:0051171,GO:0051172,GO:0051252,GO:0051253,GO:0051276,GO:0051716,GO:0060255,GO:0065007,GO:0070013,GO:0070887,GO:0070918,GO:0071310,GO:0071359,GO:0071407,GO:0071704,GO:0071840,GO:0080090,GO:0080188,GO:0090304,GO:0097159,GO:0097659,GO:1901360,GO:1901362,GO:1901363,GO:1901576,GO:1901698,GO:1901699,GO:1902679,GO:1903506,GO:1903507,GO:2000112,GO:2000113,GO:2001141 | L59: - | M59: ko:K15172 | N59: - | O59: - | P59: - | Q59: - | R59: ko00000,ko03019,ko03021 | S59: - | T59: - | U59: - | V59: Spt5-NGN
A60: 4D | B60: NC_058518.1:475240685-475241085_0 | C60: 4565.Traes_1AL_DC43D6836.1 | D60: 3.58E-26 | E60: 106 | F60: 2E0BF@1|root,2S7SF@2759|Eukaryota,386PE@33090|Viridiplantae,3GUK8@35493|Streptophyta,3M0S8@4447|Liliopsida,3IINX@38820|Poales | G60: 35493|Streptophyta | H60: - | I60: - | J60: - | K60: - | L60: - | M60: - | N60: - | O60: - | P60: - | Q60: - | R60: - | S60: - | T60: - | U60: - | V60: -
A61: 4D | B61: NC_058518.1:479245064-479245464_0 | C61: 4513.MLOC_67167.1 | D61: 1.38E-20 | E61: 89.4 | F61: KOG2502@1|root,KOG2502@2759|Eukaryota,37NKV@33090|Viridiplantae,3GDV2@35493|Streptophyta,3KUXS@4447|Liliopsida,3I75K@38820|Poales | G61: 35493|Streptophyta | H61: S | I61: Belongs to the TUB family | J61: - | K61: GO:0003674,GO:0005488,GO:0005543,GO:0008289,GO:0035091,GO:0043167,GO:0043168 | L61: - | M61: - | N61: - | O61: - | P61: - | Q61: - | R61: - | S61: - | T61: - | U61: - | V61: F-box,Tub
A62: 4D | B62: NC_058518.1:483013381-483013781_0 | C62: 3712.Bo1g119010.1 | D62: 4.54E-18 | E62: 82 | F62: COG0500@1|root,KOG1269@2759|Eukaryota,37MW5@33090|Viridiplantae,3G8XR@35493|Streptophyta | G62: 35493|Streptophyta | H62: I | I62: phosphoethanolamine N-methyltransferase | J62: - | K62: GO:0000003,GO:0000902,GO:0000904,GO:0001505,GO:0003006,GO:0003674,GO:0003824,GO:0005575,GO:0005622,GO:0005623,GO:0005737,GO:0005829,GO:0006576,GO:0006807,GO:0006935,GO:0007275,GO:0008150,GO:0008152,GO:0008168,GO:0009058,GO:0009308,GO:0009309,GO:0009555,GO:0009605,GO:0009653,GO:0009791,GO:0009826,GO:0009856,GO:0009860,GO:0009932,GO:0009987,GO:0010183,GO:0016043,GO:0016049,GO:0016740,GO:0016741,GO:0019695,GO:0022414,GO:0022622,GO:0030154,GO:0032259,GO:0032501,GO:0032502,GO:0032989,GO:0034641,GO:0040007,GO:0040011,GO:0042133,GO:0042136,GO:0042221,GO:0042330,GO:0042401,GO:0042425,GO:0044106,GO:0044237,GO:0044249,GO:0044271,GO:0044424,GO:0044444,GO:0044464,GO:0044706,GO:0048229,GO:0048364,GO:0048468,GO:0048528,GO:0048588,GO:0048589,GO:0048731,GO:0048856,GO:0048868,GO:0048869,GO:0050896,GO:0050918,GO:0051704,GO:0060560,GO:0065007,GO:0065008,GO:0071704,GO:0071840,GO:0090696,GO:0097164,GO:0099402,GO:1901564,GO:1901566,GO:1901576 | L62: 2.1.1.103 | M62: ko:K05929 | N62: ko00564,map00564 | O62: - | P62: R02037,R06868,R06869 | Q62: RC00003,RC00060,RC00181,RC00496 | R62: ko00000,ko00001,ko01000 | S62: - | T62: - | U62: - | V62: Methyltransf_11,Methyltransf_25
A63: 4D | B63: NC_058518.1:483017061-483017461_0 | C63: 37682.EMT23239 | D63: 4.32E-22 | E63: 90.1 | F63: COG0500@1|root,KOG1269@2759|Eukaryota,38AIY@33090|Viridiplantae,3GVV3@35493|Streptophyta,3M8V0@4447|Liliopsida,3ISVW@38820|Poales | G63: 35493|Streptophyta | H63: I | I63: sterol 24-C-methyltransferase activity | J63: - | K63: - | L63: - | M63: - | N63: - | O63: - | P63: - | Q63: - | R63: - | S63: - | T63: - | U63: - | V63: -
A64: 4D | B64: NC_058518.1:487495885-487496285_1 | C64: 3750.XP_008385272.1 | D64: 2.80E-10 | E64: 60.5 | F64: COG1012@1|root,KOG2451@2759|Eukaryota,37KPW@33090|Viridiplantae,3GA3J@35493|Streptophyta,4JMAG@91835|fabids | G64: 35493|Streptophyta | H64: C | I64: Dehydrogenase | J64: - | K64: GO:0003674,GO:0003824,GO:0003842,GO:0005488,GO:0005575,GO:0005622,GO:0005623,GO:0005737,GO:0005739,GO:0006082,GO:0006520,GO:0006536,GO:0006560,GO:0006562,GO:0006807,GO:0006950,GO:0006970,GO:0008150,GO:0008152,GO:0008270,GO:0009056,GO:0009063,GO:0009064,GO:0009065,GO:0009507,GO:0009536,GO:0009628,GO:0009651,GO:0009987,GO:0010133,GO:0016054,GO:0016491,GO:0016645,GO:0016646,GO:0019752,GO:0043167,GO:0043169,GO:0043226,GO:0043227,GO:0043229,GO:0043231,GO:0043436,GO:0043648,GO:0044237,GO:0044238,GO:0044248,GO:0044281,GO:0044282,GO:0044424,GO:0044444,GO:0044464,GO:0046395,GO:0046483,GO:0046700,GO:0046872,GO:0046914,GO:0050896,GO:0050897,GO:0055114,GO:0071704,GO:0072593,GO:1901360,GO:1901361,GO:1901564,GO:1901565,GO:1901575,GO:1901605,GO:1901606 | L64: 1.2.1.88 | M64: ko:K00294 | N64: ko00250,ko00330,ko01100,map00250,map00330,map01100 | O64: - | P64: R00245,R00707,R00708,R04444,R04445,R05051 | Q64: RC00080,RC00216,RC00242,RC00255 | R64: ko00000,ko00001,ko01000 | S64: - | T64: - | U64: - | V64: Aldedh
A65: 4D | B65: NC_058518.1:487495885-487496285_0 | C65: 3750.XP_008385272.1 | D65: 2.73e-24 | E65: 96.3 | F65: COG1012@1|root,KOG2451@2759|Eukaryota,37KPW@33090|Viridiplantae,3GA3J@35493|Streptophyta,4JMAG@91835|fabids | G65: 35493|Streptophyta | H65: C | I65: Dehydrogenase | J65: - | K65: GO:0003674,GO:0003824,GO:0003842,GO:0005488,GO:0005575,GO:0005622,GO:0005623,GO:0005737,GO:0005739,GO:0006082,GO:0006520,GO:0006536,GO:0006560,GO:0006562,GO:0006807,GO:0006950,GO:0006970,GO:0008150,GO:0008152,GO:0008270,GO:0009056,GO:0009063,GO:0009064,GO:0009065,GO:0009507,GO:0009536,GO:0009628,GO:0009651,GO:0009987,GO:0010133,GO:0016054,GO:0016491,GO:0016645,GO:0016646,GO:0019752,GO:0043167,GO:0043169,GO:0043226,GO:0043227,GO:0043229,GO:0043231,GO:0043436,GO:0043648,GO:0044237,GO:0044238,GO:0044248,GO:0044281,GO:0044282,GO:0044424,GO:0044444,GO:0044464,GO:0046395,GO:0046483,GO:0046700,GO:0046872,GO:0046914,GO:0050896,GO:0050897,GO:0055114,GO:0071704,GO:0072593,GO:1901360,GO:1901361,GO:1901564,GO:1901565,GO:1901575,GO:1901605,GO:1901606 | L65: 1.2.1.88 | M65: ko:K00294 | N65: ko00250,ko00330,ko01100,map00250,map00330,map01100 | O65: - | P65: R00245,R00707,R00708,R04444,R04445,R05051 | Q65: RC00080,RC00216,RC00242,RC00255 | R65: ko00000,ko00001,ko01000 | S65: - | T65: - | U65: - | V65: Aldedh
A66: 4D | B66: NC_058518.1:492806346-492806746_0 | C66: 4572.TRIUR3_03750-P1 | D66: 2.54E-19 | E66: 85.9 | F66: KOG0800@1|root,KOG0800@2759|Eukaryota,37NTT@33090|Viridiplantae,3GCU3@35493|Streptophyta,3KM1F@4447|Liliopsida,3I622@38820|Poales | G66: 35493|Streptophyta | H66: O | I66: RING-type zinc-finger | J66: - | K66: GO:0003674,GO:0003824,GO:0004842,GO:0006464,GO:0006508,GO:0006511,GO:0006807,GO:0008150,GO:0008152,GO:0009056,GO:0009057,GO:0009987,GO:0010498,GO:0016567,GO:0016740,GO:0019538,GO:0019787,GO:0019941,GO:0030163,GO:0032446,GO:0036211,GO:0043161,GO:0043170,GO:0043412,GO:0043632,GO:0044237,GO:0044238,GO:0044248,GO:0044257,GO:0044260,GO:0044265,GO:0044267,GO:0051603,GO:0051865,GO:0061630,GO:0061659,GO:0070647,GO:0071704,GO:0140096,GO:1901564,GO:1901565,GO:1901575 | L66: 2.3.2.27 | M66: ko:K19041 | N66: - | O66: - | P66: - | Q66: - | R66: ko00000,ko01000,ko04121 | S66: - | T66: - | U66: - | V66: zf-RING_2
A67: 4D | B67: NC_058518.1:493590285-493590685_0 | C67: 38727.Pavir.Gb01171.1.p | D67: 1.01e-18 | E67: 86.3 | F67: COG1498@1|root,KOG2574@2759|Eukaryota,37I4D@33090|Viridiplantae,3G7PQ@35493|Streptophyta,3KRFC@4447|Liliopsida,3I5Z4@38820|Poales | G67: 35493|Streptophyta | H67: A | I67: Prp31 C terminal domain | J67: - | K67: - | L67: - | M67: ko:K12844 | N67: ko03040,map03040 | O67: M00354 | P67: - | Q67: - | R67: ko00000,ko00001,ko00002,ko03041 | S67: - | T67: - | U67: - | V67: Nop,Prp31_C
A68: 4D | B68: NC_058518.1:494683626-494684026_0 | C68: 4513.MLOC_69311.1 | D68: 7.32E-29 | E68: 110 | F68: 28JTR@1|root,2QS7N@2759|Eukaryota,37Q3D@33090|Viridiplantae,3GDUN@35493|Streptophyta,3KSCK@4447|Liliopsida,3IDXW@38820|Poales | G68: 35493|Streptophyta | H68: U | I68: Belongs to the syntaxin family | J68: - | K68: - | L68: - | M68: ko:K08506 | N68: ko04130,map04130 | O68: - | P68: - | Q68: - | R68: ko00000,ko00001,ko04131 | S68: - | T68: - | U68: - | V68: SNARE
A69: 4D | B69: NC_058518.1:495603664-495604064_0 | C69: 102107.XP_008221957.1 | D69: 1.00E-10 | E69: 65.1 | F69: COG1028@1|root,KOG0725@2759|Eukaryota,37IWV@33090|Viridiplantae,3GBIS@35493|Streptophyta,4JKP0@91835|fabids | G69: 35493|Streptophyta | H69: Q | I69: Tropinone reductase homolog At1g07440-like | J69: - | K69: - | L69: 1.1.1.206 | M69: ko:K08081 | N69: ko00960,ko01100,ko01110,map00960,map01100,map01110 | O69: - | P69: R02832 | Q69: RC00144 | R69: ko00000,ko00001,ko01000 | S69: - | T69: - | U69: - | V69: adh_short,adh_short_C2
A70: 4D | B70: NC_058518.1:498245376-498246118_0 | C70: 4641.GSMUA_Achr1P04840_001 | D70: 1.82E-33 | E70: 133 | F70: KOG4673@1|root,KOG4673@2759|Eukaryota,37R0W@33090|Viridiplantae,3G8A6@35493|Streptophyta,3KVZI@4447|Liliopsida | G70: 35493|Streptophyta | H70: K | I70: TATA element modulatory factor 1 TATA binding | J70: - | K70: - | L70: - | M70: ko:K20286 | N70: - | O70: - | P70: - | Q70: - | R70: ko00000,ko04131 | S70: - | T70: - | U70: - | V70: TMF_DNA_bd,TMF_TATA_bd
A71: 4D | B71: NC_058518.1:501999111-501999511_0 | C71: 2711.XP_006486731.1 | D71: 5.40E-22 | E71: 91.7 | F71: COG0451@1|root,KOG1429@2759|Eukaryota,37J0N@33090|Viridiplantae,3GBX4@35493|Streptophyta | G71: 35493|Streptophyta | H71: GM | I71: GDP-mannose 3,5-epimerase | J71: GME1 | K71: - | L71: 5.1.3.18 | M71: ko:K10046 | N71: ko00053,ko00520,ko01100,ko01110,map00053,map00520,map01100,map01110 | O71: M00114 | P71: R00889,R07672,R07673 | Q71: RC00289,RC00403,RC01780 | R71: ko00000,ko00001,ko00002,ko01000 | S71: - | T71: - | U71: - | V71: Epimerase
A72: 4D | B72: NC_058518.1:502781885-502782285_0 | C72: 37682.EMT11232 | D72: 3.14E-31 | E72: 120 | F72: 2CMAT@1|root,2QPU1@2759|Eukaryota,37T05@33090|Viridiplantae,3GAA5@35493|Streptophyta,3KMPC@4447|Liliopsida,3I8JQ@38820|Poales | G72: 35493|Streptophyta | H72: C | I72: The light-harvesting complex (LHC) functions as a light receptor, it captures and delivers excitation energy to photosystems with which it is closely associated | J72: - | K72: - | L72: - | M72: ko:K08912 | N72: ko00196,ko01100,map00196,map01100 | O72: - | P72: - | Q72: - | R72: ko00000,ko00001,ko00194 | S72: - | T72: - | U72: - | V72: Chloroa_b-bind
A73: 4D | B73: NC_058518.1:504421903-504422303_0 | C73: 85681.XP_006441422.1 | D73: 9.22E-14 | E73: 71.6 | F73: COG0822@1|root,KOG3361@2759|Eukaryota,37TT5@33090|Viridiplantae,3GI19@35493|Streptophyta | G73: 35493|Streptophyta | H73: C | I73: Scaffold protein for the de novo synthesis of iron- sulfur (Fe-S) clusters within mitochondria, which is required for maturation of both mitochondrial and cytoplasmic 2Fe-2S and 4Fe-4S proteins | J73: - | K73: GO:0003674,GO:0003824,GO:0005198,GO:0005488,GO:0005506,GO:0005575,GO:0005622,GO:0005623,GO:0005737,GO:0005739,GO:0005759,GO:0006807,GO:0006873,GO:0006875,GO:0006879,GO:0008150,GO:0008152,GO:0008198,GO:0009987,GO:0010467,GO:0016740,GO:0016782,GO:0019538,GO:0019725,GO:0030003,GO:0031974,GO:0036455,GO:0042592,GO:0043167,GO:0043169,GO:0043170,GO:0043226,GO:0043227,GO:0043229,GO:0043231,GO:0043233,GO:0044238,GO:0044422,GO:0044424,GO:0044429,GO:0044444,GO:0044446,GO:0044464,GO:0046872,GO:0046914,GO:0046916,GO:0048037,GO:0048878,GO:0050801,GO:0051536,GO:0051537,GO:0051539,GO:0051540,GO:0051604,GO:0055065,GO:0055072,GO:0055076,GO:0055080,GO:0055082,GO:0065007,GO:0065008,GO:0070013,GO:0071704,GO:0097428,GO:0098771,GO:1901564 | L73: - | M73: ko:K22068 | N73: - | O73: - | P73: - | Q73: - | R73: ko00000,ko03029 | S73: - | T73: - | U73: - | V73: NifU_N
A74: 4D | B74: NC_058518.1:512134420-512134820_0 | C74: 4513.MLOC_66363.2 | D74: 9.18E-38 | E74: 135 | F74: KOG1642@1|root,KOG1642@2759|Eukaryota,37V2F@33090|Viridiplantae,3GJ39@35493|Streptophyta,3KMV3@4447|Liliopsida,3I4WA@38820|Poales | G74: 35493|Streptophyta | H74: A | I74: Belongs to the RNase T2 family | J74: - | K74: - | L74: 3.1.27.1 | M74: ko:K01166 | N74: - | O74: - | P74: - | Q74: - | R74: ko00000,ko01000,ko03016 | S74: - | T74: - | U74: - | V74: Ribonuclease_T2
A75: 4D | B75: NC_058518.1:515906980-515907723_0 | C75: 4565.Traes_1AL_8E58EADAA.1 | D75: 3.91E-40 | E75: 153 | F75: COG1196@1|root,KOG0979@2759|Eukaryota,37P78@33090|Viridiplantae,3G8D7@35493|Streptophyta,3KS1G@4447|Liliopsida,3I4TB@38820|Poales | G75: 35493|Streptophyta | H75: BDL | I75: Structural maintenance of chromosomes | J75: - | K75: GO:0000819,GO:0005575,GO:0005911,GO:0006996,GO:0007049,GO:0007059,GO:0007062,GO:0008150,GO:0009506,GO:0009987,GO:0016043,GO:0022402,GO:0030054,GO:0051276,GO:0055044,GO:0071840,GO:0098813 | L75: - | M75: - | N75: - | O75: - | P75: - | Q75: - | R75: - | S75: - | T75: - | U75: - | V75: AAA_23,SMC_N
A76: 4D | B76: NC_058518.1:57918364-57919106_0 | C76: 926569.ANT_29670 | D76: 7.79E-34 | E76: 135 | F76: COG1132@1|root,COG1132@2|Bacteria,2G5QH@200795|Chloroflexi | G76: 200795|Chloroflexi | H76: V | I76: PFAM ABC transporter transmembrane region | J76: - | K76: - | L76: - | M76: ko:K06147 | N76: - | O76: - | P76: - | Q76: - | R76: ko00000,ko02000 | S76: 3.A.1.106,3.A.1.109,3.A.1.21 | T76: - | U76: - | V76: ABC_membrane,ABC_tran
A77: 4D | B77: NC_058518.1:72452757-72453157_0 | C77: 4513.MLOC_74926.1 | D77: 4.62E-82 | E77: 254 | F77: KOG2687@1|root,KOG2687@2759|Eukaryota,37IED@33090|Viridiplantae,3GENJ@35493|Streptophyta,3KYNJ@4447|Liliopsida,3I5CF@38820|Poales | G77: 35493|Streptophyta | H77: D | I77: Sad1 / UNC-like C-terminal | J77: - | K77: GO:0000003,GO:0000280,GO:0003674,GO:0005488,GO:0005515,GO:0005575,GO:0005622,GO:0005623,GO:0005634,GO:0005635,GO:0005737,GO:0005783,GO:0005789,GO:0005819,GO:0005856,GO:0006996,GO:0006997,GO:0007049,GO:0007059,GO:0007127,GO:0008104,GO:0008150,GO:0008360,GO:0009524,GO:0009987,GO:0012505,GO:0015630,GO:0016020,GO:0016043,GO:0022402,GO:0022414,GO:0022603,GO:0022604,GO:0022607,GO:0031967,GO:0031975,GO:0031984,GO:0032878,GO:0033036,GO:0033365,GO:0034397,GO:0034398,GO:0034504,GO:0034613,GO:0042175,GO:0043226,GO:0043227,GO:0043228,GO:0043229,GO:0043231,GO:0043232,GO:0043495,GO:0043621,GO:0043933,GO:0044085,GO:0044422,GO:0044424,GO:0044425,GO:0044428,GO:0044430,GO:0044432,GO:0044444,GO:0044446,GO:0044464,GO:0044821,GO:0045132,GO:0045141,GO:0045143,GO:0048285,GO:0050000,GO:0050789,GO:0050793,GO:0050794,GO:0051128,GO:0051179,GO:0051234,GO:0051259,GO:0051260,GO:0051276,GO:0051291,GO:0051303,GO:0051321,GO:0051640,GO:0051641,GO:0051649,GO:0051656,GO:0061982,GO:0065003,GO:0065007,GO:0065008,GO:0070192,GO:0070197,GO:0070727,GO:0071840,GO:0090220,GO:0090435,GO:0097240,GO:0098813,GO:0098827,GO:0140013,GO:1903046,GO:2000769 | L77: - | M77: ko:K19347 | N77: - | O77: - | P77: - | Q77: - | R77: ko00000,ko03036 | S77: - | T77: - | U77: - | V77: Sad1_UNC
A78: 4D | B78: NC_058518.1:80769484-80769884_0 | C78: 4513.MLOC_34155.1 | D78: 1.03E-87 | E78: 263 | F78: 2CQJX@1|root,2R521@2759|Eukaryota,38AVI@33090|Viridiplantae,3GTTJ@35493|Streptophyta,3M3QA@4447|Liliopsida | G78: 35493|Streptophyta | H78: - | I78: - | J78: - | K78: - | L78: - | M78: - | N78: - | O78: - | P78: - | Q78: - | R78: - | S78: - | T78: - | U78: - | V78: -
A79: 4D | B79: NC_058518.1:90036669-90037346_0 | C79: 4513.MLOC_60993.2 | D79: 6.11E-88 | E79: 282 | F79: COG5059@1|root,KOG0246@2759|Eukaryota,37IG2@33090|Viridiplantae,3G785@35493|Streptophyta,3KTZK@4447|Liliopsida,3IBSA@38820|Poales | G79: 35493|Streptophyta | H79: Z | I79: Belongs to the TRAFAC class myosin-kinesin ATPase superfamily. Kinesin family | J79: - | K79: GO:0000070,GO:0000226,GO:0000278,GO:0000280,GO:0000775,GO:0000776,GO:0000819,GO:0000902,GO:0000904,GO:0003674,GO:0003774,GO:0003777,GO:0003824,GO:0005488,GO:0005515,GO:0005575,GO:0005618,GO:0005622,GO:0005623,GO:0005694,GO:0005737,GO:0005794,GO:0005795,GO:0005856,GO:0005871,GO:0005874,GO:0005875,GO:0005886,GO:0006928,GO:0006996,GO:0007010,GO:0007017,GO:0007018,GO:0007019,GO:0007049,GO:0007059,GO:0007080,GO:0007163,GO:0008017,GO:0008092,GO:0008150,GO:0008608,GO:0009505,GO:0009531,GO:0009653,GO:0009832,GO:0009834,GO:0009888,GO:0009987,GO:0010026,GO:0010087,GO:0010089,GO:0010090,GO:0012505,GO:0015630,GO:0015631,GO:0016020,GO:0016043,GO:0016462,GO:0016787,GO:0016817,GO:0016818,GO:0016887,GO:0017111,GO:0022402,GO:0022411,GO:0030154,GO:0030312,GO:0030951,GO:0030952,GO:0031109,GO:0031984,GO:0032502,GO:0032984,GO:0032989,GO:0032991,GO:0035371,GO:0042546,GO:0043226,GO:0043227,GO:0043228,GO:0043229,GO:0043231,GO:0043232,GO:0043624,GO:0043933,GO:0044085,GO:0044422,GO:0044424,GO:0044427,GO:0044430,GO:0044431,GO:0044444,GO:0044446,GO:0044464,GO:0048285,GO:0048468,GO:0048856,GO:0048869,GO:0050000,GO:0050789,GO:0050794,GO:0051010,GO:0051179,GO:0051234,GO:0051261,GO:0051276,GO:0051303,GO:0051310,GO:0051315,GO:0051640,GO:0051641,GO:0051649,GO:0051656,GO:0051983,GO:0065007,GO:0071554,GO:0071669,GO:0071840,GO:0071944,GO:0090058,GO:0090558,GO:0090626,GO:0097435,GO:0098687,GO:0098791,GO:0098813,GO:0099080,GO:0099081,GO:0099512,GO:0099513,GO:0140014,GO:1903047,GO:1903338,GO:1990752 | L79: - | M79: ko:K10393 | N79: - | O79: - | P79: - | Q79: - | R79: ko00000,ko03036,ko04812 | S79: - | T79: - | U79: - | V79: Kinesin,RRM_1
A80: 4D | B80: NC_058518.1:93941434-93941834_0 | C80: 4565.Traes_1AS_D4AF6D5FD.1 | D80: 2.05E-30 | E80: 112 | F80: COG5064@1|root,KOG0166@2759|Eukaryota,37HJI@33090|Viridiplantae,3GAGW@35493|Streptophyta,3KURU@4447|Liliopsida,3ICU0@38820|Poales | G80: 35493|Streptophyta | H80: U | I80: Binds specifically and directly to substrates containing either a simple or bipartite NLS motif. Promotes docking of import substrates to the nuclear envelope | J80: - | K80: GO:0003674,GO:0005048,GO:0005215,GO:0005488,GO:0005575,GO:0005622,GO:0005623,GO:0005634,GO:0005635,GO:0005643,GO:0005654,GO:0005737,GO:0005829,GO:0006606,GO:0006607,GO:0006810,GO:0006886,GO:0006913,GO:0008104,GO:0008139,GO:0008150,GO:0008565,GO:0012505,GO:0015031,GO:0015833,GO:0017038,GO:0031967,GO:0031974,GO:0031975,GO:0031981,GO:0032991,GO:0033036,GO:0033218,GO:0033365,GO:0034504,GO:0034613,GO:0042277,GO:0042886,GO:0043226,GO:0043227,GO:0043229,GO:0043231,GO:0043233,GO:0044422,GO:0044424,GO:0044428,GO:0044444,GO:0044446,GO:0044464,GO:0045184,GO:0046907,GO:0051169,GO:0051170,GO:0051179,GO:0051234,GO:0051641,GO:0051649,GO:0070013,GO:0070727,GO:0071702,GO:0071705,GO:0072594 | L80: - | M80: - | N80: - | O80: - | P80: - | Q80: - | R80: - | S80: - | T80: - | U80: - | V80: Arm,Arm_3,IBB
A81: 4D | B81: NC_058518.1:93941434-93941834_1 | C81: 4565.Traes_1AS_7DFF0F1A0.1 | D81: 3.19E-23 | E81: 95.1 | F81: COG5064@1|root,KOG0166@2759|Eukaryota,37HJI@33090|Viridiplantae,3GAGW@35493|Streptophyta,3KURU@4447|Liliopsida,3ICU0@38820|Poales | G81: 35493|Streptophyta | H81: U | I81: Binds specifically and directly to substrates containing either a simple or bipartite NLS motif. Promotes docking of import substrates to the nuclear envelope | J81: - | K81: GO:0003674,GO:0005048,GO:0005215,GO:0005488,GO:0005575,GO:0005622,GO:0005623,GO:0005634,GO:0005635,GO:0005643,GO:0005654,GO:0005737,GO:0005829,GO:0006606,GO:0006607,GO:0006810,GO:0006886,GO:0006913,GO:0008104,GO:0008139,GO:0008150,GO:0008565,GO:0012505,GO:0015031,GO:0015833,GO:0017038,GO:0031967,GO:0031974,GO:0031975,GO:0031981,GO:0032991,GO:0033036,GO:0033218,GO:0033365,GO:0034504,GO:0034613,GO:0042277,GO:0042886,GO:0043226,GO:0043227,GO:0043229,GO:0043231,GO:0043233,GO:0044422,GO:0044424,GO:0044428,GO:0044444,GO:0044446,GO:0044464,GO:0045184,GO:0046907,GO:0051169,GO:0051170,GO:0051179,GO:0051234,GO:0051641,GO:0051649,GO:0070013,GO:0070727,GO:0071702,GO:0071705,GO:0072594 | L81: - | M81: - | N81: - | O81: - | P81: - | Q81: - | R81: - | S81: - | T81: - | U81: - | V81: Arm,Arm_3,IBB
A82: 4D | B82: NC_058518.1:9414583-9414983_0 | C82: 4565.Traes_2AL_EF05D6EF1.1 | D82: 1.80E-18 | E82: 82.4 | F82: COG0702@1|root,KOG1203@2759|Eukaryota,37HNJ@33090|Viridiplantae,3GFYD@35493|Streptophyta,3KQEP@4447|Liliopsida,3IAYP@38820|Poales | G82: 35493|Streptophyta | H82: G | I82: NAD(P)H-binding | J82: - | K82: - | L82: - | M82: - | N82: - | O82: - | P82: - | Q82: - | R82: - | S82: - | T82: - | U82: - | V82: NAD_binding_10
A83: 4D | B83: NC_058519.1:10712644-10713240_0 | C83: 15368.BRADI2G11550.1 | D83: 4.40E-42 | E83: 145 | F83: 2DAQB@1|root,2S5GB@2759|Eukaryota,37WHF@33090|Viridiplantae,3GKHB@35493|Streptophyta,3M0GK@4447|Liliopsida,3IIS9@38820|Poales | G83: 35493|Streptophyta | H83: S | I83: CP12 | J83: - | K83: - | L83: - | M83: - | N83: - | O83: - | P83: - | Q83: - | R83: - | S83: - | T83: - | U83: - | V83: CP12
A84: 4D | B84: NC_058519.1:133952889-133953289_0 | C84: 3988.XP_002530783.1 | D84: 1.21E-18 | E84: 85.5 | F84: COG1012@1|root,KOG2450@2759|Eukaryota | G84: 2759|Eukaryota | H84: C | I84: aldehyde dehydrogenase (NAD) activity | J84: ALDH1A2 | K84: GO:0000003,GO:0000166,GO:0001101,GO:0001523,GO:0001568,GO:0001654,GO:0001655,GO:0001756,GO:0001758,GO:0001822,GO:0001889,GO:0001936,GO:0001944,GO:0001947,GO:0002009,GO:0002072,GO:0002138,GO:0002237,GO:0003002,GO:0003007,GO:0003008,GO:0003143,GO:0003674,GO:0003824,GO:0004028,GO:0004029,GO:0004030,GO:0004745,GO:0005096,GO:0005488,GO:0005497,GO:0005501,GO:0005515,GO:0005575,GO:0005622,GO:0005623,GO:0005634,GO:0005654,GO:0005737,GO:0005739,GO:0005759,GO:0005829,GO:0005886,GO:0005975,GO:0005996,GO:0006000,GO:0006001,GO:0006066,GO:0006067,GO:0006069,GO:0006081,GO:0006082,GO:0006090,GO:0006091,GO:0006117,GO:0006629,GO:0006720,GO:0006721,GO:0006766,GO:0006775,GO:0006776,GO:0006793,GO:0006796,GO:0006950,GO:0006979,GO:0007154,GO:0007165,GO:0007275,GO:0007368,GO:0007389,GO:0007399,GO:0007417,GO:0007420,GO:0007423,GO:0007494,GO:0007507,GO:0007584,GO:0007610,GO:0007626,GO:0008047,GO:0008150,GO:0008152,GO:0008284,GO:0008285,GO:0008289,GO:0008299,GO:0008610,GO:0008774,GO:0009055,GO:0009056,GO:0009058,GO:0009605,GO:0009607,GO:0009617,GO:0009628,GO:0009636,GO:0009653,GO:0009719,GO:0009725,GO:0009790,GO:0009792,GO:0009799,GO:0009855,GO:0009887,GO:0009888,GO:0009893,GO:0009952,GO:0009954,GO:0009966,GO:0009967,GO:0009987,GO:0009991,GO:0010033,GO:0010468,GO:0010604,GO:0010628,GO:0010646,GO:0010647,GO:0010817,GO:0010941,GO:0010942,GO:0014031,GO:0014032,GO:0014033,GO:0014070,GO:0014706,GO:0016020,GO:0016043,GO:0016052,GO:0016053,GO:0016101,GO:0016102,GO:0016114,GO:0016331,GO:0016491,GO:0016614,GO:0016616,GO:0016620,GO:0016903,GO:0016918,GO:0016999,GO:0017144,GO:0018479,GO:0019222,GO:0019318,GO:0019320,GO:0019637,GO:0019682,GO:0019752,GO:0019840,GO:0019842,GO:0021510,GO:0021515,GO:0021517,GO:0021522,GO:0021536,GO:0021537,GO:0021544,GO:0021700,GO:0021756,GO:0021761,GO:0021768,GO:0021915,GO:0021953,GO:0021983,GO:0022008,GO:0022414,GO:0022607,GO:0022900,GO:0023051,GO:0023052,GO:0023056,GO:0030154,GO:0030182,GO:0030234,GO:0030323,GO:0030324,GO:0030326,GO:0030522,GO:0030695,GO:0030900,GO:0030902,GO:0031016,GO:0031076,GO:0031667,GO:0031974,GO:0031981,GO:0032355,GO:0032496,GO:0032501,GO:0032502,GO:0032504,GO:0032526,GO:0032570,GO:0032787,GO:0032870,GO:0033189,GO:0033273,GO:0033574,GO:0033993,GO:0034097,GO:0034308,GO:0034754,GO:0035050,GO:0035094,GO:0035107,GO:0035108,GO:0035113,GO:0035115,GO:0035136,GO:0035239,GO:0035270,GO:0035282,GO:0035295,GO:0035799,GO:0036094,GO:0036296,GO:0042127,GO:0042221,GO:0042445,GO:0042471,GO:0042472,GO:0042493,GO:0042562,GO:0042572,GO:0042573,GO:0042574,GO:0042698,GO:0042802,GO:0042803,GO:0042904,GO:0042905,GO:0042981,GO:0043009,GO:0043010,GO:0043065,GO:0043066,GO:0043067,GO:0043068,GO:0043069,GO:0043085,GO:0043087,GO:0043167,GO:0043168,GO:0043207,GO:0043226,GO:0043227,GO:0043229,GO:0043231,GO:0043233,GO:0043436,GO:0043547,GO:0043583,GO:0043584,GO:0043933,GO:0044085,GO:0044093,GO:0044237,GO:0044238,GO:0044249,GO:0044255,GO:0044281,GO:0044282,GO:0044283,GO:0044422,GO:0044424,GO:0044428,GO:0044429,GO:0044444,GO:0044446,GO:0044464,GO:0044849,GO:0045471,GO:0046365,GO:0046394,GO:0046677,GO:0046983,GO:0048037,GO:0048048,GO:0048384,GO:0048385,GO:0048386,GO:0048468,GO:0048471,GO:0048511,GO:0048513,GO:0048518,GO:0048519,GO:0048522,GO:0048523,GO:0048545,GO:0048562,GO:0048565,GO:0048566,GO:0048568,GO:0048583,GO:0048584,GO:0048592,GO:0048593,GO:0048596,GO:0048598,GO:0048609,GO:0048646,GO:0048699,GO:0048729,GO:0048731,GO:0048732,GO:0048736,GO:0048738,GO:0048762,GO:0048799,GO:0048839,GO:0048856,GO:0048857,GO:0048863,GO:0048864,GO:0048869,GO:0050662,GO:0050678,GO:0050789,GO:0050790,GO:0050794,GO:0050877,GO:0050885,GO:0050896,GO:0050905,GO:0051259,GO:0051260,GO:0051262,GO:0051287,GO:0051289,GO:0051336,GO:0051345,GO:0051704,GO:0051707,GO:0051716,GO:0055093,GO:0055114,GO:0055123,GO:0060004,GO:0060013,GO:0060166,GO:0060173,GO:0060255,GO:0060322,GO:0060324,GO:0060429,GO:0060485,GO:0060537,GO:0060541,GO:0060548,GO:0060562,GO:0060589,GO:0060900,GO:0061008,GO:0061053,GO:0061371,GO:0061624,GO:0065003,GO:0065007,GO:0065008,GO:0065009,GO:0070013,GO:0070324,GO:0070384,GO:0070403,GO:0070404,GO:0070482,GO:0070542,GO:0070887,GO:0071229,GO:0071300,GO:0071310,GO:0071396,GO:0071398,GO:0071495,GO:0071695,GO:0071704,GO:0071840,GO:0071944,GO:0072001,GO:0072189,GO:0072330,GO:0072358,GO:0072359,GO:0090242,GO:0090596,GO:0097159,GO:0097305,GO:0098772,GO:1901135,GO:1901214,GO:1901215,GO:1901265,GO:1901363,GO:1901575,GO:1901576,GO:1901615,GO:1901654,GO:1901700,GO:1901701 | L84: 1.2.1.3,1.2.1.36,1.2.1.5,1.2.1.68 | M84: ko:K00128,ko:K00129,ko:K07249,ko:K12355 | N84: ko00010,ko00053,ko00071,ko00280,ko00310,ko00330,ko00340,ko00350,ko00360,ko00380,ko00410,ko00561,ko00620,ko00625,ko00830,ko00903,ko00940,ko00980,ko00981,ko00982,ko01100,ko01110,ko01120,ko01130,ko05204,map00010,map00053,map00071,map00280,map00310,map00330,map00340,map00350,map00360,map00380,map00410,map00561,map00620,map00625,map00830,map00903,map00940,map00980,map00981,map00982,map01100,map01110,map01120,map01130,map05204 | O84: M00135 | P84: R00264,R00631,R00710,R00711,R00904,R01752,R01986,R02123,R02536,R02537,R02549,R02678,R02695,R02697,R02940,R02957,R03283,R03300,R03302,R03869,R04065,R04506,R04882,R04883,R04888,R04889,R04891,R04892,R04903,R04996,R05050,R05237,R05238,R05286,R05700,R05701,R06366,R07104,R07441,R07442,R08146,R08282,R08283,R08307,R08385 | Q84: RC00047,RC00071,RC00080,RC00186,RC00218,RC00242,RC00816,RC01500,RC01735 | R84: ko00000,ko00001,ko00002,ko01000 | S84: - | T84: - | U84: - | V84: Aldedh
A85: 4D | B85: NC_058519.1:141941163-141941563_0 | C85: 15368.BRADI1G23610.1 | D85: 3.81E-32 | E85: 121 | F85: 28JII@1|root,2QRXM@2759|Eukaryota,37Q2T@33090|Viridiplantae,3G7SR@35493|Streptophyta,3KQHQ@4447|Liliopsida,3I9MQ@38820|Poales | G85: 35493|Streptophyta | H85: C | I85: The light-harvesting complex (LHC) functions as a light receptor, it captures and delivers excitation energy to photosystems with which it is closely associated | J85: - | K85: - | L85: - | M85: ko:K08908 | N85: ko00196,map00196 | O85: - | P85: - | Q85: - | R85: ko00000,ko00001,ko00194 | S85: - | T85: - | U85: - | V85: Chloroa_b-bind
A86: 4D | B86: NC_058519.1:141942018-141942418_0 | C86: 4513.MLOC_60073.2 | D86: 2.88E-27 | E86: 108 | F86: 28JII@1|root,2QRXM@2759|Eukaryota,37Q2T@33090|Viridiplantae,3G7SR@35493|Streptophyta,3KQHQ@4447|Liliopsida,3I9MQ@38820|Poales | G86: 35493|Streptophyta | H86: C | I86: The light-harvesting complex (LHC) functions as a light receptor, it captures and delivers excitation energy to photosystems with which it is closely associated | J86: - | K86: - | L86: - | M86: ko:K08908 | N86: ko00196,map00196 | O86: - | P86: - | Q86: - | R86: ko00000,ko00001,ko00194 | S86: - | T86: - | U86: - | V86: Chloroa_b-bind
A87: 4D | B87: NC_058519.1:146171444-146171844_0 | C87: 38727.Pavir.J12570.1.p | D87: 5.12E-27 | E87: 108 | F87: KOG2171@1|root,KOG2171@2759|Eukaryota,37KUA@33090|Viridiplantae,3GCVT@35493|Streptophyta,3KS5V@4447|Liliopsida,3IEXA@38820|Poales | G87: 35493|Streptophyta | H87: UY | I87: HEAT repeat | J87: - | K87: GO:0000060,GO:0001101,GO:0003674,GO:0005048,GO:0005215,GO:0005488,GO:0005575,GO:0005622,GO:0005623,GO:0005634,GO:0005635,GO:0005737,GO:0006606,GO:0006607,GO:0006610,GO:0006810,GO:0006886,GO:0006913,GO:0008104,GO:0008139,GO:0008150,GO:0008565,GO:0009719,GO:0009987,GO:0010033,GO:0010243,GO:0012505,GO:0015031,GO:0015833,GO:0016020,GO:0017038,GO:0031090,GO:0031965,GO:0031967,GO:0031974,GO:0031975,GO:0031981,GO:0032386,GO:0032388,GO:0032879,GO:0032880,GO:0033036,GO:0033157,GO:0033218,GO:0033365,GO:0034399,GO:0034504,GO:0034613,GO:0042221,GO:0042277,GO:0042306,GO:0042307,GO:0042886,GO:0043200,GO:0043226,GO:0043227,GO:0043229,GO:0043231,GO:0043233,GO:0044422,GO:0044424,GO:0044428,GO:0044446,GO:0044464,GO:0045184,GO:0046822,GO:0046824,GO:0046907,GO:0048518,GO:0050789,GO:0050896,GO:0051049,GO:0051050,GO:0051169,GO:0051170,GO:0051179,GO:0051222,GO:0051223,GO:0051234,GO:0051641,GO:0051649,GO:0051716,GO:0060341,GO:0065007,GO:0070013,GO:0070201,GO:0070727,GO:0070887,GO:0071229,GO:0071230,GO:0071310,GO:0071417,GO:0071495,GO:0071702,GO:0071705,GO:0072594,GO:0090087,GO:0090316,GO:1900180,GO:1900182,GO:1901698,GO:1901699,GO:1901700,GO:1901701,GO:1903827,GO:1903829,GO:1904589,GO:1904591,GO:1904951 | L87: - | M87: ko:K20222 | N87: - | O87: - | P87: - | Q87: - | R87: ko00000,ko03009 | S87: 1.I.1 | T87: - | U87: - | V87: HEAT,HEAT_2,HEAT_EZ
A88: 4D | B88: NC_058519.1:154110499-154110899_0 | C88: 4565.Traes_2DS_867D0797A.2 | D88: 2.40E-13 | E88: 68.9 | F88: COG0233@1|root,KOG4759@2759|Eukaryota,37S94@33090|Viridiplantae,3GGVU@35493|Streptophyta,3KMHI@4447|Liliopsida,3IA7K@38820|Poales | G88: 35493|Streptophyta | H88: J | I88: Ribosome recycling factor | J88: - | K88: GO:0000003,GO:0002181,GO:0002184,GO:0002376,GO:0003006,GO:0003674,GO:0005488,GO:0005507,GO:0005575,GO:0005622,GO:0005623,GO:0005737,GO:0006412,GO:0006415,GO:0006518,GO:0006807,GO:0006950,GO:0006952,GO:0006955,GO:0006996,GO:0007275,GO:0008150,GO:0008152,GO:0009058,GO:0009059,GO:0009507,GO:0009532,GO:0009536,GO:0009570,GO:0009579,GO:0009605,GO:0009607,GO:0009617,GO:0009620,GO:0009657,GO:0009658,GO:0009790,GO:0009791,GO:0009793,GO:0009814,GO:0009817,GO:0009987,GO:0010154,GO:0010467,GO:0016043,GO:0019538,GO:0022411,GO:0022414,GO:0032501,GO:0032502,GO:0032544,GO:0032984,GO:0034641,GO:0034645,GO:0042742,GO:0043021,GO:0043023,GO:0043043,GO:0043167,GO:0043169,GO:0043170,GO:0043207,GO:0043226,GO:0043227,GO:0043229,GO:0043231,GO:0043603,GO:0043604,GO:0043624,GO:0043933,GO:0044237,GO:0044238,GO:0044249,GO:0044260,GO:0044267,GO:0044271,GO:0044422,GO:0044424,GO:0044434,GO:0044435,GO:0044444,GO:0044446,GO:0044464,GO:0044877,GO:0045087,GO:0046872,GO:0046914,GO:0048316,GO:0048608,GO:0048731,GO:0048856,GO:0050832,GO:0050896,GO:0051704,GO:0051707,GO:0061458,GO:0071704,GO:0071840,GO:0098542,GO:1901564,GO:1901566,GO:1901576 | L88: - | M88: ko:K02838 | N88: - | O88: - | P88: - | Q88: - | R88: ko00000,ko03012 | S88: - | T88: - | U88: - | V88: RRF
A89: 4D | B89: NC_058519.1:159521665-159522065_0 | C89: 37682.EMT19430 | D89: 6.89E-27 | E89: 105 | F89: 2E5TV@1|root,2SCK4@2759|Eukaryota,37WCS@33090|Viridiplantae,3GX8D@35493|Streptophyta,3MAUE@4447|Liliopsida,3IUCA@38820|Poales | G89: 35493|Streptophyta | H89: C | I89: Cytochrome C oxidase, cbb3-type, subunit III | J89: - | K89: - | L89: - | M89: ko:K08906 | N89: ko00195,map00195 | O89: - | P89: - | Q89: - | R89: ko00000,ko00001,ko00194 | S89: - | T89: - | U89: - | V89: Cytochrome_CBB3
A90: 4D | B90: NC_058519.1:163488004-163488404_0 | C90: 4565.Traes_2AS_1580BAA3D.2 | D90: 1.04E-20 | E90: 88.2 | F90: 28HZG@1|root,2QQAA@2759|Eukaryota,37HKJ@33090|Viridiplantae,3GBGH@35493|Streptophyta,3KPM6@4447|Liliopsida,3I6IZ@38820|Poales | G90: 35493|Streptophyta | H90: S | I90: Protein of unknown function (DUF707) | J90: - | K90: - | L90: - | M90: - | N90: - | O90: - | P90: - | Q90: - | R90: - | S90: - | T90: - | U90: - | V90: DUF707
A91: 4D | B91: NC_058519.1:171776492-171776892_0 | C91: 4513.MLOC_65066.3 | D91: 3.43E-81 | E91: 247 | F91: 28J54@1|root,2QRH9@2759|Eukaryota,37QWQ@33090|Viridiplantae,3G9KR@35493|Streptophyta,3KM75@4447|Liliopsida,3ICTG@38820|Poales | G91: 35493|Streptophyta | H91: C | I91: The light-harvesting complex (LHC) functions as a light receptor, it captures and delivers excitation energy to photosystems with which it is closely associated | J91: - | K91: GO:0003674,GO:0005488,GO:0005515,GO:0005575,GO:0005622,GO:0005623,GO:0005737,GO:0006091,GO:0008150,GO:0008152,GO:0009314,GO:0009416,GO:0009507,GO:0009526,GO:0009532,GO:0009534,GO:0009535,GO:0009536,GO:0009570,GO:0009579,GO:0009628,GO:0009637,GO:0009639,GO:0009719,GO:0009725,GO:0009735,GO:0009765,GO:0009768,GO:0009941,GO:0009987,GO:0010033,GO:0010114,GO:0010218,GO:0010287,GO:0015979,GO:0016020,GO:0016168,GO:0019684,GO:0019904,GO:0031409,GO:0031967,GO:0031975,GO:0031976,GO:0031984,GO:0034357,GO:0042221,GO:0042651,GO:0043167,GO:0043168,GO:0043226,GO:0043227,GO:0043229,GO:0043231,GO:0044237,GO:0044422,GO:0044424,GO:0044434,GO:0044435,GO:0044436,GO:0044444,GO:0044446,GO:0044464,GO:0046906,GO:0048037,GO:0050896,GO:0055035,GO:0097159,GO:1901363 | L91: - | M91: ko:K08915 | N91: ko00196,ko01100,map00196,map01100 | O91: - | P91: - | Q91: - | R91: ko00000,ko00001,ko00194 | S91: - | T91: - | U91: - | V91: Chloroa_b-bind
A92: 4D | B92: NC_058519.1:18358785-18359185_0 | C92: 15368.BRADI4G08500.1 | D92: 3.70E-75 | E92: 228 | F92: COG4451@1|root,2QT0M@2759|Eukaryota,37T3C@33090|Viridiplantae,3GFPQ@35493|Streptophyta,3M2V4@4447|Liliopsida,3IEI4@38820|Poales | G92: 35493|Streptophyta | H92: E | I92: RuBisCO catalyzes two reactions the carboxylation of D- ribulose 1,5-bisphosphate, the primary event in carbon dioxide fixation, as well as the oxidative fragmentation of the pentose substrate. Both reactions occur simultaneously and in competition at the same active site | J92: - | K92: GO:0005575,GO:0005622,GO:0005623,GO:0005737,GO:0009507,GO:0009536,GO:0043226,GO:0043227,GO:0043229,GO:0043231,GO:0044424,GO:0044444,GO:0044464 | L92: 4.1.1.39 | M92: ko:K01602 | N92: ko00630,ko00710,ko01100,ko01120,ko01200,map00630,map00710,map01100,map01120,map01200 | O92: M00165,M00166,M00532 | P92: R00024,R03140 | Q92: RC00172,RC00859 | R92: ko00000,ko00001,ko00002,ko01000 | S92: - | T92: - | U92: - | V92: RbcS,RuBisCO_small
A93: 4D | B93: NC_058519.1:18465794-18466194_0 | C93: 15368.BRADI4G08500.1 | D93: 4.24E-81 | E93: 243 | F93: COG4451@1|root,2QT0M@2759|Eukaryota,37T3C@33090|Viridiplantae,3GFPQ@35493|Streptophyta,3M2V4@4447|Liliopsida,3IEI4@38820|Poales | G93: 35493|Streptophyta | H93: E | I93: RuBisCO catalyzes two reactions the carboxylation of D- ribulose 1,5-bisphosphate, the primary event in carbon dioxide fixation, as well as the oxidative fragmentation of the pentose substrate. Both reactions occur simultaneously and in competition at the same active site | J93: - | K93: GO:0005575,GO:0005622,GO:0005623,GO:0005737,GO:0009507,GO:0009536,GO:0043226,GO:0043227,GO:0043229,GO:0043231,GO:0044424,GO:0044444,GO:0044464 | L93: 4.1.1.39 | M93: ko:K01602 | N93: ko00630,ko00710,ko01100,ko01120,ko01200,map00630,map00710,map01100,map01120,map01200 | O93: M00165,M00166,M00532 | P93: R00024,R03140 | Q93: RC00172,RC00859 | R93: ko00000,ko00001,ko00002,ko01000 | S93: - | T93: - | U93: - | V93: RbcS,RuBisCO_small
A94: 4D | B94: NC_058519.1:18590868-18591601_0 | C94: 15368.BRADI4G08500.1 | D94: 5.56E-87 | E94: 262 | F94: COG4451@1|root,2QT0M@2759|Eukaryota,37T3C@33090|Viridiplantae,3GFPQ@35493|Streptophyta,3M2V4@4447|Liliopsida,3IEI4@38820|Poales | G94: 35493|Streptophyta | H94: E | I94: RuBisCO catalyzes two reactions the carboxylation of D- ribulose 1,5-bisphosphate, the primary event in carbon dioxide fixation, as well as the oxidative fragmentation of the pentose substrate. Both reactions occur simultaneously and in competition at the same active site | J94: - | K94: GO:0005575,GO:0005622,GO:0005623,GO:0005737,GO:0009507,GO:0009536,GO:0043226,GO:0043227,GO:0043229,GO:0043231,GO:0044424,GO:0044444,GO:0044464 | L94: 4.1.1.39 | M94: ko:K01602 | N94: ko00630,ko00710,ko01100,ko01120,ko01200,map00630,map00710,map01100,map01120,map01200 | O94: M00165,M00166,M00532 | P94: R00024,R03140 | Q94: RC00172,RC00859 | R94: ko00000,ko00001,ko00002,ko01000 | S94: - | T94: - | U94: - | V94: RbcS,RuBisCO_small
A95: 4D | B95: NC_058519.1:18894988-18895388_0 | C95: 77586.LPERR12G08130.1 | D95: 2.76e-16 | E95: 78.2 | F95: COG4451@1|root,2QT0M@2759|Eukaryota,37T3C@33090|Viridiplantae,3GFPQ@35493|Streptophyta,3M2V4@4447|Liliopsida,3IEI4@38820|Poales | G95: 35493|Streptophyta | H95: E | I95: RuBisCO catalyzes two reactions the carboxylation of D- ribulose 1,5-bisphosphate, the primary event in carbon dioxide fixation, as well as the oxidative fragmentation of the pentose substrate. Both reactions occur simultaneously and in competition at the same active site | J95: - | K95: GO:0005575,GO:0005622,GO:0005623,GO:0005737,GO:0009507,GO:0009536,GO:0043226,GO:0043227,GO:0043229,GO:0043231,GO:0044424,GO:0044444,GO:0044464 | L95: 4.1.1.39 | M95: ko:K01602 | N95: ko00630,ko00710,ko01100,ko01120,ko01200,map00630,map00710,map01100,map01120,map01200 | O95: M00165,M00166,M00532 | P95: R00024,R03140 | Q95: RC00172,RC00859 | R95: ko00000,ko00001,ko00002,ko01000 | S95: - | T95: - | U95: - | V95: RbcS,RuBisCO_small
A96: 4D | B96: NC_058519.1:192000518-192000918_0 | C96: 4513.MLOC_21032.1 | D96: 2.16E-53 | E96: 170 | F96: COG1443@1|root,KOG0142@2759|Eukaryota,37QKP@33090|Viridiplantae,3GAAJ@35493|Streptophyta,3KM4P@4447|Liliopsida,3I3CF@38820|Poales | G96: 35493|Streptophyta | H96: Q | I96: NUDIX domain | J96: - | K96: - | L96: 5.3.3.2 | M96: ko:K01823 | N96: ko00900,ko01100,ko01110,ko01130,map00900,map01100,map01110,map01130 | O96: M00095,M00096,M00364,M00365,M00366,M00367 | P96: R01123 | Q96: RC00455 | R96: ko00000,ko00001,ko00002,ko01000 | S96: - | T96: - | U96: - | V96: NUDIX
A97: 4D | B97: NC_058519.1:19310938-19311338_0 | C97: 37682.EMT32200 | D97: 2.61E-17 | E97: 82.4 | F97: COG5226@1|root,KOG2386@2759|Eukaryota,37QNS@33090|Viridiplantae,3GBFD@35493|Streptophyta,3KPSG@4447|Liliopsida,3I3KH@38820|Poales | G97: 35493|Streptophyta | H97: A | I97: mRNA capping enzyme, catalytic domain | J97: - | K97: - | L97: 2.7.7.50 | M97: ko:K13917 | N97: ko03015,map03015 | O97: - | P97: R03828,R10814 | Q97: RC00002 | R97: ko00000,ko00001,ko01000,ko03019 | S97: - | T97: - | U97: - | V97: DSPc,mRNA_cap_C,mRNA_cap_enzyme
A98: 4D | B98: NC_058519.1:194782087-194782487_1 | C98: 15368.BRADI1G25430.2 | D98: 1.55E-09 | E98: 61.2 | F98: 2CMIK@1|root,2QQF9@2759|Eukaryota,37S7H@33090|Viridiplantae,3G7MM@35493|Streptophyta,3KRUV@4447|Liliopsida,3I5NM@38820|Poales | G98: 35493|Streptophyta | H98: S | I98: Oxygen-evolving enhancer protein | J98: - | K98: GO:0005575,GO:0005576,GO:0005622,GO:0005623,GO:0005737,GO:0009507,GO:0009532,GO:0009534,GO:0009535,GO:0009536,GO:0009570,GO:0009579,GO:0016020,GO:0031976,GO:0031977,GO:0031984,GO:0034357,GO:0042651,GO:0043226,GO:0043227,GO:0043229,GO:0043231,GO:0044422,GO:0044424,GO:0044434,GO:0044435,GO:0044436,GO:0044444,GO:0044446,GO:0044464,GO:0048046,GO:0055035 | L98: - | M98: ko:K08901 | N98: ko00195,ko01100,map00195,map01100 | O98: - | P98: - | Q98: - | R98: ko00000,ko00001,ko00194 | S98: - | T98: - | U98: - | V98: PsbQ
A99: 4D | B99: NC_058519.1:194782087-194782487_0 | C99: 15368.BRADI1G25430.2 | D99: 1.13E-24 | E99: 100 | F99: 2CMIK@1|root,2QQF9@2759|Eukaryota,37S7H@33090|Viridiplantae,3G7MM@35493|Streptophyta,3KRUV@4447|Liliopsida,3I5NM@38820|Poales | G99: 35493|Streptophyta | H99: S | I99: Oxygen-evolving enhancer protein | J99: - | K99: GO:0005575,GO:0005576,GO:0005622,GO:0005623,GO:0005737,GO:0009507,GO:0009532,GO:0009534,GO:0009535,GO:0009536,GO:0009570,GO:0009579,GO:0016020,GO:0031976,GO:0031977,GO:0031984,GO:0034357,GO:0042651,GO:0043226,GO:0043227,GO:0043229,GO:0043231,GO:0044422,GO:0044424,GO:0044434,GO:0044435,GO:0044436,GO:0044444,GO:0044446,GO:0044464,GO:0048046,GO:0055035 | L99: - | M99: ko:K08901 | N99: ko00195,ko01100,map00195,map01100 | O99: - | P99: - | Q99: - | R99: ko00000,ko00001,ko00194 | S99: - | T99: - | U99: - | V99: PsbQ
A100: 4D | B100: NC_058519.1:194906162-194906853_0 | C100: 4530.OS07T0543300-00 | D100: 4.42e-45 | E100: 155 | F100: 2CJU3@1|root,2QUU5@2759|Eukaryota,37MRY@33090|Viridiplantae,3G9NG@35493|Streptophyta,3KVBK@4447|Liliopsida,3I6FN@38820|Poales | G100: 35493|Streptophyta | H100: G | I100: Beta-amylase | J100: - | K100: - | L100: 3.2.1.2 | M100: ko:K01177 | N100: ko00500,map00500 | O100: - | P100: R02112,R11262 | Q100: - | R100: ko00000,ko00001,ko01000 | S100: - | T100: GH14 | U100: - | V100: Glyco_hydro_14
A101: 4D | B101: NC_058519.1:194906162-194906853_1 | C101: 38727.Pavir.Bb02876.1.p | D101: 4.51E-21 | E101: 94.7 | F101: 2CJU3@1|root,2QUU5@2759|Eukaryota,37MRY@33090|Viridiplantae,3G9NG@35493|Streptophyta,3KVBK@4447|Liliopsida,3I6FN@38820|Poales | G101: 35493|Streptophyta | H101: G | I101: Beta-amylase | J101: - | K101: - | L101: 3.2.1.2 | M101: ko:K01177 | N101: ko00500,map00500 | O101: - | P101: R02112,R11262 | Q101: - | R101: ko00000,ko00001,ko01000 | S101: - | T101: GH14 | U101: - | V101: Glyco_hydro_14
A102: 4D | B102: NC_058519.1:200466463-200466863_0 | C102: 4513.MLOC_17074.3 | D102: 1.77E-58 | E102: 193 | F102: COG0515@1|root,2QWDY@2759|Eukaryota,37QJ4@33090|Viridiplantae,3G71R@35493|Streptophyta,3M3F0@4447|Liliopsida,3IEMW@38820|Poales | G102: 35493|Streptophyta | H102: T | I102: Protein kinase domain | J102: - | K102: - | L102: - | M102: - | N102: - | O102: - | P102: - | Q102: - | R102: - | S102: - | T102: - | U102: - | V102: Pkinase_Tyr,Stress-antifung
A103: 4D | B103: NC_058519.1:202473854-202474518_0 | C103: 37682.EMT05341 | D103: 2.30E-61 | E103: 208 | F103: COG2513@1|root,KOG1260@2759|Eukaryota,37M2S@33090|Viridiplantae,3GBJH@35493|Streptophyta,3KPMP@4447|Liliopsida,3I8KB@38820|Poales | G103: 35493|Streptophyta | H103: C | I103: Belongs to the isocitrate lyase PEP mutase superfamily. Isocitrate lyase family | J103: ICL | K103: GO:0003674,GO:0003824,GO:0004451,GO:0005575,GO:0005622,GO:0005623,GO:0005737,GO:0005777,GO:0005975,GO:0006081,GO:0006082,GO:0006097,GO:0008150,GO:0008152,GO:0009514,GO:0009987,GO:0016829,GO:0016830,GO:0016833,GO:0019752,GO:0032787,GO:0042579,GO:0043226,GO:0043227,GO:0043229,GO:0043231,GO:0043436,GO:0044237,GO:0044238,GO:0044262,GO:0044281,GO:0044424,GO:0044444,GO:0044464,GO:0046487,GO:0071704 | L103: 4.1.3.1 | M103: ko:K01637 | N103: ko00630,ko01100,ko01110,ko01120,ko01200,map00630,map01100,map01110,map01120,map01200 | O103: M00012 | P103: R00479 | Q103: RC00311,RC00313 | R103: ko00000,ko00001,ko00002,ko01000 | S103: - | T103: - | U103: - | V103: ICL
A104: 4D | B104: NC_058519.1:212763269-212763669_0 | C104: 4565.Traes_2BL_1832B7147.1 | D104: 4.18E-27 | E104: 104 | F104: KOG0118@1|root,KOG0118@2759|Eukaryota,37RGZ@33090|Viridiplantae,3GA7K@35493|Streptophyta,3KMJ5@4447|Liliopsida,3I2QI@38820|Poales | G104: 35493|Streptophyta | H104: A | I104: RNA recognition motif | J104: - | K104: - | L104: - | M104: - | N104: - | O104: - | P104: - | Q104: - | R104: - | S104: - | T104: - | U104: - | V104: RRM_1
A105: 4D | B105: NC_058519.1:217262714-217263500_0 | C105: 4572.TRIUR3_23580-P1 | D105: 3.73E-95 | E105: 294 | F105: COG0224@1|root,KOG1531@2759|Eukaryota,37RB5@33090|Viridiplantae,3GAT8@35493|Streptophyta,3KMI7@4447|Liliopsida,3I5N3@38820|Poales | G105: 35493|Streptophyta | H105: C | I105: ATP synthase | J105: - | K105: GO:0003674,GO:0005575,GO:0005622,GO:0005623,GO:0005737,GO:0006091,GO:0006139,GO:0006163,GO:0006164,GO:0006725,GO:0006753,GO:0006754,GO:0006793,GO:0006796,GO:0006807,GO:0006810,GO:0006811,GO:0006812,GO:0008150,GO:0008152,GO:0009058,GO:0009117,GO:0009123,GO:0009124,GO:0009126,GO:0009127,GO:0009141,GO:0009142,GO:0009144,GO:0009145,GO:0009150,GO:0009152,GO:0009156,GO:0009161,GO:0009165,GO:0009167,GO:0009168,GO:0009199,GO:0009201,GO:0009205,GO:0009206,GO:0009259,GO:0009260,GO:0009507,GO:0009526,GO:0009534,GO:0009535,GO:0009536,GO:0009544,GO:0009579,GO:0009767,GO:0009772,GO:0009941,GO:0009987,GO:0015672,GO:0015979,GO:0015985,GO:0015986,GO:0016020,GO:0017144,GO:0018130,GO:0019438,GO:0019637,GO:0019684,GO:0019693,GO:0022603,GO:0022900,GO:0030234,GO:0031967,GO:0031975,GO:0031976,GO:0031984,GO:0032991,GO:0034220,GO:0034357,GO:0034641,GO:0034654,GO:0042651,GO:0043226,GO:0043227,GO:0043229,GO:0043231,GO:0044237,GO:0044238,GO:0044249,GO:0044271,GO:0044281,GO:0044422,GO:0044424,GO:0044425,GO:0044434,GO:0044435,GO:0044436,GO:0044444,GO:0044446,GO:0044464,GO:0046034,GO:0046390,GO:0046483,GO:0050789,GO:0050790,GO:0050793,GO:0051179,GO:0051234,GO:0051239,GO:0055035,GO:0055085,GO:0055086,GO:0055114,GO:0065007,GO:0065009,GO:0071704,GO:0072521,GO:0072522,GO:0090407,GO:0098655,GO:0098660,GO:0098662,GO:0098772,GO:0098796,GO:0098807,GO:1901135,GO:1901137,GO:1901293,GO:1901360,GO:1901362,GO:1901564,GO:1901566,GO:1901576,GO:1902600,GO:1905421,GO:2000026,GO:2000067,GO:2000280 | L105: - | M105: ko:K02115,ko:K08341 | N105: ko00190,ko00195,ko01100,ko04068,ko04136,ko04137,ko04138,ko04139,ko04140,ko04212,ko04371,ko04621,ko04727,ko05167,map00190,map00195,map01100,map04068,map04136,map04137,map04138,map04139,map04140,map04212,map04371,map04621,map04727,map05167 | O105: M00157 | P105: - | Q105: - | R105: ko00000,ko00001,ko00002,ko00194,ko03029,ko04121,ko04131 | S105: 3.A.2.1 | T105: - | U105: - | V105: ATP-synt
A106: 4D | B106: NC_058519.1:222819761-222820161_0 | C106: 15368.BRADI1G26530.1 | D106: 1.20E-75 | E106: 238 | F106: COG0175@1|root,COG0526@1|root,KOG0189@2759|Eukaryota,KOG0191@2759|Eukaryota,37J1M@33090|Viridiplantae,3GEXW@35493|Streptophyta,3KQUV@4447|Liliopsida,3IBIH@38820|Poales | G106: 35493|Streptophyta | H106: EO | I106: Phosphoadenosine phosphosulfate reductase family | J106: APR1 | K106: GO:0000103,GO:0003674,GO:0003824,GO:0004604,GO:0005575,GO:0005622,GO:0005623,GO:0005737,GO:0006790,GO:0008150,GO:0008152,GO:0009507,GO:0009532,GO:0009536,GO:0009570,GO:0009973,GO:0009987,GO:0016491,GO:0016667,GO:0016671,GO:0019379,GO:0019419,GO:0043226,GO:0043227,GO:0043229,GO:0043231,GO:0044237,GO:0044422,GO:0044424,GO:0044434,GO:0044435,GO:0044444,GO:0044446,GO:0044464,GO:0055114 | L106: 1.8.4.9 | M106: ko:K05907 | N106: ko00920,ko01120,map00920,map01120 | O106: - | P106: R05717 | Q106: RC00007 | R106: ko00000,ko00001,ko01000 | S106: - | T106: - | U106: - | V106: PAPS_reduct,Thioredoxin
A107: 4D | B107: NC_058519.1:222820309-222820709_0 | C107: 102107.XP_008246261.1 | D107: 2.61E-21 | E107: 91.7 | F107: COG0175@1|root,KOG0189@2759|Eukaryota,37J1M@33090|Viridiplantae,3GEXW@35493|Streptophyta,4JGEV@91835|fabids | G107: 35493|Streptophyta | H107: EO | I107: 5'-adenylylsulfate reductase | J107: APR1 | K107: GO:0000103,GO:0003674,GO:0003824,GO:0004604,GO:0005575,GO:0005622,GO:0005623,GO:0005737,GO:0006790,GO:0008150,GO:0008152,GO:0009507,GO:0009532,GO:0009536,GO:0009570,GO:0009973,GO:0009987,GO:0016491,GO:0016667,GO:0016671,GO:0019379,GO:0019419,GO:0043226,GO:0043227,GO:0043229,GO:0043231,GO:0044237,GO:0044422,GO:0044424,GO:0044434,GO:0044435,GO:0044444,GO:0044446,GO:0044464,GO:0055114 | L107: 1.8.4.9 | M107: ko:K05907 | N107: ko00920,ko01120,map00920,map01120 | O107: - | P107: R05717 | Q107: RC00007 | R107: ko00000,ko00001,ko01000 | S107: - | T107: - | U107: - | V107: PAPS_reduct,Thioredoxin
A108: 4D | B108: NC_058519.1:229342092-229342492_0 | C108: 4513.MLOC_63530.1 | D108: 2.35E-30 | E108: 120 | F108: KOG3881@1|root,KOG3881@2759|Eukaryota,37MWJ@33090|Viridiplantae,3GFXU@35493|Streptophyta,3KNDG@4447|Liliopsida,3IG1V@38820|Poales | G108: 35493|Streptophyta | H108: S | I108: WD40 repeats | J108: - | K108: GO:0005575,GO:0005622,GO:0005623,GO:0005634,GO:0005730,GO:0008150,GO:0022613,GO:0030684,GO:0030687,GO:0031974,GO:0031981,GO:0032991,GO:0042254,GO:0042273,GO:0043226,GO:0043227,GO:0043228,GO:0043229,GO:0043231,GO:0043232,GO:0043233,GO:0044085,GO:0044422,GO:0044424,GO:0044428,GO:0044446,GO:0044464,GO:0070013,GO:0071840,GO:1990904 | L108: - | M108: ko:K14841 | N108: - | O108: - | P108: - | Q108: - | R108: ko00000,ko03009 | S108: - | T108: - | U108: - | V108: -
A109: 4D | B109: NC_058519.1:255768511-255768911_0 | C109: 42345.XP_008812822.1 | D109: 6.51E-14 | E109: 70.5 | F109: COG0281@1|root,KOG1257@2759|Eukaryota,37NY1@33090|Viridiplantae,3GEGE@35493|Streptophyta,3KQTG@4447|Liliopsida | G109: 35493|Streptophyta | H109: C | I109: malic enzyme | J109: - | K109: GO:0000166,GO:0003674,GO:0003824,GO:0004470,GO:0004471,GO:0005488,GO:0005515,GO:0005524,GO:0005575,GO:0005622,GO:0005623,GO:0005737,GO:0005739,GO:0005759,GO:0006082,GO:0006090,GO:0006108,GO:0006950,GO:0006970,GO:0008144,GO:0008150,GO:0008152,GO:0008270,GO:0009507,GO:0009536,GO:0009628,GO:0009651,GO:0009987,GO:0016491,GO:0016614,GO:0016615,GO:0016616,GO:0017076,GO:0019752,GO:0030554,GO:0031974,GO:0032553,GO:0032555,GO:0032559,GO:0032787,GO:0035639,GO:0036094,GO:0042802,GO:0042803,GO:0043167,GO:0043168,GO:0043169,GO:0043226,GO:0043227,GO:0043229,GO:0043231,GO:0043233,GO:0043436,GO:0043648,GO:0044237,GO:0044281,GO:0044422,GO:0044424,GO:0044429,GO:0044444,GO:0044446,GO:0044464,GO:0046872,GO:0046914,GO:0046983,GO:0050896,GO:0050897,GO:0055114,GO:0070013,GO:0071704,GO:0097159,GO:0097367,GO:1901265,GO:1901363 | L109: 1.1.1.39 | M109: ko:K00028 | N109: ko00620,ko00710,ko01100,ko01120,ko01200,map00620,map00710,map01100,map01120,map01200 | O109: M00171 | P109: R00214 | Q109: RC00105 | R109: ko00000,ko00001,ko00002,ko01000 | S109: - | T109: - | U109: - | V109: Malic_M,malic
A110: 4D | B110: NC_058519.1:258170387-258170787_0 | C110: 37682.EMT29924 | D110: 6.05E-30 | E110: 110 | F110: 2CV33@1|root,2S4FE@2759|Eukaryota,37W0Y@33090|Viridiplantae,3GK9T@35493|Streptophyta,3M74H@4447|Liliopsida,3IJ0X@38820|Poales | G110: 35493|Streptophyta | H110: - | I110: - | J110: - | K110: - | L110: - | M110: - | N110: - | O110: - | P110: - | Q110: - | R110: - | S110: - | T110: - | U110: - | V110: -
A111: 4D | B111: NC_058519.1:25878085-25878485_0 | C111: 4565.Traes_2DS_3A2D5B67D.1 | D111: 4.18E-18 | E111: 81.6 | F111: COG5641@1|root,KOG1601@2759|Eukaryota,37J2W@33090|Viridiplantae,3G8UI@35493|Streptophyta,3KN6G@4447|Liliopsida,3I311@38820|Poales | G111: 35493|Streptophyta | H111: K | I111: Two-component response regulator-like | J111: PRR7 | K111: GO:0003674,GO:0003676,GO:0003677,GO:0005488,GO:0005575,GO:0005622,GO:0005623,GO:0005634,GO:0005737,GO:0005739,GO:0006355,GO:0007154,GO:0007165,GO:0007623,GO:0008150,GO:0009314,GO:0009416,GO:0009628,GO:0009639,GO:0009889,GO:0009890,GO:0009892,GO:0009987,GO:0010017,GO:0010468,GO:0010556,GO:0010558,GO:0010605,GO:0010629,GO:0019219,GO:0019222,GO:0023052,GO:0031323,GO:0031324,GO:0031326,GO:0031327,GO:0043226,GO:0043227,GO:0043229,GO:0043231,GO:0044424,GO:0044444,GO:0044464,GO:0045892,GO:0045934,GO:0048511,GO:0048519,GO:0048523,GO:0048579,GO:0048580,GO:0048581,GO:0048583,GO:0048585,GO:0048586,GO:0050789,GO:0050793,GO:0050794,GO:0050896,GO:0051093,GO:0051171,GO:0051172,GO:0051239,GO:0051241,GO:0051252,GO:0051253,GO:0051716,GO:0060255,GO:0065007,GO:0071214,GO:0071478,GO:0071482,GO:0071489,GO:0080090,GO:0097159,GO:0104004,GO:1901363,GO:1902679,GO:1903506,GO:1903507,GO:2000026,GO:2000028,GO:2000112,GO:2000113,GO:2000241,GO:2000242,GO:2001141 | L111: - | M111: ko:K12129 | N111: ko04712,map04712 | O111: - | P111: - | Q111: - | R111: ko00000,ko00001 | S111: - | T111: - | U111: - | V111: CCT,Response_reg
A112: 4D | B112: NC_058519.1:25936047-25936447_0 | C112: 4565.Traes_2AS_5A8A369CB.1 | D112: 4.67e-17 | E112: 81.3 | F112: COG1723@1|root,KOG2861@2759|Eukaryota,37J73@33090|Viridiplantae,3G7W0@35493|Streptophyta,3KP2H@4447|Liliopsida,3IEDX@38820|Poales | G112: 35493|Streptophyta | H112: S | I112: Uncharacterised ACR, YagE family COG1723 | J112: - | K112: - | L112: - | M112: - | N112: - | O112: - | P112: - | Q112: - | R112: - | S112: - | T112: - | U112: - | V112: DUF155
A113: 4D | B113: NC_058519.1:26106583-26106983_0 | C113: 71139.XP_010032225.1 | D113: 4.51E-56 | E113: 187 | F113: COG5256@1|root,KOG0052@2759|Eukaryota,37KSK@33090|Viridiplantae,3GAB2@35493|Streptophyta | G113: 35493|Streptophyta | H113: J | I113: This protein promotes the GTP-dependent binding of aminoacyl-tRNA to the A-site of ribosomes during protein biosynthesis | J113: - | K113: - | L113: - | M113: ko:K03231 | N113: ko03013,ko05134,map03013,map05134 | O113: - | P113: - | Q113: - | R113: ko00000,ko00001,ko03012,ko03016,ko03019,ko04131,ko04147 | S113: - | T113: - | U113: - | V113: GTP_EFTU,GTP_EFTU_D2,GTP_EFTU_D3
A114: 4D | B114: NC_058519.1:26107516-26107916_0 | C114: 29730.Gorai.012G093800.1 | D114: 1.66e-66 | E114: 214 | F114: COG5256@1|root,KOG0052@2759|Eukaryota,37KSK@33090|Viridiplantae,3GAB2@35493|Streptophyta | G114: 35493|Streptophyta | H114: J | I114: This protein promotes the GTP-dependent binding of aminoacyl-tRNA to the A-site of ribosomes during protein biosynthesis | J114: - | K114: - | L114: - | M114: ko:K03231 | N114: ko03013,ko05134,map03013,map05134 | O114: - | P114: - | Q114: - | R114: ko00000,ko00001,ko03012,ko03016,ko03019,ko04131,ko04147 | S114: - | T114: - | U114: - | V114: GTP_EFTU,GTP_EFTU_D2,GTP_EFTU_D3
A115: 4D | B115: NC_058519.1:26108158-26108558_0 | C115: 4572.TRIUR3_21022-P1 | D115: 1.46e-62 | E115: 206 | F115: COG5256@1|root,KOG0052@2759|Eukaryota,37KSK@33090|Viridiplantae,3GAB2@35493|Streptophyta | G115: 35493|Streptophyta | H115: J | I115: This protein promotes the GTP-dependent binding of aminoacyl-tRNA to the A-site of ribosomes during protein biosynthesis | J115: - | K115: GO:0005575,GO:0005622,GO:0005623,GO:0005737,GO:0044424,GO:0044464 | L115: - | M115: ko:K03231 | N115: ko03013,ko05134,map03013,map05134 | O115: - | P115: - | Q115: - | R115: ko00000,ko00001,ko03012,ko03016,ko03019,ko04131,ko04147 | S115: - | T115: - | U115: - | V115: GTP_EFTU,GTP_EFTU_D2,GTP_EFTU_D3
A116: 4D | B116: NC_058519.1:300376593-300376993_0 | C116: 90675.XP_010494924.1 | D116: 2.38e-15 | E116: 76.6 | F116: COG1112@1|root,KOG1802@2759|Eukaryota,37NPU@33090|Viridiplantae,3G8QY@35493|Streptophyta,3HW6Q@3699|Brassicales | G116: 35493|Streptophyta | H116: A | I116: Regulator of nonsense transcripts 1 homolog | J116: LBA1 | K116: GO:0000184,GO:0000932,GO:0000956,GO:0001101,GO:0003674,GO:0003676,GO:0003723,GO:0003729,GO:0005488,GO:0005575,GO:0005622,GO:0005623,GO:0005737,GO:0005829,GO:0005886,GO:0005911,GO:0006139,GO:0006401,GO:0006402,GO:0006725,GO:0006807,GO:0006950,GO:0006952,GO:0007154,GO:0007165,GO:0008150,GO:0008152,GO:0009056,GO:0009057,GO:0009314,GO:0009416,GO:0009506,GO:0009605,GO:0009607,GO:0009611,GO:0009617,GO:0009628,GO:0009648,GO:0009719,GO:0009725,GO:0009743,GO:0009751,GO:0009753,GO:0009755,GO:0009756,GO:0009863,GO:0009867,GO:0009892,GO:0009987,GO:0010033,GO:0010182,GO:0010468,GO:0010605,GO:0010629,GO:0014070,GO:0016020,GO:0016070,GO:0016071,GO:0019222,GO:0019439,GO:0023052,GO:0030054,GO:0032870,GO:0032991,GO:0034641,GO:0034655,GO:0035690,GO:0035770,GO:0036464,GO:0042221,GO:0042493,GO:0042742,GO:0043170,GO:0043207,GO:0043226,GO:0043228,GO:0043229,GO:0043232,GO:0044237,GO:0044238,GO:0044248,GO:0044260,GO:0044265,GO:0044270,GO:0044424,GO:0044444,GO:0044464,GO:0046483,GO:0046677,GO:0046700,GO:0048519,GO:0048571,GO:0050789,GO:0050794,GO:0050896,GO:0051704,GO:0051707,GO:0051716,GO:0055044,GO:0060255,GO:0065007,GO:0070887,GO:0071229,GO:0071236,GO:0071310,GO:0071322,GO:0071395,GO:0071407,GO:0071446,GO:0071495,GO:0071704,GO:0071944,GO:0090304,GO:0097159,GO:0098542,GO:1901360,GO:1901361,GO:1901363,GO:1901575,GO:1901700,GO:1901701,GO:1990904 | L116: - | M116: ko:K14326 | N116: ko03013,ko03015,map03013,map03015 | O116: M00430 | P116: - | Q116: - | R116: ko00000,ko00001,ko00002,ko01000,ko03019 | S116: - | T116: - | U116: - | V116: AAA_11,AAA_12,ResIII,UPF1_Zn_bind
A117: 4D | B117: NC_058519.1:302850296-302850696_0 | C117: 15368.BRADI1G55460.1 | D117: 8.87E-12 | E117: 63.9 | F117: 2CYCQ@1|root,2S3KV@2759|Eukaryota,37W49@33090|Viridiplantae,3GK3U@35493|Streptophyta,3M16U@4447|Liliopsida,3IIZH@38820|Poales | G117: 35493|Streptophyta | H117: S | I117: Pet100 | J117: - | K117: - | L117: - | M117: ko:K18187 | N117: - | O117: - | P117: - | Q117: - | R117: ko00000,ko03029 | S117: - | T117: - | U117: - | V117: Pet100
A118: 4D | B118: NC_058519.1:31546284-31546684_0 | C118: 4565.Traes_2BS_CB79BAFB1.1 | D118: 9.10E-86 | E118: 260 | F118: 28MAT@1|root,2QTU6@2759|Eukaryota,37J7E@33090|Viridiplantae,3G8DD@35493|Streptophyta,3KMTF@4447|Liliopsida,3I7V1@38820|Poales | G118: 35493|Streptophyta | H118: S | I118: nicotianamine metabolic process | J118: NAS3 | K118: GO:0000003,GO:0000902,GO:0000904,GO:0003006,GO:0006810,GO:0007275,GO:0008150,GO:0009555,GO:0009653,GO:0009826,GO:0009856,GO:0009860,GO:0009932,GO:0009987,GO:0010232,GO:0010233,GO:0016043,GO:0016049,GO:0022414,GO:0030154,GO:0032501,GO:0032502,GO:0032989,GO:0040007,GO:0044706,GO:0048229,GO:0048468,GO:0048588,GO:0048589,GO:0048856,GO:0048868,GO:0048869,GO:0051179,GO:0051234,GO:0051704,GO:0060560,GO:0071840 | L118: 2.5.1.43 | M118: ko:K05953 | N118: - | O118: - | P118: - | Q118: - | R118: ko00000,ko01000 | S118: - | T118: - | U118: - | V118: NAS
A119: 4D | B119: NC_058519.1:322650607-322651007_0 | C119: 4513.MLOC_21021.1 | D119: 3.64E-20 | E119: 87.8 | F119: COG5074@1|root,KOG0810@2759|Eukaryota,37JRB@33090|Viridiplantae,3G8H8@35493|Streptophyta,3KP94@4447|Liliopsida,3IFJA@38820|Poales | G119: 35493|Streptophyta | H119: U | I119: Belongs to the syntaxin family | J119: - | K119: - | L119: - | M119: ko:K08486 | N119: ko04130,ko04721,map04130,map04721 | O119: - | P119: - | Q119: - | R119: ko00000,ko00001,ko04131,ko04147 | S119: - | T119: - | U119: - | V119: SNARE,Syntaxin
A120: 4D | B120: NC_058519.1:327389530-327389930_0 | C120: 4533.OB01G26610.1 | D120: 1.23E-84 | E120: 257 | F120: 28JI2@1|root,2QRXA@2759|Eukaryota,37J6E@33090|Viridiplantae,3GEKV@35493|Streptophyta,3KQSE@4447|Liliopsida,3IBIV@38820|Poales | G120: 35493|Streptophyta | H120: S | I120: Manganese-stabilising protein / photosystem II polypeptide | J120: - | K120: GO:0005575,GO:0005622,GO:0005623,GO:0005737,GO:0009507,GO:0009534,GO:0009535,GO:0009536,GO:0009579,GO:0016020,GO:0031976,GO:0031984,GO:0034357,GO:0042651,GO:0043226,GO:0043227,GO:0043229,GO:0043231,GO:0044422,GO:0044424,GO:0044434,GO:0044435,GO:0044436,GO:0044444,GO:0044446,GO:0044464,GO:0055035 | L120: - | M120: ko:K02716 | N120: ko00195,ko01100,map00195,map01100 | O120: - | P120: - | Q120: - | R120: ko00000,ko00001,ko00194 | S120: - | T120: - | U120: - | V120: MSP
A121: 4D | B121: NC_058519.1:330497609-330498009_0 | C121: 4577.GRMZM2G044469_P02 | D121: 6.30E-30 | E121: 114 | F121: COG4631@1|root,KOG0430@2759|Eukaryota,37N1E@33090|Viridiplantae,3GFV1@35493|Streptophyta,3KQY2@4447|Liliopsida,3IEA8@38820|Poales | G121: 35493|Streptophyta | H121: F | I121: Molybdopterin-binding domain of aldehyde dehydrogenase | J121: AAO3 | K121: GO:0000166,GO:0003674,GO:0003824,GO:0004029,GO:0004031,GO:0005488,GO:0005515,GO:0005575,GO:0005622,GO:0005623,GO:0005737,GO:0005829,GO:0006066,GO:0006082,GO:0006629,GO:0006714,GO:0006720,GO:0006721,GO:0006790,GO:0006807,GO:0008150,GO:0008152,GO:0008299,GO:0008610,GO:0009058,GO:0009687,GO:0009688,GO:0009850,GO:0009851,GO:0009987,GO:0010293,GO:0010817,GO:0016053,GO:0016106,GO:0016114,GO:0016143,GO:0016491,GO:0016620,GO:0016623,GO:0016903,GO:0018479,GO:0018488,GO:0019748,GO:0019752,GO:0019757,GO:0019760,GO:0019899,GO:0031625,GO:0032787,GO:0036094,GO:0042445,GO:0042446,GO:0043167,GO:0043168,GO:0043288,GO:0043289,GO:0043436,GO:0044237,GO:0044238,GO:0044249,GO:0044255,GO:0044281,GO:0044283,GO:0044389,GO:0044424,GO:0044444,GO:0044464,GO:0046165,GO:0046394,GO:0048037,GO:0050302,GO:0050660,GO:0050662,GO:0055114,GO:0065007,GO:0065008,GO:0071704,GO:0072330,GO:0097159,GO:1901135,GO:1901265,GO:1901363,GO:1901564,GO:1901576,GO:1901615,GO:1901617,GO:1901657,GO:1902644,GO:1902645 | L121: 1.2.1.28,1.2.3.14,1.2.3.7 | M121: ko:K09842,ko:K11817,ko:K22417 | N121: ko00380,ko00906,ko01100,ko01110,map00380,map00906,map01100,map01110 | O121: M00372 | P121: R02681,R06957 | Q121: RC00080,RC00218 | R121: ko00000,ko00001,ko00002,ko01000 | S121: - | T121: - | U121: - | V121: Ald_Xan_dh_C,Ald_Xan_dh_C2,CO_deh_flav_C,FAD_binding_5,Fer2,Fer2_2
A122: 4D | B122: NC_058519.1:342958638-342959038_0 | C122: 4565.Traes_2BS_F00047B6F.2 | D122: 7.32E-20 | E122: 86.3 | F122: 2CBEU@1|root,2QQQU@2759|Eukaryota,37SIM@33090|Viridiplantae,3GB6Q@35493|Streptophyta,3KS6P@4447|Liliopsida,3I3P2@38820|Poales | G122: 35493|Streptophyta | H122: - | I122: - | J122: - | K122: GO:0005575,GO:0005622,GO:0005623,GO:0005737,GO:0006091,GO:0006807,GO:0006950,GO:0008150,GO:0008152,GO:0009314,GO:0009416,GO:0009507,GO:0009509,GO:0009526,GO:0009532,GO:0009534,GO:0009535,GO:0009536,GO:0009570,GO:0009575,GO:0009579,GO:0009611,GO:0009628,GO:0009642,GO:0009644,GO:0009765,GO:0009941,GO:0009987,GO:0010206,GO:0010207,GO:0015979,GO:0016020,GO:0016043,GO:0019538,GO:0019684,GO:0019898,GO:0022607,GO:0030091,GO:0031090,GO:0031967,GO:0031969,GO:0031975,GO:0031976,GO:0031984,GO:0034357,GO:0034622,GO:0035448,GO:0042170,GO:0042651,GO:0043170,GO:0043226,GO:0043227,GO:0043229,GO:0043231,GO:0043933,GO:0044085,GO:0044237,GO:0044238,GO:0044260,GO:0044267,GO:0044422,GO:0044424,GO:0044425,GO:0044434,GO:0044435,GO:0044436,GO:0044444,GO:0044446,GO:0044464,GO:0050896,GO:0055035,GO:0065003,GO:0071704,GO:0071840,GO:1901564 | L122: - | M122: - | N122: - | O122: - | P122: - | Q122: - | R122: - | S122: - | T122: - | U122: - | V122: -
A123: 4D | B123: NC_058519.1:3530469-3530869_1 | C123: 4555.Si012594m | D123: 7.60E-15 | E123: 73.9 | F123: KOG3937@1|root,KOG3937@2759|Eukaryota,37JZ0@33090|Viridiplantae,3G7Y1@35493|Streptophyta,3KPHS@4447|Liliopsida,3IG9W@38820|Poales | G123: 35493|Streptophyta | H123: A | I123: AAR2 protein | J123: - | K123: - | L123: - | M123: ko:K13205 | N123: - | O123: - | P123: - | Q123: - | R123: ko00000,ko03041 | S123: - | T123: - | U123: - | V123: AAR2
A124: 4D | B124: NC_058519.1:3530469-3530869_0 | C124: 4513.MLOC_22255.3 | D124: 3.03e-30 | E124: 116 | F124: KOG3937@1|root,KOG3937@2759|Eukaryota,37JZ0@33090|Viridiplantae,3G7Y1@35493|Streptophyta,3KPHS@4447|Liliopsida,3IG9W@38820|Poales | G124: 35493|Streptophyta | H124: A | I124: AAR2 protein | J124: - | K124: - | L124: - | M124: ko:K13205 | N124: - | O124: - | P124: - | Q124: - | R124: ko00000,ko03041 | S124: - | T124: - | U124: - | V124: AAR2
A125: 4D | B125: NC_058519.1:358740238-358740638_0 | C125: 65489.OBART07G02660.1 | D125: 1.39E-31 | E125: 119 | F125: COG0667@1|root,KOG1575@2759|Eukaryota,37JT5@33090|Viridiplantae,3GFD9@35493|Streptophyta,3KNVW@4447|Liliopsida,3ICYU@38820|Poales | G125: 35493|Streptophyta | H125: C | I125: Aldo/keto reductase family | J125: - | K125: - | L125: - | M125: - | N125: - | O125: - | P125: - | Q125: - | R125: - | S125: - | T125: - | U125: - | V125: Aldo_ket_red
